Workbook

Sheet Menu
D3: Atlanta Regional Commission CMAQ Calculator
E37: =IFERROR(MID(CELL("filename"),SEARCH("[",CELL("filename"))+1,SEARCH("]",CELL("filename"))-SEARCH("[",CELL("filename"))-1),"") -> ARC_CMAQ_Tool_v3.xlsm

Sheet 2.1 ATMS
E3: 2.1 - Advanced Traffic Management Systems (ATMS)
C6: PROJECT INFORMATION
C7: Project Title | F7: Advanced Traffic Management System on XXX street
C8: Project ID | F8: ATL-03
C9: Project Location | F9: Atlanta
C10: Project Year
C11: Project Cost
C12: Metropolitan Area | F12: Atlanta
C13: County (optional) | F13: Fulton County
C14: Project Description:
C18: INPUTS
C19: Data Type | H19: Morning Peak | I19: Evening Peak | J19: Off-Peak | K19: Units
C20: Scenario Year | H20: 2024 | K20: -
C21: Road Type | H21: Urban Unrestricted Access | K21: -
C22: Average Intersection Delay before Applying ATMS | H22: 80 | I22: 80 | J22: 80 | K22: sec/veh/intxn
C23: Average Hourly Volume along the Corridor | H23: 2790 | I23: 2790 | J23: 620 | K23: veh/hour
C24: Truck Percentage | H24: 2 | I24: 2 | J24: 2 | K24: percent
C25: Does the Project Include Adaptive Signal Control System | H25: Yes | I25: Yes | J25: Yes | K25: -
C26: Number of Intersections along Corridor | H26: 2 | K26: -
C28: CONSTANTS
C29: Data Type | J29: Value | K29: Units
C30: Average Reduction on Delay by Applying ATMS | J30: =ps21_aveRedxnDlayByAtm -> 12 | K30: percent
C31: Hours in Morning Peak Period | J31: =ps_hrsAmPeak -> 3 | K31: hours
C32: Hours in Evening Peak Period | J32: =ps_hrsPmPeak -> 3 | K32: hours
C33: Number of Weekdays per Year | J33: =ps_wkdaysPerYear -> 250 | K33: days
C34: Average Reduction on Delay by Applying ATMS with Adaptive Signal Control System | J34: =ps21_aveRedxnDlayByAtmASCS -> 31.5 | K34: percent
C36: INTERMEDIATE RESULTS
C37: Data Type | H37: Morning Peak | I37: Evening Peak | J37: Off-Peak | K37: Units
C38: Emission Rates Interpolation Factor | H38: =(H20-ps_erBaseYear1)/(ps_erBaseYear2-ps_erBaseYear1) -> 0.1333333333 | K38: -
C39: Hours | H39: =J31 -> 3 | I39: =J32 -> 3 | J39: =24-H39-I39 -> 18 | K39: hours
C40: Delay After Applying ATMS | H40: =H22-H22*(IF(H25="No",J30/100,J34/100)) -> 54.8 | I40: =I22-I22*(IF(I25="No",J30/100,J34/100)) -> 54.8 | J40: =J22-J22*(IF(J25="No",J30/100,J34/100)) -> 54.8 | K40: sec/veh/intxn
C41: Existing Vehicle Hours of Delay - Light Duty Vehicles | H41: =H43-H42 -> 364.56 | I41: =I43-I42 -> 364.56 | J41: =J43-J42 -> 486.08 | K41: hours
C42: Existing Vehicle Hours of Delay - All Trucks | H42: =H43*H24/100 -> 7.44 | I42: =I43*I24/100 -> 7.44 | J42: =J43*J24/100 -> 9.92 | K42: hours
C43: Existing Vehicle Hours of Delay - Total | H43: =H22*H23*H26*H39/3600 -> 372 | I43: =I22*I23*H26*I39/3600 -> 372 | J43: =J22*J23*H26*J39/3600 -> 496 | K43: hours
C44: Improved Vehicle Hours of Delay - Light Duty Vehicles | H44: =H46-H45 -> 249.7236 | I44: =I46-I45 -> 249.7236 | J44: =J46-J45 -> 332.9648 | K44: hours
C45: Improved Vehicle Hours of Delay - All Trucks | H45: =H46*H24/100 -> 5.0964 | I45: =I46*I24/100 -> 5.0964 | J45: =J46*J24/100 -> 6.7952 | K45: hours
C46: Improved Vehicle Hours of Delay - Total | H46: =H40*H23*H26*H39/3600 -> 254.82 | I46: =I40*I23*H26*I39/3600 -> 254.82 | J46: =J40*J23*H26*J39/3600 -> 339.76 | K46: hours
C48: ACTIVITY OUTPUTS
C49: Data Type | H49: Morning Peak | I49: Evening Peak | J49: Off-Peak | K49: Units
C50: Reduction in Daily Vehicle Hours of Delay - Light Duty Vehicles | H50: =H41-H44 -> 114.8364 | I50: 114.8364 | J50: 153.1152 | K50: hours
C51: Reduction in Daily Vehicle Hours of Delay - All Trucks | H51: 2.3436 | I51: 2.3436 | J51: 3.1248 | K51: hours
C52: Reduction in Daily Vehicle Hours of Delay - Total | H52: 117.18 | I52: 117.18 | J52: 156.24 | K52: hours
C53: Reduction in Annual Vehicle Hours of Delay - Light Durty Vehicles | H53: =H50*J33 -> 28709.1 | I53: =I50*J33 -> 28709.1 | J53: =J50*J33 -> 38278.8 | K53: hours
C54: Reduction in Annual Vehicle Hours of Delay - All Trucks | H54: =H51*J33 -> 585.9 | I54: =I51*J33 -> 585.9 | J54: =J51*J33 -> 781.2 | K54: hours
C55: Reduction in Annual Vehicle Hours of Delay - Total | H55: =H52*J33 -> 29295 | I55: =I52*J33 -> 29295 | J55: =J52*J33 -> 39060 | K55: hours
C58: ="EMISSION FACTORS ("&ps_erBaseYear1&")" -> EMISSION FACTORS (2020)
C59: Description | F59: Pollutant | K59: Units
C60: Time Periods | D60: Operating Mode | E60: Vehicle Type | F60: CO2 | G60: PM-Related NOX | H60: NOX | I60: PM2.5 | J60: VOC
C61: All | D61: Idling | E61: Light Duty Vehicles | F61: =IF($H$21="Urban Unrestricted Access",'2020ER'!AA4,'2020ER'!Y4) -> 3364.435327 | G61: =IF($H$21="Urban Unrestricted Access",'2020ER'!AA5,'2020ER'!Y5) -> 0.7744377926 | H61: =IF($H$21="Urban Unrestricted Access",'2020ER'!AA7,'2020ER'!Y7) -> 1.794788753 | I61: =IF($H$21="Urban Unrestricted Access",'2020ER'!AA6,'2020ER'!Y6) -> 0.04854444437 | J61: =IF($H$21="Urban Unrestricted Access",'2020ER'!AA8,'2020ER'!Y8) -> 0.7992209736 | K61: g/veh/hr
E62: All Trucks | F62: =IF($H$21="Urban Unrestricted Access",'2020ER'!AK4,'2020ER'!AI4) -> 7586.746881 | G62: =IF($H$21="Urban Unrestricted Access",'2020ER'!AK5,'2020ER'!AI5) -> 28.28927687 | H62: =IF($H$21="Urban Unrestricted Access",'2020ER'!AK7,'2020ER'!AI7) -> 25.30649378 | I62: =IF($H$21="Urban Unrestricted Access",'2020ER'!AK6,'2020ER'!AI6) -> 1.354370807 | J62: =IF($H$21="Urban Unrestricted Access",'2020ER'!AK8,'2020ER'!AI8) -> 4.308027338
C64: ="EMISSION FACTORS ("&'Parameters&Source'!B7&")" -> EMISSION FACTORS (2050)
C65: Description | F65: Pollutant | K65: Units
C66: Time Periods | D66: Operating Mode | E66: Vehicle Type | F66: CO2 | G66: PM-Related NOX | H66: NOX | I66: PM2.5 | J66: VOC
C67: All | D67: Idling | E67: Light Duty Vehicles | F67: =IF($H$21="Urban Unrestricted Access",'2050ER'!AA4,'2050ER'!Y4) -> 2002.159623 | G67: =IF($H$21="Urban Unrestricted Access",'2050ER'!AA5,'2050ER'!Y5) -> 0.03756914139 | H67: =IF($H$21="Urban Unrestricted Access",'2050ER'!AA7,'2050ER'!Y7) -> 0.08297823026 | I67: =IF($H$21="Urban Unrestricted Access",'2050ER'!AA6,'2050ER'!Y6) -> 0.02232062483 | J67: =IF($H$21="Urban Unrestricted Access",'2050ER'!AA8,'2050ER'!Y8) -> 0.04511359832 | K67: g/veh/hr
E68: All Trucks | F68: =IF($H$21="Urban Unrestricted Access",'2050ER'!AK4,'2050ER'!AI4) -> 7177.461415 | G68: =IF($H$21="Urban Unrestricted Access",'2050ER'!AK5,'2050ER'!AI5) -> 6.349728243 | H68: =IF($H$21="Urban Unrestricted Access",'2050ER'!AK7,'2050ER'!AI7) -> 5.680519438 | I68: =IF($H$21="Urban Unrestricted Access",'2050ER'!AK6,'2050ER'!AI6) -> 0.1454390096 | J68: =IF($H$21="Urban Unrestricted Access",'2050ER'!AK8,'2050ER'!AI8) -> 0.6593006868
C70: ="ANALYSIS YEAR EMISSION FACTORS ("&H20&")" -> ANALYSIS YEAR EMISSION FACTORS (2024)
C71: Description | F71: Pollutant | K71: Units
C72: Time Periods | D72: Operating Mode | E72: Vehicle Type | F72: CO2 | G72: PM-Related NOX | H72: NOX | I72: PM2.5 | J72: VOC
C73: All | D73: Idling | E73: Light Duty Vehicles | F73: =F61-$H$38*(F61-F67) -> 3182.798566 | G73: 0.6761886391 | H73: 1.56654735 | I73: 0.0450479351 | J73: 0.6986733236 | K73: g/veh/hr
E74: All Trucks | F74: 7532.175486 | G74: 25.36400372 | H74: 22.6896972 | I74: 1.1931799 | J74: 3.821530451
C76: RESULTS
C77: Delay/VMT Impact
C78: Description | J78: Value | K78: Units
C79: Reduction in Annual Vehicle Hours of Delay | J79: =H55+I55+J55 -> 97650 | K79: hours
C81: TOTAL EMISSION REDUCTION
C82: Description | F82: Pollutant | K82: Units
F83: GHG(CO2) | G83: PM-Related NOX | H83: NOX | I83: PM2.5 | J83: VOC
C84: Total Annual Reductions | F84: =( F73*($H$53+$I$53+$J$53)+F74*($H$54+$I$54+$J$54) )/1000 -> 319294.6131 | G84: =( G73*($H$53+$I$53+$J$53)+G74*($H$54+$I$54+$J$54) )/1000 -> 114.2451235 | H84: =( H73*($H$53+$I$53+$J$53)+H74*($H$54+$I$54+$J$54) )/1000 -> 194.2268604 | I84: =( I73*($H$53+$I$53+$J$53)+I74*($H$54+$I$54+$J$54) )/1000 -> 6.641232591 | J84: =( J73*($H$53+$I$53+$J$53)+J74*($H$54+$I$54+$J$54) )/1000 -> 74.32439002 | K84: kg/year
F85: =CONVERT( F73*($H$53+$I$53+$J$53)+F74*($H$54+$I$54+$J$54), "g","ton") -> 351.9620635 | G85: =CONVERT( G73*($H$53+$I$53+$J$53)+G74*($H$54+$I$54+$J$54), "g","ton") -> 0.1259336918 | H85: =CONVERT( H73*($H$53+$I$53+$J$53)+H74*($H$54+$I$54+$J$54), "g","ton") -> 0.2140984651 | I85: =CONVERT( I73*($H$53+$I$53+$J$53)+I74*($H$54+$I$54+$J$54), "g","ton") -> 0.007320705803 | J85: =CONVERT( J73*($H$53+$I$53+$J$53)+J74*($H$54+$I$54+$J$54), "g","ton") -> 0.08192861579 | K85: short tons/year
C86: Total Daily Reductions | F86: =(F73*($H$50+$I$50+$J$50)+F74*($H$51+$I$51+$J$51)) /1000 -> 1277.178452 | G86: =(G73*($H$50+$I$50+$J$50)+G74*($H$51+$I$51+$J$51)) /1000 -> 0.4569804939 | H86: =(H73*($H$50+$I$50+$J$50)+H74*($H$51+$I$51+$J$51)) /1000 -> 0.7769074416 | I86: =(I73*($H$50+$I$50+$J$50)+I74*($H$51+$I$51+$J$51)) /1000 -> 0.02656493036 | J86: =( J73*($H$50+$I$50+$J$50)+J74*($H$51+$I$51+$J$51) )/1000 -> 0.2972975601 | K86: kg/day
F87: =CONVERT( (F73*($H$50+$I$50+$J$50)+F74*($H$51+$I$51+$J$51)), "g","ton") -> 1.407848254 | G87: =CONVERT( (G73*($H$50+$I$50+$J$50)+G74*($H$51+$I$51+$J$51)), "g","ton") -> 0.0005037347673 | H87: =CONVERT( (H73*($H$50+$I$50+$J$50)+H74*($H$51+$I$51+$J$51)), "g","ton") -> 0.0008563938604 | I87: =CONVERT( (I73*($H$50+$I$50+$J$50)+I74*($H$51+$I$51+$J$51)), "g","ton") -> 2.928282321e-05 | J87: =CONVERT( J73*($H$50+$I$50+$J$50)+J74*($H$51+$I$51+$J$51), "g","ton") -> 0.0003277144632 | K87: short tons/day

Sheet 2.2 Signal Synchronization
E3: 2.2 - Signal Synchronization
C6: PROJECT INFORMATION
C7: Project Title | F7: Signal Synchronization on Marietta Blvd
C8: Project ID | F8: ATL-04
C9: Project Location | F9: Atlanta
C10: Project Year
C11: Project Cost
C12: Metropolitan Area | F12: Atlanta
C13: County (optional) | F13: Fulton County
C14: Project Description:
C19: INPUTS
C20: Data Type | H20: Morning Peak | I20: Evening Peak | J20: Off-Peak | K20: Units
C21: Scenario Year | H21: 2024 | K21: -
C22: Road Type | H22: Urban Unrestricted Access | K22: -
C23: Length of the Signalized Corridor | H23: 2 | I23: 2 | J23: 2 | K23: miles
C24: Existing Number of Signalized Intersections | H24: 1 | I24: 1 | J24: 1 | K24: -
C25: Existing Number of Lanes (one direction) | H25: 5 | I25: 5 | J25: 5 | K25: -
C26: Posted Speed Limit | H26: 35 | I26: 35 | J26: 35 | K26: mph
C27: Annual Average Daily Traffic (AADT) (one direction) | H27: 21500 | K27: veh/day
C28: Average Hourly Volume during the Time Period (one direction) | H28: 1960 | I28: 2424 | J28: =(H27-H28*J36-I28*J37)/(24-J36-J37) -> 463.7777778 | K28: veh/hour
C29: Truck Percentage (one direction) | H29: 9 | I29: 9 | J29: 9 | K29: percent
C30: Average Corridor Travel Time During the Time Period (one direction) | H30: 5 | I30: 5 | J30: =(J24*(6-J35)*J41/(0.0025*J23*5280)+3600*J23*J48/J26+J24*J47)/60 -> 3.713685778 | K30: minutes
C31: Existing Average Cycle Length | H31: 120 | I31: 120 | J31: 120 | K31: seconds
C33: CONSTANTS
C34: Data Type | J34: Value | K34: Units
C35: Start-up Lost Time for Signalized Intersections | J35: =ps22_strtupLostTimeSgnlIntxn -> 2 | K35: seconds
C36: Hours in Morning Peak Period | J36: =ps_hrsAmPeak -> 3 | K36: hours
C37: Hours in Evening Peak Period | J37: =ps_hrsPmPeak -> 3 | K37: hours
C38: Number of Weekdays per Year | J38: =ps_wkdaysPerYear -> 250 | K38: days
C39: Saturation Flow Rate per Lane | J39: =IF(H22="Urban Unrestricted Access",ps22_urbanSaturFlowRatePerLane,ps22_ruralSaturFlowRatePerLane) -> 1900 | K39: pc/hr/lane
C40: Green Light Duration to Total Cycle Duration Ratio | J40: =ps22_grnLightDurToTotalDur -> 0.5 | K40: -
C41: Control-type Adjustment Factor fo Signalized through Movement | J41: =ps22_ctrlTypeAdjFactorForSgnlThruMvmnt -> 1 | K41: -
C42: Progression Factor | J42: =ps22_progFactorToCoordSgnls -> 0.67 | K42: -
C44: INTERMEDIATE RESULTS
C45: Data Type | H45: Morning Peak | I45: Evening Peak | J45: Off-Peak | K45: Units
C46: Emission Rates Interpolation Factor | H46: =(H21-ps_erBaseYear1)/(ps_erBaseYear2-ps_erBaseYear1) -> 0.1333333333 | K46: -
C47: Uniform Delay of Existing Condition during Each Time Period | H47: =(0.5*H31*(1-J40)^2)/(1-MIN(1,H28/(H25*J39*(100/(100+H29))*J40))*J40) -> 19.35194742 | I47: =(0.5*I31*(1-J40)^2)/(1-MIN(1,I28/(I25*J39*(100/(100+I29))*J40))*J40) -> 20.77913745 | J47: =(0.5*J31*(1-J40)^2)/(1-MIN(1,J28/(J25*J39*(100/(100+J29))*J40))*J40) -> 15.84304649 | K47: secs/veh/intxn
C48: Proximity Adjustment Factor during Each Time Period | H48: =2/(1+(1-H28/(52.8*H25*H26))^0.21) -> 1.02502793 | I48: =2/(1+(1-I28/(52.8*I25*I26))^0.21) -> 1.03193739 | J48: =2/(1+(1-J28/(52.8*J25*J26))^0.21) -> 1.005407011 | K48: -
C50: ACTIVITY OUTPUTS
C51: Data Type | H51: Morning Peak | I51: Evening Peak | J51: Off-Peak | K51: Units
C52: Travel Time Savings | H52: =(H24*((1-J42)*H47/H48))/60 -> 0.1038368885 | I52: =(I24*((1-J42)*I47/I48))/60 -> 0.1107482461 | J52: =(J24*((1-J42)*J47/J48))/60 -> 0.08666814014 | K52: min/veh
C53: Travel Time after Improvements | H53: =H30-H52 -> 4.896163112 | I53: =I30-I52 -> 4.889251754 | J53: =J30-J52 -> 3.627017638 | K53: min/veh
C54: Light Duty VMT (one direction) | H54: =(1-H29/100)*H23*H28*J36 -> 10701.6 | I54: =(1-I29/100)*I23*I28*J37 -> 13235.04 | J54: =(1-J29/100)*J23*J28*(24-J36-J37) -> 15193.36 | K54: veh miles traveled
C55: Truck VMT (one direction) | H55: =(H29/100)*H23*H28*J36 -> 1058.4 | I55: =(I29/100)*I23*I28*J37 -> 1308.96 | J55: =(J29/100)*J23*J28*(24-J36-J37) -> 1502.64 | K55: veh miles traveled
C56: Existing Average Speed | H56: =H23/H30*60 -> 24 | I56: =I23/I30*60 -> 24 | J56: =J23/J30*60 -> 32.31291153 | K56: mph
C57: Improved Average Speed | H57: =H23/H53*60 -> 24.5089874 | I57: =I23/I53*60 -> 24.54363286 | J57: =J23/J53*60 -> 33.08503348 | K57: mph
C58: Reduction in Annual Vehicle Hours of Delay | H58: =(H52/60)*H28*J36*J38 -> 2544.003767 | I58: =(I52/60)*I28*J37*J38 -> 3355.671857 | J58: =(J52/60)*J28*(24-J36-J37)*J38 -> 3014.606808 | K58: hours
C61: ="EMISSION FACTORS ("&'Parameters&Source'!B6&")" -> EMISSION FACTORS (2020)
C62: Description | F62: Pollutant | K62: Units
C63: Time Periods | D63: Operating Mode | E63: Vehicle Type | F63: CO2 | G63: PM-Related NOX | H63: NOX | I63: PM2.5 | J63: VOC
C64: Morning Peak | D64: Existing Condition | E64: Light Duty Vehicles | F64: =IF($H$22="Urban Unrestricted Access",LOOKUP(ROUNDDOWN($H$56/5,0)*5,'2020ER'!$D$4:$D$19,'2020ER'!$H$4:$H$19)+(($H$56-ROUNDDOWN($H$56/5,0)*5)/5)*(LOOKUP(ROUNDUP($H$56/5,0)*5,'2020ER'!$D$4:$D$19,'2020ER'!$H$4:$H$19)-LOOKUP(ROUNDDOWN($H$56/5,0)*5,'2020ER'!$D$4:$D$19,'2020ER'!$H$4:$H$19)),LOOKUP(ROUNDDOWN($H$56/5,0)*5,'2020ER'!$D$4:$D$19,'2020ER'!$F$4:$F$19)+(($H$56-ROUNDDOWN($H$56/5,0)*5)/5)*(LOOKUP(ROUNDUP($H$56/5,0)*5,'2020ER'!$D$4:$D$19,'2020ER'!$F$4:$F$19)-LOOKUP(ROUNDDOWN($H$56/5,0)*5,'2020ER'!$D$4:$D$19,'2020ER'!$F$4:$F$19))) -> 410.3777854 | G64: =IF($H$22="Urban Unrestricted Access",LOOKUP(ROUNDDOWN($H$56/5,0)*5,'2020ER'!$D$20:$D$35,'2020ER'!$H$20:$H$35)+(($H$56-ROUNDDOWN($H$56/5,0)*5)/5)*(LOOKUP(ROUNDUP($H$56/5,0)*5,'2020ER'!$D$20:$D$35,'2020ER'!$H$20:$H$35)-LOOKUP(ROUNDDOWN($H$56/5,0)*5,'2020ER'!$D$20:$D$35,'2020ER'!$H$20:$H$35)),LOOKUP(ROUNDDOWN($H$56/5,0)*5,'2020ER'!$D$20:$D$35,'2020ER'!$F$20:$F$35)+(($H$56-ROUNDDOWN($H$56/5,0)*5)/5)*(LOOKUP(ROUNDUP($H$56/5,0)*5,'2020ER'!$D$20:$D$35,'2020ER'!$F$20:$F$35)-LOOKUP(ROUNDDOWN($H$56/5,0)*5,'2020ER'!$D$20:$D$35,'2020ER'!$F$20:$F$35))) -> 0.2058181119 | H64: =IF($H$22="Urban Unrestricted Access",LOOKUP(ROUNDDOWN($H$56/5,0)*5,'2020ER'!$D$52:$D$67,'2020ER'!$H$52:$H$67)+(($H$56-ROUNDDOWN($H$56/5,0)*5)/5)*(LOOKUP(ROUNDUP($H$56/5,0)*5,'2020ER'!$D$52:$D$67,'2020ER'!$H$52:$H$67)-LOOKUP(ROUNDDOWN($H$56/5,0)*5,'2020ER'!$D$52:$D$67,'2020ER'!$H$52:$H$67)),LOOKUP(ROUNDDOWN($H$56/5,0)*5,'2020ER'!$D$52:$D$67,'2020ER'!$F$52:$F$67)+(($H$56-ROUNDDOWN($H$56/5,0)*5)/5)*(LOOKUP(ROUNDUP($H$56/5,0)*5,'2020ER'!$D$52:$D$67,'2020ER'!$F$52:$F$67)-LOOKUP(ROUNDDOWN($H$56/5,0)*5,'2020ER'!$D$52:$D$67,'2020ER'!$F$52:$F$67))) -> 0.1998506405 | I64: =IF($H$22="Urban Unrestricted Access",LOOKUP(ROUNDDOWN($H$56/5,0)*5,'2020ER'!$D$36:$D$51,'2020ER'!$H$36:$H$51)+(($H$56-ROUNDDOWN($H$56/5,0)*5)/5)*(LOOKUP(ROUNDUP($H$56/5,0)*5,'2020ER'!$D$36:$D$51,'2020ER'!$H$36:$H$51)-LOOKUP(ROUNDDOWN($H$56/5,0)*5,'2020ER'!$D$36:$D$51,'2020ER'!$H$36:$H$51)),LOOKUP(ROUNDDOWN($H$56/5,0)*5,'2020ER'!$D$36:$D$51,'2020ER'!$F$36:$F$51)+(($H$56-ROUNDDOWN($H$56/5,0)*5)/5)*(LOOKUP(ROUNDUP($H$56/5,0)*5,'2020ER'!$D$36:$D$51,'2020ER'!$F$36:$F$51)-LOOKUP(ROUNDDOWN($H$56/5,0)*5,'2020ER'!$D$36:$D$51,'2020ER'!$F$36:$F$51))) -> 0.005654543537 | J64: =IF($H$22="Urban Unrestricted Access",LOOKUP(ROUNDDOWN($H$56/5,0)*5,'2020ER'!$D$68:$D$83,'2020ER'!$H$68:$H$83)+(($H$56-ROUNDDOWN($H$56/5,0)*5)/5)*(LOOKUP(ROUNDUP($H$56/5,0)*5,'2020ER'!$D$68:$D$83,'2020ER'!$H$68:$H$83)-LOOKUP(ROUNDDOWN($H$56/5,0)*5,'2020ER'!$D$68:$D$83,'2020ER'!$H$68:$H$83)),LOOKUP(ROUNDDOWN($H$56/5,0)*5,'2020ER'!$D$68:$D$83,'2020ER'!$F$68:$F$83)+(($H$56-ROUNDDOWN($H$56/5,0)*5)/5)*(LOOKUP(ROUNDUP($H$56/5,0)*5,'2020ER'!$D$68:$D$83,'2020ER'!$F$68:$F$83)-LOOKUP(ROUNDDOWN($H$56/5,0)*5,'2020ER'!$D$68:$D$83,'2020ER'!$F$68:$F$83))) -> 0.129275271 | K64: g/veh/mile
E65: All Trucks | F65: =IF($H$22="Urban Unrestricted Access",LOOKUP(ROUNDDOWN($H$56/5,0)*5,'2020ER'!$D$4:$D$19,'2020ER'!$R$4:$R$19)+(($H$56-ROUNDDOWN($H$56/5,0)*5)/5)*(LOOKUP(ROUNDUP($H$56/5,0)*5,'2020ER'!$D$4:$D$19,'2020ER'!$R$4:$R$19)-LOOKUP(ROUNDDOWN($H$56/5,0)*5,'2020ER'!$D$4:$D$19,'2020ER'!$R$4:$R$19)),LOOKUP(ROUNDDOWN($H$56/5,0)*5,'2020ER'!$D$4:$D$19,'2020ER'!$P$4:$P$19)+(($H$56-ROUNDDOWN($H$56/5,0)*5)/5)*(LOOKUP(ROUNDUP($H$56/5,0)*5,'2020ER'!$D$4:$D$19,'2020ER'!$P$4:$P$19)-LOOKUP(ROUNDDOWN($H$56/5,0)*5,'2020ER'!$D$4:$D$19,'2020ER'!$P$4:$P$19))) -> 1696.525357 | G65: =IF($H$22="Urban Unrestricted Access",LOOKUP(ROUNDDOWN($H$56/5,0)*5,'2020ER'!$D$20:$D$35,'2020ER'!$R$20:$R$35)+(($H$56-ROUNDDOWN($H$56/5,0)*5)/5)*(LOOKUP(ROUNDUP($H$56/5,0)*5,'2020ER'!$D$20:$D$35,'2020ER'!$R$20:$R$35)-LOOKUP(ROUNDDOWN($H$56/5,0)*5,'2020ER'!$D$20:$D$35,'2020ER'!$R$20:$R$35)),LOOKUP(ROUNDDOWN($H$56/5,0)*5,'2020ER'!$D$20:$D$35,'2020ER'!$P$20:$P$35)+(($H$56-ROUNDDOWN($H$56/5,0)*5)/5)*(LOOKUP(ROUNDUP($H$56/5,0)*5,'2020ER'!$D$20:$D$35,'2020ER'!$P$20:$P$35)-LOOKUP(ROUNDDOWN($H$56/5,0)*5,'2020ER'!$D$20:$D$35,'2020ER'!$P$20:$P$35))) -> 2.925366911 | H65: =IF($H$22="Urban Unrestricted Access",LOOKUP(ROUNDDOWN($H$56/5,0)*5,'2020ER'!$D$52:$D$67,'2020ER'!$R$52:$R$67)+(($H$56-ROUNDDOWN($H$56/5,0)*5)/5)*(LOOKUP(ROUNDUP($H$56/5,0)*5,'2020ER'!$D$52:$D$67,'2020ER'!$R$52:$R$67)-LOOKUP(ROUNDDOWN($H$56/5,0)*5,'2020ER'!$D$52:$D$67,'2020ER'!$R$52:$R$67)),LOOKUP(ROUNDDOWN($H$56/5,0)*5,'2020ER'!$D$52:$D$67,'2020ER'!$P$52:$P$67)+(($H$56-ROUNDDOWN($H$56/5,0)*5)/5)*(LOOKUP(ROUNDUP($H$56/5,0)*5,'2020ER'!$D$52:$D$67,'2020ER'!$P$52:$P$67)-LOOKUP(ROUNDDOWN($H$56/5,0)*5,'2020ER'!$D$52:$D$67,'2020ER'!$P$52:$P$67))) -> 2.607303556 | I65: =IF($H$22="Urban Unrestricted Access",LOOKUP(ROUNDDOWN($H$56/5,0)*5,'2020ER'!$D$36:$D$51,'2020ER'!$R$36:$R$51)+(($H$56-ROUNDDOWN($H$56/5,0)*5)/5)*(LOOKUP(ROUNDUP($H$56/5,0)*5,'2020ER'!$D$36:$D$51,'2020ER'!$R$36:$R$51)-LOOKUP(ROUNDDOWN($H$56/5,0)*5,'2020ER'!$D$36:$D$51,'2020ER'!$R$36:$R$51)),LOOKUP(ROUNDDOWN($H$56/5,0)*5,'2020ER'!$D$36:$D$51,'2020ER'!$P$36:$P$51)+(($H$56-ROUNDDOWN($H$56/5,0)*5)/5)*(LOOKUP(ROUNDUP($H$56/5,0)*5,'2020ER'!$D$36:$D$51,'2020ER'!$P$36:$P$51)-LOOKUP(ROUNDDOWN($H$56/5,0)*5,'2020ER'!$D$36:$D$51,'2020ER'!$P$36:$P$51))) -> 0.1269800486 | J65: =IF($H$22="Urban Unrestricted Access",LOOKUP(ROUNDDOWN($H$56/5,0)*5,'2020ER'!$D$68:$D$83,'2020ER'!$R$68:$R$83)+(($H$56-ROUNDDOWN($H$56/5,0)*5)/5)*(LOOKUP(ROUNDUP($H$56/5,0)*5,'2020ER'!$D$68:$D$83,'2020ER'!$R$68:$R$83)-LOOKUP(ROUNDDOWN($H$56/5,0)*5,'2020ER'!$D$68:$D$83,'2020ER'!$R$68:$R$83)),LOOKUP(ROUNDDOWN($H$56/5,0)*5,'2020ER'!$D$68:$D$83,'2020ER'!$P$68:$P$83)+(($H$56-ROUNDDOWN($H$56/5,0)*5)/5)*(LOOKUP(ROUNDUP($H$56/5,0)*5,'2020ER'!$D$68:$D$83,'2020ER'!$P$68:$P$83)-LOOKUP(ROUNDDOWN($H$56/5,0)*5,'2020ER'!$D$68:$D$83,'2020ER'!$P$68:$P$83))) -> 0.3332929981
D66: Improved Condition | E66: Light Duty Vehicles | F66: =IF($H$22="Urban Unrestricted Access",LOOKUP(ROUNDDOWN($H$57/5,0)*5,'2020ER'!$D$4:$D$19,'2020ER'!$H$4:$H$19)+(($H$57-ROUNDDOWN($H$57/5,0)*5)/5)*(LOOKUP(ROUNDUP($H$57/5,0)*5,'2020ER'!$D$4:$D$19,'2020ER'!$H$4:$H$19)-LOOKUP(ROUNDDOWN($H$57/5,0)*5,'2020ER'!$D$4:$D$19,'2020ER'!$H$4:$H$19)),LOOKUP(ROUNDDOWN($H$57/5,0)*5,'2020ER'!$D$4:$D$19,'2020ER'!$F$4:$F$19)+(($H$57-ROUNDDOWN($H$57/5,0)*5)/5)*(LOOKUP(ROUNDUP($H$57/5,0)*5,'2020ER'!$D$4:$D$19,'2020ER'!$F$4:$F$19)-LOOKUP(ROUNDDOWN($H$57/5,0)*5,'2020ER'!$D$4:$D$19,'2020ER'!$F$4:$F$19))) -> 405.5620342 | G66: =IF($H$22="Urban Unrestricted Access",LOOKUP(ROUNDDOWN($H$57/5,0)*5,'2020ER'!$D$20:$D$35,'2020ER'!$H$20:$H$35)+(($H$57-ROUNDDOWN($H$57/5,0)*5)/5)*(LOOKUP(ROUNDUP($H$57/5,0)*5,'2020ER'!$D$20:$D$35,'2020ER'!$H$20:$H$35)-LOOKUP(ROUNDDOWN($H$57/5,0)*5,'2020ER'!$D$20:$D$35,'2020ER'!$H$20:$H$35)),LOOKUP(ROUNDDOWN($H$57/5,0)*5,'2020ER'!$D$20:$D$35,'2020ER'!$F$20:$F$35)+(($H$57-ROUNDDOWN($H$57/5,0)*5)/5)*(LOOKUP(ROUNDUP($H$57/5,0)*5,'2020ER'!$D$20:$D$35,'2020ER'!$F$20:$F$35)-LOOKUP(ROUNDDOWN($H$57/5,0)*5,'2020ER'!$D$20:$D$35,'2020ER'!$F$20:$F$35))) -> 0.2048234488 | H66: =IF($H$22="Urban Unrestricted Access",LOOKUP(ROUNDDOWN($H$57/5,0)*5,'2020ER'!$D$52:$D$67,'2020ER'!$H$52:$H$67)+(($H$57-ROUNDDOWN($H$57/5,0)*5)/5)*(LOOKUP(ROUNDUP($H$57/5,0)*5,'2020ER'!$D$52:$D$67,'2020ER'!$H$52:$H$67)-LOOKUP(ROUNDDOWN($H$57/5,0)*5,'2020ER'!$D$52:$D$67,'2020ER'!$H$52:$H$67)),LOOKUP(ROUNDDOWN($H$57/5,0)*5,'2020ER'!$D$52:$D$67,'2020ER'!$F$52:$F$67)+(($H$57-ROUNDDOWN($H$57/5,0)*5)/5)*(LOOKUP(ROUNDUP($H$57/5,0)*5,'2020ER'!$D$52:$D$67,'2020ER'!$F$52:$F$67)-LOOKUP(ROUNDDOWN($H$57/5,0)*5,'2020ER'!$D$52:$D$67,'2020ER'!$F$52:$F$67))) -> 0.198635634 | I66: =IF($H$22="Urban Unrestricted Access",LOOKUP(ROUNDDOWN($H$57/5,0)*5,'2020ER'!$D$36:$D$51,'2020ER'!$H$36:$H$51)+(($H$57-ROUNDDOWN($H$57/5,0)*5)/5)*(LOOKUP(ROUNDUP($H$57/5,0)*5,'2020ER'!$D$36:$D$51,'2020ER'!$H$36:$H$51)-LOOKUP(ROUNDDOWN($H$57/5,0)*5,'2020ER'!$D$36:$D$51,'2020ER'!$H$36:$H$51)),LOOKUP(ROUNDDOWN($H$57/5,0)*5,'2020ER'!$D$36:$D$51,'2020ER'!$F$36:$F$51)+(($H$57-ROUNDDOWN($H$57/5,0)*5)/5)*(LOOKUP(ROUNDUP($H$57/5,0)*5,'2020ER'!$D$36:$D$51,'2020ER'!$F$36:$F$51)-LOOKUP(ROUNDDOWN($H$57/5,0)*5,'2020ER'!$D$36:$D$51,'2020ER'!$F$36:$F$51))) -> 0.005524719517 | J66: =IF($H$22="Urban Unrestricted Access",LOOKUP(ROUNDDOWN($H$57/5,0)*5,'2020ER'!$D$68:$D$83,'2020ER'!$H$68:$H$83)+(($H$57-ROUNDDOWN($H$57/5,0)*5)/5)*(LOOKUP(ROUNDUP($H$57/5,0)*5,'2020ER'!$D$68:$D$83,'2020ER'!$H$68:$H$83)-LOOKUP(ROUNDDOWN($H$57/5,0)*5,'2020ER'!$D$68:$D$83,'2020ER'!$H$68:$H$83)),LOOKUP(ROUNDDOWN($H$57/5,0)*5,'2020ER'!$D$68:$D$83,'2020ER'!$F$68:$F$83)+(($H$57-ROUNDDOWN($H$57/5,0)*5)/5)*(LOOKUP(ROUNDUP($H$57/5,0)*5,'2020ER'!$D$68:$D$83,'2020ER'!$F$68:$F$83)-LOOKUP(ROUNDDOWN($H$57/5,0)*5,'2020ER'!$D$68:$D$83,'2020ER'!$F$68:$F$83))) -> 0.1270542288
E67: All Trucks | F67: =IF($H$22="Urban Unrestricted Access",LOOKUP(ROUNDDOWN($H$57/5,0)*5,'2020ER'!$D$4:$D$19,'2020ER'!$R$4:$R$19)+(($H$57-ROUNDDOWN($H$57/5,0)*5)/5)*(LOOKUP(ROUNDUP($H$57/5,0)*5,'2020ER'!$D$4:$D$19,'2020ER'!$R$4:$R$19)-LOOKUP(ROUNDDOWN($H$57/5,0)*5,'2020ER'!$D$4:$D$19,'2020ER'!$R$4:$R$19)),LOOKUP(ROUNDDOWN($H$57/5,0)*5,'2020ER'!$D$4:$D$19,'2020ER'!$P$4:$P$19)+(($H$57-ROUNDDOWN($H$57/5,0)*5)/5)*(LOOKUP(ROUNDUP($H$57/5,0)*5,'2020ER'!$D$4:$D$19,'2020ER'!$P$4:$P$19)-LOOKUP(ROUNDDOWN($H$57/5,0)*5,'2020ER'!$D$4:$D$19,'2020ER'!$P$4:$P$19))) -> 1679.994515 | G67: =IF($H$22="Urban Unrestricted Access",LOOKUP(ROUNDDOWN($H$57/5,0)*5,'2020ER'!$D$20:$D$35,'2020ER'!$R$20:$R$35)+(($H$57-ROUNDDOWN($H$57/5,0)*5)/5)*(LOOKUP(ROUNDUP($H$57/5,0)*5,'2020ER'!$D$20:$D$35,'2020ER'!$R$20:$R$35)-LOOKUP(ROUNDDOWN($H$57/5,0)*5,'2020ER'!$D$20:$D$35,'2020ER'!$R$20:$R$35)),LOOKUP(ROUNDDOWN($H$57/5,0)*5,'2020ER'!$D$20:$D$35,'2020ER'!$P$20:$P$35)+(($H$57-ROUNDDOWN($H$57/5,0)*5)/5)*(LOOKUP(ROUNDUP($H$57/5,0)*5,'2020ER'!$D$20:$D$35,'2020ER'!$P$20:$P$35)-LOOKUP(ROUNDDOWN($H$57/5,0)*5,'2020ER'!$D$20:$D$35,'2020ER'!$P$20:$P$35))) -> 2.888862311 | H67: =IF($H$22="Urban Unrestricted Access",LOOKUP(ROUNDDOWN($H$57/5,0)*5,'2020ER'!$D$52:$D$67,'2020ER'!$R$52:$R$67)+(($H$57-ROUNDDOWN($H$57/5,0)*5)/5)*(LOOKUP(ROUNDUP($H$57/5,0)*5,'2020ER'!$D$52:$D$67,'2020ER'!$R$52:$R$67)-LOOKUP(ROUNDDOWN($H$57/5,0)*5,'2020ER'!$D$52:$D$67,'2020ER'!$R$52:$R$67)),LOOKUP(ROUNDDOWN($H$57/5,0)*5,'2020ER'!$D$52:$D$67,'2020ER'!$P$52:$P$67)+(($H$57-ROUNDDOWN($H$57/5,0)*5)/5)*(LOOKUP(ROUNDUP($H$57/5,0)*5,'2020ER'!$D$52:$D$67,'2020ER'!$P$52:$P$67)-LOOKUP(ROUNDDOWN($H$57/5,0)*5,'2020ER'!$D$52:$D$67,'2020ER'!$P$52:$P$67))) -> 2.574773641 | I67: =IF($H$22="Urban Unrestricted Access",LOOKUP(ROUNDDOWN($H$57/5,0)*5,'2020ER'!$D$36:$D$51,'2020ER'!$R$36:$R$51)+(($H$57-ROUNDDOWN($H$57/5,0)*5)/5)*(LOOKUP(ROUNDUP($H$57/5,0)*5,'2020ER'!$D$36:$D$51,'2020ER'!$R$36:$R$51)-LOOKUP(ROUNDDOWN($H$57/5,0)*5,'2020ER'!$D$36:$D$51,'2020ER'!$R$36:$R$51)),LOOKUP(ROUNDDOWN($H$57/5,0)*5,'2020ER'!$D$36:$D$51,'2020ER'!$P$36:$P$51)+(($H$57-ROUNDDOWN($H$57/5,0)*5)/5)*(LOOKUP(ROUNDUP($H$57/5,0)*5,'2020ER'!$D$36:$D$51,'2020ER'!$P$36:$P$51)-LOOKUP(ROUNDDOWN($H$57/5,0)*5,'2020ER'!$D$36:$D$51,'2020ER'!$P$36:$P$51))) -> 0.1255200547 | J67: =IF($H$22="Urban Unrestricted Access",LOOKUP(ROUNDDOWN($H$57/5,0)*5,'2020ER'!$D$68:$D$83,'2020ER'!$R$68:$R$83)+(($H$57-ROUNDDOWN($H$57/5,0)*5)/5)*(LOOKUP(ROUNDUP($H$57/5,0)*5,'2020ER'!$D$68:$D$83,'2020ER'!$R$68:$R$83)-LOOKUP(ROUNDDOWN($H$57/5,0)*5,'2020ER'!$D$68:$D$83,'2020ER'!$R$68:$R$83)),LOOKUP(ROUNDDOWN($H$57/5,0)*5,'2020ER'!$D$68:$D$83,'2020ER'!$P$68:$P$83)+(($H$57-ROUNDDOWN($H$57/5,0)*5)/5)*(LOOKUP(ROUNDUP($H$57/5,0)*5,'2020ER'!$D$68:$D$83,'2020ER'!$P$68:$P$83)-LOOKUP(ROUNDDOWN($H$57/5,0)*5,'2020ER'!$D$68:$D$83,'2020ER'!$P$68:$P$83))) -> 0.3270906538
C68: Evening Peak | D68: Existing Condition | E68: Light Duty Vehicles | F68: =IF($H$22="Urban Unrestricted Access",LOOKUP(ROUNDDOWN($I$56/5,0)*5,'2020ER'!$D$4:$D$19,'2020ER'!$H$4:$H$19)+(($I$56-ROUNDDOWN($I$56/5,0)*5)/5)*(LOOKUP(ROUNDUP($I$56/5,0)*5,'2020ER'!$D$4:$D$19,'2020ER'!$H$4:$H$19)-LOOKUP(ROUNDDOWN($I$56/5,0)*5,'2020ER'!$D$4:$D$19,'2020ER'!$H$4:$H$19)),LOOKUP(ROUNDDOWN($I$56/5,0)*5,'2020ER'!$D$4:$D$19,'2020ER'!$F$4:$F$19)+(($I$56-ROUNDDOWN($I$56/5,0)*5)/5)*(LOOKUP(ROUNDUP($I$56/5,0)*5,'2020ER'!$D$4:$D$19,'2020ER'!$F$4:$F$19)-LOOKUP(ROUNDDOWN($I$56/5,0)*5,'2020ER'!$D$4:$D$19,'2020ER'!$F$4:$F$19))) -> 410.3777854 | G68: =IF($H$22="Urban Unrestricted Access",LOOKUP(ROUNDDOWN($I$56/5,0)*5,'2020ER'!$D$20:$D$35,'2020ER'!$H$20:$H$35)+(($I$56-ROUNDDOWN($I$56/5,0)*5)/5)*(LOOKUP(ROUNDUP($I$56/5,0)*5,'2020ER'!$D$20:$D$35,'2020ER'!$H$20:$H$35)-LOOKUP(ROUNDDOWN($I$56/5,0)*5,'2020ER'!$D$20:$D$35,'2020ER'!$H$20:$H$35)),LOOKUP(ROUNDDOWN($I$56/5,0)*5,'2020ER'!$D$20:$D$35,'2020ER'!$F$20:$F$35)+(($I$56-ROUNDDOWN($I$56/5,0)*5)/5)*(LOOKUP(ROUNDUP($I$56/5,0)*5,'2020ER'!$D$20:$D$35,'2020ER'!$F$20:$F$35)-LOOKUP(ROUNDDOWN($I$56/5,0)*5,'2020ER'!$D$20:$D$35,'2020ER'!$F$20:$F$35))) -> 0.2058181119 | H68: =IF($H$22="Urban Unrestricted Access",LOOKUP(ROUNDDOWN($I$56/5,0)*5,'2020ER'!$D$52:$D$67,'2020ER'!$H$52:$H$67)+(($I$56-ROUNDDOWN($I$56/5,0)*5)/5)*(LOOKUP(ROUNDUP($I$56/5,0)*5,'2020ER'!$D$52:$D$67,'2020ER'!$H$52:$H$67)-LOOKUP(ROUNDDOWN($I$56/5,0)*5,'2020ER'!$D$52:$D$67,'2020ER'!$H$52:$H$67)),LOOKUP(ROUNDDOWN($I$56/5,0)*5,'2020ER'!$D$52:$D$67,'2020ER'!$F$52:$F$67)+(($I$56-ROUNDDOWN($I$56/5,0)*5)/5)*(LOOKUP(ROUNDUP($I$56/5,0)*5,'2020ER'!$D$52:$D$67,'2020ER'!$F$52:$F$67)-LOOKUP(ROUNDDOWN($I$56/5,0)*5,'2020ER'!$D$52:$D$67,'2020ER'!$F$52:$F$67))) -> 0.1998506405 | I68: =IF($H$22="Urban Unrestricted Access",LOOKUP(ROUNDDOWN($I$56/5,0)*5,'2020ER'!$D$36:$D$51,'2020ER'!$H$36:$H$51)+(($I$56-ROUNDDOWN($I$56/5,0)*5)/5)*(LOOKUP(ROUNDUP($I$56/5,0)*5,'2020ER'!$D$36:$D$51,'2020ER'!$H$36:$H$51)-LOOKUP(ROUNDDOWN($I$56/5,0)*5,'2020ER'!$D$36:$D$51,'2020ER'!$H$36:$H$51)),LOOKUP(ROUNDDOWN($I$56/5,0)*5,'2020ER'!$D$36:$D$51,'2020ER'!$F$36:$F$51)+(($I$56-ROUNDDOWN($I$56/5,0)*5)/5)*(LOOKUP(ROUNDUP($I$56/5,0)*5,'2020ER'!$D$36:$D$51,'2020ER'!$F$36:$F$51)-LOOKUP(ROUNDDOWN($I$56/5,0)*5,'2020ER'!$D$36:$D$51,'2020ER'!$F$36:$F$51))) -> 0.005654543537 | J68: =IF($H$22="Urban Unrestricted Access",LOOKUP(ROUNDDOWN($I$56/5,0)*5,'2020ER'!$D$68:$D$83,'2020ER'!$H$68:$H$83)+(($I$56-ROUNDDOWN($I$56/5,0)*5)/5)*(LOOKUP(ROUNDUP($I$56/5,0)*5,'2020ER'!$D$68:$D$83,'2020ER'!$H$68:$H$83)-LOOKUP(ROUNDDOWN($I$56/5,0)*5,'2020ER'!$D$68:$D$83,'2020ER'!$H$68:$H$83)),LOOKUP(ROUNDDOWN($I$56/5,0)*5,'2020ER'!$D$68:$D$83,'2020ER'!$F$68:$F$83)+(($I$56-ROUNDDOWN($I$56/5,0)*5)/5)*(LOOKUP(ROUNDUP($I$56/5,0)*5,'2020ER'!$D$68:$D$83,'2020ER'!$F$68:$F$83)-LOOKUP(ROUNDDOWN($I$56/5,0)*5,'2020ER'!$D$68:$D$83,'2020ER'!$F$68:$F$83))) -> 0.129275271 | K68: g/veh/mile
E69: All Trucks | F69: =IF($H$22="Urban Unrestricted Access",LOOKUP(ROUNDDOWN($I$56/5,0)*5,'2020ER'!$D$4:$D$19,'2020ER'!$R$4:$R$19)+(($I$56-ROUNDDOWN($I$56/5,0)*5)/5)*(LOOKUP(ROUNDUP($I$56/5,0)*5,'2020ER'!$D$4:$D$19,'2020ER'!$R$4:$R$19)-LOOKUP(ROUNDDOWN($I$56/5,0)*5,'2020ER'!$D$4:$D$19,'2020ER'!$R$4:$R$19)),LOOKUP(ROUNDDOWN($I$56/5,0)*5,'2020ER'!$D$4:$D$19,'2020ER'!$P$4:$P$19)+(($I$56-ROUNDDOWN($I$56/5,0)*5)/5)*(LOOKUP(ROUNDUP($I$56/5,0)*5,'2020ER'!$D$4:$D$19,'2020ER'!$P$4:$P$19)-LOOKUP(ROUNDDOWN($I$56/5,0)*5,'2020ER'!$D$4:$D$19,'2020ER'!$P$4:$P$19))) -> 1696.525357 | G69: =IF($H$22="Urban Unrestricted Access",LOOKUP(ROUNDDOWN($I$56/5,0)*5,'2020ER'!$D$20:$D$35,'2020ER'!$R$20:$R$35)+(($I$56-ROUNDDOWN($I$56/5,0)*5)/5)*(LOOKUP(ROUNDUP($I$56/5,0)*5,'2020ER'!$D$20:$D$35,'2020ER'!$R$20:$R$35)-LOOKUP(ROUNDDOWN($I$56/5,0)*5,'2020ER'!$D$20:$D$35,'2020ER'!$R$20:$R$35)),LOOKUP(ROUNDDOWN($I$56/5,0)*5,'2020ER'!$D$20:$D$35,'2020ER'!$P$20:$P$35)+(($I$56-ROUNDDOWN($I$56/5,0)*5)/5)*(LOOKUP(ROUNDUP($I$56/5,0)*5,'2020ER'!$D$20:$D$35,'2020ER'!$P$20:$P$35)-LOOKUP(ROUNDDOWN($I$56/5,0)*5,'2020ER'!$D$20:$D$35,'2020ER'!$P$20:$P$35))) -> 2.925366911 | H69: =IF($H$22="Urban Unrestricted Access",LOOKUP(ROUNDDOWN($I$56/5,0)*5,'2020ER'!$D$52:$D$67,'2020ER'!$R$52:$R$67)+(($I$56-ROUNDDOWN($I$56/5,0)*5)/5)*(LOOKUP(ROUNDUP($I$56/5,0)*5,'2020ER'!$D$52:$D$67,'2020ER'!$R$52:$R$67)-LOOKUP(ROUNDDOWN($I$56/5,0)*5,'2020ER'!$D$52:$D$67,'2020ER'!$R$52:$R$67)),LOOKUP(ROUNDDOWN($I$56/5,0)*5,'2020ER'!$D$52:$D$67,'2020ER'!$P$52:$P$67)+(($I$56-ROUNDDOWN($I$56/5,0)*5)/5)*(LOOKUP(ROUNDUP($I$56/5,0)*5,'2020ER'!$D$52:$D$67,'2020ER'!$P$52:$P$67)-LOOKUP(ROUNDDOWN($I$56/5,0)*5,'2020ER'!$D$52:$D$67,'2020ER'!$P$52:$P$67))) -> 2.607303556 | I69: =IF($H$22="Urban Unrestricted Access",LOOKUP(ROUNDDOWN($I$56/5,0)*5,'2020ER'!$D$36:$D$51,'2020ER'!$R$36:$R$51)+(($I$56-ROUNDDOWN($I$56/5,0)*5)/5)*(LOOKUP(ROUNDUP($I$56/5,0)*5,'2020ER'!$D$36:$D$51,'2020ER'!$R$36:$R$51)-LOOKUP(ROUNDDOWN($I$56/5,0)*5,'2020ER'!$D$36:$D$51,'2020ER'!$R$36:$R$51)),LOOKUP(ROUNDDOWN($I$56/5,0)*5,'2020ER'!$D$36:$D$51,'2020ER'!$P$36:$P$51)+(($I$56-ROUNDDOWN($I$56/5,0)*5)/5)*(LOOKUP(ROUNDUP($I$56/5,0)*5,'2020ER'!$D$36:$D$51,'2020ER'!$P$36:$P$51)-LOOKUP(ROUNDDOWN($I$56/5,0)*5,'2020ER'!$D$36:$D$51,'2020ER'!$P$36:$P$51))) -> 0.1269800486 | J69: =IF($H$22="Urban Unrestricted Access",LOOKUP(ROUNDDOWN($I$56/5,0)*5,'2020ER'!$D$68:$D$83,'2020ER'!$R$68:$R$83)+(($I$56-ROUNDDOWN($I$56/5,0)*5)/5)*(LOOKUP(ROUNDUP($I$56/5,0)*5,'2020ER'!$D$68:$D$83,'2020ER'!$R$68:$R$83)-LOOKUP(ROUNDDOWN($I$56/5,0)*5,'2020ER'!$D$68:$D$83,'2020ER'!$R$68:$R$83)),LOOKUP(ROUNDDOWN($I$56/5,0)*5,'2020ER'!$D$68:$D$83,'2020ER'!$P$68:$P$83)+(($I$56-ROUNDDOWN($I$56/5,0)*5)/5)*(LOOKUP(ROUNDUP($I$56/5,0)*5,'2020ER'!$D$68:$D$83,'2020ER'!$P$68:$P$83)-LOOKUP(ROUNDDOWN($I$56/5,0)*5,'2020ER'!$D$68:$D$83,'2020ER'!$P$68:$P$83))) -> 0.3332929981
D70: Improved Condition | E70: Light Duty Vehicles | F70: =IF($H$22="Urban Unrestricted Access",LOOKUP(ROUNDDOWN($I$57/5,0)*5,'2020ER'!$D$4:$D$19,'2020ER'!$H$4:$H$19)+(($I$57-ROUNDDOWN($I$57/5,0)*5)/5)*(LOOKUP(ROUNDUP($I$57/5,0)*5,'2020ER'!$D$4:$D$19,'2020ER'!$H$4:$H$19)-LOOKUP(ROUNDDOWN($I$57/5,0)*5,'2020ER'!$D$4:$D$19,'2020ER'!$H$4:$H$19)),LOOKUP(ROUNDDOWN($I$57/5,0)*5,'2020ER'!$D$4:$D$19,'2020ER'!$F$4:$F$19)+(($I$57-ROUNDDOWN($I$57/5,0)*5)/5)*(LOOKUP(ROUNDUP($I$57/5,0)*5,'2020ER'!$D$4:$D$19,'2020ER'!$F$4:$F$19)-LOOKUP(ROUNDDOWN($I$57/5,0)*5,'2020ER'!$D$4:$D$19,'2020ER'!$F$4:$F$19))) -> 405.2342384 | G70: =IF($H$22="Urban Unrestricted Access",LOOKUP(ROUNDDOWN($I$57/5,0)*5,'2020ER'!$D$20:$D$35,'2020ER'!$H$20:$H$35)+(($I$57-ROUNDDOWN($I$57/5,0)*5)/5)*(LOOKUP(ROUNDUP($I$57/5,0)*5,'2020ER'!$D$20:$D$35,'2020ER'!$H$20:$H$35)-LOOKUP(ROUNDDOWN($I$57/5,0)*5,'2020ER'!$D$20:$D$35,'2020ER'!$H$20:$H$35)),LOOKUP(ROUNDDOWN($I$57/5,0)*5,'2020ER'!$D$20:$D$35,'2020ER'!$F$20:$F$35)+(($I$57-ROUNDDOWN($I$57/5,0)*5)/5)*(LOOKUP(ROUNDUP($I$57/5,0)*5,'2020ER'!$D$20:$D$35,'2020ER'!$F$20:$F$35)-LOOKUP(ROUNDDOWN($I$57/5,0)*5,'2020ER'!$D$20:$D$35,'2020ER'!$F$20:$F$35))) -> 0.2047557446 | H70: =IF($H$22="Urban Unrestricted Access",LOOKUP(ROUNDDOWN($I$57/5,0)*5,'2020ER'!$D$52:$D$67,'2020ER'!$H$52:$H$67)+(($I$57-ROUNDDOWN($I$57/5,0)*5)/5)*(LOOKUP(ROUNDUP($I$57/5,0)*5,'2020ER'!$D$52:$D$67,'2020ER'!$H$52:$H$67)-LOOKUP(ROUNDDOWN($I$57/5,0)*5,'2020ER'!$D$52:$D$67,'2020ER'!$H$52:$H$67)),LOOKUP(ROUNDDOWN($I$57/5,0)*5,'2020ER'!$D$52:$D$67,'2020ER'!$F$52:$F$67)+(($I$57-ROUNDDOWN($I$57/5,0)*5)/5)*(LOOKUP(ROUNDUP($I$57/5,0)*5,'2020ER'!$D$52:$D$67,'2020ER'!$F$52:$F$67)-LOOKUP(ROUNDDOWN($I$57/5,0)*5,'2020ER'!$D$52:$D$67,'2020ER'!$F$52:$F$67))) -> 0.1985529316 | I70: =IF($H$22="Urban Unrestricted Access",LOOKUP(ROUNDDOWN($I$57/5,0)*5,'2020ER'!$D$36:$D$51,'2020ER'!$H$36:$H$51)+(($I$57-ROUNDDOWN($I$57/5,0)*5)/5)*(LOOKUP(ROUNDUP($I$57/5,0)*5,'2020ER'!$D$36:$D$51,'2020ER'!$H$36:$H$51)-LOOKUP(ROUNDDOWN($I$57/5,0)*5,'2020ER'!$D$36:$D$51,'2020ER'!$H$36:$H$51)),LOOKUP(ROUNDDOWN($I$57/5,0)*5,'2020ER'!$D$36:$D$51,'2020ER'!$F$36:$F$51)+(($I$57-ROUNDDOWN($I$57/5,0)*5)/5)*(LOOKUP(ROUNDUP($I$57/5,0)*5,'2020ER'!$D$36:$D$51,'2020ER'!$F$36:$F$51)-LOOKUP(ROUNDDOWN($I$57/5,0)*5,'2020ER'!$D$36:$D$51,'2020ER'!$F$36:$F$51))) -> 0.005515882731 | J70: =IF($H$22="Urban Unrestricted Access",LOOKUP(ROUNDDOWN($I$57/5,0)*5,'2020ER'!$D$68:$D$83,'2020ER'!$H$68:$H$83)+(($I$57-ROUNDDOWN($I$57/5,0)*5)/5)*(LOOKUP(ROUNDUP($I$57/5,0)*5,'2020ER'!$D$68:$D$83,'2020ER'!$H$68:$H$83)-LOOKUP(ROUNDDOWN($I$57/5,0)*5,'2020ER'!$D$68:$D$83,'2020ER'!$H$68:$H$83)),LOOKUP(ROUNDDOWN($I$57/5,0)*5,'2020ER'!$D$68:$D$83,'2020ER'!$F$68:$F$83)+(($I$57-ROUNDDOWN($I$57/5,0)*5)/5)*(LOOKUP(ROUNDUP($I$57/5,0)*5,'2020ER'!$D$68:$D$83,'2020ER'!$F$68:$F$83)-LOOKUP(ROUNDDOWN($I$57/5,0)*5,'2020ER'!$D$68:$D$83,'2020ER'!$F$68:$F$83))) -> 0.1269030481
E71: All Trucks | F71: =IF($H$22="Urban Unrestricted Access",LOOKUP(ROUNDDOWN($I$57/5,0)*5,'2020ER'!$D$4:$D$19,'2020ER'!$R$4:$R$19)+(($I$57-ROUNDDOWN($I$57/5,0)*5)/5)*(LOOKUP(ROUNDUP($I$57/5,0)*5,'2020ER'!$D$4:$D$19,'2020ER'!$R$4:$R$19)-LOOKUP(ROUNDDOWN($I$57/5,0)*5,'2020ER'!$D$4:$D$19,'2020ER'!$R$4:$R$19)),LOOKUP(ROUNDDOWN($I$57/5,0)*5,'2020ER'!$D$4:$D$19,'2020ER'!$P$4:$P$19)+(($I$57-ROUNDDOWN($I$57/5,0)*5)/5)*(LOOKUP(ROUNDUP($I$57/5,0)*5,'2020ER'!$D$4:$D$19,'2020ER'!$P$4:$P$19)-LOOKUP(ROUNDDOWN($I$57/5,0)*5,'2020ER'!$D$4:$D$19,'2020ER'!$P$4:$P$19))) -> 1678.869303 | G71: =IF($H$22="Urban Unrestricted Access",LOOKUP(ROUNDDOWN($I$57/5,0)*5,'2020ER'!$D$20:$D$35,'2020ER'!$R$20:$R$35)+(($I$57-ROUNDDOWN($I$57/5,0)*5)/5)*(LOOKUP(ROUNDUP($I$57/5,0)*5,'2020ER'!$D$20:$D$35,'2020ER'!$R$20:$R$35)-LOOKUP(ROUNDDOWN($I$57/5,0)*5,'2020ER'!$D$20:$D$35,'2020ER'!$R$20:$R$35)),LOOKUP(ROUNDDOWN($I$57/5,0)*5,'2020ER'!$D$20:$D$35,'2020ER'!$P$20:$P$35)+(($I$57-ROUNDDOWN($I$57/5,0)*5)/5)*(LOOKUP(ROUNDUP($I$57/5,0)*5,'2020ER'!$D$20:$D$35,'2020ER'!$P$20:$P$35)-LOOKUP(ROUNDDOWN($I$57/5,0)*5,'2020ER'!$D$20:$D$35,'2020ER'!$P$20:$P$35))) -> 2.886377537 | H71: =IF($H$22="Urban Unrestricted Access",LOOKUP(ROUNDDOWN($I$57/5,0)*5,'2020ER'!$D$52:$D$67,'2020ER'!$R$52:$R$67)+(($I$57-ROUNDDOWN($I$57/5,0)*5)/5)*(LOOKUP(ROUNDUP($I$57/5,0)*5,'2020ER'!$D$52:$D$67,'2020ER'!$R$52:$R$67)-LOOKUP(ROUNDDOWN($I$57/5,0)*5,'2020ER'!$D$52:$D$67,'2020ER'!$R$52:$R$67)),LOOKUP(ROUNDDOWN($I$57/5,0)*5,'2020ER'!$D$52:$D$67,'2020ER'!$P$52:$P$67)+(($I$57-ROUNDDOWN($I$57/5,0)*5)/5)*(LOOKUP(ROUNDUP($I$57/5,0)*5,'2020ER'!$D$52:$D$67,'2020ER'!$P$52:$P$67)-LOOKUP(ROUNDDOWN($I$57/5,0)*5,'2020ER'!$D$52:$D$67,'2020ER'!$P$52:$P$67))) -> 2.572559413 | I71: =IF($H$22="Urban Unrestricted Access",LOOKUP(ROUNDDOWN($I$57/5,0)*5,'2020ER'!$D$36:$D$51,'2020ER'!$R$36:$R$51)+(($I$57-ROUNDDOWN($I$57/5,0)*5)/5)*(LOOKUP(ROUNDUP($I$57/5,0)*5,'2020ER'!$D$36:$D$51,'2020ER'!$R$36:$R$51)-LOOKUP(ROUNDDOWN($I$57/5,0)*5,'2020ER'!$D$36:$D$51,'2020ER'!$R$36:$R$51)),LOOKUP(ROUNDDOWN($I$57/5,0)*5,'2020ER'!$D$36:$D$51,'2020ER'!$P$36:$P$51)+(($I$57-ROUNDDOWN($I$57/5,0)*5)/5)*(LOOKUP(ROUNDUP($I$57/5,0)*5,'2020ER'!$D$36:$D$51,'2020ER'!$P$36:$P$51)-LOOKUP(ROUNDDOWN($I$57/5,0)*5,'2020ER'!$D$36:$D$51,'2020ER'!$P$36:$P$51))) -> 0.1254206767 | J71: =IF($H$22="Urban Unrestricted Access",LOOKUP(ROUNDDOWN($I$57/5,0)*5,'2020ER'!$D$68:$D$83,'2020ER'!$R$68:$R$83)+(($I$57-ROUNDDOWN($I$57/5,0)*5)/5)*(LOOKUP(ROUNDUP($I$57/5,0)*5,'2020ER'!$D$68:$D$83,'2020ER'!$R$68:$R$83)-LOOKUP(ROUNDDOWN($I$57/5,0)*5,'2020ER'!$D$68:$D$83,'2020ER'!$R$68:$R$83)),LOOKUP(ROUNDDOWN($I$57/5,0)*5,'2020ER'!$D$68:$D$83,'2020ER'!$P$68:$P$83)+(($I$57-ROUNDDOWN($I$57/5,0)*5)/5)*(LOOKUP(ROUNDUP($I$57/5,0)*5,'2020ER'!$D$68:$D$83,'2020ER'!$P$68:$P$83)-LOOKUP(ROUNDDOWN($I$57/5,0)*5,'2020ER'!$D$68:$D$83,'2020ER'!$P$68:$P$83))) -> 0.3266684762
C72: Off-Peak | D72: Existing Condition | E72: Light Duty Vehicles | F72: =IF($J$22="Urban Unrestricted Access",LOOKUP(ROUNDDOWN($J$56/5,0)*5,'2020ER'!$D$4:$D$19,'2020ER'!$H$4:$H$19)+(($J$56-ROUNDDOWN($J$56/5,0)*5)/5)*(LOOKUP(ROUNDUP($J$56/5,0)*5,'2020ER'!$D$4:$D$19,'2020ER'!$H$4:$H$19)-LOOKUP(ROUNDDOWN($J$56/5,0)*5,'2020ER'!$D$4:$D$19,'2020ER'!$H$4:$H$19)),LOOKUP(ROUNDDOWN($J$56/5,0)*5,'2020ER'!$D$4:$D$19,'2020ER'!$F$4:$F$19)+(($J$56-ROUNDDOWN($J$56/5,0)*5)/5)*(LOOKUP(ROUNDUP($J$56/5,0)*5,'2020ER'!$D$4:$D$19,'2020ER'!$F$4:$F$19)-LOOKUP(ROUNDDOWN($J$56/5,0)*5,'2020ER'!$D$4:$D$19,'2020ER'!$F$4:$F$19))) -> 350.04282 | G72: =IF($J$22="Urban Unrestricted Access",LOOKUP(ROUNDDOWN($J$56/5,0)*5,'2020ER'!$D$20:$D$35,'2020ER'!$H$20:$H$35)+(($J$56-ROUNDDOWN($J$56/5,0)*5)/5)*(LOOKUP(ROUNDUP($J$56/5,0)*5,'2020ER'!$D$20:$D$35,'2020ER'!$H$20:$H$35)-LOOKUP(ROUNDDOWN($J$56/5,0)*5,'2020ER'!$D$20:$D$35,'2020ER'!$H$20:$H$35)),LOOKUP(ROUNDDOWN($J$56/5,0)*5,'2020ER'!$D$20:$D$35,'2020ER'!$F$20:$F$35)+(($J$56-ROUNDDOWN($J$56/5,0)*5)/5)*(LOOKUP(ROUNDUP($J$56/5,0)*5,'2020ER'!$D$20:$D$35,'2020ER'!$F$20:$F$35)-LOOKUP(ROUNDDOWN($J$56/5,0)*5,'2020ER'!$D$20:$D$35,'2020ER'!$F$20:$F$35))) -> 0.1873782067 | H72: =IF($J$22="Urban Unrestricted Access",LOOKUP(ROUNDDOWN($J$56/5,0)*5,'2020ER'!$D$52:$D$67,'2020ER'!$H$52:$H$67)+(($J$56-ROUNDDOWN($J$56/5,0)*5)/5)*(LOOKUP(ROUNDUP($J$56/5,0)*5,'2020ER'!$D$52:$D$67,'2020ER'!$H$52:$H$67)-LOOKUP(ROUNDDOWN($J$56/5,0)*5,'2020ER'!$D$52:$D$67,'2020ER'!$H$52:$H$67)),LOOKUP(ROUNDDOWN($J$56/5,0)*5,'2020ER'!$D$52:$D$67,'2020ER'!$F$52:$F$67)+(($J$56-ROUNDDOWN($J$56/5,0)*5)/5)*(LOOKUP(ROUNDUP($J$56/5,0)*5,'2020ER'!$D$52:$D$67,'2020ER'!$F$52:$F$67)-LOOKUP(ROUNDDOWN($J$56/5,0)*5,'2020ER'!$D$52:$D$67,'2020ER'!$F$52:$F$67))) -> 0.1801576279 | I72: =IF($J$22="Urban Unrestricted Access",LOOKUP(ROUNDDOWN($J$56/5,0)*5,'2020ER'!$D$36:$D$51,'2020ER'!$H$36:$H$51)+(($J$56-ROUNDDOWN($J$56/5,0)*5)/5)*(LOOKUP(ROUNDUP($J$56/5,0)*5,'2020ER'!$D$36:$D$51,'2020ER'!$H$36:$H$51)-LOOKUP(ROUNDDOWN($J$56/5,0)*5,'2020ER'!$D$36:$D$51,'2020ER'!$H$36:$H$51)),LOOKUP(ROUNDDOWN($J$56/5,0)*5,'2020ER'!$D$36:$D$51,'2020ER'!$F$36:$F$51)+(($J$56-ROUNDDOWN($J$56/5,0)*5)/5)*(LOOKUP(ROUNDUP($J$56/5,0)*5,'2020ER'!$D$36:$D$51,'2020ER'!$F$36:$F$51)-LOOKUP(ROUNDDOWN($J$56/5,0)*5,'2020ER'!$D$36:$D$51,'2020ER'!$F$36:$F$51))) -> 0.004845967258 | J72: =IF($J$22="Urban Unrestricted Access",LOOKUP(ROUNDDOWN($J$56/5,0)*5,'2020ER'!$D$68:$D$83,'2020ER'!$H$68:$H$83)+(($J$56-ROUNDDOWN($J$56/5,0)*5)/5)*(LOOKUP(ROUNDUP($J$56/5,0)*5,'2020ER'!$D$68:$D$83,'2020ER'!$H$68:$H$83)-LOOKUP(ROUNDDOWN($J$56/5,0)*5,'2020ER'!$D$68:$D$83,'2020ER'!$H$68:$H$83)),LOOKUP(ROUNDDOWN($J$56/5,0)*5,'2020ER'!$D$68:$D$83,'2020ER'!$F$68:$F$83)+(($J$56-ROUNDDOWN($J$56/5,0)*5)/5)*(LOOKUP(ROUNDUP($J$56/5,0)*5,'2020ER'!$D$68:$D$83,'2020ER'!$F$68:$F$83)-LOOKUP(ROUNDDOWN($J$56/5,0)*5,'2020ER'!$D$68:$D$83,'2020ER'!$F$68:$F$83))) -> 0.1044216254 | K72: g/veh/mile
E73: All Trucks | F73: =IF($J$22="Urban Unrestricted Access",LOOKUP(ROUNDDOWN($J$56/5,0)*5,'2020ER'!$D$4:$D$19,'2020ER'!$R$4:$R$19)+(($J$56-ROUNDDOWN($J$56/5,0)*5)/5)*(LOOKUP(ROUNDUP($J$56/5,0)*5,'2020ER'!$D$4:$D$19,'2020ER'!$R$4:$R$19)-LOOKUP(ROUNDDOWN($J$56/5,0)*5,'2020ER'!$D$4:$D$19,'2020ER'!$R$4:$R$19)),LOOKUP(ROUNDDOWN($J$56/5,0)*5,'2020ER'!$D$4:$D$19,'2020ER'!$P$4:$P$19)+(($J$56-ROUNDDOWN($J$56/5,0)*5)/5)*(LOOKUP(ROUNDUP($J$56/5,0)*5,'2020ER'!$D$4:$D$19,'2020ER'!$P$4:$P$19)-LOOKUP(ROUNDDOWN($J$56/5,0)*5,'2020ER'!$D$4:$D$19,'2020ER'!$P$4:$P$19))) -> 1500.839811 | G73: =IF($J$22="Urban Unrestricted Access",LOOKUP(ROUNDDOWN($J$56/5,0)*5,'2020ER'!$D$20:$D$35,'2020ER'!$R$20:$R$35)+(($J$56-ROUNDDOWN($J$56/5,0)*5)/5)*(LOOKUP(ROUNDUP($J$56/5,0)*5,'2020ER'!$D$20:$D$35,'2020ER'!$R$20:$R$35)-LOOKUP(ROUNDDOWN($J$56/5,0)*5,'2020ER'!$D$20:$D$35,'2020ER'!$R$20:$R$35)),LOOKUP(ROUNDDOWN($J$56/5,0)*5,'2020ER'!$D$20:$D$35,'2020ER'!$P$20:$P$35)+(($J$56-ROUNDDOWN($J$56/5,0)*5)/5)*(LOOKUP(ROUNDUP($J$56/5,0)*5,'2020ER'!$D$20:$D$35,'2020ER'!$P$20:$P$35)-LOOKUP(ROUNDDOWN($J$56/5,0)*5,'2020ER'!$D$20:$D$35,'2020ER'!$P$20:$P$35))) -> 2.54815694 | H73: =IF($J$22="Urban Unrestricted Access",LOOKUP(ROUNDDOWN($J$56/5,0)*5,'2020ER'!$D$52:$D$67,'2020ER'!$R$52:$R$67)+(($J$56-ROUNDDOWN($J$56/5,0)*5)/5)*(LOOKUP(ROUNDUP($J$56/5,0)*5,'2020ER'!$D$52:$D$67,'2020ER'!$R$52:$R$67)-LOOKUP(ROUNDDOWN($J$56/5,0)*5,'2020ER'!$D$52:$D$67,'2020ER'!$R$52:$R$67)),LOOKUP(ROUNDDOWN($J$56/5,0)*5,'2020ER'!$D$52:$D$67,'2020ER'!$P$52:$P$67)+(($J$56-ROUNDDOWN($J$56/5,0)*5)/5)*(LOOKUP(ROUNDUP($J$56/5,0)*5,'2020ER'!$D$52:$D$67,'2020ER'!$P$52:$P$67)-LOOKUP(ROUNDDOWN($J$56/5,0)*5,'2020ER'!$D$52:$D$67,'2020ER'!$P$52:$P$67))) -> 2.270738755 | I73: =IF($J$22="Urban Unrestricted Access",LOOKUP(ROUNDDOWN($J$56/5,0)*5,'2020ER'!$D$36:$D$51,'2020ER'!$R$36:$R$51)+(($J$56-ROUNDDOWN($J$56/5,0)*5)/5)*(LOOKUP(ROUNDUP($J$56/5,0)*5,'2020ER'!$D$36:$D$51,'2020ER'!$R$36:$R$51)-LOOKUP(ROUNDDOWN($J$56/5,0)*5,'2020ER'!$D$36:$D$51,'2020ER'!$R$36:$R$51)),LOOKUP(ROUNDDOWN($J$56/5,0)*5,'2020ER'!$D$36:$D$51,'2020ER'!$P$36:$P$51)+(($J$56-ROUNDDOWN($J$56/5,0)*5)/5)*(LOOKUP(ROUNDUP($J$56/5,0)*5,'2020ER'!$D$36:$D$51,'2020ER'!$P$36:$P$51)-LOOKUP(ROUNDDOWN($J$56/5,0)*5,'2020ER'!$D$36:$D$51,'2020ER'!$P$36:$P$51))) -> 0.1052955677 | J73: =IF($J$22="Urban Unrestricted Access",LOOKUP(ROUNDDOWN($J$56/5,0)*5,'2020ER'!$D$68:$D$83,'2020ER'!$R$68:$R$83)+(($J$56-ROUNDDOWN($J$56/5,0)*5)/5)*(LOOKUP(ROUNDUP($J$56/5,0)*5,'2020ER'!$D$68:$D$83,'2020ER'!$R$68:$R$83)-LOOKUP(ROUNDDOWN($J$56/5,0)*5,'2020ER'!$D$68:$D$83,'2020ER'!$R$68:$R$83)),LOOKUP(ROUNDDOWN($J$56/5,0)*5,'2020ER'!$D$68:$D$83,'2020ER'!$P$68:$P$83)+(($J$56-ROUNDDOWN($J$56/5,0)*5)/5)*(LOOKUP(ROUNDUP($J$56/5,0)*5,'2020ER'!$D$68:$D$83,'2020ER'!$P$68:$P$83)-LOOKUP(ROUNDDOWN($J$56/5,0)*5,'2020ER'!$D$68:$D$83,'2020ER'!$P$68:$P$83))) -> 0.2701968183
D74: Improved Condition | E74: Light Duty Vehicles | F74: =IF($J$22="Urban Unrestricted Access",LOOKUP(ROUNDDOWN($J$57/5,0)*5,'2020ER'!$D$4:$D$19,'2020ER'!$H$4:$H$19)+(($J$57-ROUNDDOWN($J$57/5,0)*5)/5)*(LOOKUP(ROUNDUP($J$57/5,0)*5,'2020ER'!$D$4:$D$19,'2020ER'!$H$4:$H$19)-LOOKUP(ROUNDDOWN($J$57/5,0)*5,'2020ER'!$D$4:$D$19,'2020ER'!$H$4:$H$19)),LOOKUP(ROUNDDOWN($J$57/5,0)*5,'2020ER'!$D$4:$D$19,'2020ER'!$F$4:$F$19)+(($J$57-ROUNDDOWN($J$57/5,0)*5)/5)*(LOOKUP(ROUNDUP($J$57/5,0)*5,'2020ER'!$D$4:$D$19,'2020ER'!$F$4:$F$19)-LOOKUP(ROUNDDOWN($J$57/5,0)*5,'2020ER'!$D$4:$D$19,'2020ER'!$F$4:$F$19))) -> 347.3204761 | G74: =IF($J$22="Urban Unrestricted Access",LOOKUP(ROUNDDOWN($J$57/5,0)*5,'2020ER'!$D$20:$D$35,'2020ER'!$H$20:$H$35)+(($J$57-ROUNDDOWN($J$57/5,0)*5)/5)*(LOOKUP(ROUNDUP($J$57/5,0)*5,'2020ER'!$D$20:$D$35,'2020ER'!$H$20:$H$35)-LOOKUP(ROUNDDOWN($J$57/5,0)*5,'2020ER'!$D$20:$D$35,'2020ER'!$H$20:$H$35)),LOOKUP(ROUNDDOWN($J$57/5,0)*5,'2020ER'!$D$20:$D$35,'2020ER'!$F$20:$F$35)+(($J$57-ROUNDDOWN($J$57/5,0)*5)/5)*(LOOKUP(ROUNDUP($J$57/5,0)*5,'2020ER'!$D$20:$D$35,'2020ER'!$F$20:$F$35)-LOOKUP(ROUNDDOWN($J$57/5,0)*5,'2020ER'!$D$20:$D$35,'2020ER'!$F$20:$F$35))) -> 0.1873145604 | H74: =IF($J$22="Urban Unrestricted Access",LOOKUP(ROUNDDOWN($J$57/5,0)*5,'2020ER'!$D$52:$D$67,'2020ER'!$H$52:$H$67)+(($J$57-ROUNDDOWN($J$57/5,0)*5)/5)*(LOOKUP(ROUNDUP($J$57/5,0)*5,'2020ER'!$D$52:$D$67,'2020ER'!$H$52:$H$67)-LOOKUP(ROUNDDOWN($J$57/5,0)*5,'2020ER'!$D$52:$D$67,'2020ER'!$H$52:$H$67)),LOOKUP(ROUNDDOWN($J$57/5,0)*5,'2020ER'!$D$52:$D$67,'2020ER'!$F$52:$F$67)+(($J$57-ROUNDDOWN($J$57/5,0)*5)/5)*(LOOKUP(ROUNDUP($J$57/5,0)*5,'2020ER'!$D$52:$D$67,'2020ER'!$F$52:$F$67)-LOOKUP(ROUNDDOWN($J$57/5,0)*5,'2020ER'!$D$52:$D$67,'2020ER'!$F$52:$F$67))) -> 0.1800524167 | I74: =IF($J$22="Urban Unrestricted Access",LOOKUP(ROUNDDOWN($J$57/5,0)*5,'2020ER'!$D$36:$D$51,'2020ER'!$H$36:$H$51)+(($J$57-ROUNDDOWN($J$57/5,0)*5)/5)*(LOOKUP(ROUNDUP($J$57/5,0)*5,'2020ER'!$D$36:$D$51,'2020ER'!$H$36:$H$51)-LOOKUP(ROUNDDOWN($J$57/5,0)*5,'2020ER'!$D$36:$D$51,'2020ER'!$H$36:$H$51)),LOOKUP(ROUNDDOWN($J$57/5,0)*5,'2020ER'!$D$36:$D$51,'2020ER'!$F$36:$F$51)+(($J$57-ROUNDDOWN($J$57/5,0)*5)/5)*(LOOKUP(ROUNDUP($J$57/5,0)*5,'2020ER'!$D$36:$D$51,'2020ER'!$F$36:$F$51)-LOOKUP(ROUNDDOWN($J$57/5,0)*5,'2020ER'!$D$36:$D$51,'2020ER'!$F$36:$F$51))) -> 0.004824989912 | J74: =IF($J$22="Urban Unrestricted Access",LOOKUP(ROUNDDOWN($J$57/5,0)*5,'2020ER'!$D$68:$D$83,'2020ER'!$H$68:$H$83)+(($J$57-ROUNDDOWN($J$57/5,0)*5)/5)*(LOOKUP(ROUNDUP($J$57/5,0)*5,'2020ER'!$D$68:$D$83,'2020ER'!$H$68:$H$83)-LOOKUP(ROUNDDOWN($J$57/5,0)*5,'2020ER'!$D$68:$D$83,'2020ER'!$H$68:$H$83)),LOOKUP(ROUNDDOWN($J$57/5,0)*5,'2020ER'!$D$68:$D$83,'2020ER'!$F$68:$F$83)+(($J$57-ROUNDDOWN($J$57/5,0)*5)/5)*(LOOKUP(ROUNDUP($J$57/5,0)*5,'2020ER'!$D$68:$D$83,'2020ER'!$F$68:$F$83)-LOOKUP(ROUNDDOWN($J$57/5,0)*5,'2020ER'!$D$68:$D$83,'2020ER'!$F$68:$F$83))) -> 0.1028550897
E75: All Trucks | F75: =IF($J$22="Urban Unrestricted Access",LOOKUP(ROUNDDOWN($J$57/5,0)*5,'2020ER'!$D$4:$D$19,'2020ER'!$R$4:$R$19)+(($J$57-ROUNDDOWN($J$57/5,0)*5)/5)*(LOOKUP(ROUNDUP($J$57/5,0)*5,'2020ER'!$D$4:$D$19,'2020ER'!$R$4:$R$19)-LOOKUP(ROUNDDOWN($J$57/5,0)*5,'2020ER'!$D$4:$D$19,'2020ER'!$R$4:$R$19)),LOOKUP(ROUNDDOWN($J$57/5,0)*5,'2020ER'!$D$4:$D$19,'2020ER'!$P$4:$P$19)+(($J$57-ROUNDDOWN($J$57/5,0)*5)/5)*(LOOKUP(ROUNDUP($J$57/5,0)*5,'2020ER'!$D$4:$D$19,'2020ER'!$P$4:$P$19)-LOOKUP(ROUNDDOWN($J$57/5,0)*5,'2020ER'!$D$4:$D$19,'2020ER'!$P$4:$P$19))) -> 1461.731241 | G75: =IF($J$22="Urban Unrestricted Access",LOOKUP(ROUNDDOWN($J$57/5,0)*5,'2020ER'!$D$20:$D$35,'2020ER'!$R$20:$R$35)+(($J$57-ROUNDDOWN($J$57/5,0)*5)/5)*(LOOKUP(ROUNDUP($J$57/5,0)*5,'2020ER'!$D$20:$D$35,'2020ER'!$R$20:$R$35)-LOOKUP(ROUNDDOWN($J$57/5,0)*5,'2020ER'!$D$20:$D$35,'2020ER'!$R$20:$R$35)),LOOKUP(ROUNDDOWN($J$57/5,0)*5,'2020ER'!$D$20:$D$35,'2020ER'!$P$20:$P$35)+(($J$57-ROUNDDOWN($J$57/5,0)*5)/5)*(LOOKUP(ROUNDUP($J$57/5,0)*5,'2020ER'!$D$20:$D$35,'2020ER'!$P$20:$P$35)-LOOKUP(ROUNDDOWN($J$57/5,0)*5,'2020ER'!$D$20:$D$35,'2020ER'!$P$20:$P$35))) -> 2.491272742 | H75: =IF($J$22="Urban Unrestricted Access",LOOKUP(ROUNDDOWN($J$57/5,0)*5,'2020ER'!$D$52:$D$67,'2020ER'!$R$52:$R$67)+(($J$57-ROUNDDOWN($J$57/5,0)*5)/5)*(LOOKUP(ROUNDUP($J$57/5,0)*5,'2020ER'!$D$52:$D$67,'2020ER'!$R$52:$R$67)-LOOKUP(ROUNDDOWN($J$57/5,0)*5,'2020ER'!$D$52:$D$67,'2020ER'!$R$52:$R$67)),LOOKUP(ROUNDDOWN($J$57/5,0)*5,'2020ER'!$D$52:$D$67,'2020ER'!$P$52:$P$67)+(($J$57-ROUNDDOWN($J$57/5,0)*5)/5)*(LOOKUP(ROUNDUP($J$57/5,0)*5,'2020ER'!$D$52:$D$67,'2020ER'!$P$52:$P$67)-LOOKUP(ROUNDDOWN($J$57/5,0)*5,'2020ER'!$D$52:$D$67,'2020ER'!$P$52:$P$67))) -> 2.220004245 | I75: =IF($J$22="Urban Unrestricted Access",LOOKUP(ROUNDDOWN($J$57/5,0)*5,'2020ER'!$D$36:$D$51,'2020ER'!$R$36:$R$51)+(($J$57-ROUNDDOWN($J$57/5,0)*5)/5)*(LOOKUP(ROUNDUP($J$57/5,0)*5,'2020ER'!$D$36:$D$51,'2020ER'!$R$36:$R$51)-LOOKUP(ROUNDDOWN($J$57/5,0)*5,'2020ER'!$D$36:$D$51,'2020ER'!$R$36:$R$51)),LOOKUP(ROUNDDOWN($J$57/5,0)*5,'2020ER'!$D$36:$D$51,'2020ER'!$P$36:$P$51)+(($J$57-ROUNDDOWN($J$57/5,0)*5)/5)*(LOOKUP(ROUNDUP($J$57/5,0)*5,'2020ER'!$D$36:$D$51,'2020ER'!$P$36:$P$51)-LOOKUP(ROUNDDOWN($J$57/5,0)*5,'2020ER'!$D$36:$D$51,'2020ER'!$P$36:$P$51))) -> 0.1017610805 | J75: =IF($J$22="Urban Unrestricted Access",LOOKUP(ROUNDDOWN($J$57/5,0)*5,'2020ER'!$D$68:$D$83,'2020ER'!$R$68:$R$83)+(($J$57-ROUNDDOWN($J$57/5,0)*5)/5)*(LOOKUP(ROUNDUP($J$57/5,0)*5,'2020ER'!$D$68:$D$83,'2020ER'!$R$68:$R$83)-LOOKUP(ROUNDDOWN($J$57/5,0)*5,'2020ER'!$D$68:$D$83,'2020ER'!$R$68:$R$83)),LOOKUP(ROUNDDOWN($J$57/5,0)*5,'2020ER'!$D$68:$D$83,'2020ER'!$P$68:$P$83)+(($J$57-ROUNDDOWN($J$57/5,0)*5)/5)*(LOOKUP(ROUNDUP($J$57/5,0)*5,'2020ER'!$D$68:$D$83,'2020ER'!$P$68:$P$83)-LOOKUP(ROUNDDOWN($J$57/5,0)*5,'2020ER'!$D$68:$D$83,'2020ER'!$P$68:$P$83))) -> 0.264445143
C77: ="EMISSION FACTORS ("&'Parameters&Source'!B7&")" -> EMISSION FACTORS (2050)
C78: Description | F78: Pollutant | K78: Units
C79: Time Periods | D79: Operating Mode | E79: Vehicle Type | F79: CO2 | G79: PM-Related NOX | H79: NOX | I79: PM2.5 | J79: VOC
C80: Morning Peak | D80: Existing Condition | E80: Light Duty Vehicles | F80: =IF($H$22="Urban Unrestricted Access",LOOKUP(ROUNDDOWN($H$56/5,0)*5,'2050ER'!$D$4:$D$19,'2050ER'!$H$4:$H$19)+(($H$56-ROUNDDOWN($H$56/5,0)*5)/5)*(LOOKUP(ROUNDUP($H$56/5,0)*5,'2050ER'!$D$4:$D$19,'2050ER'!$H$4:$H$19)-LOOKUP(ROUNDDOWN($H$56/5,0)*5,'2050ER'!$D$4:$D$19,'2050ER'!$H$4:$H$19)),LOOKUP(ROUNDDOWN($H$56/5,0)*5,'2050ER'!$D$4:$D$19,'2050ER'!$F$4:$F$19)+(($H$56-ROUNDDOWN($H$56/5,0)*5)/5)*(LOOKUP(ROUNDUP($H$56/5,0)*5,'2050ER'!$D$4:$D$19,'2050ER'!$F$4:$F$19)-LOOKUP(ROUNDDOWN($H$56/5,0)*5,'2050ER'!$D$4:$D$19,'2050ER'!$F$4:$F$19))) -> 252.4177604 | G80: =IF($H$22="Urban Unrestricted Access",LOOKUP(ROUNDDOWN($H$56/5,0)*5,'2050ER'!$D$20:$D$35,'2050ER'!$H$20:$H$35)+(($H$56-ROUNDDOWN($H$56/5,0)*5)/5)*(LOOKUP(ROUNDUP($H$56/5,0)*5,'2050ER'!$D$20:$D$35,'2050ER'!$H$20:$H$35)-LOOKUP(ROUNDDOWN($H$56/5,0)*5,'2050ER'!$D$20:$D$35,'2050ER'!$H$20:$H$35)),LOOKUP(ROUNDDOWN($H$56/5,0)*5,'2050ER'!$D$20:$D$35,'2050ER'!$F$20:$F$35)+(($H$56-ROUNDDOWN($H$56/5,0)*5)/5)*(LOOKUP(ROUNDUP($H$56/5,0)*5,'2050ER'!$D$20:$D$35,'2050ER'!$F$20:$F$35)-LOOKUP(ROUNDDOWN($H$56/5,0)*5,'2050ER'!$D$20:$D$35,'2050ER'!$F$20:$F$35))) -> 0.01587631324 | H80: =IF($H$22="Urban Unrestricted Access",LOOKUP(ROUNDDOWN($H$56/5,0)*5,'2050ER'!$D$52:$D$67,'2050ER'!$H$52:$H$67)+(($H$56-ROUNDDOWN($H$56/5,0)*5)/5)*(LOOKUP(ROUNDUP($H$56/5,0)*5,'2050ER'!$D$52:$D$67,'2050ER'!$H$52:$H$67)-LOOKUP(ROUNDDOWN($H$56/5,0)*5,'2050ER'!$D$52:$D$67,'2050ER'!$H$52:$H$67)),LOOKUP(ROUNDDOWN($H$56/5,0)*5,'2050ER'!$D$52:$D$67,'2050ER'!$F$52:$F$67)+(($H$56-ROUNDDOWN($H$56/5,0)*5)/5)*(LOOKUP(ROUNDUP($H$56/5,0)*5,'2050ER'!$D$52:$D$67,'2050ER'!$F$52:$F$67)-LOOKUP(ROUNDDOWN($H$56/5,0)*5,'2050ER'!$D$52:$D$67,'2050ER'!$F$52:$F$67))) -> 0.03126682304 | I80: =IF($H$22="Urban Unrestricted Access",LOOKUP(ROUNDDOWN($H$56/5,0)*5,'2050ER'!$D$36:$D$51,'2050ER'!$H$36:$H$51)+(($H$56-ROUNDDOWN($H$56/5,0)*5)/5)*(LOOKUP(ROUNDUP($H$56/5,0)*5,'2050ER'!$D$36:$D$51,'2050ER'!$H$36:$H$51)-LOOKUP(ROUNDDOWN($H$56/5,0)*5,'2050ER'!$D$36:$D$51,'2050ER'!$H$36:$H$51)),LOOKUP(ROUNDDOWN($H$56/5,0)*5,'2050ER'!$D$36:$D$51,'2050ER'!$F$36:$F$51)+(($H$56-ROUNDDOWN($H$56/5,0)*5)/5)*(LOOKUP(ROUNDUP($H$56/5,0)*5,'2050ER'!$D$36:$D$51,'2050ER'!$F$36:$F$51)-LOOKUP(ROUNDDOWN($H$56/5,0)*5,'2050ER'!$D$36:$D$51,'2050ER'!$F$36:$F$51))) -> 0.00257394147 | J80: =IF($H$22="Urban Unrestricted Access",LOOKUP(ROUNDDOWN($H$56/5,0)*5,'2050ER'!$D$68:$D$83,'2050ER'!$H$68:$H$83)+(($H$56-ROUNDDOWN($H$56/5,0)*5)/5)*(LOOKUP(ROUNDUP($H$56/5,0)*5,'2050ER'!$D$68:$D$83,'2050ER'!$H$68:$H$83)-LOOKUP(ROUNDDOWN($H$56/5,0)*5,'2050ER'!$D$68:$D$83,'2050ER'!$H$68:$H$83)),LOOKUP(ROUNDDOWN($H$56/5,0)*5,'2050ER'!$D$68:$D$83,'2050ER'!$F$68:$F$83)+(($H$56-ROUNDDOWN($H$56/5,0)*5)/5)*(LOOKUP(ROUNDUP($H$56/5,0)*5,'2050ER'!$D$68:$D$83,'2050ER'!$F$68:$F$83)-LOOKUP(ROUNDDOWN($H$56/5,0)*5,'2050ER'!$D$68:$D$83,'2050ER'!$F$68:$F$83))) -> 0.07791262785 | K80: g/veh/mile
E81: All Trucks | F81: =IF($H$22="Urban Unrestricted Access",LOOKUP(ROUNDDOWN($H$56/5,0)*5,'2050ER'!$D$4:$D$19,'2050ER'!$R$4:$R$19)+(($H$56-ROUNDDOWN($H$56/5,0)*5)/5)*(LOOKUP(ROUNDUP($H$56/5,0)*5,'2050ER'!$D$4:$D$19,'2050ER'!$R$4:$R$19)-LOOKUP(ROUNDDOWN($H$56/5,0)*5,'2050ER'!$D$4:$D$19,'2050ER'!$R$4:$R$19)),LOOKUP(ROUNDDOWN($H$56/5,0)*5,'2050ER'!$D$4:$D$19,'2050ER'!$P$4:$P$19)+(($H$56-ROUNDDOWN($H$56/5,0)*5)/5)*(LOOKUP(ROUNDUP($H$56/5,0)*5,'2050ER'!$D$4:$D$19,'2050ER'!$P$4:$P$19)-LOOKUP(ROUNDDOWN($H$56/5,0)*5,'2050ER'!$D$4:$D$19,'2050ER'!$P$4:$P$19))) -> 1606.936857 | G81: =IF($H$22="Urban Unrestricted Access",LOOKUP(ROUNDDOWN($H$56/5,0)*5,'2050ER'!$D$20:$D$35,'2050ER'!$R$20:$R$35)+(($H$56-ROUNDDOWN($H$56/5,0)*5)/5)*(LOOKUP(ROUNDUP($H$56/5,0)*5,'2050ER'!$D$20:$D$35,'2050ER'!$R$20:$R$35)-LOOKUP(ROUNDDOWN($H$56/5,0)*5,'2050ER'!$D$20:$D$35,'2050ER'!$R$20:$R$35)),LOOKUP(ROUNDDOWN($H$56/5,0)*5,'2050ER'!$D$20:$D$35,'2050ER'!$P$20:$P$35)+(($H$56-ROUNDDOWN($H$56/5,0)*5)/5)*(LOOKUP(ROUNDUP($H$56/5,0)*5,'2050ER'!$D$20:$D$35,'2050ER'!$P$20:$P$35)-LOOKUP(ROUNDDOWN($H$56/5,0)*5,'2050ER'!$D$20:$D$35,'2050ER'!$P$20:$P$35))) -> 1.218923982 | H81: =IF($H$22="Urban Unrestricted Access",LOOKUP(ROUNDDOWN($H$56/5,0)*5,'2050ER'!$D$52:$D$67,'2050ER'!$R$52:$R$67)+(($H$56-ROUNDDOWN($H$56/5,0)*5)/5)*(LOOKUP(ROUNDUP($H$56/5,0)*5,'2050ER'!$D$52:$D$67,'2050ER'!$R$52:$R$67)-LOOKUP(ROUNDDOWN($H$56/5,0)*5,'2050ER'!$D$52:$D$67,'2050ER'!$R$52:$R$67)),LOOKUP(ROUNDDOWN($H$56/5,0)*5,'2050ER'!$D$52:$D$67,'2050ER'!$P$52:$P$67)+(($H$56-ROUNDDOWN($H$56/5,0)*5)/5)*(LOOKUP(ROUNDUP($H$56/5,0)*5,'2050ER'!$D$52:$D$67,'2050ER'!$P$52:$P$67)-LOOKUP(ROUNDDOWN($H$56/5,0)*5,'2050ER'!$D$52:$D$67,'2050ER'!$P$52:$P$67))) -> 2.173465782 | I81: =IF($H$22="Urban Unrestricted Access",LOOKUP(ROUNDDOWN($H$56/5,0)*5,'2050ER'!$D$36:$D$51,'2050ER'!$R$36:$R$51)+(($H$56-ROUNDDOWN($H$56/5,0)*5)/5)*(LOOKUP(ROUNDUP($H$56/5,0)*5,'2050ER'!$D$36:$D$51,'2050ER'!$R$36:$R$51)-LOOKUP(ROUNDDOWN($H$56/5,0)*5,'2050ER'!$D$36:$D$51,'2050ER'!$R$36:$R$51)),LOOKUP(ROUNDDOWN($H$56/5,0)*5,'2050ER'!$D$36:$D$51,'2050ER'!$P$36:$P$51)+(($H$56-ROUNDDOWN($H$56/5,0)*5)/5)*(LOOKUP(ROUNDUP($H$56/5,0)*5,'2050ER'!$D$36:$D$51,'2050ER'!$P$36:$P$51)-LOOKUP(ROUNDDOWN($H$56/5,0)*5,'2050ER'!$D$36:$D$51,'2050ER'!$P$36:$P$51))) -> 0.02977189989 | J81: =IF($H$22="Urban Unrestricted Access",LOOKUP(ROUNDDOWN($H$56/5,0)*5,'2050ER'!$D$68:$D$83,'2050ER'!$R$68:$R$83)+(($H$56-ROUNDDOWN($H$56/5,0)*5)/5)*(LOOKUP(ROUNDUP($H$56/5,0)*5,'2050ER'!$D$68:$D$83,'2050ER'!$R$68:$R$83)-LOOKUP(ROUNDDOWN($H$56/5,0)*5,'2050ER'!$D$68:$D$83,'2050ER'!$R$68:$R$83)),LOOKUP(ROUNDDOWN($H$56/5,0)*5,'2050ER'!$D$68:$D$83,'2050ER'!$P$68:$P$83)+(($H$56-ROUNDDOWN($H$56/5,0)*5)/5)*(LOOKUP(ROUNDUP($H$56/5,0)*5,'2050ER'!$D$68:$D$83,'2050ER'!$P$68:$P$83)-LOOKUP(ROUNDDOWN($H$56/5,0)*5,'2050ER'!$D$68:$D$83,'2050ER'!$P$68:$P$83))) -> 0.3376014291 | K81: grams/vehicle/mile
D82: Improved Condition | E82: Light Duty Vehicles | F82: =IF($H$22="Urban Unrestricted Access",LOOKUP(ROUNDDOWN($H$57/5,0)*5,'2050ER'!$D$4:$D$19,'2050ER'!$H$4:$H$19)+(($H$57-ROUNDDOWN($H$57/5,0)*5)/5)*(LOOKUP(ROUNDUP($H$57/5,0)*5,'2050ER'!$D$4:$D$19,'2050ER'!$H$4:$H$19)-LOOKUP(ROUNDDOWN($H$57/5,0)*5,'2050ER'!$D$4:$D$19,'2050ER'!$H$4:$H$19)),LOOKUP(ROUNDDOWN($H$57/5,0)*5,'2050ER'!$D$4:$D$19,'2050ER'!$F$4:$F$19)+(($H$57-ROUNDDOWN($H$57/5,0)*5)/5)*(LOOKUP(ROUNDUP($H$57/5,0)*5,'2050ER'!$D$4:$D$19,'2050ER'!$F$4:$F$19)-LOOKUP(ROUNDDOWN($H$57/5,0)*5,'2050ER'!$D$4:$D$19,'2050ER'!$F$4:$F$19))) -> 249.4651243 | G82: =IF($H$22="Urban Unrestricted Access",LOOKUP(ROUNDDOWN($H$57/5,0)*5,'2050ER'!$D$20:$D$35,'2050ER'!$H$20:$H$35)+(($H$57-ROUNDDOWN($H$57/5,0)*5)/5)*(LOOKUP(ROUNDUP($H$57/5,0)*5,'2050ER'!$D$20:$D$35,'2050ER'!$H$20:$H$35)-LOOKUP(ROUNDDOWN($H$57/5,0)*5,'2050ER'!$D$20:$D$35,'2050ER'!$H$20:$H$35)),LOOKUP(ROUNDDOWN($H$57/5,0)*5,'2050ER'!$D$20:$D$35,'2050ER'!$F$20:$F$35)+(($H$57-ROUNDDOWN($H$57/5,0)*5)/5)*(LOOKUP(ROUNDUP($H$57/5,0)*5,'2050ER'!$D$20:$D$35,'2050ER'!$F$20:$F$35)-LOOKUP(ROUNDDOWN($H$57/5,0)*5,'2050ER'!$D$20:$D$35,'2050ER'!$F$20:$F$35))) -> 0.01578162255 | H82: =IF($H$22="Urban Unrestricted Access",LOOKUP(ROUNDDOWN($H$57/5,0)*5,'2050ER'!$D$52:$D$67,'2050ER'!$H$52:$H$67)+(($H$57-ROUNDDOWN($H$57/5,0)*5)/5)*(LOOKUP(ROUNDUP($H$57/5,0)*5,'2050ER'!$D$52:$D$67,'2050ER'!$H$52:$H$67)-LOOKUP(ROUNDDOWN($H$57/5,0)*5,'2050ER'!$D$52:$D$67,'2050ER'!$H$52:$H$67)),LOOKUP(ROUNDDOWN($H$57/5,0)*5,'2050ER'!$D$52:$D$67,'2050ER'!$F$52:$F$67)+(($H$57-ROUNDDOWN($H$57/5,0)*5)/5)*(LOOKUP(ROUNDUP($H$57/5,0)*5,'2050ER'!$D$52:$D$67,'2050ER'!$F$52:$F$67)-LOOKUP(ROUNDDOWN($H$57/5,0)*5,'2050ER'!$D$52:$D$67,'2050ER'!$F$52:$F$67))) -> 0.03104447324 | I82: =IF($H$22="Urban Unrestricted Access",LOOKUP(ROUNDDOWN($H$57/5,0)*5,'2050ER'!$D$36:$D$51,'2050ER'!$H$36:$H$51)+(($H$57-ROUNDDOWN($H$57/5,0)*5)/5)*(LOOKUP(ROUNDUP($H$57/5,0)*5,'2050ER'!$D$36:$D$51,'2050ER'!$H$36:$H$51)-LOOKUP(ROUNDDOWN($H$57/5,0)*5,'2050ER'!$D$36:$D$51,'2050ER'!$H$36:$H$51)),LOOKUP(ROUNDDOWN($H$57/5,0)*5,'2050ER'!$D$36:$D$51,'2050ER'!$F$36:$F$51)+(($H$57-ROUNDDOWN($H$57/5,0)*5)/5)*(LOOKUP(ROUNDUP($H$57/5,0)*5,'2050ER'!$D$36:$D$51,'2050ER'!$F$36:$F$51)-LOOKUP(ROUNDDOWN($H$57/5,0)*5,'2050ER'!$D$36:$D$51,'2050ER'!$F$36:$F$51))) -> 0.00252835891 | J82: =IF($H$22="Urban Unrestricted Access",LOOKUP(ROUNDDOWN($H$57/5,0)*5,'2050ER'!$D$68:$D$83,'2050ER'!$H$68:$H$83)+(($H$57-ROUNDDOWN($H$57/5,0)*5)/5)*(LOOKUP(ROUNDUP($H$57/5,0)*5,'2050ER'!$D$68:$D$83,'2050ER'!$H$68:$H$83)-LOOKUP(ROUNDDOWN($H$57/5,0)*5,'2050ER'!$D$68:$D$83,'2050ER'!$H$68:$H$83)),LOOKUP(ROUNDDOWN($H$57/5,0)*5,'2050ER'!$D$68:$D$83,'2050ER'!$F$68:$F$83)+(($H$57-ROUNDDOWN($H$57/5,0)*5)/5)*(LOOKUP(ROUNDUP($H$57/5,0)*5,'2050ER'!$D$68:$D$83,'2050ER'!$F$68:$F$83)-LOOKUP(ROUNDDOWN($H$57/5,0)*5,'2050ER'!$D$68:$D$83,'2050ER'!$F$68:$F$83))) -> 0.07640921051 | K82: grams/vehicle/mile
E83: All Trucks | F83: =IF($H$22="Urban Unrestricted Access",LOOKUP(ROUNDDOWN($H$57/5,0)*5,'2050ER'!$D$4:$D$19,'2050ER'!$R$4:$R$19)+(($H$57-ROUNDDOWN($H$57/5,0)*5)/5)*(LOOKUP(ROUNDUP($H$57/5,0)*5,'2050ER'!$D$4:$D$19,'2050ER'!$R$4:$R$19)-LOOKUP(ROUNDDOWN($H$57/5,0)*5,'2050ER'!$D$4:$D$19,'2050ER'!$R$4:$R$19)),LOOKUP(ROUNDDOWN($H$57/5,0)*5,'2050ER'!$D$4:$D$19,'2050ER'!$P$4:$P$19)+(($H$57-ROUNDDOWN($H$57/5,0)*5)/5)*(LOOKUP(ROUNDUP($H$57/5,0)*5,'2050ER'!$D$4:$D$19,'2050ER'!$P$4:$P$19)-LOOKUP(ROUNDDOWN($H$57/5,0)*5,'2050ER'!$D$4:$D$19,'2050ER'!$P$4:$P$19))) -> 1591.47977 | G83: =IF($H$22="Urban Unrestricted Access",LOOKUP(ROUNDDOWN($H$57/5,0)*5,'2050ER'!$D$20:$D$35,'2050ER'!$R$20:$R$35)+(($H$57-ROUNDDOWN($H$57/5,0)*5)/5)*(LOOKUP(ROUNDUP($H$57/5,0)*5,'2050ER'!$D$20:$D$35,'2050ER'!$R$20:$R$35)-LOOKUP(ROUNDDOWN($H$57/5,0)*5,'2050ER'!$D$20:$D$35,'2050ER'!$R$20:$R$35)),LOOKUP(ROUNDDOWN($H$57/5,0)*5,'2050ER'!$D$20:$D$35,'2050ER'!$P$20:$P$35)+(($H$57-ROUNDDOWN($H$57/5,0)*5)/5)*(LOOKUP(ROUNDUP($H$57/5,0)*5,'2050ER'!$D$20:$D$35,'2050ER'!$P$20:$P$35)-LOOKUP(ROUNDDOWN($H$57/5,0)*5,'2050ER'!$D$20:$D$35,'2050ER'!$P$20:$P$35))) -> 1.203265752 | H83: =IF($H$22="Urban Unrestricted Access",LOOKUP(ROUNDDOWN($H$57/5,0)*5,'2050ER'!$D$52:$D$67,'2050ER'!$R$52:$R$67)+(($H$57-ROUNDDOWN($H$57/5,0)*5)/5)*(LOOKUP(ROUNDUP($H$57/5,0)*5,'2050ER'!$D$52:$D$67,'2050ER'!$R$52:$R$67)-LOOKUP(ROUNDDOWN($H$57/5,0)*5,'2050ER'!$D$52:$D$67,'2050ER'!$R$52:$R$67)),LOOKUP(ROUNDDOWN($H$57/5,0)*5,'2050ER'!$D$52:$D$67,'2050ER'!$P$52:$P$67)+(($H$57-ROUNDDOWN($H$57/5,0)*5)/5)*(LOOKUP(ROUNDUP($H$57/5,0)*5,'2050ER'!$D$52:$D$67,'2050ER'!$P$52:$P$67)-LOOKUP(ROUNDDOWN($H$57/5,0)*5,'2050ER'!$D$52:$D$67,'2050ER'!$P$52:$P$67))) -> 2.145549486 | I83: =IF($H$22="Urban Unrestricted Access",LOOKUP(ROUNDDOWN($H$57/5,0)*5,'2050ER'!$D$36:$D$51,'2050ER'!$R$36:$R$51)+(($H$57-ROUNDDOWN($H$57/5,0)*5)/5)*(LOOKUP(ROUNDUP($H$57/5,0)*5,'2050ER'!$D$36:$D$51,'2050ER'!$R$36:$R$51)-LOOKUP(ROUNDDOWN($H$57/5,0)*5,'2050ER'!$D$36:$D$51,'2050ER'!$R$36:$R$51)),LOOKUP(ROUNDDOWN($H$57/5,0)*5,'2050ER'!$D$36:$D$51,'2050ER'!$P$36:$P$51)+(($H$57-ROUNDDOWN($H$57/5,0)*5)/5)*(LOOKUP(ROUNDUP($H$57/5,0)*5,'2050ER'!$D$36:$D$51,'2050ER'!$P$36:$P$51)-LOOKUP(ROUNDDOWN($H$57/5,0)*5,'2050ER'!$D$36:$D$51,'2050ER'!$P$36:$P$51))) -> 0.02949547628 | J83: =IF($H$22="Urban Unrestricted Access",LOOKUP(ROUNDDOWN($H$57/5,0)*5,'2050ER'!$D$68:$D$83,'2050ER'!$R$68:$R$83)+(($H$57-ROUNDDOWN($H$57/5,0)*5)/5)*(LOOKUP(ROUNDUP($H$57/5,0)*5,'2050ER'!$D$68:$D$83,'2050ER'!$R$68:$R$83)-LOOKUP(ROUNDDOWN($H$57/5,0)*5,'2050ER'!$D$68:$D$83,'2050ER'!$R$68:$R$83)),LOOKUP(ROUNDDOWN($H$57/5,0)*5,'2050ER'!$D$68:$D$83,'2050ER'!$P$68:$P$83)+(($H$57-ROUNDDOWN($H$57/5,0)*5)/5)*(LOOKUP(ROUNDUP($H$57/5,0)*5,'2050ER'!$D$68:$D$83,'2050ER'!$P$68:$P$83)-LOOKUP(ROUNDDOWN($H$57/5,0)*5,'2050ER'!$D$68:$D$83,'2050ER'!$P$68:$P$83))) -> 0.3319179135 | K83: grams/vehicle/mile
C84: Evening Peak | D84: Existing Condition | E84: Light Duty Vehicles | F84: =IF($H$22="Urban Unrestricted Access",LOOKUP(ROUNDDOWN($I$56/5,0)*5,'2050ER'!$D$4:$D$19,'2050ER'!$H$4:$H$19)+(($I$56-ROUNDDOWN($I$56/5,0)*5)/5)*(LOOKUP(ROUNDUP($I$56/5,0)*5,'2050ER'!$D$4:$D$19,'2050ER'!$H$4:$H$19)-LOOKUP(ROUNDDOWN($I$56/5,0)*5,'2050ER'!$D$4:$D$19,'2050ER'!$H$4:$H$19)),LOOKUP(ROUNDDOWN($I$56/5,0)*5,'2050ER'!$D$4:$D$19,'2050ER'!$F$4:$F$19)+(($I$56-ROUNDDOWN($I$56/5,0)*5)/5)*(LOOKUP(ROUNDUP($I$56/5,0)*5,'2050ER'!$D$4:$D$19,'2050ER'!$F$4:$F$19)-LOOKUP(ROUNDDOWN($I$56/5,0)*5,'2050ER'!$D$4:$D$19,'2050ER'!$F$4:$F$19))) -> 252.4177604 | G84: =IF($H$22="Urban Unrestricted Access",LOOKUP(ROUNDDOWN($I$56/5,0)*5,'2050ER'!$D$20:$D$35,'2050ER'!$H$20:$H$35)+(($I$56-ROUNDDOWN($I$56/5,0)*5)/5)*(LOOKUP(ROUNDUP($I$56/5,0)*5,'2050ER'!$D$20:$D$35,'2050ER'!$H$20:$H$35)-LOOKUP(ROUNDDOWN($I$56/5,0)*5,'2050ER'!$D$20:$D$35,'2050ER'!$H$20:$H$35)),LOOKUP(ROUNDDOWN($I$56/5,0)*5,'2050ER'!$D$20:$D$35,'2050ER'!$F$20:$F$35)+(($I$56-ROUNDDOWN($I$56/5,0)*5)/5)*(LOOKUP(ROUNDUP($I$56/5,0)*5,'2050ER'!$D$20:$D$35,'2050ER'!$F$20:$F$35)-LOOKUP(ROUNDDOWN($I$56/5,0)*5,'2050ER'!$D$20:$D$35,'2050ER'!$F$20:$F$35))) -> 0.01587631324 | H84: =IF($H$22="Urban Unrestricted Access",LOOKUP(ROUNDDOWN($I$56/5,0)*5,'2050ER'!$D$52:$D$67,'2050ER'!$H$52:$H$67)+(($I$56-ROUNDDOWN($I$56/5,0)*5)/5)*(LOOKUP(ROUNDUP($I$56/5,0)*5,'2050ER'!$D$52:$D$67,'2050ER'!$H$52:$H$67)-LOOKUP(ROUNDDOWN($I$56/5,0)*5,'2050ER'!$D$52:$D$67,'2050ER'!$H$52:$H$67)),LOOKUP(ROUNDDOWN($I$56/5,0)*5,'2050ER'!$D$52:$D$67,'2050ER'!$F$52:$F$67)+(($I$56-ROUNDDOWN($I$56/5,0)*5)/5)*(LOOKUP(ROUNDUP($I$56/5,0)*5,'2050ER'!$D$52:$D$67,'2050ER'!$F$52:$F$67)-LOOKUP(ROUNDDOWN($I$56/5,0)*5,'2050ER'!$D$52:$D$67,'2050ER'!$F$52:$F$67))) -> 0.03126682304 | I84: =IF($H$22="Urban Unrestricted Access",LOOKUP(ROUNDDOWN($I$56/5,0)*5,'2050ER'!$D$36:$D$51,'2050ER'!$H$36:$H$51)+(($I$56-ROUNDDOWN($I$56/5,0)*5)/5)*(LOOKUP(ROUNDUP($I$56/5,0)*5,'2050ER'!$D$36:$D$51,'2050ER'!$H$36:$H$51)-LOOKUP(ROUNDDOWN($I$56/5,0)*5,'2050ER'!$D$36:$D$51,'2050ER'!$H$36:$H$51)),LOOKUP(ROUNDDOWN($I$56/5,0)*5,'2050ER'!$D$36:$D$51,'2050ER'!$F$36:$F$51)+(($I$56-ROUNDDOWN($I$56/5,0)*5)/5)*(LOOKUP(ROUNDUP($I$56/5,0)*5,'2050ER'!$D$36:$D$51,'2050ER'!$F$36:$F$51)-LOOKUP(ROUNDDOWN($I$56/5,0)*5,'2050ER'!$D$36:$D$51,'2050ER'!$F$36:$F$51))) -> 0.00257394147 | J84: =IF($H$22="Urban Unrestricted Access",LOOKUP(ROUNDDOWN($I$56/5,0)*5,'2050ER'!$D$68:$D$83,'2050ER'!$H$68:$H$83)+(($I$56-ROUNDDOWN($I$56/5,0)*5)/5)*(LOOKUP(ROUNDUP($I$56/5,0)*5,'2050ER'!$D$68:$D$83,'2050ER'!$H$68:$H$83)-LOOKUP(ROUNDDOWN($I$56/5,0)*5,'2050ER'!$D$68:$D$83,'2050ER'!$H$68:$H$83)),LOOKUP(ROUNDDOWN($I$56/5,0)*5,'2050ER'!$D$68:$D$83,'2050ER'!$F$68:$F$83)+(($I$56-ROUNDDOWN($I$56/5,0)*5)/5)*(LOOKUP(ROUNDUP($I$56/5,0)*5,'2050ER'!$D$68:$D$83,'2050ER'!$F$68:$F$83)-LOOKUP(ROUNDDOWN($I$56/5,0)*5,'2050ER'!$D$68:$D$83,'2050ER'!$F$68:$F$83))) -> 0.07791262785 | K84: g/veh/mile
E85: All Trucks | F85: =IF($H$22="Urban Unrestricted Access",LOOKUP(ROUNDDOWN($I$56/5,0)*5,'2050ER'!$D$4:$D$19,'2050ER'!$R$4:$R$19)+(($I$56-ROUNDDOWN($I$56/5,0)*5)/5)*(LOOKUP(ROUNDUP($I$56/5,0)*5,'2050ER'!$D$4:$D$19,'2050ER'!$R$4:$R$19)-LOOKUP(ROUNDDOWN($I$56/5,0)*5,'2050ER'!$D$4:$D$19,'2050ER'!$R$4:$R$19)),LOOKUP(ROUNDDOWN($I$56/5,0)*5,'2050ER'!$D$4:$D$19,'2050ER'!$P$4:$P$19)+(($I$56-ROUNDDOWN($I$56/5,0)*5)/5)*(LOOKUP(ROUNDUP($I$56/5,0)*5,'2050ER'!$D$4:$D$19,'2050ER'!$P$4:$P$19)-LOOKUP(ROUNDDOWN($I$56/5,0)*5,'2050ER'!$D$4:$D$19,'2050ER'!$P$4:$P$19))) -> 1606.936857 | G85: =IF($H$22="Urban Unrestricted Access",LOOKUP(ROUNDDOWN($I$56/5,0)*5,'2050ER'!$D$20:$D$35,'2050ER'!$R$20:$R$35)+(($I$56-ROUNDDOWN($I$56/5,0)*5)/5)*(LOOKUP(ROUNDUP($I$56/5,0)*5,'2050ER'!$D$20:$D$35,'2050ER'!$R$20:$R$35)-LOOKUP(ROUNDDOWN($I$56/5,0)*5,'2050ER'!$D$20:$D$35,'2050ER'!$R$20:$R$35)),LOOKUP(ROUNDDOWN($I$56/5,0)*5,'2050ER'!$D$20:$D$35,'2050ER'!$P$20:$P$35)+(($I$56-ROUNDDOWN($I$56/5,0)*5)/5)*(LOOKUP(ROUNDUP($I$56/5,0)*5,'2050ER'!$D$20:$D$35,'2050ER'!$P$20:$P$35)-LOOKUP(ROUNDDOWN($I$56/5,0)*5,'2050ER'!$D$20:$D$35,'2050ER'!$P$20:$P$35))) -> 1.218923982 | H85: =IF($H$22="Urban Unrestricted Access",LOOKUP(ROUNDDOWN($I$56/5,0)*5,'2050ER'!$D$52:$D$67,'2050ER'!$R$52:$R$67)+(($I$56-ROUNDDOWN($I$56/5,0)*5)/5)*(LOOKUP(ROUNDUP($I$56/5,0)*5,'2050ER'!$D$52:$D$67,'2050ER'!$R$52:$R$67)-LOOKUP(ROUNDDOWN($I$56/5,0)*5,'2050ER'!$D$52:$D$67,'2050ER'!$R$52:$R$67)),LOOKUP(ROUNDDOWN($I$56/5,0)*5,'2050ER'!$D$52:$D$67,'2050ER'!$P$52:$P$67)+(($I$56-ROUNDDOWN($I$56/5,0)*5)/5)*(LOOKUP(ROUNDUP($I$56/5,0)*5,'2050ER'!$D$52:$D$67,'2050ER'!$P$52:$P$67)-LOOKUP(ROUNDDOWN($I$56/5,0)*5,'2050ER'!$D$52:$D$67,'2050ER'!$P$52:$P$67))) -> 2.173465782 | I85: =IF($H$22="Urban Unrestricted Access",LOOKUP(ROUNDDOWN($I$56/5,0)*5,'2050ER'!$D$36:$D$51,'2050ER'!$R$36:$R$51)+(($I$56-ROUNDDOWN($I$56/5,0)*5)/5)*(LOOKUP(ROUNDUP($I$56/5,0)*5,'2050ER'!$D$36:$D$51,'2050ER'!$R$36:$R$51)-LOOKUP(ROUNDDOWN($I$56/5,0)*5,'2050ER'!$D$36:$D$51,'2050ER'!$R$36:$R$51)),LOOKUP(ROUNDDOWN($I$56/5,0)*5,'2050ER'!$D$36:$D$51,'2050ER'!$P$36:$P$51)+(($I$56-ROUNDDOWN($I$56/5,0)*5)/5)*(LOOKUP(ROUNDUP($I$56/5,0)*5,'2050ER'!$D$36:$D$51,'2050ER'!$P$36:$P$51)-LOOKUP(ROUNDDOWN($I$56/5,0)*5,'2050ER'!$D$36:$D$51,'2050ER'!$P$36:$P$51))) -> 0.02977189989 | J85: =IF($H$22="Urban Unrestricted Access",LOOKUP(ROUNDDOWN($I$56/5,0)*5,'2050ER'!$D$68:$D$83,'2050ER'!$R$68:$R$83)+(($I$56-ROUNDDOWN($I$56/5,0)*5)/5)*(LOOKUP(ROUNDUP($I$56/5,0)*5,'2050ER'!$D$68:$D$83,'2050ER'!$R$68:$R$83)-LOOKUP(ROUNDDOWN($I$56/5,0)*5,'2050ER'!$D$68:$D$83,'2050ER'!$R$68:$R$83)),LOOKUP(ROUNDDOWN($I$56/5,0)*5,'2050ER'!$D$68:$D$83,'2050ER'!$P$68:$P$83)+(($I$56-ROUNDDOWN($I$56/5,0)*5)/5)*(LOOKUP(ROUNDUP($I$56/5,0)*5,'2050ER'!$D$68:$D$83,'2050ER'!$P$68:$P$83)-LOOKUP(ROUNDDOWN($I$56/5,0)*5,'2050ER'!$D$68:$D$83,'2050ER'!$P$68:$P$83))) -> 0.3376014291 | K85: grams/vehicle/mile
D86: Improved Condition | E86: Light Duty Vehicles | F86: =IF($H$22="Urban Unrestricted Access",LOOKUP(ROUNDDOWN($I$57/5,0)*5,'2050ER'!$D$4:$D$19,'2050ER'!$H$4:$H$19)+(($I$57-ROUNDDOWN($I$57/5,0)*5)/5)*(LOOKUP(ROUNDUP($I$57/5,0)*5,'2050ER'!$D$4:$D$19,'2050ER'!$H$4:$H$19)-LOOKUP(ROUNDDOWN($I$57/5,0)*5,'2050ER'!$D$4:$D$19,'2050ER'!$H$4:$H$19)),LOOKUP(ROUNDDOWN($I$57/5,0)*5,'2050ER'!$D$4:$D$19,'2050ER'!$F$4:$F$19)+(($I$57-ROUNDDOWN($I$57/5,0)*5)/5)*(LOOKUP(ROUNDUP($I$57/5,0)*5,'2050ER'!$D$4:$D$19,'2050ER'!$F$4:$F$19)-LOOKUP(ROUNDDOWN($I$57/5,0)*5,'2050ER'!$D$4:$D$19,'2050ER'!$F$4:$F$19))) -> 249.264146 | G86: =IF($H$22="Urban Unrestricted Access",LOOKUP(ROUNDDOWN($I$57/5,0)*5,'2050ER'!$D$20:$D$35,'2050ER'!$H$20:$H$35)+(($I$57-ROUNDDOWN($I$57/5,0)*5)/5)*(LOOKUP(ROUNDUP($I$57/5,0)*5,'2050ER'!$D$20:$D$35,'2050ER'!$H$20:$H$35)-LOOKUP(ROUNDDOWN($I$57/5,0)*5,'2050ER'!$D$20:$D$35,'2050ER'!$H$20:$H$35)),LOOKUP(ROUNDDOWN($I$57/5,0)*5,'2050ER'!$D$20:$D$35,'2050ER'!$F$20:$F$35)+(($I$57-ROUNDDOWN($I$57/5,0)*5)/5)*(LOOKUP(ROUNDUP($I$57/5,0)*5,'2050ER'!$D$20:$D$35,'2050ER'!$F$20:$F$35)-LOOKUP(ROUNDDOWN($I$57/5,0)*5,'2050ER'!$D$20:$D$35,'2050ER'!$F$20:$F$35))) -> 0.01577517719 | H86: =IF($H$22="Urban Unrestricted Access",LOOKUP(ROUNDDOWN($I$57/5,0)*5,'2050ER'!$D$52:$D$67,'2050ER'!$H$52:$H$67)+(($I$57-ROUNDDOWN($I$57/5,0)*5)/5)*(LOOKUP(ROUNDUP($I$57/5,0)*5,'2050ER'!$D$52:$D$67,'2050ER'!$H$52:$H$67)-LOOKUP(ROUNDDOWN($I$57/5,0)*5,'2050ER'!$D$52:$D$67,'2050ER'!$H$52:$H$67)),LOOKUP(ROUNDDOWN($I$57/5,0)*5,'2050ER'!$D$52:$D$67,'2050ER'!$F$52:$F$67)+(($I$57-ROUNDDOWN($I$57/5,0)*5)/5)*(LOOKUP(ROUNDUP($I$57/5,0)*5,'2050ER'!$D$52:$D$67,'2050ER'!$F$52:$F$67)-LOOKUP(ROUNDDOWN($I$57/5,0)*5,'2050ER'!$D$52:$D$67,'2050ER'!$F$52:$F$67))) -> 0.03102933846 | I86: =IF($H$22="Urban Unrestricted Access",LOOKUP(ROUNDDOWN($I$57/5,0)*5,'2050ER'!$D$36:$D$51,'2050ER'!$H$36:$H$51)+(($I$57-ROUNDDOWN($I$57/5,0)*5)/5)*(LOOKUP(ROUNDUP($I$57/5,0)*5,'2050ER'!$D$36:$D$51,'2050ER'!$H$36:$H$51)-LOOKUP(ROUNDDOWN($I$57/5,0)*5,'2050ER'!$D$36:$D$51,'2050ER'!$H$36:$H$51)),LOOKUP(ROUNDDOWN($I$57/5,0)*5,'2050ER'!$D$36:$D$51,'2050ER'!$F$36:$F$51)+(($I$57-ROUNDDOWN($I$57/5,0)*5)/5)*(LOOKUP(ROUNDUP($I$57/5,0)*5,'2050ER'!$D$36:$D$51,'2050ER'!$F$36:$F$51)-LOOKUP(ROUNDDOWN($I$57/5,0)*5,'2050ER'!$D$36:$D$51,'2050ER'!$F$36:$F$51))) -> 0.002525256222 | J86: =IF($H$22="Urban Unrestricted Access",LOOKUP(ROUNDDOWN($I$57/5,0)*5,'2050ER'!$D$68:$D$83,'2050ER'!$H$68:$H$83)+(($I$57-ROUNDDOWN($I$57/5,0)*5)/5)*(LOOKUP(ROUNDUP($I$57/5,0)*5,'2050ER'!$D$68:$D$83,'2050ER'!$H$68:$H$83)-LOOKUP(ROUNDDOWN($I$57/5,0)*5,'2050ER'!$D$68:$D$83,'2050ER'!$H$68:$H$83)),LOOKUP(ROUNDDOWN($I$57/5,0)*5,'2050ER'!$D$68:$D$83,'2050ER'!$F$68:$F$83)+(($I$57-ROUNDDOWN($I$57/5,0)*5)/5)*(LOOKUP(ROUNDUP($I$57/5,0)*5,'2050ER'!$D$68:$D$83,'2050ER'!$F$68:$F$83)-LOOKUP(ROUNDDOWN($I$57/5,0)*5,'2050ER'!$D$68:$D$83,'2050ER'!$F$68:$F$83))) -> 0.07630687677 | K86: grams/vehicle/mile
E87: All Trucks | F87: =IF($H$22="Urban Unrestricted Access",LOOKUP(ROUNDDOWN($I$57/5,0)*5,'2050ER'!$D$4:$D$19,'2050ER'!$R$4:$R$19)+(($I$57-ROUNDDOWN($I$57/5,0)*5)/5)*(LOOKUP(ROUNDUP($I$57/5,0)*5,'2050ER'!$D$4:$D$19,'2050ER'!$R$4:$R$19)-LOOKUP(ROUNDDOWN($I$57/5,0)*5,'2050ER'!$D$4:$D$19,'2050ER'!$R$4:$R$19)),LOOKUP(ROUNDDOWN($I$57/5,0)*5,'2050ER'!$D$4:$D$19,'2050ER'!$P$4:$P$19)+(($I$57-ROUNDDOWN($I$57/5,0)*5)/5)*(LOOKUP(ROUNDUP($I$57/5,0)*5,'2050ER'!$D$4:$D$19,'2050ER'!$P$4:$P$19)-LOOKUP(ROUNDDOWN($I$57/5,0)*5,'2050ER'!$D$4:$D$19,'2050ER'!$P$4:$P$19))) -> 1590.427646 | G87: =IF($H$22="Urban Unrestricted Access",LOOKUP(ROUNDDOWN($I$57/5,0)*5,'2050ER'!$D$20:$D$35,'2050ER'!$R$20:$R$35)+(($I$57-ROUNDDOWN($I$57/5,0)*5)/5)*(LOOKUP(ROUNDUP($I$57/5,0)*5,'2050ER'!$D$20:$D$35,'2050ER'!$R$20:$R$35)-LOOKUP(ROUNDDOWN($I$57/5,0)*5,'2050ER'!$D$20:$D$35,'2050ER'!$R$20:$R$35)),LOOKUP(ROUNDDOWN($I$57/5,0)*5,'2050ER'!$D$20:$D$35,'2050ER'!$P$20:$P$35)+(($I$57-ROUNDDOWN($I$57/5,0)*5)/5)*(LOOKUP(ROUNDUP($I$57/5,0)*5,'2050ER'!$D$20:$D$35,'2050ER'!$P$20:$P$35)-LOOKUP(ROUNDDOWN($I$57/5,0)*5,'2050ER'!$D$20:$D$35,'2050ER'!$P$20:$P$35))) -> 1.202199937 | H87: =IF($H$22="Urban Unrestricted Access",LOOKUP(ROUNDDOWN($I$57/5,0)*5,'2050ER'!$D$52:$D$67,'2050ER'!$R$52:$R$67)+(($I$57-ROUNDDOWN($I$57/5,0)*5)/5)*(LOOKUP(ROUNDUP($I$57/5,0)*5,'2050ER'!$D$52:$D$67,'2050ER'!$R$52:$R$67)-LOOKUP(ROUNDDOWN($I$57/5,0)*5,'2050ER'!$D$52:$D$67,'2050ER'!$R$52:$R$67)),LOOKUP(ROUNDDOWN($I$57/5,0)*5,'2050ER'!$D$52:$D$67,'2050ER'!$P$52:$P$67)+(($I$57-ROUNDDOWN($I$57/5,0)*5)/5)*(LOOKUP(ROUNDUP($I$57/5,0)*5,'2050ER'!$D$52:$D$67,'2050ER'!$P$52:$P$67)-LOOKUP(ROUNDDOWN($I$57/5,0)*5,'2050ER'!$D$52:$D$67,'2050ER'!$P$52:$P$67))) -> 2.143649296 | I87: =IF($H$22="Urban Unrestricted Access",LOOKUP(ROUNDDOWN($I$57/5,0)*5,'2050ER'!$D$36:$D$51,'2050ER'!$R$36:$R$51)+(($I$57-ROUNDDOWN($I$57/5,0)*5)/5)*(LOOKUP(ROUNDUP($I$57/5,0)*5,'2050ER'!$D$36:$D$51,'2050ER'!$R$36:$R$51)-LOOKUP(ROUNDDOWN($I$57/5,0)*5,'2050ER'!$D$36:$D$51,'2050ER'!$R$36:$R$51)),LOOKUP(ROUNDDOWN($I$57/5,0)*5,'2050ER'!$D$36:$D$51,'2050ER'!$P$36:$P$51)+(($I$57-ROUNDDOWN($I$57/5,0)*5)/5)*(LOOKUP(ROUNDUP($I$57/5,0)*5,'2050ER'!$D$36:$D$51,'2050ER'!$P$36:$P$51)-LOOKUP(ROUNDDOWN($I$57/5,0)*5,'2050ER'!$D$36:$D$51,'2050ER'!$P$36:$P$51))) -> 0.02947666084 | J87: =IF($H$22="Urban Unrestricted Access",LOOKUP(ROUNDDOWN($I$57/5,0)*5,'2050ER'!$D$68:$D$83,'2050ER'!$R$68:$R$83)+(($I$57-ROUNDDOWN($I$57/5,0)*5)/5)*(LOOKUP(ROUNDUP($I$57/5,0)*5,'2050ER'!$D$68:$D$83,'2050ER'!$R$68:$R$83)-LOOKUP(ROUNDDOWN($I$57/5,0)*5,'2050ER'!$D$68:$D$83,'2050ER'!$R$68:$R$83)),LOOKUP(ROUNDDOWN($I$57/5,0)*5,'2050ER'!$D$68:$D$83,'2050ER'!$P$68:$P$83)+(($I$57-ROUNDDOWN($I$57/5,0)*5)/5)*(LOOKUP(ROUNDUP($I$57/5,0)*5,'2050ER'!$D$68:$D$83,'2050ER'!$P$68:$P$83)-LOOKUP(ROUNDDOWN($I$57/5,0)*5,'2050ER'!$D$68:$D$83,'2050ER'!$P$68:$P$83))) -> 0.3315310512 | K87: grams/vehicle/mile
C88: Off-Peak | D88: Existing Condition | E88: Light Duty Vehicles | F88: =IF($J$22="Urban Unrestricted Access",LOOKUP(ROUNDDOWN($J$56/5,0)*5,'2050ER'!$D$4:$D$19,'2050ER'!$H$4:$H$19)+(($J$56-ROUNDDOWN($J$56/5,0)*5)/5)*(LOOKUP(ROUNDUP($J$56/5,0)*5,'2050ER'!$D$4:$D$19,'2050ER'!$H$4:$H$19)-LOOKUP(ROUNDDOWN($J$56/5,0)*5,'2050ER'!$D$4:$D$19,'2050ER'!$H$4:$H$19)),LOOKUP(ROUNDDOWN($J$56/5,0)*5,'2050ER'!$D$4:$D$19,'2050ER'!$F$4:$F$19)+(($J$56-ROUNDDOWN($J$56/5,0)*5)/5)*(LOOKUP(ROUNDUP($J$56/5,0)*5,'2050ER'!$D$4:$D$19,'2050ER'!$F$4:$F$19)-LOOKUP(ROUNDDOWN($J$56/5,0)*5,'2050ER'!$D$4:$D$19,'2050ER'!$F$4:$F$19))) -> 215.3933209 | G88: =IF($J$22="Urban Unrestricted Access",LOOKUP(ROUNDDOWN($J$56/5,0)*5,'2050ER'!$D$20:$D$35,'2050ER'!$H$20:$H$35)+(($J$56-ROUNDDOWN($J$56/5,0)*5)/5)*(LOOKUP(ROUNDUP($J$56/5,0)*5,'2050ER'!$D$20:$D$35,'2050ER'!$H$20:$H$35)-LOOKUP(ROUNDDOWN($J$56/5,0)*5,'2050ER'!$D$20:$D$35,'2050ER'!$H$20:$H$35)),LOOKUP(ROUNDDOWN($J$56/5,0)*5,'2050ER'!$D$20:$D$35,'2050ER'!$F$20:$F$35)+(($J$56-ROUNDDOWN($J$56/5,0)*5)/5)*(LOOKUP(ROUNDUP($J$56/5,0)*5,'2050ER'!$D$20:$D$35,'2050ER'!$F$20:$F$35)-LOOKUP(ROUNDDOWN($J$56/5,0)*5,'2050ER'!$D$20:$D$35,'2050ER'!$F$20:$F$35))) -> 0.01723554069 | H88: =IF($J$22="Urban Unrestricted Access",LOOKUP(ROUNDDOWN($J$56/5,0)*5,'2050ER'!$D$52:$D$67,'2050ER'!$H$52:$H$67)+(($J$56-ROUNDDOWN($J$56/5,0)*5)/5)*(LOOKUP(ROUNDUP($J$56/5,0)*5,'2050ER'!$D$52:$D$67,'2050ER'!$H$52:$H$67)-LOOKUP(ROUNDDOWN($J$56/5,0)*5,'2050ER'!$D$52:$D$67,'2050ER'!$H$52:$H$67)),LOOKUP(ROUNDDOWN($J$56/5,0)*5,'2050ER'!$D$52:$D$67,'2050ER'!$F$52:$F$67)+(($J$56-ROUNDDOWN($J$56/5,0)*5)/5)*(LOOKUP(ROUNDUP($J$56/5,0)*5,'2050ER'!$D$52:$D$67,'2050ER'!$F$52:$F$67)-LOOKUP(ROUNDDOWN($J$56/5,0)*5,'2050ER'!$D$52:$D$67,'2050ER'!$F$52:$F$67))) -> 0.03361821012 | I88: =IF($J$22="Urban Unrestricted Access",LOOKUP(ROUNDDOWN($J$56/5,0)*5,'2050ER'!$D$36:$D$51,'2050ER'!$H$36:$H$51)+(($J$56-ROUNDDOWN($J$56/5,0)*5)/5)*(LOOKUP(ROUNDUP($J$56/5,0)*5,'2050ER'!$D$36:$D$51,'2050ER'!$H$36:$H$51)-LOOKUP(ROUNDDOWN($J$56/5,0)*5,'2050ER'!$D$36:$D$51,'2050ER'!$H$36:$H$51)),LOOKUP(ROUNDDOWN($J$56/5,0)*5,'2050ER'!$D$36:$D$51,'2050ER'!$F$36:$F$51)+(($J$56-ROUNDDOWN($J$56/5,0)*5)/5)*(LOOKUP(ROUNDUP($J$56/5,0)*5,'2050ER'!$D$36:$D$51,'2050ER'!$F$36:$F$51)-LOOKUP(ROUNDDOWN($J$56/5,0)*5,'2050ER'!$D$36:$D$51,'2050ER'!$F$36:$F$51))) -> 0.00221562031 | J88: =IF($J$22="Urban Unrestricted Access",LOOKUP(ROUNDDOWN($J$56/5,0)*5,'2050ER'!$D$68:$D$83,'2050ER'!$H$68:$H$83)+(($J$56-ROUNDDOWN($J$56/5,0)*5)/5)*(LOOKUP(ROUNDUP($J$56/5,0)*5,'2050ER'!$D$68:$D$83,'2050ER'!$H$68:$H$83)-LOOKUP(ROUNDDOWN($J$56/5,0)*5,'2050ER'!$D$68:$D$83,'2050ER'!$H$68:$H$83)),LOOKUP(ROUNDDOWN($J$56/5,0)*5,'2050ER'!$D$68:$D$83,'2050ER'!$F$68:$F$83)+(($J$56-ROUNDDOWN($J$56/5,0)*5)/5)*(LOOKUP(ROUNDUP($J$56/5,0)*5,'2050ER'!$D$68:$D$83,'2050ER'!$F$68:$F$83)-LOOKUP(ROUNDDOWN($J$56/5,0)*5,'2050ER'!$D$68:$D$83,'2050ER'!$F$68:$F$83))) -> 0.06197238902 | K88: g/veh/mile
E89: All Trucks | F89: =IF($J$22="Urban Unrestricted Access",LOOKUP(ROUNDDOWN($J$56/5,0)*5,'2050ER'!$D$4:$D$19,'2050ER'!$R$4:$R$19)+(($J$56-ROUNDDOWN($J$56/5,0)*5)/5)*(LOOKUP(ROUNDUP($J$56/5,0)*5,'2050ER'!$D$4:$D$19,'2050ER'!$R$4:$R$19)-LOOKUP(ROUNDDOWN($J$56/5,0)*5,'2050ER'!$D$4:$D$19,'2050ER'!$R$4:$R$19)),LOOKUP(ROUNDDOWN($J$56/5,0)*5,'2050ER'!$D$4:$D$19,'2050ER'!$P$4:$P$19)+(($J$56-ROUNDDOWN($J$56/5,0)*5)/5)*(LOOKUP(ROUNDUP($J$56/5,0)*5,'2050ER'!$D$4:$D$19,'2050ER'!$P$4:$P$19)-LOOKUP(ROUNDDOWN($J$56/5,0)*5,'2050ER'!$D$4:$D$19,'2050ER'!$P$4:$P$19))) -> 1417.33546 | G89: =IF($J$22="Urban Unrestricted Access",LOOKUP(ROUNDDOWN($J$56/5,0)*5,'2050ER'!$D$20:$D$35,'2050ER'!$R$20:$R$35)+(($J$56-ROUNDDOWN($J$56/5,0)*5)/5)*(LOOKUP(ROUNDUP($J$56/5,0)*5,'2050ER'!$D$20:$D$35,'2050ER'!$R$20:$R$35)-LOOKUP(ROUNDDOWN($J$56/5,0)*5,'2050ER'!$D$20:$D$35,'2050ER'!$R$20:$R$35)),LOOKUP(ROUNDDOWN($J$56/5,0)*5,'2050ER'!$D$20:$D$35,'2050ER'!$P$20:$P$35)+(($J$56-ROUNDDOWN($J$56/5,0)*5)/5)*(LOOKUP(ROUNDUP($J$56/5,0)*5,'2050ER'!$D$20:$D$35,'2050ER'!$P$20:$P$35)-LOOKUP(ROUNDDOWN($J$56/5,0)*5,'2050ER'!$D$20:$D$35,'2050ER'!$P$20:$P$35))) -> 1.051894339 | H89: =IF($J$22="Urban Unrestricted Access",LOOKUP(ROUNDDOWN($J$56/5,0)*5,'2050ER'!$D$52:$D$67,'2050ER'!$R$52:$R$67)+(($J$56-ROUNDDOWN($J$56/5,0)*5)/5)*(LOOKUP(ROUNDUP($J$56/5,0)*5,'2050ER'!$D$52:$D$67,'2050ER'!$R$52:$R$67)-LOOKUP(ROUNDDOWN($J$56/5,0)*5,'2050ER'!$D$52:$D$67,'2050ER'!$R$52:$R$67)),LOOKUP(ROUNDDOWN($J$56/5,0)*5,'2050ER'!$D$52:$D$67,'2050ER'!$P$52:$P$67)+(($J$56-ROUNDDOWN($J$56/5,0)*5)/5)*(LOOKUP(ROUNDUP($J$56/5,0)*5,'2050ER'!$D$52:$D$67,'2050ER'!$P$52:$P$67)-LOOKUP(ROUNDDOWN($J$56/5,0)*5,'2050ER'!$D$52:$D$67,'2050ER'!$P$52:$P$67))) -> 1.875341877 | I89: =IF($J$22="Urban Unrestricted Access",LOOKUP(ROUNDDOWN($J$56/5,0)*5,'2050ER'!$D$36:$D$51,'2050ER'!$R$36:$R$51)+(($J$56-ROUNDDOWN($J$56/5,0)*5)/5)*(LOOKUP(ROUNDUP($J$56/5,0)*5,'2050ER'!$D$36:$D$51,'2050ER'!$R$36:$R$51)-LOOKUP(ROUNDDOWN($J$56/5,0)*5,'2050ER'!$D$36:$D$51,'2050ER'!$R$36:$R$51)),LOOKUP(ROUNDDOWN($J$56/5,0)*5,'2050ER'!$D$36:$D$51,'2050ER'!$P$36:$P$51)+(($J$56-ROUNDDOWN($J$56/5,0)*5)/5)*(LOOKUP(ROUNDUP($J$56/5,0)*5,'2050ER'!$D$36:$D$51,'2050ER'!$P$36:$P$51)-LOOKUP(ROUNDDOWN($J$56/5,0)*5,'2050ER'!$D$36:$D$51,'2050ER'!$P$36:$P$51))) -> 0.02525088541 | J89: =IF($J$22="Urban Unrestricted Access",LOOKUP(ROUNDDOWN($J$56/5,0)*5,'2050ER'!$D$68:$D$83,'2050ER'!$R$68:$R$83)+(($J$56-ROUNDDOWN($J$56/5,0)*5)/5)*(LOOKUP(ROUNDUP($J$56/5,0)*5,'2050ER'!$D$68:$D$83,'2050ER'!$R$68:$R$83)-LOOKUP(ROUNDDOWN($J$56/5,0)*5,'2050ER'!$D$68:$D$83,'2050ER'!$R$68:$R$83)),LOOKUP(ROUNDDOWN($J$56/5,0)*5,'2050ER'!$D$68:$D$83,'2050ER'!$P$68:$P$83)+(($J$56-ROUNDDOWN($J$56/5,0)*5)/5)*(LOOKUP(ROUNDUP($J$56/5,0)*5,'2050ER'!$D$68:$D$83,'2050ER'!$P$68:$P$83)-LOOKUP(ROUNDDOWN($J$56/5,0)*5,'2050ER'!$D$68:$D$83,'2050ER'!$P$68:$P$83))) -> 0.2800822641 | K89: grams/vehicle/mile
D90: Improved Condition | E90: Light Duty Vehicles | F90: =IF($J$22="Urban Unrestricted Access",LOOKUP(ROUNDDOWN($J$57/5,0)*5,'2050ER'!$D$4:$D$19,'2050ER'!$H$4:$H$19)+(($J$57-ROUNDDOWN($J$57/5,0)*5)/5)*(LOOKUP(ROUNDUP($J$57/5,0)*5,'2050ER'!$D$4:$D$19,'2050ER'!$H$4:$H$19)-LOOKUP(ROUNDDOWN($J$57/5,0)*5,'2050ER'!$D$4:$D$19,'2050ER'!$H$4:$H$19)),LOOKUP(ROUNDDOWN($J$57/5,0)*5,'2050ER'!$D$4:$D$19,'2050ER'!$F$4:$F$19)+(($J$57-ROUNDDOWN($J$57/5,0)*5)/5)*(LOOKUP(ROUNDUP($J$57/5,0)*5,'2050ER'!$D$4:$D$19,'2050ER'!$F$4:$F$19)-LOOKUP(ROUNDDOWN($J$57/5,0)*5,'2050ER'!$D$4:$D$19,'2050ER'!$F$4:$F$19))) -> 213.7303499 | G90: =IF($J$22="Urban Unrestricted Access",LOOKUP(ROUNDDOWN($J$57/5,0)*5,'2050ER'!$D$20:$D$35,'2050ER'!$H$20:$H$35)+(($J$57-ROUNDDOWN($J$57/5,0)*5)/5)*(LOOKUP(ROUNDUP($J$57/5,0)*5,'2050ER'!$D$20:$D$35,'2050ER'!$H$20:$H$35)-LOOKUP(ROUNDDOWN($J$57/5,0)*5,'2050ER'!$D$20:$D$35,'2050ER'!$H$20:$H$35)),LOOKUP(ROUNDDOWN($J$57/5,0)*5,'2050ER'!$D$20:$D$35,'2050ER'!$F$20:$F$35)+(($J$57-ROUNDDOWN($J$57/5,0)*5)/5)*(LOOKUP(ROUNDUP($J$57/5,0)*5,'2050ER'!$D$20:$D$35,'2050ER'!$F$20:$F$35)-LOOKUP(ROUNDDOWN($J$57/5,0)*5,'2050ER'!$D$20:$D$35,'2050ER'!$F$20:$F$35))) -> 0.01750191918 | H90: =IF($J$22="Urban Unrestricted Access",LOOKUP(ROUNDDOWN($J$57/5,0)*5,'2050ER'!$D$52:$D$67,'2050ER'!$H$52:$H$67)+(($J$57-ROUNDDOWN($J$57/5,0)*5)/5)*(LOOKUP(ROUNDUP($J$57/5,0)*5,'2050ER'!$D$52:$D$67,'2050ER'!$H$52:$H$67)-LOOKUP(ROUNDDOWN($J$57/5,0)*5,'2050ER'!$D$52:$D$67,'2050ER'!$H$52:$H$67)),LOOKUP(ROUNDDOWN($J$57/5,0)*5,'2050ER'!$D$52:$D$67,'2050ER'!$F$52:$F$67)+(($J$57-ROUNDDOWN($J$57/5,0)*5)/5)*(LOOKUP(ROUNDUP($J$57/5,0)*5,'2050ER'!$D$52:$D$67,'2050ER'!$F$52:$F$67)-LOOKUP(ROUNDDOWN($J$57/5,0)*5,'2050ER'!$D$52:$D$67,'2050ER'!$F$52:$F$67))) -> 0.03412285102 | I90: =IF($J$22="Urban Unrestricted Access",LOOKUP(ROUNDDOWN($J$57/5,0)*5,'2050ER'!$D$36:$D$51,'2050ER'!$H$36:$H$51)+(($J$57-ROUNDDOWN($J$57/5,0)*5)/5)*(LOOKUP(ROUNDUP($J$57/5,0)*5,'2050ER'!$D$36:$D$51,'2050ER'!$H$36:$H$51)-LOOKUP(ROUNDDOWN($J$57/5,0)*5,'2050ER'!$D$36:$D$51,'2050ER'!$H$36:$H$51)),LOOKUP(ROUNDDOWN($J$57/5,0)*5,'2050ER'!$D$36:$D$51,'2050ER'!$F$36:$F$51)+(($J$57-ROUNDDOWN($J$57/5,0)*5)/5)*(LOOKUP(ROUNDUP($J$57/5,0)*5,'2050ER'!$D$36:$D$51,'2050ER'!$F$36:$F$51)-LOOKUP(ROUNDDOWN($J$57/5,0)*5,'2050ER'!$D$36:$D$51,'2050ER'!$F$36:$F$51))) -> 0.002203836319 | J90: =IF($J$22="Urban Unrestricted Access",LOOKUP(ROUNDDOWN($J$57/5,0)*5,'2050ER'!$D$68:$D$83,'2050ER'!$H$68:$H$83)+(($J$57-ROUNDDOWN($J$57/5,0)*5)/5)*(LOOKUP(ROUNDUP($J$57/5,0)*5,'2050ER'!$D$68:$D$83,'2050ER'!$H$68:$H$83)-LOOKUP(ROUNDDOWN($J$57/5,0)*5,'2050ER'!$D$68:$D$83,'2050ER'!$H$68:$H$83)),LOOKUP(ROUNDDOWN($J$57/5,0)*5,'2050ER'!$D$68:$D$83,'2050ER'!$F$68:$F$83)+(($J$57-ROUNDDOWN($J$57/5,0)*5)/5)*(LOOKUP(ROUNDUP($J$57/5,0)*5,'2050ER'!$D$68:$D$83,'2050ER'!$F$68:$F$83)-LOOKUP(ROUNDDOWN($J$57/5,0)*5,'2050ER'!$D$68:$D$83,'2050ER'!$F$68:$F$83))) -> 0.0609720022 | K90: grams/vehicle/mile
E91: All Trucks | F91: =IF($J$22="Urban Unrestricted Access",LOOKUP(ROUNDDOWN($J$57/5,0)*5,'2050ER'!$D$4:$D$19,'2050ER'!$R$4:$R$19)+(($J$57-ROUNDDOWN($J$57/5,0)*5)/5)*(LOOKUP(ROUNDUP($J$57/5,0)*5,'2050ER'!$D$4:$D$19,'2050ER'!$R$4:$R$19)-LOOKUP(ROUNDDOWN($J$57/5,0)*5,'2050ER'!$D$4:$D$19,'2050ER'!$R$4:$R$19)),LOOKUP(ROUNDDOWN($J$57/5,0)*5,'2050ER'!$D$4:$D$19,'2050ER'!$P$4:$P$19)+(($J$57-ROUNDDOWN($J$57/5,0)*5)/5)*(LOOKUP(ROUNDUP($J$57/5,0)*5,'2050ER'!$D$4:$D$19,'2050ER'!$P$4:$P$19)-LOOKUP(ROUNDDOWN($J$57/5,0)*5,'2050ER'!$D$4:$D$19,'2050ER'!$P$4:$P$19))) -> 1379.34077 | G91: =IF($J$22="Urban Unrestricted Access",LOOKUP(ROUNDDOWN($J$57/5,0)*5,'2050ER'!$D$20:$D$35,'2050ER'!$R$20:$R$35)+(($J$57-ROUNDDOWN($J$57/5,0)*5)/5)*(LOOKUP(ROUNDUP($J$57/5,0)*5,'2050ER'!$D$20:$D$35,'2050ER'!$R$20:$R$35)-LOOKUP(ROUNDDOWN($J$57/5,0)*5,'2050ER'!$D$20:$D$35,'2050ER'!$R$20:$R$35)),LOOKUP(ROUNDDOWN($J$57/5,0)*5,'2050ER'!$D$20:$D$35,'2050ER'!$P$20:$P$35)+(($J$57-ROUNDDOWN($J$57/5,0)*5)/5)*(LOOKUP(ROUNDUP($J$57/5,0)*5,'2050ER'!$D$20:$D$35,'2050ER'!$P$20:$P$35)-LOOKUP(ROUNDDOWN($J$57/5,0)*5,'2050ER'!$D$20:$D$35,'2050ER'!$P$20:$P$35))) -> 1.027151005 | H91: =IF($J$22="Urban Unrestricted Access",LOOKUP(ROUNDDOWN($J$57/5,0)*5,'2050ER'!$D$52:$D$67,'2050ER'!$R$52:$R$67)+(($J$57-ROUNDDOWN($J$57/5,0)*5)/5)*(LOOKUP(ROUNDUP($J$57/5,0)*5,'2050ER'!$D$52:$D$67,'2050ER'!$R$52:$R$67)-LOOKUP(ROUNDDOWN($J$57/5,0)*5,'2050ER'!$D$52:$D$67,'2050ER'!$R$52:$R$67)),LOOKUP(ROUNDDOWN($J$57/5,0)*5,'2050ER'!$D$52:$D$67,'2050ER'!$P$52:$P$67)+(($J$57-ROUNDDOWN($J$57/5,0)*5)/5)*(LOOKUP(ROUNDUP($J$57/5,0)*5,'2050ER'!$D$52:$D$67,'2050ER'!$P$52:$P$67)-LOOKUP(ROUNDDOWN($J$57/5,0)*5,'2050ER'!$D$52:$D$67,'2050ER'!$P$52:$P$67))) -> 1.831196095 | I91: =IF($J$22="Urban Unrestricted Access",LOOKUP(ROUNDDOWN($J$57/5,0)*5,'2050ER'!$D$36:$D$51,'2050ER'!$R$36:$R$51)+(($J$57-ROUNDDOWN($J$57/5,0)*5)/5)*(LOOKUP(ROUNDUP($J$57/5,0)*5,'2050ER'!$D$36:$D$51,'2050ER'!$R$36:$R$51)-LOOKUP(ROUNDDOWN($J$57/5,0)*5,'2050ER'!$D$36:$D$51,'2050ER'!$R$36:$R$51)),LOOKUP(ROUNDDOWN($J$57/5,0)*5,'2050ER'!$D$36:$D$51,'2050ER'!$P$36:$P$51)+(($J$57-ROUNDDOWN($J$57/5,0)*5)/5)*(LOOKUP(ROUNDUP($J$57/5,0)*5,'2050ER'!$D$36:$D$51,'2050ER'!$P$36:$P$51)-LOOKUP(ROUNDDOWN($J$57/5,0)*5,'2050ER'!$D$36:$D$51,'2050ER'!$P$36:$P$51))) -> 0.02434155019 | J91: =IF($J$22="Urban Unrestricted Access",LOOKUP(ROUNDDOWN($J$57/5,0)*5,'2050ER'!$D$68:$D$83,'2050ER'!$R$68:$R$83)+(($J$57-ROUNDDOWN($J$57/5,0)*5)/5)*(LOOKUP(ROUNDUP($J$57/5,0)*5,'2050ER'!$D$68:$D$83,'2050ER'!$R$68:$R$83)-LOOKUP(ROUNDDOWN($J$57/5,0)*5,'2050ER'!$D$68:$D$83,'2050ER'!$R$68:$R$83)),LOOKUP(ROUNDDOWN($J$57/5,0)*5,'2050ER'!$D$68:$D$83,'2050ER'!$P$68:$P$83)+(($J$57-ROUNDDOWN($J$57/5,0)*5)/5)*(LOOKUP(ROUNDUP($J$57/5,0)*5,'2050ER'!$D$68:$D$83,'2050ER'!$P$68:$P$83)-LOOKUP(ROUNDDOWN($J$57/5,0)*5,'2050ER'!$D$68:$D$83,'2050ER'!$P$68:$P$83))) -> 0.2735478068 | K91: grams/vehicle/mile
C93: ="ANALYSIS YEAR EMISSION FACTORS ("&H21&")" -> ANALYSIS YEAR EMISSION FACTORS (2024)
C94: Description | F94: Pollutant | K94: Units
C95: Time Periods | D95: Operating Mode | E95: Vehicle Type | F95: CO2 | G95: PM-Related NOX | H95: NOX | I95: PM2.5 | J95: VOC
C96: Morning Peak | D96: Existing Condition | E96: Light Duty Vehicles | F96: =F64-$H$46*(F64-F80) -> 389.3164488 | G96: 0.1804925387 | H96: 0.1773727982 | I96: 0.005243796595 | J96: 0.1224269186 | K96: g/veh/mile
E97: All Trucks | F97: 1684.580224 | G97: 2.697841187 | H97: 2.549458519 | I97: 0.1140189621 | J97: 0.3338674555
D98: Improved Condition | E98: Light Duty Vehicles | F98: 384.7491129 | G98: 0.179617872 | H98: 0.1762901459 | I98: 0.00512520477 | J98: 0.1203015597
E99: All Trucks | F99: 1668.192549 | G99: 2.664116103 | H99: 2.517543753 | I99: 0.1127167776 | J99: 0.3277342884
C100: Evening Peak | D100: Existing Condition | E100: Light Duty Vehicles | F100: 389.3164488 | G100: 0.1804925387 | H100: 0.1773727982 | I100: 0.005243796595 | J100: 0.1224269186 | K100: g/veh/mile
E101: All Trucks | F101: 1684.580224 | G101: 2.697841187 | H101: 2.549458519 | I101: 0.1140189621 | J101: 0.3338674555
D102: Improved Condition | E102: Light Duty Vehicles | F102: 384.4382261 | G102: 0.1795583356 | H102: 0.1762164525 | I102: 0.00511713253 | J102: 0.120156892
E103: All Trucks | F103: 1667.077082 | G103: 2.661820523 | H103: 2.515371397 | I103: 0.1126281413 | J103: 0.3273168195
C104: Off-Peak | D104: Existing Condition | E104: Light Duty Vehicles | F104: 332.0895535 | G104: 0.1646925179 | H104: 0.1606190389 | I104: 0.004495254331 | J104: 0.09876172722 | K104: g/veh/mile
E105: All Trucks | F105: 1489.705897 | G105: 2.34865526 | H105: 2.218019171 | I105: 0.09462294337 | J105: 0.2715148777
D106: Improved Condition | E106: Light Duty Vehicles | F106: 329.5084592 | G106: 0.1646728749 | H106: 0.1605951413 | I106: 0.004475502766 | J106: 0.09727067802
E107: All Trucks | F107: 1450.745845 | G107: 2.29605651 | H107: 2.168163158 | I107: 0.09143847649 | J107: 0.2656588315
C109: RESULTS
C110: Delay/VMT Impact
C111: Description | J111: Value | K111: Units
C112: Reduction in Annual Vehicle Hours of Delay | J112: =H58+I58+J58 -> 8914.282432 | K112: hours
C114: TOTAL EMISSION REDUCTION
C115: Description | F115: Pollutant | K115: Units
F116: GHG(CO2) | G116: PM-Related NOX | H116: NOX | I116: PM2.5 | J116: VOC
C117: Total Annual Reductions | F117: =( ((F96-F98)*$H$54+(F97-F99)*$H$55+(F100-F102)*$I$54+(F101-F103)*$I$55+(F104-F106)*$J$54+(F105-F107)*$J$55) *$J$38 )/1000 -> 62863.83205 | G117: =( ((G96-G98)*$H$54+(G97-G99)*$H$55+(G100-G102)*$I$54+(G101-G103)*$I$55+(G104-G106)*$J$54+(G105-G107)*$J$55) *$J$38 )/1000 -> 45.97605323 | H117: =( ((H96-H98)*$H$54+(H97-H99)*$H$55+(H100-H102)*$I$54+(H101-H103)*$I$55+(H104-H106)*$J$54+(H105-H107)*$J$55) *$J$38 )/1000 -> 45.14159575 | I117: =( ((I96-I98)*$H$54+(I97-I99)*$H$55+(I100-I102)*$I$54+(I101-I103)*$I$55+(I104-I106)*$J$54+(I105-I107)*$J$55) *$J$38 )/1000 -> 2.807371749 | J117: =( ((J96-J98)*$H$54+(J97-J99)*$H$55+(J100-J102)*$I$54+(J101-J103)*$I$55+(J104-J106)*$J$54+(J105-J107)*$J$55) *$J$38 )/1000 -> 24.82701884 | K117: kg/year
F118: =CONVERT( ((F96-F98)*$H$54+(F97-F99)*$H$55+(F100-F102)*$I$54+(F101-F103)*$I$55+(F104-F106)*$J$54+(F105-F107)*$J$55) *$J$38, "g","ton") -> 69.29551312 | G118: =CONVERT( ((G96-G98)*$H$54+(G97-G99)*$H$55+(G100-G102)*$I$54+(G101-G103)*$I$55+(G104-G106)*$J$54+(G105-G107)*$J$55) *$J$38, "g","ton") -> 0.05067992351 | H118: =CONVERT( ((H96-H98)*$H$54+(H97-H99)*$H$55+(H100-H102)*$I$54+(H101-H103)*$I$55+(H104-H106)*$J$54+(H105-H107)*$J$55) *$J$38, "g","ton") -> 0.04976009159 | I118: =CONVERT( ((I96-I98)*$H$54+(I97-I99)*$H$55+(I100-I102)*$I$54+(I101-I103)*$I$55+(I104-I106)*$J$54+(I105-I107)*$J$55) *$J$38, "g","ton") -> 0.003094597633 | J118: =CONVERT( ((J96-J98)*$H$54+(J97-J99)*$H$55+(J100-J102)*$I$54+(J101-J103)*$I$55+(J104-J106)*$J$54+(J105-J107)*$J$55) *$J$38, "g","ton") -> 0.02736710368 | K118: short tons/year
C119: Total Daily Reductions | F119: =((F96-F98)*$H$54+(F97-F99)*$H$55+(F100-F102)*$I$54+(F101-F103)*$I$55+(F104-F106)*$J$54+(F105-F107)*$J$55) /1000 -> 251.4553282 | G119: =((G96-G98)*$H$54+(G97-G99)*$H$55+(G100-G102)*$I$54+(G101-G103)*$I$55+(G104-G106)*$J$54+(G105-G107)*$J$55) /1000 -> 0.1839042129 | H119: =((H96-H98)*$H$54+(H97-H99)*$H$55+(H100-H102)*$I$54+(H101-H103)*$I$55+(H104-H106)*$J$54+(H105-H107)*$J$55) /1000 -> 0.180566383 | I119: =((I96-I98)*$H$54+(I97-I99)*$H$55+(I100-I102)*$I$54+(I101-I103)*$I$55+(I104-I106)*$J$54+(I105-I107)*$J$55) /1000 -> 0.011229487 | J119: =((J96-J98)*$H$54+(J97-J99)*$H$55+(J100-J102)*$I$54+(J101-J103)*$I$55+(J104-J106)*$J$54+(J105-J107)*$J$55) /1000 -> 0.09930807534 | K119: kg/day
F120: =CONVERT( ((F96-F98)*$H$54+(F97-F99)*$H$55+(F100-F102)*$I$54+(F101-F103)*$I$55+(F104-F106)*$J$54+(F105-F107)*$J$55), "g","ton") -> 0.2771820525 | G120: =CONVERT( ((G96-G98)*$H$54+(G97-G99)*$H$55+(G100-G102)*$I$54+(G101-G103)*$I$55+(G104-G106)*$J$54+(G105-G107)*$J$55), "g","ton") -> 0.000202719694 | H120: =CONVERT( ((H96-H98)*$H$54+(H97-H99)*$H$55+(H100-H102)*$I$54+(H101-H103)*$I$55+(H104-H106)*$J$54+(H105-H107)*$J$55), "g","ton") -> 0.0001990403663 | I120: =CONVERT( ((I96-I98)*$H$54+(I97-I99)*$H$55+(I100-I102)*$I$54+(I101-I103)*$I$55+(I104-I106)*$J$54+(I105-I107)*$J$55), "g","ton") -> 1.237839053e-05 | J120: =CONVERT( ((J96-J98)*$H$54+(J97-J99)*$H$55+(J100-J102)*$I$54+(J101-J103)*$I$55+(J104-J106)*$J$54+(J105-J107)*$J$55), "g","ton") -> 0.0001094684147 | K120: short tons/day

Sheet 2.3 Intersection Improvement

Sheet 2.4 Roundabout
E3: 2.4 - Roundabout
C6: PROJECT INFORMATION
C7: Project Title | F7: Roundabout Project on XXX street
C8: Project ID | F8: XXX-XXX-XXXX
C9: Project Location | F9: Atlanta
C10: Project Year | F10: 2011
C11: Project Cost | F11: 2500
C12: Metropolitan Area | F12: Atlanta
C13: County (optional) | F13: Fulton County
C14: Project Description: | F14: This project is XXXXXXXXXXX.
C19: INPUTS
C20: Data Type | G20: Approach 1 | H20: Approach 2 | I20: Approach 3 | J20: Approach 4 | K20: Units
C21: Scenario Year | G21: 2024 | K21: -
C22: Road Type | G22: Urban Unrestricted Access | K22: -
C23: Annual Average Daily Traffic (AADT) | G23: 5000 | H23: 6000 | I23: 1300 | J23: 4250 | K23: veh/day
C24: Truck Percentage | G24: 2 | H24: 2 | I24: 2 | J24: 2 | K24: percent
C25: Average Peak-Hour Hourly Volume - Morning Peak | G25: 500 | H25: 600 | I25: 130 | J25: 425 | K25: veh/hour
C26: Average Peak-Hour Hourly Volume - Evening Peak | G26: 500 | H26: 600 | I26: 130 | J26: 425 | K26: veh/hour
C27: Existing Intersection Delay per Vehicle - Morning Peak | G27: 40 | K27: sec/veh
C28: Existing Intersection Delay per Vehicle - Evening Peak | G28: 40 | K28: sec/veh
C29: Existing Intersection Delay per Vehicle - Off Peak | G29: 25 | K29: sec/veh
C30: Number of Entry Lanes | G30: 1 | H30: 1 | I30: 1 | J30: 1 | K30: -
C31: Existing Intersection Left Turn Percentage | G31: 57 | H31: 40 | I31: 22 | J31: 32 | K31: percent
C32: Existing Intersection Right Turn Percentage | G32: 34 | H32: 12 | I32: 52 | J32: 11 | K32: percent
C33: Existing Intersection U-Turn Percentage | G33: 0 | H33: 0 | I33: 0 | J33: 0 | K33: percent
C34: Proposed Number of Circulating Lanes for Roundabout | G34: 1 | K34: -
C36: CONSTANTS
C37: Data Type | J37: Value | K37: Units
C38: Hours in Morning Peak Period | J38: =ps_hrsAmPeak -> 3 | K38: hours
C39: Hours in Evening Peak Period | J39: =ps_hrsPmPeak -> 3 | K39: hours
C40: Number of Weekdays per Year | J40: =ps_wkdaysPerYear -> 250 | K40: days
C42: INTERMEDIATE RESULTS
C43: Time Period | D43: Data Type | G43: Approach 1 | H43: Approach 2 | I43: Approach 3 | J43: Approach 4 | K43: Units
C44: All | D44: Emission Rates Interpolation Factor | G44: =(G21-ps_erBaseYear1)/(ps_erBaseYear2-ps_erBaseYear1) -> 0.1333333333 | K44: -
C45: Morning Peak | D45: Heavy Duty Vehicle Adjustment Factor | G45: =1/(1+G$24/100) -> 0.9803921569 | H45: =1/(1+H$24/100) -> 0.9803921569 | I45: =1/(1+I$24/100) -> 0.9803921569 | J45: =1/(1+J$24/100) -> 0.9803921569 | K45: -
D46: Hourly Volume - Light Duty Vehicles | G46: =G25-G47 -> 490 | H46: =H25-H47 -> 588 | I46: =I25-I47 -> 127.4 | J46: =J25-J47 -> 416.5 | K46: veh/hour
D47: Hourly Volume - All Trucks | G47: =G25*G$24/100 -> 10 | H47: =H25*H$24/100 -> 12 | I47: =I25*I$24/100 -> 2.6 | J47: =J25*J$24/100 -> 8.5 | K47: veh/hour
D48: Adjusted Hourly Volume | G48: =G25/G45 -> 510 | H48: =H25/H45 -> 612 | I48: =I25/I45 -> 132.6 | J48: =J25/J45 -> 433.5 | K48: pc/hour
D49: Conflicting Flow Rate | G49: =H48*(1-H$32/100)+I48*(I$31+I$33)/100+J48*J$33/100 -> 567.732 | H49: =I48*(1-I32/100)+J48*(J31+J33)/100+G48*G33/100 -> 202.368 | I49: =J48*(1-J32/100)+G48*(G31+G33)/100+H48*H33/100 -> 676.515 | J49: =G48*(1-G32/100)+H48*(H31+H33)/100+I48*I33/100 -> 581.4 | K49: pc/hour
D50: Adjusted Capacity | G50: =IF($G$34=1,1130*EXP(-1*10^-3*G49)*G30,IF(G$30=1,1130*EXP(-0.7*10^-3*G49)*$G$34,1130*EXP(-0.7*10^-3*G49)+1130*EXP(-0.75*10^-3*G49))) -> 640.4947418 | H50: =IF($G$34=1,1130*EXP(-1*10^-3*H49)*H30,IF(H$30=1,1130*EXP(-0.7*10^-3*H49)*$G$34,1130*EXP(-0.7*10^-3*H49)+1130*EXP(-0.75*10^-3*H49))) -> 922.9775503 | I50: =IF($G$34=1,1130*EXP(-1*10^-3*I49)*I30,IF(I$30=1,1130*EXP(-0.7*10^-3*I49)*$G$34,1130*EXP(-0.7*10^-3*I49)+1130*EXP(-0.75*10^-3*I49))) -> 574.4757649 | J50: =IF($G$34=1,1130*EXP(-1*10^-3*J49)*J30,IF(J$30=1,1130*EXP(-0.7*10^-3*J49)*$G$34,1130*EXP(-0.7*10^-3*J49)+1130*EXP(-0.75*10^-3*J49))) -> 631.8000147 | K50: pc/hour
D51: Capacity | G51: =G50*G45 -> 627.9360213 | H51: =H50*H45 -> 904.8799513 | I51: =I50*I45 -> 563.2115342 | J51: =J50*J45 -> 619.4117792 | K51: veh/hour
D52: Volume Capacity Ratio | G52: =G48/G50 -> 0.7962594644 | H52: =H48/H50 -> 0.6630713822 | I52: =I48/I50 -> 0.2308191365 | J52: =J48/J50 -> 0.6861348368 | K52: -
D53: Average Control Delay After Improvements | G53: =3600/G51+900*(G52-1+SQRT((G52-1)^2+(3600/G51*G52)/450))+5*MIN(G52,1) -> 30.89686123 | H53: =3600/H51+900*(H52-1+SQRT((H52-1)^2+(3600/H51*H52)/450))+5*MIN(H52,1) -> 15.02473356 | I53: =3600/I51+900*(I52-1+SQRT((I52-1)^2+(3600/I51*I52)/450))+5*MIN(I52,1) -> 9.461473725 | J53: =3600/J51+900*(J52-1+SQRT((J52-1)^2+(3600/J51*J52)/450))+5*MIN(J52,1) -> 21.67450782 | K53: sec/veh
C54: Evening Peak | D54: Heavy Duty Vehicle Adjustment Factor | G54: =1/(1+G$24/100) -> 0.9803921569 | H54: =1/(1+H$24/100) -> 0.9803921569 | I54: =1/(1+I$24/100) -> 0.9803921569 | J54: =1/(1+J$24/100) -> 0.9803921569 | K54: -
D55: Hourly Volume - Light Duty Vehicles | G55: =G26-G56 -> 490 | H55: =H26-H56 -> 588 | I55: =I26-I56 -> 127.4 | J55: =J26-J56 -> 416.5 | K55: veh/hour
D56: Hourly Volume - All Trucks | G56: =G26*G$24/100 -> 10 | H56: =H26*H$24/100 -> 12 | I56: =I26*I$24/100 -> 2.6 | J56: =J26*J$24/100 -> 8.5 | K56: veh/hour
D57: Adjusted Hourly Volume | G57: =G26/G54 -> 510 | H57: =H26/H54 -> 612 | I57: =I26/I54 -> 132.6 | J57: =J26/J54 -> 433.5 | K57: pc/hour
D58: Conflicting Flow Rate | G58: =H57*(1-H$32/100)+I57*(I$31+I$33)/100+J57*J$33/100 -> 567.732 | H58: =I57*(1-I$32/100)+J57*(J$31+J$33)/100+G57*G$33/100 -> 202.368 | I58: =J57*(1-J$32/100)+G57*(G$31+G$33)/100+H57*H$33/100 -> 676.515 | J58: =G57*(1-G$32/100)+H57*(H$31+H$33)/100+I57*I$33/100 -> 581.4 | K58: pc/hour
D59: Adjusted Capacity | G59: =IF($G$34=1,1130*EXP(-1*10^-3*G58),IF(G$30=1,1130*EXP(-0.7*10^-3*G58)*$G$34,1130*EXP(-0.7*10^-3*G58)+1130*EXP(-0.75*10^-3*G58))) -> 640.4947418 | H59: =IF($G$34=1,1130*EXP(-1*10^-3*H58),IF(H$30=1,1130*EXP(-0.7*10^-3*H58)*$G$34,1130*EXP(-0.7*10^-3*H58)+1130*EXP(-0.75*10^-3*H58))) -> 922.9775503 | I59: =IF($G$34=1,1130*EXP(-1*10^-3*I58),IF(I$30=1,1130*EXP(-0.7*10^-3*I58)*$G$34,1130*EXP(-0.7*10^-3*I58)+1130*EXP(-0.75*10^-3*I58))) -> 574.4757649 | J59: =IF($G$34=1,1130*EXP(-1*10^-3*J58),IF(J$30=1,1130*EXP(-0.7*10^-3*J58)*$G$34,1130*EXP(-0.7*10^-3*J58)+1130*EXP(-0.75*10^-3*J58))) -> 631.8000147 | K59: pc/hour
D60: Capacity | G60: =G59*G54 -> 627.9360213 | H60: =H59*H54 -> 904.8799513 | I60: =I59*I54 -> 563.2115342 | J60: =J59*J54 -> 619.4117792 | K60: veh/hour
D61: Volume Capacity Ratio | G61: =G57/G59 -> 0.7962594644 | H61: =H57/H59 -> 0.6630713822 | I61: =I57/I59 -> 0.2308191365 | J61: =J57/J59 -> 0.6861348368 | K61: -
D62: Average Control Delay After Improvements | G62: =3600/G60+900*(G61-1+SQRT((G61-1)^2+(3600/G60*G61)/450))+5*MIN(G61,1) -> 30.89686123 | H62: =3600/H60+900*(H61-1+SQRT((H61-1)^2+(3600/H60*H61)/450))+5*MIN(H61,1) -> 15.02473356 | I62: =3600/I60+900*(I61-1+SQRT((I61-1)^2+(3600/I60*I61)/450))+5*MIN(I61,1) -> 9.461473725 | J62: =3600/J60+900*(J61-1+SQRT((J61-1)^2+(3600/J60*J61)/450))+5*MIN(J61,1) -> 21.67450782 | K62: sec/veh
C63: Off-Peak | D63: Heavy Duty Vehicle Adjustment Factor | G63: =1/(1+G$24/100) -> 0.9803921569 | H63: =1/(1+H$24/100) -> 0.9803921569 | I63: =1/(1+I$24/100) -> 0.9803921569 | J63: =1/(1+J$24/100) -> 0.9803921569 | K63: -
D64: Hourly Volume | G64: =(G23-G25*$J$38-G26*$J$39)/(24-$J$38-$J$39) -> 111.1111111 | H64: =(H23-H25*$J$38-H26*$J$39)/(24-$J$38-$J$39) -> 133.3333333 | I64: =(I23-I25*$J$38-I26*$J$39)/(24-$J$38-$J$39) -> 28.88888889 | J64: =(J23-J25*$J$38-J26*$J$39)/(24-$J$38-$J$39) -> 94.44444444 | K64: veh/hour
D65: Hourly Volume - Light Duty Vehicles | G65: =G64-G66 -> 108.8888889 | H65: =H64-H66 -> 130.6666667 | I65: =I64-I66 -> 28.31111111 | J65: =J64-J66 -> 92.55555556 | K65: veh/hour
D66: Hourly Volume - All Trucks | G66: =G64*G$24/100 -> 2.222222222 | H66: =H64*H$24/100 -> 2.666666667 | I66: =I64*I$24/100 -> 0.5777777778 | J66: =J64*J$24/100 -> 1.888888889 | K66: veh/hour
D67: Adjusted Hourly Volume | G67: =G64/G63 -> 113.3333333 | H67: =H64/H63 -> 136 | I67: =I64/I63 -> 29.46666667 | J67: =J64/J63 -> 96.33333333 | K67: pc/hour
D68: Conflicting Flow Rate | G68: =H67*(1-H$32/100)+I67*(I$31+I$33)/100+J67*J$33/100 -> 126.1626667 | H68: =I67*(1-I$32/100)+J67*(J$31+J$33)/100+G67*G$33/100 -> 44.97066667 | I68: =J67*(1-J$32/100)+G67*(G$31+G$33)/100+H67*H$33/100 -> 150.3366667 | J68: =G67*(1-G$32/100)+H67*(H$31+H$33)/100+I67*I$33/100 -> 129.2 | K68: pc/hour
D69: Adjusted Capacity | G69: =IF($G$34=1,1130*EXP(-1*10^-3*G68),IF(G$30=1,1130*EXP(-0.7*10^-3*G68)*$G$34,1130*EXP(-0.7*10^-3*G68)+1130*EXP(-0.75*10^-3*G68))) -> 996.0627375 | H69: =IF($G$34=1,1130*EXP(-1*10^-3*H68),IF(H$30=1,1130*EXP(-0.7*10^-3*H68)*$G$34,1130*EXP(-0.7*10^-3*H68)+1130*EXP(-0.75*10^-3*H68))) -> 1080.308843 | I69: =IF($G$34=1,1130*EXP(-1*10^-3*I68),IF(I$30=1,1130*EXP(-0.7*10^-3*I68)*$G$34,1130*EXP(-0.7*10^-3*I68)+1130*EXP(-0.75*10^-3*I68))) -> 972.2726265 | J69: =IF($G$34=1,1130*EXP(-1*10^-3*J68),IF(J$30=1,1130*EXP(-0.7*10^-3*J68)*$G$34,1130*EXP(-0.7*10^-3*J68)+1130*EXP(-0.75*10^-3*J68))) -> 993.0419528 | K69: pc/hour
D70: Capacity | G70: =G69*G63 -> 976.5320956 | H70: =H69*H63 -> 1059.126317 | I70: =I69*I63 -> 953.2084573 | J70: =J69*J63 -> 973.570542 | K70: veh/hour
D71: Volume Capacity Ratio | G71: =G67/G69 -> 0.1137813203 | H71: =H67/H69 -> 0.1258899257 | I71: =I67/I69 -> 0.03030700018 | J71: =J67/J69 -> 0.09700832181 | K71: -
D72: Average Control Delay After Improvements | G72: =3600/G70+900*(G71-1+SQRT((G71-1)^2+(3600/G70*G71)/450))+5*MIN(G71,1) -> 4.728591426 | H72: =3600/H70+900*(H71-1+SQRT((H71-1)^2+(3600/H70*H71)/450))+5*MIN(H71,1) -> 4.517855727 | I72: =3600/I70+900*(I71-1+SQRT((I71-1)^2+(3600/I70*I71)/450))+5*MIN(I71,1) -> 4.046283901 | J72: =3600/J70+900*(J71-1+SQRT((J71-1)^2+(3600/J70*J71)/450))+5*MIN(J71,1) -> 4.579920261 | K72: sec/veh
C74: ACTIVITY OUTPUTS
C75: Data Type | H75: Morning Peak | I75: Evening Peak | J75: Off-Peak | K75: Units
C76: Intersection Delay After Improvements | H76: =(G53*G25+H53*H25+I53*I25+J53*J25)/(G25+H25+I25+J25) -> 21.09059103 | I76: =(G62*G26+H62*H26+I62*I26+J62*J26)/(G26+H26+I26+J26) -> 21.09059103 | J76: =(G72*G64+H72*H64+I72*I64+J72*J64)/(G64+H64+I64+J64) -> 4.560418228 | K76: sec/veh
C77: Delay Reduction per Vehicle | H77: =G27-H76 -> 18.90940897 | I77: =G28-I76 -> 18.90940897 | J77: =G29-J76 -> 20.43958177 | K77: sec/veh
C78: Reduction in Daily Vehicle Hours of Delay - Light Duty Vehicles | H78: =H$77*SUM(G46:J46)*$J$38/3600 -> 25.55764201 | I78: =I$77*SUM(G55:J55)*$J$39/3600 -> 25.55764201 | J78: =J$77*SUM(G65:J65)*(24-$J$38-$J$39)/3600 -> 36.83439742 | K78: hours
C79: Reduction in Daily Vehicle Hours of Delay - All Trucks | H79: =H$77*SUM(G47:J47)*$J$38/3600 -> 0.5215845307 | I79: =I$77*SUM(G56:J56)*$J$39/3600 -> 0.5215845307 | J79: =J$77*SUM(G66:J66)*(24-$J$38-$J$39)/3600 -> 0.7517223963 | K79: hours
C80: Reduction in Daily Vehicle Hours of Delay - Total | H80: =H78+H79 -> 26.07922654 | I80: =I78+I79 -> 26.07922654 | J80: =J78+J79 -> 37.58611981 | K80: hours
C81: Reduction in Annual Vehicle Hours of Delay - Light Durty Vehicles | H81: =H78*$J$40 -> 6389.410501 | I81: 6389.410501 | J81: 9208.599354 | K81: hours
C82: Reduction in Annual Vehicle Hours of Delay - All Trucks | H82: 130.3961327 | I82: 130.3961327 | J82: 187.9305991 | K82: hours
C83: Reduction in Annual Vehicle Hours of Delay - Total | H83: 6519.806634 | I83: 6519.806634 | J83: 9396.529954 | K83: hours
C86: ="EMISSION FACTORS ("&'Parameters&Source'!B6&")" -> EMISSION FACTORS (2020)
C87: Description | F87: Pollutant | K87: Units
C88: Time Periods | D88: Operating Mode | E88: Vehicle Type | F88: CO2 | G88: PM-Related NOX | H88: NOX | I88: PM2.5 | J88: VOC
C89: All | D89: Idling | E89: Light Duty Vehicles | F89: =IF($G$22="Urban Unrestricted Access",'2020ER'!AA4,'2020ER'!Y4) -> 3364.435327 | G89: =IF($G$22="Urban Unrestricted Access",'2020ER'!AA5,'2020ER'!Y5) -> 0.7744377926 | H89: =IF($G$22="Urban Unrestricted Access",'2020ER'!AA7,'2020ER'!Y7) -> 1.794788753 | I89: =IF($G$22="Urban Unrestricted Access",'2020ER'!AA6,'2020ER'!Y6) -> 0.04854444437 | J89: =IF($G$22="Urban Unrestricted Access",'2020ER'!AA8,'2020ER'!Y8) -> 0.7992209736 | K89: g/veh/hr
E90: All Trucks | F90: =IF($G$22="Urban Unrestricted Access",'2020ER'!AK4,'2020ER'!AI4) -> 7586.746881 | G90: =IF($G$22="Urban Unrestricted Access",'2020ER'!AK5,'2020ER'!AI5) -> 28.28927687 | H90: =IF($G$22="Urban Unrestricted Access",'2020ER'!AK7,'2020ER'!AI7) -> 25.30649378 | I90: =IF($G$22="Urban Unrestricted Access",'2020ER'!AK6,'2020ER'!AI6) -> 1.354370807 | J90: =IF($G$22="Urban Unrestricted Access",'2020ER'!AK8,'2020ER'!AI8) -> 4.308027338
C92: ="EMISSION FACTORS ("&'Parameters&Source'!B7&")" -> EMISSION FACTORS (2050)
C93: Description | F93: Pollutant | K93: Units
C94: Time Periods | D94: Operating Mode | E94: Vehicle Type | F94: CO2 | G94: PM-Related NOX | H94: NOX | I94: PM2.5 | J94: VOC
C95: All | D95: Idling | E95: Light Duty Vehicles | F95: =IF($G$22="Urban Unrestricted Access",'2050ER'!AA4,'2050ER'!Y4) -> 2002.159623 | G95: =IF($G$22="Urban Unrestricted Access",'2050ER'!AA5,'2050ER'!Y5) -> 0.03756914139 | H95: =IF($G$22="Urban Unrestricted Access",'2050ER'!AA7,'2050ER'!Y7) -> 0.08297823026 | I95: =IF($G$22="Urban Unrestricted Access",'2050ER'!AA6,'2050ER'!Y6) -> 0.02232062483 | J95: =IF($G$22="Urban Unrestricted Access",'2050ER'!AA8,'2050ER'!Y8) -> 0.04511359832 | K95: g/veh/hr
E96: All Trucks | F96: =IF($G$22="Urban Unrestricted Access",'2050ER'!AK4,'2050ER'!AI4) -> 7177.461415 | G96: =IF($G$22="Urban Unrestricted Access",'2050ER'!AK5,'2050ER'!AI5) -> 6.349728243 | H96: =IF($G$22="Urban Unrestricted Access",'2050ER'!AK7,'2050ER'!AI7) -> 5.680519438 | I96: =IF($G$22="Urban Unrestricted Access",'2050ER'!AK6,'2050ER'!AI6) -> 0.1454390096 | J96: =IF($G$22="Urban Unrestricted Access",'2050ER'!AK8,'2050ER'!AI8) -> 0.6593006868
C98: ="ANALYSIS YEAR EMISSION FACTORS ("&G21&")" -> ANALYSIS YEAR EMISSION FACTORS (2024)
C99: Description | F99: Pollutant | K99: Units
C100: Time Periods | D100: Operating Mode | E100: Vehicle Type | F100: CO2 | G100: PM-Related NOX | H100: NOX | I100: PM2.5 | J100: VOC
C101: All | D101: Idling | E101: Light Duty Vehicles | F101: =F89-$G$44*(F89-F95) -> 3182.798566 | G101: 0.6761886391 | H101: 1.56654735 | I101: 0.0450479351 | J101: 0.6986733236 | K101: g/veh/hr
E102: All Trucks | F102: 7532.175486 | G102: 25.36400372 | H102: 22.6896972 | I102: 1.1931799 | J102: 3.821530451
C104: RESULTS
C105: Delay/VMT Impact
C106: Description | J106: Value | K106: Units
C107: Reduction in Annual Vehicle Hours of Delay | J107: =SUM(H83:J83) -> 22436.14322 | K107: hours
C109: TOTAL EMISSION REDUCTION
C110: Description | F110: Pollutant | K110: Units
F111: GHG(CO2) | G111: PM-Related NOX | H111: NOX | I111: PM2.5 | J111: VOC
C112: Total Annual Reductions | F112: =( (F101*SUM($H$81:$J$81)+F102*SUM($H$82:$J$82)) )/1000 -> 73361.38934 | G112: =( (G101*SUM($H$81:$J$81)+G102*SUM($H$82:$J$82)) )/1000 -> 26.24905225 | H112: =( (H101*SUM($H$81:$J$81)+H102*SUM($H$82:$J$82)) )/1000 -> 44.62572102 | I112: =( (I101*SUM($H$81:$J$81)+I102*SUM($H$82:$J$82)) )/1000 -> 1.525894988 | J112: =( (J101*SUM($H$81:$J$81)+J102*SUM($H$82:$J$82)) )/1000 -> 17.07683215 | K112: kg/year
F113: =CONVERT( (F101*SUM($H$81:$J$81)+F102*SUM($H$82:$J$82)), "g","ton") -> 80.86708926 | G113: =CONVERT( (G101*SUM($H$81:$J$81)+G102*SUM($H$82:$J$82)), "g","ton") -> 0.0289346272 | H113: =CONVERT( (H101*SUM($H$81:$J$81)+H102*SUM($H$82:$J$82)), "g","ton") -> 0.04919143704 | I113: =CONVERT( (I101*SUM($H$81:$J$81)+I102*SUM($H$82:$J$82)), "g","ton") -> 0.001682011304 | J113: =CONVERT( (J101*SUM($H$81:$J$81)+J102*SUM($H$82:$J$82)), "g","ton") -> 0.01882398523 | K113: short tons/year
C114: Total Daily Reductions | F114: =(F101*SUM($H$78:$J$78)+F102*SUM($H$79:$J$79)) /1000 -> 293.4455574 | G114: =(G101*SUM($H$78:$J$78)+G102*SUM($H$79:$J$79)) /1000 -> 0.104996209 | H114: =(H101*SUM($H$78:$J$78)+H102*SUM($H$79:$J$79)) /1000 -> 0.1785028841 | I114: =(I101*SUM($H$78:$J$78)+I102*SUM($H$79:$J$79)) /1000 -> 0.006103579952 | J114: =(J101*SUM($H$78:$J$78)+J102*SUM($H$79:$J$79)) /1000 -> 0.06830732859 | K114: kg/day
F115: =CONVERT( (F101*SUM($H$78:$J$78)+F102*SUM($H$79:$J$79)), "g","ton") -> 0.323468357 | G115: =CONVERT( (G101*SUM($H$78:$J$78)+G102*SUM($H$79:$J$79)), "g","ton") -> 0.0001157385088 | H115: =CONVERT( (H101*SUM($H$78:$J$78)+H102*SUM($H$79:$J$79)), "g","ton") -> 0.0001967657481 | I115: =CONVERT( (I101*SUM($H$78:$J$78)+I102*SUM($H$79:$J$79)), "g","ton") -> 6.728045218e-06 | J115: =CONVERT( (J101*SUM($H$78:$J$78)+J102*SUM($H$79:$J$79)), "g","ton") -> 7.529594093e-05 | K115: short tons/day

Sheet 2.5 Incident Management
E3: 2.5 - Incident Management
C6: PROJECT INFORMATION
C7: Project Title | F7: Incident Management on XXX street
C8: Project ID | F8: XXX-XXX-XXXX
C9: Project Location | F9: Atlanta
C10: Project Year | F10: 2011
C11: Project Cost | F11: 2500
C12: Metropolitan Area | F12: Atlanta
C13: County (optional) | F13: Fulton County
C14: Project Description: | F14: This project is XXXXXXXXXXX.
C19: INPUTS
C20: Data Type | J20: Value | K20: Units
C21: Scenario Year | J21: 2024 | K21: -
C22: Road Type | J22: Interstate / Freeway Free-flow | K22: -
C23: Area Type | H23: 4 | I23: 4 | J23: Urban Low Density | K23: -
C24: Number of Lanes (one direction) | H24: 3 | I24: 3 | J24: 3 | K24: -
C25: Average Hourly Volume along Facility when Incident Happens (one direction) | I25: =IF((J41*s25_NumberOfLanesOneDirection)<s25_AveHrVolWhenIncidentHappens,"This volume is greater than the roadway capacity of "&TEXT(J41*s25_NumberOfLanesOneDirection,"###,###,###")&" veh/hour.","") ->  | J25: 2000 | K25: veh/hour
C26: Annual Average Number of Incidents (one direction) | H26: 3 | I26: 3 | J26: 20 | K26: -
C27: Average IMS Response and Clear-up Time | H27: 9 | I27: 9 | J27: 30 | K27: minutes
C28: Average Highway Patrol Response and Clear-up Time | H28: 60 | I28: 60 | J28: 40 | K28: minutes
C29: Share of Incidents Resulting in Full Roadway Closures | H29: 9 | I29: 9 | J29: 10 | K29: percent
C30: Truck Percentage | H30: 60 | I30: 60 | J30: 5 | K30: percent
C32: CONSTANTS
C33: Data Type | J33: Value | K33: Units
C34: Hour to Minutes Conversion | J34: =ps_hrsToMinutesConver -> 60 | K34: -
C35: Number of Weekdays per Year | J35: =ps_wkdaysPerYear -> 250 | K35: days
C37: INTERMEDIATE RESULTS
C38: Data Type | J38: Value | K38: Units
C39: Emission Rates Interpolation Factor | J39: =(J21-ps_erBaseYear1)/(ps_erBaseYear2-ps_erBaseYear1) -> 0.1333333333 | K39: -
C40: Lane Open During Partial Closure | J40: =VLOOKUP(s25_NumberOfLanesOneDirection,ps_laneClosureTable,2,FALSE) -> 1 | K40: -
C41: Roadway Capacity per Lane | J41: =INDEX(Capacity,MATCH(s25_RoadwayType,INDEX(Capacity,,1),0),MATCH(s25_AreaType,INDEX(Capacity,1,),0)) -> 1750 | K41: veh/hour/lane
C42: Free Flow Speed | J42: =INDEX(Speed,MATCH(s25_RoadwayType,INDEX(Speed,,1),0),MATCH(s25_AreaType,INDEX(Speed,1,),0)) -> 61 | K42: mph
C43: Total Average Delay per Incident in Partial Blockage - Highway Patrol | J43: =(s25_AveDpsRpnsTime/$J$34)^2*(s25_AveHrVolWhenIncidentHappens-$J$41*$J$40)*($J$41*$J$24-$J$41*$J$40)/(2*($J$41*$J$24-s25_AveHrVolWhenIncidentHappens)) -> 59.82905983 | K43: veh hrs
C44: Total Average Delay per Incident in Partial Blockage - IMS | J44: =IFERROR((s25_AveImsRspnsTime/J34)^2*(s25_AveHrVolWhenIncidentHappens-$J$41*$J$40)*($J$41*s25_NumberOfLanesOneDirection-$J$41*$J$40)/(2*($J$41*s25_NumberOfLanesOneDirection-s25_AveHrVolWhenIncidentHappens)),"-") -> 33.65384615 | K44: veh hrs
C45: Total Average Delay per Incident in Full Blockage - Highway Patrol | J45: =IFERROR((s25_AveDpsRpnsTime/$J$34)^2*(s25_AveHrVolWhenIncidentHappens)*($J$41*s25_NumberOfLanesOneDirection)/(2*($J$41*s25_NumberOfLanesOneDirection-s25_AveHrVolWhenIncidentHappens)),"-") -> 717.9487179 | K45: veh hrs
C46: Total Average Delay per Incident in Full Blockage - IMS | J46: =IFERROR((s25_AveImsRspnsTime/$J$34)^2*(s25_AveHrVolWhenIncidentHappens)*($J$41*s25_NumberOfLanesOneDirection)/(2*($J$41*s25_NumberOfLanesOneDirection-s25_AveHrVolWhenIncidentHappens)),"-") -> 403.8461538 | K46: veh hrs
C48: ACTIVITY OUTPUTS
C49: Data Type | J49: Value | K49: Units
C50: Reduction in Average Daily Vehicle Hours of Delay - Light Duty Vehicles | J50: =IFERROR(J53/J$35,"-") -> 4.177564103 | K50: hours
C51: Reduction in Average Daily Vehicle Hours of Delay - All Trucks | H51: =((H37-H43)*#REF!*(#REF!/100)+(H40-H46)*H3*(H4/100))*J23/3600 ->  | I51: =((I37-I43)*#REF!*(#REF!/100)+(I40-I46)*I3*(I4/100))*J24/3600 ->  | J51: =IFERROR(J54/J$35,"-") -> 0.2198717949 | K51: hours
C52: Reduction in Average Daily Vehicle Hours of Delay - Total | H52: =H50+H51 ->  | I52: =I50+I51 ->  | J52: =IFERROR(J55/J$35,"-") -> 4.397435897 | K52: hours
C53: Reduction in Annual Vehicle Hours of Delay - Light Durty Vehicles | H53: =H50*#REF! ->  | I53: =I50*#REF! ->  | J53: =IFERROR(((J43-J44)*s25_AnnualAveNumberOfIncidentsOneDirection*(1-s25_pcntOfIncidentsWithFullRdClosures/100)+(J45-J46)*s25_AnnualAveNumberOfIncidentsOneDirection*(s25_pcntOfIncidentsWithFullRdClosures/100))*(1-s25_TruckPcnt/100),"-") -> 1044.391026 | K53: hours
C54: Reduction in Annual Vehicle Hours of Delay - All Trucks | H54: =H51*#REF! ->  | I54: =I51*#REF! ->  | J54: =IFERROR(((J43-J44)*s25_AnnualAveNumberOfIncidentsOneDirection*(1-s25_pcntOfIncidentsWithFullRdClosures/100)+(J45-J46)*s25_AnnualAveNumberOfIncidentsOneDirection*(s25_pcntOfIncidentsWithFullRdClosures/100))*(s25_TruckPcnt/100),"-") -> 54.96794872 | K54: hours
C55: Reduction in Annual Vehicle Hours of Delay - Total | H55: =H52*#REF! ->  | I55: =I52*#REF! ->  | J55: =IFERROR(s25_AnnualAveNumberOfIncidentsOneDirection*((J43-J44)*(1-s25_pcntOfIncidentsWithFullRdClosures/100)+(J45-J46)*s25_pcntOfIncidentsWithFullRdClosures/100),"-") -> 1099.358974 | K55: hours
C58: ="EMISSION FACTORS ("&'Parameters&Source'!B6&")" -> EMISSION FACTORS (2020)
C59: Description | F59: Pollutant | K59: Units
C60: Time Periods | D60: Operating Mode | E60: Vehicle Type | F60: GHG (CO2) | G60: PM-Related NOX | H60: NOX | I60: PM2.5 | J60: VOC
C61: All | D61: Idling | E61: Light Duty Vehicles | F61: =IF($J$23="Rural",'2020ER'!Y4,'2020ER'!AA4) -> 3364.435327 | G61: =IF($J$23="Rural",'2020ER'!Y5,'2020ER'!AA5) -> 0.7744377926 | H61: =IF($J$23="Rural",'2020ER'!Y7,'2020ER'!AA7) -> 1.794788753 | I61: =IF($J$23="Rural",'2020ER'!Y6,'2020ER'!AA6) -> 0.04854444437 | J61: =IF($J$23="Rural",'2020ER'!Y8,'2020ER'!AA8) -> 0.7992209736 | K61: g/veh/hr
E62: All Trucks | F62: =IF($J$23="Rural",'2020ER'!AI4,'2020ER'!AK4) -> 7586.746881 | G62: =IF($J$23="Rural",'2020ER'!AI5,'2020ER'!AK5) -> 28.28927687 | H62: =IF($J$23="Rural",'2020ER'!AI7,'2020ER'!AK7) -> 25.30649378 | I62: =IF($J$23="Rural",'2020ER'!AI6,'2020ER'!AK6) -> 1.354370807 | J62: =IF($J$23="Rural",'2020ER'!AI8,'2020ER'!AK8) -> 4.308027338
C64: ="EMISSION FACTORS ("&'Parameters&Source'!B7&")" -> EMISSION FACTORS (2050)
C65: Description | F65: Pollutant | K65: Units
C66: Time Periods | D66: Operating Mode | E66: Vehicle Type | F66: GHG (CO2) | G66: PM-Related NOX | H66: NOX | I66: PM2.5 | J66: VOC
C67: All | D67: Idling | E67: Light Duty Vehicles | F67: =IF($J$23="Rural",'2050ER'!Y4,'2050ER'!AA4) -> 2002.159623 | G67: =IF($J$23="Rural",'2050ER'!Y5,'2050ER'!AA5) -> 0.03756914139 | H67: =IF($J$23="Rural",'2050ER'!Y7,'2050ER'!AA7) -> 0.08297823026 | I67: =IF($J$23="Rural",'2050ER'!Y6,'2050ER'!AA6) -> 0.02232062483 | J67: =IF($J$23="Rural",'2050ER'!Y8,'2050ER'!AA8) -> 0.04511359832 | K67: g/veh/hr
E68: All Trucks | F68: =IF($J$23="Rural",'2050ER'!AI4,'2050ER'!AK4) -> 7177.461415 | G68: =IF($J$23="Rural",'2050ER'!AI5,'2050ER'!AK5) -> 6.349728243 | H68: =IF($J$23="Rural",'2050ER'!AI7,'2050ER'!AK7) -> 5.680519438 | I68: =IF($J$23="Rural",'2050ER'!AI6,'2050ER'!AK6) -> 0.1454390096 | J68: =IF($J$23="Rural",'2050ER'!AI8,'2050ER'!AK8) -> 0.6593006868
C70: ="ANALYSIS YEAR EMISSION FACTORS ("&s25_ScenarioYear&")" -> ANALYSIS YEAR EMISSION FACTORS (2024)
C71: Description | F71: Pollutant | K71: Units
C72: Time Periods | D72: Operating Mode | E72: Vehicle Type | F72: GHG (CO2) | G72: PM-Related NOX | H72: NOX | I72: PM2.5 | J72: VOC
C73: All | D73: Idling | E73: Light Duty Vehicles | F73: =F61-$J$39*(F61-F67) -> 3182.798566 | G73: 0.6761886391 | H73: 1.56654735 | I73: 0.0450479351 | J73: 0.6986733236 | K73: g/veh/hr
E74: All Trucks | F74: 7532.175486 | G74: 25.36400372 | H74: 22.6896972 | I74: 1.1931799 | J74: 3.821530451
C76: RESULTS
C77: Delay/VMT Impact
C78: Description | J78: Value | K78: Units
C79: Reduction in Annual Vehicle Hours of Delay | J79: =J55 -> 1099.358974 | K79: hours
C81: TOTAL EMISSION REDUCTION
C82: Description | F82: Pollutant | K82: Units
F83: GHG (CO2) | G83: PM-Related NOX | H83: NOX | I83: PM2.5 | J83: VOC
C84: Total Annual Reductions | F84: =IFERROR(( F73*$J$53+F74*$J$54 )/1000,"-") -> 3738.114495 | G84: =IFERROR(( G73*$J$53+G74*$J$54 )/1000,"-") -> 2.100412602 | H84: =IFERROR(( H73*$J$53+H74*$J$54 )/1000,"-") -> 2.883294106 | I84: =IFERROR(( I73*$J$53+I74*$J$54 )/1000,"-") -> 0.1126343107 | J84: =IFERROR(( J73*$J$53+J74*$J$54 )/1000,"-") -> 0.9397498389 | K84: kg/year
F85: =IFERROR(CONVERT( F73*$J$53+F74*$J$54, "g","ton"),"-") -> 4.120565889 | G85: =IFERROR(CONVERT( G73*$J$53+G74*$J$54, "g","ton"),"-") -> 0.002315308569 | H85: =IFERROR(CONVERT( H73*$J$53+H74*$J$54, "g","ton"),"-") -> 0.003178287706 | I85: =IFERROR(CONVERT( I73*$J$53+I74*$J$54, "g","ton"),"-") -> 0.0001241580747 | J85: =IFERROR(CONVERT( J73*$J$53+J74*$J$54, "g","ton"),"-") -> 0.001035896877 | K85: short tons/year
C86: Total Daily Reductions | F86: =IFERROR(( F73*$J$50+F74*$J$51 )/1000,"-") -> 14.95245798 | G86: =IFERROR(( G73*$J$50+G74*$J$51 )/1000,"-") -> 0.008401650409 | H86: =IFERROR(( H73*$J$50+H74*$J$51 )/1000,"-") -> 0.01153317642 | I86: =IFERROR(( I73*$J$50+I74*$J$51 )/1000,"-") -> 0.0004505372429 | J86: =IFERROR(( J73*$J$50+J74*$J$51 )/1000,"-") -> 0.003758999355 | K86: kg/day
F87: =IFERROR(CONVERT( F73*$J$50+F74*$J$51, "g","ton"),"-") -> 0.01648226356 | G87: =IFERROR(CONVERT( G73*$J$50+G74*$J$51, "g","ton"),"-") -> 9.261234276e-06 | H87: =IFERROR(CONVERT( H73*$J$50+H74*$J$51, "g","ton"),"-") -> 1.271315082e-05 | I87: =IFERROR(CONVERT( I73*$J$50+I74*$J$51, "g","ton"),"-") -> 4.966322988e-07 | J87: =IFERROR(CONVERT( J73*$J$50+J74*$J$51, "g","ton"),"-") -> 4.143587507e-06 | K87: short tons/day

Sheet 2.6 DDI
E3: 2.6 - Diverging Diamond Interchange
C6: PROJECT INFORMATION
C7: Project Title | F7: Diverging Diamond Interchange on XXX street
C8: Project ID | F8: XXX-XXX-XXXX
C9: Project Location | F9: Atlanta
C10: Project Year | F10: 2019
C11: Project Cost | F11: 2500
C12: Metropolitan Area | F12: Atlanta
C13: County (optional) | F13: Fulton County
C14: Project Description: | F14: This project is XXXXXXXXXXX.
C19: INPUTS
C20: Data Type | D20: Turning Movements | E20: Morning Peak | G20: Evening Peak | I20: Off-Peak | K20: Units
E21: Before | F21: After DDI | G21: Before | H21: After DDI | I21: Before | J21: After DDI
C22: Scenario Year | D22: All | E22: 2024 | K22: -
C23: Area Type | E23: Urban | K23: -
C24: Truck Percentage | E24: 13 | G24: 13 | I24: 13 | K24: percent
C25: Hourly Volume | D25: 1 | E25: 1695 | G25: 1695 | I25: 376.6666667 | K25: veh/hr
D26: 2 | E26: 675 | G26: 675 | I26: 150
D27: 3 | E27: 525 | G27: 525 | I27: 116.6666667
D28: 4 | E28: 1170 | G28: 1170 | I28: 260
D29: 5 | E29: 930 | G29: 930 | I29: 206.6666667
D30: 6 | E30: 440 | G30: 440 | I30: 97.77777778
D31: 7 | E31: 810 | G31: 810 | I31: 180
D32: 8 | E32: 1505 | G32: 1505 | I32: 334.4444444
D33: 9 | E33: 1290 | G33: 1290 | I33: 286.6666667
D34: 10 | E34: 1035 | G34: 1035 | I34: 230
D35: 11 | E35: 365 | G35: 365 | I35: 81.11111111
D36: 12 | E36: 260 | G36: 260 | I36: 57.77777778
D37: 13 | E37: 140 | G37: 140 | I37: 31.11111111
D38: 14 | E38: 1450 | G38: 1450 | I38: 322.2222222
D39: 15 | E39: 1485 | G39: 1485 | I39: 330
D40: 16 | E40: 0 | G40: 0 | I40: 0
C41: Delay | D41: 1 | E41: 43.1 | F41: 1.8 | G41: 43.1 | H41: 1.8 | I41: 43.1 | J41: 1.8 | K41: sec/veh
D42: 2 | E42: 0 | F42: 0 | G42: 0 | H42: 0 | I42: 0 | J42: 0
D43: 3 | E43: 58.7 | F43: 0 | G43: 58.7 | H43: 0 | I43: 58.7 | J43: 0
D44: 4 | E44: 15.9 | F44: 13.2 | G44: 15.9 | H44: 13.2 | I44: 15.9 | J44: 13.2
D45: 5 | E45: 49 | F45: 2.6 | G45: 49 | H45: 2.6 | I45: 49 | J45: 2.6
D46: 6 | E46: 0 | F46: 0 | G46: 0 | H46: 0 | I46: 0 | J46: 0
D47: 7 | E47: 0 | F47: 0 | G47: 0 | H47: 0 | I47: 0 | J47: 0
D48: 8 | E48: 37.5 | F48: 2.6 | G48: 37.5 | H48: 2.6 | I48: 37.5 | J48: 2.6
D49: 9 | E49: 32.7 | F49: 1 | G49: 32.7 | H49: 1 | I49: 32.7 | J49: 1
D50: 10 | E50: 0 | F50: 0 | G50: 0 | H50: 0 | I50: 0 | J50: 0
D51: 11 | E51: 68.9 | F51: 0 | G51: 68.9 | H51: 0 | I51: 68.9 | J51: 0
D52: 12 | E52: 41.8 | F52: 13.5 | G52: 41.8 | H52: 13.5 | I52: 41.8 | J52: 13.5
D53: 13 | E53: 40.2 | F53: 67.4 | G53: 40.2 | H53: 67.4 | I53: 40.2 | J53: 67.4
D54: 14 | E54: 27.5 | F54: 0.3 | G54: 27.5 | H54: 0.3 | I54: 27.5 | J54: 0.3
D55: 15 | E55: 44 | F55: 0.3 | G55: 44 | H55: 0.3 | I55: 44 | J55: 0.3
D56: 16 | E56: 0 | F56: 0 | G56: 0 | H56: 0 | I56: 0 | J56: 0
C58: CONSTANTS
C59: Data Type | J59: Value | K59: Units
C60: Hours in Morning Peak Period | J60: ='Parameters&Source'!B8 -> 3 | K60: hours
C61: Hours in Evening Peak Period | J61: ='Parameters&Source'!B9 -> 3 | K61: hours
C62: Number of Weekdays per Year | J62: ='Parameters&Source'!B10 -> 250 | K62: days
C64: INTERMEDIATE RESULTS
C65: Data Type | H65: Morning Peak | I65: Evening Peak | J65: Off-Peak | K65: Units
C66: Hours | H66: 3 | I66: =J61 -> 3 | J66: =24-H66-I66 -> 18 | K66: hours
C67: Emission Rates Interpolation Factor | H67: =(E22-ps_erBaseYear1)/(ps_erBaseYear2-ps_erBaseYear1) -> 0.1333333333 | K67: -
C69: ACTIVITY OUTPUTS
C70: Data Type | H70: Morning Peak | I70: Evening Peak | J70: Off-Peak | K70: Units
C71: Reduction in Daily Vehicle Hours of Delay - Light Duty Vehicles | H71: =(SUMPRODUCT(E25:E40,E41:E56)-SUMPRODUCT(E25:E40,F41:F56))/3600*(1-E24/100)*J60 -> 270.8473125 | I71: =(SUMPRODUCT(G25:G40,G41:G56)-SUMPRODUCT(G25:G40,H41:H56))/3600*(1-G24/100)*J61 -> 270.8473125 | J71: =(SUMPRODUCT(I25:I40,I41:I56)-SUMPRODUCT(I25:I40,J41:J56))/3600*(1-I24/100)*J66 -> 361.12975 | K71: hours
C72: Reduction in Daily Vehicle Hours of Delay - All Trucks | H72: =(SUMPRODUCT(E25:E40,E41:E56)-SUMPRODUCT(E25:E40,F41:F56))/3600*(E24/100)*J60 -> 40.4714375 | I72: =(SUMPRODUCT(G25:G40,G41:G56)-SUMPRODUCT(G25:G40,H41:H56))/3600*(G24/100)*J61 -> 40.4714375 | J72: =(SUMPRODUCT(I25:I40,I41:I56)-SUMPRODUCT(I25:I40,J41:J56))/3600*(I24/100)*J66 -> 53.96191667 | K72: hours
C73: Reduction in Daily Vehicle Hours of Delay - Total | H73: =H71+H72 -> 311.31875 | I73: =I71+I72 -> 311.31875 | J73: =J71+J72 -> 415.0916667 | K73: hours
C74: Reduction in Annual Vehicle Hours of Delay - Light Durty Vehicles | H74: =H71*$J$62 -> 67711.82812 | I74: 67711.82812 | J74: 90282.4375 | K74: hours
C75: Reduction in Annual Vehicle Hours of Delay - All Trucks | H75: 10117.85938 | I75: 10117.85938 | J75: 13490.47917 | K75: hours
C76: Reduction in Annual Vehicle Hours of Delay - Total | H76: 77829.6875 | I76: 77829.6875 | J76: 103772.9167 | K76: hours
C79: ="EMISSION FACTORS ("&'Parameters&Source'!B6&")" -> EMISSION FACTORS (2020)
C80: Description | F80: Pollutant | K80: Units
C81: Time Periods | D81: Operating Mode | E81: Vehicle Type | F81: CO2 | G81: PM-Related NOX | H81: NOX | I81: PM2.5 | J81: VOC
C82: All | D82: Idling | E82: Light Duty Vehicles | F82: =IF($H$24="Rural",'2020ER'!Y4,'2020ER'!AA4) -> 3364.435327 | G82: =IF($H$24="Rural",'2020ER'!Y5,'2020ER'!AA5) -> 0.7744377926 | H82: =IF($H$24="Rural",'2020ER'!Y7,'2020ER'!AA7) -> 1.794788753 | I82: =IF($H$24="Rural",'2020ER'!Y6,'2020ER'!AA6) -> 0.04854444437 | J82: =IF($H$24="Rural",'2020ER'!Y8,'2020ER'!AA8) -> 0.7992209736 | K82: g/veh/hr
E83: All Trucks | F83: =IF($H$24="Rural",'2020ER'!AI4,'2020ER'!AK4) -> 7586.746881 | G83: =IF($H$24="Rural",'2020ER'!AI5,'2020ER'!AK5) -> 28.28927687 | H83: =IF($H$24="Rural",'2020ER'!AI7,'2020ER'!AK7) -> 25.30649378 | I83: =IF($H$24="Rural",'2020ER'!AI6,'2020ER'!AK6) -> 1.354370807 | J83: =IF($H$24="Rural",'2020ER'!AI8,'2020ER'!AK8) -> 4.308027338
C85: ="EMISSION FACTORS ("&'Parameters&Source'!B7&")" -> EMISSION FACTORS (2050)
C86: Description | F86: Pollutant | K86: Units
C87: Time Periods | D87: Operating Mode | E87: Vehicle Type | F87: CO2 | G87: PM-Related NOX | H87: NOX | I87: PM2.5 | J87: VOC
C88: All | D88: Idling | E88: Light Duty Vehicles | F88: =IF($H$24="Rural",'2050ER'!Y4,'2050ER'!AA4) -> 2002.159623 | G88: =IF($H$24="Rural",'2050ER'!Y5,'2050ER'!AA5) -> 0.03756914139 | H88: =IF($H$24="Rural",'2050ER'!Y7,'2050ER'!AA7) -> 0.08297823026 | I88: =IF($H$24="Rural",'2050ER'!Y6,'2050ER'!AA6) -> 0.02232062483 | J88: =IF($H$24="Rural",'2050ER'!Y8,'2050ER'!AA8) -> 0.04511359832 | K88: g/veh/hr
E89: All Trucks | F89: =IF($H$24="Rural",'2050ER'!AI4,'2050ER'!AK4) -> 7177.461415 | G89: =IF($H$24="Rural",'2050ER'!AI5,'2050ER'!AK5) -> 6.349728243 | H89: =IF($H$24="Rural",'2050ER'!AI7,'2050ER'!AK7) -> 5.680519438 | I89: =IF($H$24="Rural",'2050ER'!AI6,'2050ER'!AK6) -> 0.1454390096 | J89: =IF($H$24="Rural",'2050ER'!AI8,'2050ER'!AK8) -> 0.6593006868
C91: ="ANALYSIS YEAR EMISSION FACTORS ("&E22&")" -> ANALYSIS YEAR EMISSION FACTORS (2024)
C92: Description | F92: Pollutant | K92: Units
C93: Time Periods | D93: Operating Mode | E93: Vehicle Type | F93: CO2 | G93: PM-Related NOX | H93: NOX | I93: PM2.5 | J93: VOC
C94: All | D94: Idling | E94: Light Duty Vehicles | F94: =F82-$H$67*(F82-F88) -> 3182.798566 | G94: 0.6761886391 | H94: 1.56654735 | I94: 0.0450479351 | J94: 0.6986733236 | K94: g/veh/hr
E95: All Trucks | F95: 7532.175486 | G95: 25.36400372 | H95: 22.6896972 | I95: 1.1931799 | J95: 3.821530451
C97: RESULTS
C98: Delay/VMT Impact
C99: Description | J99: Value | K99: Units
C100: Reduction in Annual Vehicle Hours of Delay | J100: =H76+I76+J76 -> 259432.2917 | K100: hours
C102: TOTAL EMISSION REDUCTION
C103: Description | F103: Pollutant | K103: Units
F104: GHG(CO2) | G104: PM-Related NOX | H104: NOX | I104: PM2.5 | J104: VOC
C105: Total Annual Reductions | F105: =( F94*($H$74+$I$74+$J$74)+F95*($H$75+$I$75+$J$75) )/1000 -> 972408.6727 | G105: =( G94*($H$74+$I$74+$J$74)+G95*($H$75+$I$75+$J$75) )/1000 -> 1008.051306 | H105: =( H94*($H$74+$I$74+$J$74)+H95*($H$75+$I$75+$J$75) )/1000 -> 1118.816502 | I105: =( I94*($H$74+$I$74+$J$74)+I95*($H$75+$I$75+$J$75) )/1000 -> 50.40901494 | J105: =( J94*($H$74+$I$74+$J$74)+J95*($H$75+$I$75+$J$75) )/1000 -> 286.580519 | K105: kg/year
F106: =CONVERT( F94*($H$74+$I$74+$J$74)+F95*($H$75+$I$75+$J$75), "g","ton") -> 1071.897079 | G106: =CONVERT( G94*($H$74+$I$74+$J$74)+G95*($H$75+$I$75+$J$75), "g","ton") -> 1.111186356 | H106: =CONVERT( H94*($H$74+$I$74+$J$74)+H95*($H$75+$I$75+$J$75), "g","ton") -> 1.233284084 | I106: =CONVERT( I94*($H$74+$I$74+$J$74)+I95*($H$75+$I$75+$J$75), "g","ton") -> 0.05556642734 | J106: =CONVERT( J94*($H$74+$I$74+$J$74)+J95*($H$75+$I$75+$J$75), "g","ton") -> 0.3159009476 | K106: short tons/year
C107: Total Daily Reductions | F107: =( F94*($H$71+$I$71+$J$71)+F95*($H$72+$I$72+$J$72) )/1000 -> 3889.634691 | G107: =( G94*($H$71+$I$71+$J$71)+G95*($H$72+$I$72+$J$72) )/1000 -> 4.032205223 | H107: =( H94*($H$71+$I$71+$J$71)+H95*($H$72+$I$72+$J$72) )/1000 -> 4.475266006 | I107: =( I94*($H$71+$I$71+$J$71)+I95*($H$72+$I$72+$J$72) )/1000 -> 0.2016360597 | J107: =( J94*($H$71+$I$71+$J$71)+J95*($H$72+$I$72+$J$72) )/1000 -> 1.146322076 | K107: kg/day
F108: =CONVERT( F94*($H$71+$I$71+$J$71)+F95*($H$72+$I$72+$J$72), "g","ton") -> 4.287588315 | G108: =CONVERT( G94*($H$71+$I$71+$J$71)+G95*($H$72+$I$72+$J$72), "g","ton") -> 0.004444745426 | H108: =CONVERT( H94*($H$71+$I$71+$J$71)+H95*($H$72+$I$72+$J$72), "g","ton") -> 0.004933136338 | I108: =CONVERT( I94*($H$71+$I$71+$J$71)+I95*($H$72+$I$72+$J$72), "g","ton") -> 0.0002222657093 | J108: =CONVERT( J94*($H$71+$I$71+$J$71)+J95*($H$72+$I$72+$J$72), "g","ton") -> 0.00126360379 | K108: short tons/day

Sheet 3.1 Transit-Transit Technology
E3: 3.1 - New Transit Service and/or Transit Technology
C6: PROJECT INFORMATION
C7: Project Title | F7: New Transit on XXX street
C8: Project ID | F8: XXX-XXX-XXXX
C9: Project Location | F9: Atlanta
C10: Project Year | F10: 2011
C11: Project Cost | F11: 2500
C12: Metropolitan Area | F12: Atlanta
C13: County (optional) | F13: Fulton County
C14: Project Description: | F14: This project is XXXXXXXXXXX.
C19: INPUTS
C20: Data Type | H20: Morning Peak | I20: Evening Peak | J20: Off-Peak | K20: Units
C21: Scenario Year | H21: 2024 | K21: -
C22: Type of New/Currrent Transit Service | H22: CNG_Transit_Bus | K22: -
C23: Road Type | H23: Urban Unrestricted Access | K23: -
C24: Average Headways | H24: 15 | I24: 15 | J24: 15 | K24: minutes
C25: Transit Corridor Length (one direction) | H25: 10 | K25: miles
C26: Average Rider Trip Length | H26: 16 | K26: miles
C27: Hours of Transit Service | H27: 3 | I27: 3 | J27: 12 | K27: hours
C28: Is Real-Time Information (RTI) Available | H28: Yes | I28: Yes | J28: Yes | K28: -
C29: Average Speed along the Transit Corridor | H29: 35 | I29: 35 | J29: 35 | K29: mph
C30: Estimated Hourly Transit Ridership without RTI | H30: 1000 | I30: 1000 | J30: 1000 | K30: riders/hour
C32: CONSTANTS
C33: Data Type | J33: Value | K33: Units
C34: Light Duty Vehicles Occupancy | J34: =ps_autoOccupancy -> 1.2 | K34: -
C35: Number of Weekdays per Year | J35: =ps_wkdaysPerYear -> 250 | K35: days
C36: Percent of Totral Travel Time Spent Waiting without RTI | J36: =ps31_percntTltTravTimeWaitingNoRti -> 25.52742616 | K36: percent
C37: Percent of Totral Travel Time Spent Waiting with RTI | J37: =ps31_percntTltTravTimeWaitingWithRti -> 21.30801688 | K37: percent
C38: Wait Time Elasticity | J38: =ps31_waitTimeElasticity -> -0.54 | K38: -
C40: INTERMEDIATE RESULTS
C41: Data Type | H41: Morning Peak | I41: Evening Peak | J41: Off-Peak | K41: Units
C42: Emission Rates Interpolation Factor | H42: =(H21-ps_erBaseYear1)/(ps_erBaseYear2-ps_erBaseYear1) -> 0.1333333333 | K42: -
C43: Increased Transit Ridership due to RTI in the Period | H43: =IF(H28="Yes",($J$37/100-$J$36/100)*$J$38*H30*H27,0) -> 68.35443038 | I43: =IF(I28="Yes",($J$37/100-$J$36/100)*$J$38*I30*I27,0) -> 68.35443038 | J43: =IF(J28="Yes",($J$37/100-$J$36/100)*$J$38*J30*J27,0) -> 273.4177215 | K43: riders
C44: Final Transit Ridership in the Period | H44: =H30*H27+H43 -> 3068.35443 | I44: =I30*I27+I43 -> 3068.35443 | J44: =J30*J27+J43 -> 12273.41772 | K44: riders
C45: Reduction in Light Duty Vehicles Trips in the Period due to RTI | H45: =H43/$J$34 -> 56.96202532 | I45: =I43/$J$34 -> 56.96202532 | J45: =J43/$J$34 -> 227.8481013 | K45: trips
C46: Reduction in Light Duty Vehicles VMT in the Period due to RTI | H46: =H45*$H$26 -> 911.3924051 | I46: =I45*$H$26 -> 911.3924051 | J46: =J45*$H$26 -> 3645.56962 | K46: veh miles
C47: Reduction in Light Duty Vehicles Trips in the Period | H47: =H44/$J$34 -> 2556.962025 | I47: =I44/$J$34 -> 2556.962025 | J47: =J44/$J$34 -> 10227.8481 | K47: trips
C48: Reduction in Light Duty Vehicles VMT in the Period | H48: =H47*$H$26 -> 40911.39241 | I48: =I47*$H$26 -> 40911.39241 | J48: =J47*$H$26 -> 163645.5696 | K48: veh miles
C49: Increase in Transit Trips in the Period | H49: =(H27*60)/H24*2 -> 24 | I49: =(I27*60)/I24*2 -> 24 | J49: =(J27*60)/J24*2 -> 96 | K49: trips
C50: Increase in Transit VMT in the Period | H50: =H49*$H25 -> 240 | I50: =I49*$H25 -> 240 | J50: =J49*$H25 -> 960 | K50: veh miles
C52: ACTIVITY OUTPUTS
C53: Data Type | H53: Morning Peak | I53: Evening Peak | J53: Off-Peak | K53: Units
C54: Reduction in Annual trips due to RTI - Light Duty Vehicles | H54: =H45*$J$35 -> 14240.50633 | I54: 14240.50633 | J54: 56962.02532 | K54: trips
C55: Reduction in Annual VMT due to RTI - Light Duty Vehicles | H55: 227848.1013 | I55: 227848.1013 | J55: 911392.4051 | K55: veh miles
C56: Reduction in Annual trips - Light Duty Vehicles | H56: 639240.5063 | I56: 639240.5063 | J56: 2556962.025 | K56: trips
C57: Reduction in Annual VMT - Light Duty Vehicles | H57: 10227848.1 | I57: 10227848.1 | J57: 40911392.41 | K57: veh miles
C58: Increase in Annual Transit Trips | H58: 6000 | I58: 6000 | J58: 24000 | K58: trips
C59: Increase in Annual Transit VMT | H59: 60000 | I59: 60000 | J59: 240000 | K59: veh miles
C62: ="EMISSION FACTORS ("&'Parameters&Source'!B6&")" -> EMISSION FACTORS (2020)
C63: Description | F63: Pollutant | K63: Units
C64: Time Periods | D64: Operating Mode | E64: Vehicle Type | F64: CO2 | G64: PM-Related NOX | H64: NOX | I64: PM2.5 | J64: VOC
C65: Morning Peak | D65: Running | E65: Light Duty Vehicles | F65: =IF($H$23="Urban Unrestricted Access", VLOOKUP($H$29,'2020ER'!$D$4:$H$19,5,FALSE),VLOOKUP($H$29,'2020ER'!$D$4:$H$19,3,FALSE)) -> 339.3521326 | G65: =IF($H$23="Urban Unrestricted Access", VLOOKUP($H$29,'2020ER'!$D$20:$H$35,5,FALSE),VLOOKUP($H$29,'2020ER'!$D$20:$H$35,3,FALSE)) -> 0.1845072209 | H65: =IF($H$23="Urban Unrestricted Access", VLOOKUP($H$29,'2020ER'!$D$52:$H$67,5,FALSE),VLOOKUP($H$29,'2020ER'!$D$52:$H$67,3,FALSE)) -> 0.1769743263 | I65: =IF($H$23="Urban Unrestricted Access", VLOOKUP($H$29,'2020ER'!$D$36:$H$51,5,FALSE),VLOOKUP($H$29,'2020ER'!$D$36:$H$51,3,FALSE)) -> 0.004614026308 | J65: =IF($H$23="Urban Unrestricted Access", VLOOKUP($H$29,'2020ER'!$D$68:$H$83,5,FALSE),VLOOKUP($H$29,'2020ER'!$D$68:$H$83,3,FALSE)) -> 0.09861167047 | K65: g/veh/mile
E66: Transit Vehicles | F66: =INDEX('Transit-AltFuelER'!$F$24:$L$34,2,MATCH($H22,'Transit-AltFuelER'!$F$24:$L$24,0)) -> 1293.6015 | G66: =INDEX('Transit-AltFuelER'!$F$24:$L$34,3,MATCH($H22,'Transit-AltFuelER'!$F$24:$L$24,0)) -> 1.461 | H66: =INDEX('Transit-AltFuelER'!$F$24:$L$34,5,MATCH($H22,'Transit-AltFuelER'!$F$24:$L$24,0)) -> 1.461037218 | I66: =INDEX('Transit-AltFuelER'!$F$24:$L$34,4,MATCH($H22,'Transit-AltFuelER'!$F$24:$L$24,0)) -> 0.0044 | J66: =INDEX('Transit-AltFuelER'!$F$24:$L$34,6,MATCH($H22,'Transit-AltFuelER'!$F$24:$L$24,0)) -> 0.235651121
D67: Start | E67: Light Duty Vehicles | F67: =IF($H$23="Urban Unrestricted Access",'2020ER'!AT4,'2020ER'!AR4) -> 110.1889095 | G67: =IF($H$23="Urban Unrestricted Access",'2020ER'!AT5,'2020ER'!AR5) -> 0.7136813104 | H67: =IF($H$23="Urban Unrestricted Access",'2020ER'!AT7,'2020ER'!AR7) -> 0.6753048401 | I67: =IF($H$23="Urban Unrestricted Access",'2020ER'!AT6,'2020ER'!AR6) -> 0.01130124699 | J67: =IF($H$23="Urban Unrestricted Access",'2020ER'!AT8,'2020ER'!AR8) -> 0.7574478625 | K67: g/start
E68: Transit Vehicles | F68: =INDEX('Transit-AltFuelER'!$F$37:$K$47,2,MATCH($H22,'Transit-AltFuelER'!$F$37:$K$37,0)) -> 282.0484745 | G68: =INDEX('Transit-AltFuelER'!$F$37:$K$47,3,MATCH($H22,'Transit-AltFuelER'!$F$37:$K$37,0)) -> 0 | H68: =INDEX('Transit-AltFuelER'!$F$37:$K$47,5,MATCH($H22,'Transit-AltFuelER'!$F$37:$K$37,0)) -> 0 | I68: =INDEX('Transit-AltFuelER'!$F$37:$K$47,4,MATCH($H22,'Transit-AltFuelER'!$F$37:$K$37,0)) -> 0 | J68: =INDEX('Transit-AltFuelER'!$F$37:$K$47,6,MATCH($H22,'Transit-AltFuelER'!$F$37:$K$37,0)) -> 0.0008847150245
C69: Evening Peak | D69: Running | E69: Light Duty Vehicles | F69: =IF($H$23="Urban Unrestricted Access", VLOOKUP($I$29,'2020ER'!$D$4:$H$19,5,FALSE),VLOOKUP($I$29,'2020ER'!$D$4:$H$19,3,FALSE)) -> 339.3521326 | G69: =IF($H$23="Urban Unrestricted Access", VLOOKUP($I$29,'2020ER'!$D$20:$H$35,5,FALSE),VLOOKUP($I$29,'2020ER'!$D$20:$H$35,3,FALSE)) -> 0.1845072209 | H69: =IF($H$23="Urban Unrestricted Access", VLOOKUP($I$29,'2020ER'!$D$52:$H$67,5,FALSE),VLOOKUP($I$29,'2020ER'!$D$52:$H$67,3,FALSE)) -> 0.1769743263 | I69: =IF($H$23="Urban Unrestricted Access", VLOOKUP($I$29,'2020ER'!$D$36:$H$51,5,FALSE),VLOOKUP($I$29,'2020ER'!$D$36:$H$51,3,FALSE)) -> 0.004614026308 | J69: =IF($H$23="Urban Unrestricted Access", VLOOKUP($I$29,'2020ER'!$D$68:$H$83,5,FALSE),VLOOKUP($I$29,'2020ER'!$D$68:$H$83,3,FALSE)) -> 0.09861167047 | K69: g/veh/mile
E70: Transit Vehicles | F70: =F66 -> 1293.6015 | G70: =G66 -> 1.461 | H70: 1.461037218 | I70: 0.0044 | J70: 0.235651121 | K70: g/veh/mile
D71: Start | E71: Light Duty Vehicles | F71: =F67 -> 110.1889095 | G71: 0.7136813104 | H71: 0.6753048401 | I71: 0.01130124699 | J71: 0.7574478625 | K71: g/start
E72: Transit Vehicles | F72: =F68 -> 282.0484745 | G72: 0 | H72: 0 | I72: 0 | J72: 0.0008847150245 | K72: g/start
C73: Off-Peak | D73: Running | E73: Light Duty Vehicles | F73: =IF($H$23="Urban Unrestricted Access", VLOOKUP($J$29,'2020ER'!$D$4:$H$19,5,FALSE),VLOOKUP($J$29,'2020ER'!$D$4:$H$19,3,FALSE)) -> 339.3521326 | G73: =IF($H$23="Urban Unrestricted Access", VLOOKUP($J$29,'2020ER'!$D$20:$H$35,5,FALSE),VLOOKUP($J$29,'2020ER'!$D$20:$H$35,3,FALSE)) -> 0.1845072209 | H73: =IF($H$23="Urban Unrestricted Access", VLOOKUP($J$29,'2020ER'!$D$52:$H$67,5,FALSE),VLOOKUP($J$29,'2020ER'!$D$52:$H$67,3,FALSE)) -> 0.1769743263 | I73: =IF($H$23="Urban Unrestricted Access", VLOOKUP($J$29,'2020ER'!$D$36:$H$51,5,FALSE),VLOOKUP($J$29,'2020ER'!$D$36:$H$51,3,FALSE)) -> 0.004614026308 | J73: =IF($H$23="Urban Unrestricted Access", VLOOKUP($J$29,'2020ER'!$D$68:$H$83,5,FALSE),VLOOKUP($J$29,'2020ER'!$D$68:$H$83,3,FALSE)) -> 0.09861167047 | K73: g/veh/mile
E74: Transit Vehicles | F74: =F70 -> 1293.6015 | G74: =G70 -> 1.461 | H74: =H70 -> 1.461037218 | I74: =I70 -> 0.0044 | J74: =J70 -> 0.235651121 | K74: g/veh/mile
D75: Start | E75: Light Duty Vehicles | F75: =F67 -> 110.1889095 | G75: =G67 -> 0.7136813104 | H75: 0.6753048401 | I75: 0.01130124699 | J75: 0.7574478625 | K75: g/start
E76: Transit Vehicles | F76: =F68 -> 282.0484745 | G76: 0 | H76: 0 | I76: 0 | J76: 0.0008847150245
C78: ="EMISSION FACTORS ("&'Parameters&Source'!B7&")" -> EMISSION FACTORS (2050)
C79: Description | F79: Pollutant | K79: Units
C80: Time Periods | D80: Operating Mode | E80: Vehicle Type | F80: CO2 | G80: PM-Related NOX | H80: NOX | I80: PM2.5 | J80: VOC
C81: Morning Peak | D81: Running | E81: Light Duty Vehicles | F81: =IF($H$23="Urban Unrestricted Access", VLOOKUP($H$29,'2050ER'!$D$4:$H$19,5,FALSE),VLOOKUP($H$29,'2050ER'!$D$4:$H$19,3,FALSE)) -> 208.8628597 | G81: =IF($H$23="Urban Unrestricted Access", VLOOKUP($H$29,'2050ER'!$D$20:$H$35,5,FALSE),VLOOKUP($H$29,'2050ER'!$D$20:$H$35,3,FALSE)) -> 0.01780870129 | H81: =IF($H$23="Urban Unrestricted Access", VLOOKUP($H$29,'2050ER'!$D$52:$H$67,5,FALSE),VLOOKUP($H$29,'2050ER'!$D$52:$H$67,3,FALSE)) -> 0.03464866344 | I81: =IF($H$23="Urban Unrestricted Access", VLOOKUP($H$29,'2050ER'!$D$36:$H$51,5,FALSE),VLOOKUP($H$29,'2050ER'!$D$36:$H$51,3,FALSE)) -> 0.002103757855 | J81: =IF($H$23="Urban Unrestricted Access", VLOOKUP($H$29,'2050ER'!$D$68:$H$83,5,FALSE),VLOOKUP($H$29,'2050ER'!$D$68:$H$83,3,FALSE)) -> 0.05827711445 | K81: g/veh/mile
E82: Transit Vehicles | F82: =INDEX('Transit-AltFuelER'!$F$24:$L$34,7,MATCH($H22,'Transit-AltFuelER'!$F$24:$L$24,0)) -> 1215.6689 | G82: =INDEX('Transit-AltFuelER'!$F$24:$L$34,8,MATCH($H22,'Transit-AltFuelER'!$F$24:$L$24,0)) -> 1.2788 | H82: =INDEX('Transit-AltFuelER'!$F$24:$L$34,10,MATCH($H22,'Transit-AltFuelER'!$F$24:$L$24,0)) -> 1.278757467 | I82: =INDEX('Transit-AltFuelER'!$F$24:$L$34,9,MATCH($H22,'Transit-AltFuelER'!$F$24:$L$24,0)) -> 0.0011 | J82: =INDEX('Transit-AltFuelER'!$F$24:$L$34,11,MATCH($H22,'Transit-AltFuelER'!$F$24:$L$24,0)) -> 0.084321738 | K82: g/veh/mile
D83: Start | E83: Light Duty Vehicles | F83: =IF($H$23="Urban Unrestricted Access",'2050ER'!AT4,'2050ER'!AR4) -> 83.22301205 | G83: =IF($H$23="Urban Unrestricted Access",'2050ER'!AT5,'2050ER'!AR5) -> 0.1581436974 | H83: =IF($H$23="Urban Unrestricted Access",'2050ER'!AT7,'2050ER'!AR7) -> 0.2314002319 | I83: =IF($H$23="Urban Unrestricted Access",'2050ER'!AT6,'2050ER'!AR6) -> 0.004553762473 | J83: =IF($H$23="Urban Unrestricted Access",'2050ER'!AT8,'2050ER'!AR8) -> 0.2485014297 | K83: g/start
E84: Transit Vehicles | F84: =INDEX('Transit-AltFuelER'!$F$37:$K$47,7,MATCH($H22,'Transit-AltFuelER'!$F$37:$K$37,0)) -> 282.0484745 | G84: =INDEX('Transit-AltFuelER'!$F$37:$K$47,8,MATCH($H22,'Transit-AltFuelER'!$F$37:$K$37,0)) -> 0 | H84: =INDEX('Transit-AltFuelER'!$F$37:$K$47,10,MATCH($H22,'Transit-AltFuelER'!$F$37:$K$37,0)) -> 0 | I84: =INDEX('Transit-AltFuelER'!$F$37:$K$47,9,MATCH($H22,'Transit-AltFuelER'!$F$37:$K$37,0)) -> 0.002114611 | J84: =INDEX('Transit-AltFuelER'!$F$37:$K$47,11,MATCH($H22,'Transit-AltFuelER'!$F$37:$K$37,0)) -> 0.0008847150245 | K84: g/start
C85: Evening Peak | D85: Running | E85: Light Duty Vehicles | F85: =IF($H$23="Urban Unrestricted Access", VLOOKUP($I$29,'2050ER'!$D$4:$H$19,5,FALSE),VLOOKUP($I$29,'2050ER'!$D$4:$H$19,3,FALSE)) -> 208.8628597 | G85: =IF($H$23="Urban Unrestricted Access", VLOOKUP($I$29,'2050ER'!$D$20:$H$35,5,FALSE),VLOOKUP($I$29,'2050ER'!$D$20:$H$35,3,FALSE)) -> 0.01780870129 | H85: =IF($H$23="Urban Unrestricted Access", VLOOKUP($I$29,'2050ER'!$D$52:$H$67,5,FALSE),VLOOKUP($I$29,'2050ER'!$D$52:$H$67,3,FALSE)) -> 0.03464866344 | I85: =IF($H$23="Urban Unrestricted Access", VLOOKUP($I$29,'2050ER'!$D$36:$H$51,5,FALSE),VLOOKUP($I$29,'2050ER'!$D$36:$H$51,3,FALSE)) -> 0.002103757855 | J85: =IF($H$23="Urban Unrestricted Access", VLOOKUP($I$29,'2050ER'!$D$68:$H$83,5,FALSE),VLOOKUP($I$29,'2050ER'!$D$68:$H$83,3,FALSE)) -> 0.05827711445 | K85: g/veh/mile
E86: Transit Vehicles | F86: =F82 -> 1215.6689 | G86: =G82 -> 1.2788 | H86: 1.278757467 | I86: 0.0011 | J86: 0.084321738 | K86: g/veh/mile
D87: Start | E87: Light Duty Vehicles | F87: =F83 -> 83.22301205 | G87: 0.1581436974 | H87: 0.2314002319 | I87: 0.004553762473 | J87: 0.2485014297 | K87: g/start
E88: Transit Vehicles | F88: =F84 -> 282.0484745 | G88: 0 | H88: 0 | I88: 0.002114611 | J88: 0.0008847150245 | K88: g/start
C89: Off-Peak | D89: Running | E89: Light Duty Vehicles | F89: =IF($H$23="Urban Unrestricted Access", VLOOKUP($J$29,'2050ER'!$D$4:$H$19,5,FALSE),VLOOKUP($J$29,'2050ER'!$D$4:$H$19,3,FALSE)) -> 208.8628597 | G89: =IF($H$23="Urban Unrestricted Access", VLOOKUP($J$29,'2050ER'!$D$20:$H$35,5,FALSE),VLOOKUP($J$29,'2050ER'!$D$20:$H$35,3,FALSE)) -> 0.01780870129 | H89: =IF($H$23="Urban Unrestricted Access", VLOOKUP($J$29,'2050ER'!$D$52:$H$67,5,FALSE),VLOOKUP($J$29,'2050ER'!$D$52:$H$67,3,FALSE)) -> 0.03464866344 | I89: =IF($H$23="Urban Unrestricted Access", VLOOKUP($J$29,'2050ER'!$D$36:$H$51,5,FALSE),VLOOKUP($J$29,'2050ER'!$D$36:$H$51,3,FALSE)) -> 0.002103757855 | J89: =IF($H$23="Urban Unrestricted Access", VLOOKUP($J$29,'2050ER'!$D$68:$H$83,5,FALSE),VLOOKUP($J$29,'2050ER'!$D$68:$H$83,3,FALSE)) -> 0.05827711445 | K89: g/veh/mile
E90: Transit Vehicles | F90: =F86 -> 1215.6689 | G90: =G86 -> 1.2788 | H90: =H86 -> 1.278757467 | I90: =I86 -> 0.0011 | J90: =J86 -> 0.084321738 | K90: g/veh/mile
D91: Start | E91: Light Duty Vehicles | F91: =F83 -> 83.22301205 | G91: =G83 -> 0.1581436974 | H91: 0.2314002319 | I91: 0.004553762473 | J91: 0.2485014297 | K91: g/start
E92: Transit Vehicles | F92: =F84 -> 282.0484745 | G92: 0 | H92: 0 | I92: 0.002114611 | J92: 0.0008847150245 | K92: g/start
C94: ="ANALYSIS YEAR EMISSION FACTORS ("&H21&")" -> ANALYSIS YEAR EMISSION FACTORS (2024)
C95: Description | F95: Pollutant | K95: Units
C96: Time Periods | D96: Operating Mode | E96: Vehicle Type | F96: CO2 | G96: PM-Related NOX | H96: NOX | I96: PM2.5 | J96: VOC
C97: Morning Peak | D97: Running | E97: Light Duty Vehicles | F97: =F65-$H$42*(F65-F81) -> 321.9535629 | G97: =G65-$H$42*(G65-G81) -> 0.1622807516 | H97: =H65-$H$42*(H65-H81) -> 0.1579975712 | I97: =I65-$H$42*(I65-I81) -> 0.004279323848 | J97: =J65-$H$42*(J65-J81) -> 0.09323372967 | K97: g/veh/mile
E98: Transit Vehicles | F98: =F66-$H$42*(F66-F82) -> 1283.210487 | G98: 1.436706667 | H98: 1.436733251 | I98: 0.00396 | J98: 0.2154738699
D99: Start | E99: Light Duty Vehicles | F99: 106.5934565 | G99: 0.6396096287 | H99: 0.616117559 | I99: 0.01040158239 | J99: 0.6895883381 | K99: g/start
E100: Transit Vehicles | F100: 282.0484745 | G100: 0 | H100: 0 | I100: 0.0002819481333 | J100: 0.0008847150245
C101: Evening Peak | D101: Running | E101: Light Duty Vehicles | F101: 321.9535629 | G101: 0.1622807516 | H101: 0.1579975712 | I101: 0.004279323848 | J101: 0.09323372967 | K101: g/veh/mile
E102: Transit Vehicles | F102: 1283.210487 | G102: 1.436706667 | H102: 1.436733251 | I102: 0.00396 | J102: 0.2154738699 | K102: g/veh/mile
D103: Start | E103: Light Duty Vehicles | F103: 106.5934565 | G103: 0.6396096287 | H103: 0.616117559 | I103: 0.01040158239 | J103: 0.6895883381 | K103: g/start
E104: Transit Vehicles | F104: 282.0484745 | G104: 0 | H104: 0 | I104: 0.0002819481333 | J104: 0.0008847150245 | K104: g/start
C105: Off-Peak Period | D105: Running | E105: Light Duty Vehicles | F105: 321.9535629 | G105: 0.1622807516 | H105: 0.1579975712 | I105: 0.004279323848 | J105: 0.09323372967 | K105: g/veh/mile
E106: Transit Vehicles | F106: 1283.210487 | G106: 1.436706667 | H106: 1.436733251 | I106: 0.00396 | J106: 0.2154738699 | K106: g/veh/mile
D107: Start | E107: Light Duty Vehicles | F107: =F75-$H$42*(F75-F91) -> 106.5934565 | G107: 0.6396096287 | H107: 0.616117559 | I107: 0.01040158239 | J107: 0.6895883381 | K107: g/start
E108: Transit Vehicles | F108: 282.0484745 | G108: 0 | H108: 0 | I108: 0.0002819481333 | J108: 0.0008847150245
C110: RESULTS
C111: Delay/VMT Impact
C112: Description | J112: Value | K112: Units
C113: Reduction in Annual Light Duty Vehicle Trips due to RTI | J113: =H54+I54+J54 -> 85443.03797 | K113: trips
C114: Reduction in Annual Light Duty Vehicle Trips | J114: =H56+I56+J56 -> 3835443.038 | K114: trips
C115: Reduction in Annual Light Durty veh miles Traveled due to RTI | J115: =H55+I55+J55 -> 1367088.608 | K115: veh miles traveled
C116: Reduction in Annual veh miles Traveled | J116: =H57+I57+J57 -> 61367088.61 | K116: veh miles traveled
C117: Increase in Annual Transit Vehicle Trips | J117: =H58+I58+J58 -> 36000 | K117: trips
C118: Increase in Annual Transit veh miles Traveled | J118: =H59+I59+J59 -> 360000 | K118: veh miles traveled
C120: TOTAL EMISSION REDUCTION
C121: Emission Type | D121: Description | F121: Pollutant | K121: Units
F122: GHG(CO2) | G122: PM-Related NOX | H122: NOX | I122: PM2.5 | J122: VOC
C123: Running Emissions | D123: Annual Reductions due to RTI | F123: =( F97*$H$55+F101*$I$55+F105*$J$55 )/1000 -> 440139.048 | G123: =( G97*$H$55+G101*$I$55+G105*$J$55 )/1000 -> 221.8521668 | H123: =( H97*$H$55+H101*$I$55+H105*$J$55 )/1000 -> 215.9966796 | I123: =( I97*$H$55+I101*$I$55+I105*$J$55 )/1000 -> 5.85021488 | J123: =( J97*$H$55+J101*$I$55+J105*$J$55 )/1000 -> 127.4587697 | K123: kg/year
F124: =CONVERT( F97*$H$55+F101*$I$55+F105*$J$55, "g","ton") -> 485.170251 | G124: =CONVERT( G97*$H$55+G101*$I$55+G105*$J$55, "g","ton") -> 0.2445501528 | H124: =CONVERT( H97*$H$55+H101*$I$55+H105*$J$55, "g","ton") -> 0.2380955831 | I124: =CONVERT( I97*$H$55+I101*$I$55+I105*$J$55, "g","ton") -> 0.006448758034 | J124: =CONVERT( J97*$H$55+J101*$I$55+J105*$J$55, "g","ton") -> 0.1404992435 | K124: short tons/year
D125: Increased Transit Emissions | F125: =( F98*$H$59+F102*$I$59+F106*$J$59 )/1000 -> 461955.7752 | G125: =( G98*$H$59+G102*$I$59+G106*$J$59 )/1000 -> 517.2144 | H125: =( H98*$H$59+H102*$I$59+H106*$J$59 )/1000 -> 517.2239704 | I125: =( I98*$H$59+I102*$I$59+I106*$J$59 )/1000 -> 1.4256 | J125: =( J98*$H$59+J102*$I$59+J106*$J$59 )/1000 -> 77.57059318 | K125: kg/year
F126: =CONVERT( F98*$H$59+F102*$I$59+F106*$J$59, "g","ton") -> 509.2190761 | G126: =CONVERT( G98*$H$59+G102*$I$59+G106*$J$59, "g","ton") -> 0.5701312833 | H126: =CONVERT( H98*$H$59+H102*$I$59+H106*$J$59, "g","ton") -> 0.5701418329 | I126: =CONVERT( I98*$H$59+I102*$I$59+I106*$J$59, "g","ton") -> 0.001571455005 | J126: =CONVERT( J98*$H$59+J102*$I$59+J106*$J$59, "g","ton") -> 0.08550694225 | K126: short tons/year
D127: Total Annual Reductions (Auto Reduction - Transit Increase) | F127: =( F97*$H$57+F101*$I$57+F105*$J$57 )/1000-F125 -> 19295397.05 | G127: =( G97*$H$57+G101*$I$57+G105*$J$57 )/1000-G125 -> 9441.482864 | H127: =( H97*$H$57+H101*$I$57+H105*$J$57 )/1000-H125 -> 9178.626982 | I127: =( I97*$H$57+I101*$I$57+I105*$J$57 )/1000-I125 -> 261.1840457 | J127: =( J97*$H$57+J101*$I$57+J105*$J$57 )/1000-J125 -> 5643.911957 | K127: kg/year
F128: =CONVERT( F97*$H$57+F101*$I$57+F105*$J$57, "g","ton")-F126 -> 21269.53441 | G128: =CONVERT( G97*$H$57+G101*$I$57+G105*$J$57, "g","ton")-G126 -> 10.40745335 | H128: =CONVERT( H97*$H$57+H101*$I$57+H105*$J$57, "g","ton")-H126 -> 10.11770434 | I128: =CONVERT( I97*$H$57+I101*$I$57+I105*$J$57, "g","ton")-I126 -> 0.2879061279 | J128: =CONVERT( J97*$H$57+J101*$I$57+J105*$J$57, "g","ton")-J126 -> 6.221347988 | K128: short tons/year
D129: Total Daily Reductions (Auto Reduction - Transit Increase) | F129: =F127/$J$35 -> 77181.58818 | G129: 37.76593145 | H129: 36.71450793 | I129: 1.044736183 | J129: 22.57564783 | K129: kg/day
F130: 85.07813765 | G130: 0.04162981341 | H130: 0.04047081736 | I130: 0.001151624511 | J130: 0.02488539195 | K130: short tons/day
C131: Start Emissions | D131: Annual Reductions due to RTI | F131: =( F99*$H$54+F103*$I$54+F107*$J$54 )/1000 -> 9107.668751 | G131: =( G99*$H$54+G103*$I$54+G107*$J$54 )/1000 -> 54.65018979 | H131: =( H99*$H$54+H103*$I$54+H107*$J$54 )/1000 -> 52.64295599 | I131: =( I99*$H$54+I103*$I$54+I107*$J$54 )/1000 -> 0.8887427988 | J131: =( J99*$H$54+J103*$I$54+J107*$J$54 )/1000 -> 58.92052256 | K131: kg/year
F132: =CONVERT( F99*$H$54+F103*$I$54+F107*$J$54, "g","ton") -> 10.03948628 | G132: =CONVERT( G99*$H$54+G103*$I$54+G107*$J$54, "g","ton") -> 0.06024152235 | H132: =CONVERT( H99*$H$54+H103*$I$54+H107*$J$54, "g","ton") -> 0.05802892583 | I132: =CONVERT( I99*$H$54+I103*$I$54+I107*$J$54, "g","ton") -> 0.0009796712396 | J132: =CONVERT( J99*$H$54+J103*$I$54+J107*$J$54, "g","ton") -> 0.06494875847 | K132: short tons/year
D133: Increased Transit Emissions | F133: =( F100*$H$58+F104*$I$58+F108*$J$58 )/1000 -> 10153.74508 | G133: =( G100*$H$58+G104*$I$58+G108*$J$58 )/1000 -> 0 | H133: =( H100*$H$58+H104*$I$58+H108*$J$58 )/1000 -> 0 | I133: =( I100*$H$58+I104*$I$58+I108*$J$58 )/1000 -> 0.0101501328 | J133: =( J100*$H$58+J104*$I$58+J108*$J$58 )/1000 -> 0.03184974088 | K133: kg/year
F134: =CONVERT( F100*$H$58+F104*$I$58+F108*$J$58, "g","ton") -> 11.19258805 | G134: =CONVERT( G100*$H$58+G104*$I$58+G108*$J$58, "g","ton") -> 0 | H134: =CONVERT( H100*$H$58+H104*$I$58+H108*$J$58, "g","ton") -> 0 | I134: =CONVERT( I100*$H$58+I104*$I$58+I108*$J$58, "g","ton") -> 1.118860619e-05 | J134: =CONVERT( J100*$H$58+J104*$I$58+J108*$J$58, "g","ton") -> 3.510832963e-05 | K134: short tons/year
D135: Total Annual Reductions (Auto Reduction - Transit Increase) | F135: =( F99*$H$56+F103*$I$56+F107*$J$56 )/1000-F133 -> 398679.3855 | G135: =( G99*$H$56+G103*$I$56+G107*$J$56 )/1000-G133 -> 2453.186297 | H135: =( H99*$H$56+H103*$I$56+H107*$J$56 )/1000-H133 -> 2363.083802 | I135: =( I99*$H$56+I103*$I$56+I107*$J$56 )/1000-I133 -> 39.88452661 | J135: =( J99*$H$56+J103*$I$56+J107*$J$56 )/1000-J133 -> 2644.844941 | K135: kg/year
F136: =CONVERT( F99*$H$56+F103*$I$56+F107*$J$56, "g","ton")-F134 -> 439.4687961 | G136: =CONVERT( G99*$H$56+G103*$I$56+G107*$J$56, "g","ton")-G134 -> 2.704175003 | H136: =CONVERT( H99*$H$56+H103*$I$56+H107*$J$56, "g","ton")-H134 -> 2.604854004 | I136: =CONVERT( I99*$H$56+I103*$I$56+I107*$J$56, "g","ton")-I134 -> 0.04396516481 | J136: =CONVERT( J99*$H$56+J103*$I$56+J107*$J$56, "g","ton")-J134 -> 2.915442494 | K136: short tons/year
D137: Total Daily Reductions (Auto Reduction - Transit Increase) | F137: =F135/$J$35 -> 1594.717542 | G137: 9.812745189 | H137: 9.452335209 | I137: 0.1595381064 | J137: 10.57937976 | K137: kg/day
F138: 1.757875184 | G138: 0.01081670001 | H138: 0.01041941602 | I138: 0.0001758606593 | J138: 0.01166176998 | K138: short tons/day

Sheet 3.2 Transit Signal Priority
E3: 3.2 - Transit Signal priority
C6: PROJECT INFORMATION
C7: Project Title | F7: Transit Signal Priority Project on XXX street
C8: Project ID | F8: XXX-XXX-XXXX
C9: Project Location | F9: Atlanta
C10: Project Year | F10: 2011
C11: Project Cost | F11: 2500
C12: Metropolitan Area | F12: Atlanta
C13: County (optional) | F13: Fulton County
C14: Project Description: | F14: This project is XXXXXXXXXXX.
C19: INPUTS
C20: Scenario | D20: Range | E20: Data Type | I20: Morning Peak | J20: Evening Peak | K20: Units
C21: Existing Condition | D21: Intersection | E21: Scenario Year | I21: 2024 | K21: -
E22: Area Type | I22: Suburban | K22: -
E23: Cycle Length | I23: 100 | K23: seconds
D24: Street 1 (where TSP will be implemented) | E24: Facility Type | I24: Principal Arterial Class I | K24: -
E25: Average Number of Lanes (One Direction) | I25: 5 | K25: -
E26: Average Hourly Volume (Both Directions) | I26: 4500 | J26: 4500 | K26: veh/hr
E27: Truck Percentage | I27: 10 | J27: 10 | K27: percent
E28: Effective Green Time to Cycle Time Ratio | I28: 0.5 | J28: 0.5 | K28: -
E29: Average Speed along the Transit Corridor | I29: 35 | J29: 35 | K29: mph
D30: Street 2 | E30: Facility Type | I30: Principal Arterial Class II | K30: -
E31: Average Number of Lanes (One Direction) | I31: 3 | K31: -
E32: Average Hourly Volume (Both Directions) | I32: 2500 | J32: 2500 | K32: veh/hr
E33: Truck Percentage | I33: 9 | J33: 9 | K33: percent
E34: Effective Green Time to Cycle Time Ratio | I34: 0.5 | J34: 0.5 | K34: -
D35: Transit | E35: Average Number of Transit Trips along the Corridor per Hour (both directions) | I35: 8 | J35: 8 | K35: trips
E36: Transit Signal Priority Hours of Service | I36: 5 | J36: 5 | K36: hours
E37: Transit Ridership without TSP | I37: 2.5 | J37: 2.5 | K37: riders/trip
E38: Number of Intersections with TSP in Corridor (Street 1) | I38: 5 | K38: -
E39: Average Corridor Travel Time for Buses (One Direction) | I39: 30 | J39: 30 | K39: minutes
E40: Average Rider Trip Length on the TSP controled Corridor | I40: 16 | K40: miles
C41: Proposed Condition | D41: Intersection | E41: Change in Green Time to Cycle Time Ratio with TSP in direction of Street 1 | I41: 10 | K41: percent
E42: Maximum Green Time Extension + Max Red Time Truncation | I42: 10 | K42: seconds
C44: CONSTANTS
C45: Data Type | J45: Value | K45: Units
C46: Auto Occupancy | J46: ='Parameters&Source'!B12 -> 1.2 | K46: -
C47: Travel Time Elasticity with Respect to Ridership | J47: ='Parameters&Source'!B62 -> -0.4 | K47: -
C48: Number of Weekdays per Year | J48: ='Parameters&Source'!B10 -> 250 | K48: days
C50: INTERMEDIATE RESULTS
C51: Scenario | D51: Range | E51: Data Type | I51: Morning Peak | J51: Evening Peak | K51: Units
C52: General | E52: Emission Rates Interpolation Factor | I52: =(I21-'Parameters&Source'!B6)/('Parameters&Source'!B7-'Parameters&Source'!B6) -> 0.1333333333 | K52: -
C53: Existing Condition | D53: Street 1 | E53: Capacity (One Direction) | I53: =(INDEX(Capacity,MATCH(I24,'Parameters&Source'!$I$4:$I$24,0),MATCH(I22,'Parameters&Source'!$I$4:$R$4,0)))*I25 -> 6000 | K53: veh/hr
E54: v/c Ratio | I54: =I26/$I53/2 -> 0.375 | J54: =J26/$I53/2 -> 0.375 | K54: -
E55: Delay per Vehicle per Intersection | I55: =0.5*$I23*(1-I28)^2/(1-MIN(1,I54)*I28) -> 15.38461538 | J55: =0.5*$I23*(1-J28)^2/(1-MIN(1,J54)*J28) -> 15.38461538 | K55: sec/veh
E56: Delay per Vehicle along the Corridor | I56: =$I38*I55/60 -> 1.282051282 | J56: =$I38*J55/60 -> 1.282051282 | K56: min/veh
D57: Street 2 | E57: Capacity (One Direction) | I57: =(INDEX(Capacity,MATCH(I30,'Parameters&Source'!I4:I24,0),MATCH(I22,'Parameters&Source'!I4:R4,0)))*I31 -> 3000 | K57: veh/hr
E58: v/c Ratio | I58: =I32/$I57/2 -> 0.4166666667 | J58: =J32/$I57/2 -> 0.4166666667 | K58: -
E59: Delay per Vehicle per Intersection | I59: =0.5*$I23*(1-I34)^2/(1-MIN(1,I58)*I34) -> 15.78947368 | J59: =0.5*$I23*(1-J34)^2/(1-MIN(1,J58)*J34) -> 15.78947368 | K59: sec/veh
D60: Intersection | E60: Intersection Delay | I60: =(I55*I26+I59*I32)/3600 -> 30.19568151 | J60: =(J55*J26+J59*J32)/3600 -> 30.19568151 | K60: hours
C61: Proposed Condition | D61: Street 1 | E61: Effective Green Time to Cycle Time Ratio | I61: =IF($I41=0,$I42/I23+I28,$I41/100+I28) -> 0.6 | J61: =IF($I41=0,$I42/I23+J28,$I41/100+J28) -> 0.6 | K61: -
E62: Delay per Vehicle per Intersection | I62: =0.5*$I23*(1-I61)^2/(1-MIN(1,I54)*I61) -> 10.32258065 | J62: =0.5*$I23*(1-J61)^2/(1-MIN(1,J54)*J61) -> 10.32258065 | K62: sec/veh
E63: Delay per Transit Vehicle along the Corridor | I63: =$I38*I62/60 -> 0.8602150538 | J63: =$I38*J62/60 -> 0.8602150538 | K63: min/veh
E64: Probability of Transit Vehicle Arriving during a Cycle | I64: =I35/2/(3600/(I23+I42))*100 -> 12.22222222 | J64: =J35/2/(3600/(I23+I42))*100 -> 12.22222222 | K64: percent
D65: Street 2 | E65: Effective Green Time to Cycle Time Ratio | I65: =1-I61 -> 0.4 | J65: =1-J61 -> 0.4 | K65: -
E66: Delay per Vehicle per Intersection | I66: =0.5*$I23*(1-I65)^2/(1-MIN(1,I58)*I65) -> 21.6 | J66: =0.5*$I23*(1-J65)^2/(1-MIN(1,J58)*J65) -> 21.6 | K66: sec/veh
D67: Transit | E67: Travel Time Saving Percentage per Trip | I67: =((I39-(I56-I63))-I39)/I39*100 -> -1.406120761 | J67: =((J39-(J56-J63))-J39)/J39*100 -> -1.406120761 | K67: percent
E68: Final Ridership per Transit Vehicle due to Travel Time Saving | I68: =(1+I67/100*$J$47)*I37 -> 2.514061208 | J68: =(1+J67/100*$J$47)*J37 -> 2.514061208 | K68: riders/trip
D69: Intersection | E69: Intersection Delay | I69: =(I62*I26+I66*I32)/3600 -> 27.90322581 | J69: =(J62*J26+J66*J32)/3600 -> 27.90322581 | K69: hours
C71: ACTIVITY OUTPUTS
C72: Data Type | I72: Morning Peak | J72: Evening Peak | K72: Units
C73: Reduction in Daily Transit Vehicle Hours of Delay along the TSP Corridor - Buses on Street 1 | I73: =I35*I36*(I56-I63)/60 -> 0.2812241522 | J73: =J35*J36*(J56-J63)/60 -> 0.2812241522 | K73: hours
C74: Reduction in Daily Other Vehicle Hours of Delay along the TSP Corridor - Light Duty Vehicles on Street 1 | I74: =(I26-I26*I27/100-I35)*I36*(I56-I63)/60*I$64/100 -> 17.36637258 | J74: =(J26-J26*J27/100-J35)*J36*(J56-J63)/60*J64/100 -> 17.36637258 | K74: hours
C75: Reduction in Daily Other Vehicle Hours of Delay along the TSP Corridor - All Trucks on Street 1 | I75: =(I26*I27/100)*I36*(I56-I63)/60*I$64/100 -> 1.933416046 | J75: =(J26*J27/100)*J36*(J56-J63)/60*J$64/100 -> 1.933416046 | K75: hours
C76: Reduction in Daily Other Vehicle Hours of Delay cross the TSP Corridor - Light Duty Vehicles on Street 2 | I76: =(I32-I32*I33/100)*I36*(I59-I66)/3600*$I38*I$64/100 -> -11.21978558 | J76: =(J32-J32*J33/100)*J36*(J59-J66)/3600*$I38*J$64/100 -> -11.21978558 | K76: hours
C77: Reduction in Daily Other Vehicle Hours of Delay cross the TSP Corridor - All Trucks on Street 2 | I77: =(I32*I33/100)*I36*(I59-I66)/3600*$I38*I$64/100 -> -1.109649123 | J77: =(J32*J33/100)*J36*(J59-J66)/3600*$I38*J$64/100 -> -1.109649123 | K77: hours
C78: Net Reduction in Daily Other Vehicle Hours of Delay - Light Duty Vehicles | I78: =I74+I76 -> 6.146587001 | J78: =J74+J76 -> 6.146587001 | K78: hours
C79: Net Reduction in Daily Other Vehicle Hours of Delay - All Trucks | I79: =I75+I77 -> 0.8237669235 | J79: =J75+J77 -> 0.8237669235 | K79: hours
C80: Reduction in Daily Light Duty veh miles Traveled due to Travel Time Saving by TSP | I80: =(I68-I37)*I35*I36/J46*$I40 -> 7.499310725 | J80: =(J68-J37)*J35*J36/J46*$I40 -> 7.499310725 | K80: veh miles
C81: Net Reduction in Annual Vehicle Hours of Delay - Light Duty Vehicles | I81: =I78*$J$48 -> 1536.64675 | J81: =J78*$J$48 -> 1536.64675 | K81: hours
C82: Net Reduction in Annual Vehicle Hours of Delay - All Trucks | I82: =I79*$J$48 -> 205.9417309 | J82: =J79*$J$48 -> 205.9417309 | K82: hours
C83: Net Reduction in Annual Vehicle Hours of Delay - Buses | I83: =I73*$J$48 -> 70.30603805 | J83: =J73*$J$48 -> 70.30603805 | K83: hours
C84: Reduction in Annual Light Duty veh miles Traveled due to Travel Time Saving by TSP | I84: =I80*$J$48 -> 1874.827681 | J84: =J80*$J$48 -> 1874.827681 | K84: veh miles
C87: ="EMISSION FACTORS ("&'Parameters&Source'!B6&")" -> EMISSION FACTORS (2020)
C88: Description | F88: Pollutant | K88: Units
C89: Time Periods | D89: Operating Mode | E89: Vehicle Type | F89: CO2 | G89: PM-Related NOX | H89: NOX | I89: PM2.5 | J89: VOC
C90: Morning Peak | D90: Running | E90: Light Duty Vehicles | F90: =IF($I$22="Rural", VLOOKUP($I$29,'2020ER'!$D$4:$H$19,5,FALSE),VLOOKUP($I$29,'2020ER'!$D$4:$H$19,3,FALSE)) -> 340.5686961 | G90: =IF($I$22="Rural", VLOOKUP($I$29,'2020ER'!$D$20:$H$35,5,FALSE),VLOOKUP($I$29,'2020ER'!$D$20:$H$35,3,FALSE)) -> 0.187156709 | H90: =IF($I$22="Rural", VLOOKUP($I$29,'2020ER'!$D$52:$H$67,5,FALSE),VLOOKUP($I$29,'2020ER'!$D$52:$H$67,3,FALSE)) -> 0.1797914788 | I90: =IF($I$22="Rural", VLOOKUP($I$29,'2020ER'!$D$36:$H$51,5,FALSE),VLOOKUP($I$29,'2020ER'!$D$36:$H$51,3,FALSE)) -> 0.004772963268 | J90: =IF($I$22="Rural", VLOOKUP($I$29,'2020ER'!$D$68:$H$83,5,FALSE),VLOOKUP($I$29,'2020ER'!$D$68:$H$83,3,FALSE)) -> 0.09896986995 | K90: g/veh/mile
C91: Evening Peak | D91: Running | E91: Light Duty Vehicles | F91: =IF($I$22="Rural", VLOOKUP($J$29,'2020ER'!$D$4:$H$19,5,FALSE),VLOOKUP($J$29,'2020ER'!$D$4:$H$19,3,FALSE)) -> 340.5686961 | G91: =IF($I$22="Rural", VLOOKUP($J$29,'2020ER'!$D$20:$H$35,5,FALSE),VLOOKUP($J$29,'2020ER'!$D$20:$H$35,3,FALSE)) -> 0.187156709 | H91: =IF($I$22="Rural", VLOOKUP($J$29,'2020ER'!$D$52:$H$67,5,FALSE),VLOOKUP($J$29,'2020ER'!$D$52:$H$67,3,FALSE)) -> 0.1797914788 | I91: =IF($I$22="Rural", VLOOKUP($J$29,'2020ER'!$D$36:$H$51,5,FALSE),VLOOKUP($J$29,'2020ER'!$D$36:$H$51,3,FALSE)) -> 0.004772963268 | J91: =IF($I$22="Rural", VLOOKUP($J$29,'2020ER'!$D$68:$H$83,5,FALSE),VLOOKUP($J$29,'2020ER'!$D$68:$H$83,3,FALSE)) -> 0.09896986995 | K91: g/veh/mile
C92: All | D92: Idling | E92: Light Duty Vehicles | F92: =IF($I$22="Rural",'2020ER'!Y$4,'2020ER'!AA$4) -> 3364.435327 | G92: =IF($I$22="Rural",'2020ER'!Y$5,'2020ER'!AA$5) -> 0.7744377926 | H92: =IF($I$22="Rural",'2020ER'!Y$7,'2020ER'!AA$7) -> 1.794788753 | I92: =IF($I$22="Rural",'2020ER'!Y$6,'2020ER'!AA$6) -> 0.04854444437 | J92: =IF($I$22="Rural",'2020ER'!Y$8,'2020ER'!AA$8) -> 0.7992209736 | K92: g/veh/hr
E93: All Trucks | F93: =IF($I$22="Rural",'2020ER'!AI$4,'2020ER'!AK$4) -> 7586.746881 | G93: =IF($I$22="Rural",'2020ER'!AI$5,'2020ER'!AK$5) -> 28.28927687 | H93: =IF($I$22="Rural",'2020ER'!AI$7,'2020ER'!AK$7) -> 25.30649378 | I93: =IF($I$22="Rural",'2020ER'!AI$6,'2020ER'!AK$6) -> 1.354370807 | J93: =IF($I$22="Rural",'2020ER'!AI$8,'2020ER'!AK$8) -> 4.308027338
E94: Buses | F94: =IF($I$22="Rural",'2020ER'!AD$4,'2020ER'!AF$4) -> 7678.435928 | G94: =IF($I$22="Rural",'2020ER'!AD$5,'2020ER'!AF$5) -> 38.48343098 | H94: =IF($I$22="Rural",'2020ER'!AD$7,'2020ER'!AF$7) -> 34.49853277 | I94: =IF($I$22="Rural",'2020ER'!AD$6,'2020ER'!AF$6) -> 1.388329066 | J94: =IF($I$22="Rural",'2020ER'!AD$8,'2020ER'!AF$8) -> 5.404066369
C96: ="EMISSION FACTORS ("&'Parameters&Source'!B7&")" -> EMISSION FACTORS (2050)
C97: Description | F97: Pollutant | K97: Units
C98: Time Periods | D98: Operating Mode | E98: Vehicle Type | F98: CO2 | G98: PM-Related NOX | H98: NOX | I98: PM2.5 | J98: VOC
C99: Morning Peak | D99: Running | E99: Light Duty Vehicles | F99: =IF($I$22="Rural", VLOOKUP($I$29,'2050ER'!$D$4:$H$19,5,FALSE),VLOOKUP($I$29,'2050ER'!$D$4:$H$19,3,FALSE)) -> 209.6059577 | G99: =IF($I$22="Rural", VLOOKUP($I$29,'2050ER'!$D$20:$H$35,5,FALSE),VLOOKUP($I$29,'2050ER'!$D$20:$H$35,3,FALSE)) -> 0.01816257372 | H99: =IF($I$22="Rural", VLOOKUP($I$29,'2050ER'!$D$52:$H$67,5,FALSE),VLOOKUP($I$29,'2050ER'!$D$52:$H$67,3,FALSE)) -> 0.03537442845 | I99: =IF($I$22="Rural", VLOOKUP($I$29,'2050ER'!$D$36:$H$51,5,FALSE),VLOOKUP($I$29,'2050ER'!$D$36:$H$51,3,FALSE)) -> 0.002174610434 | J99: =IF($I$22="Rural", VLOOKUP($I$29,'2050ER'!$D$68:$H$83,5,FALSE),VLOOKUP($I$29,'2050ER'!$D$68:$H$83,3,FALSE)) -> 0.05849090804 | K99: g/veh/mile
C100: Evening Peak | D100: Running | E100: Light Duty Vehicles | F100: =IF($I$22="Rural", VLOOKUP($J$29,'2050ER'!$D$4:$H$19,5,FALSE),VLOOKUP($J$29,'2050ER'!$D$4:$H$19,3,FALSE)) -> 209.6059577 | G100: =IF($I$22="Rural", VLOOKUP($J$29,'2050ER'!$D$20:$H$35,5,FALSE),VLOOKUP($J$29,'2050ER'!$D$20:$H$35,3,FALSE)) -> 0.01816257372 | H100: =IF($I$22="Rural", VLOOKUP($J$29,'2050ER'!$D$52:$H$67,5,FALSE),VLOOKUP($J$29,'2050ER'!$D$52:$H$67,3,FALSE)) -> 0.03537442845 | I100: =IF($I$22="Rural", VLOOKUP($J$29,'2050ER'!$D$36:$H$51,5,FALSE),VLOOKUP($J$29,'2050ER'!$D$36:$H$51,3,FALSE)) -> 0.002174610434 | J100: =IF($I$22="Rural", VLOOKUP($J$29,'2050ER'!$D$68:$H$83,5,FALSE),VLOOKUP($J$29,'2050ER'!$D$68:$H$83,3,FALSE)) -> 0.05849090804 | K100: g/veh/mile
C101: All | D101: Idling | E101: Light Duty Vehicles | F101: =IF($I$22="Rural",'2050ER'!Y$4,'2050ER'!AA$4) -> 2002.159623 | G101: =IF($I$22="Rural",'2050ER'!Y$5,'2050ER'!AA$5) -> 0.03756914139 | H101: =IF($I$22="Rural",'2050ER'!Y$7,'2050ER'!AA$7) -> 0.08297823026 | I101: =IF($I$22="Rural",'2050ER'!Y$6,'2050ER'!AA$6) -> 0.02232062483 | J101: =IF($I$22="Rural",'2050ER'!Y$8,'2050ER'!AA$8) -> 0.04511359832 | K101: g/veh/hr
E102: All Trucks | F102: =IF($I$22="Rural",'2050ER'!AI$4,'2050ER'!AK$4) -> 7177.461415 | G102: =IF($I$22="Rural",'2050ER'!AI$5,'2050ER'!AK$5) -> 6.349728243 | H102: =IF($I$22="Rural",'2050ER'!AI$7,'2050ER'!AK$7) -> 5.680519438 | I102: =IF($I$22="Rural",'2050ER'!AI$6,'2050ER'!AK$6) -> 0.1454390096 | J102: =IF($I$22="Rural",'2050ER'!AI$8,'2050ER'!AK$8) -> 0.6593006868 | K102: g/veh/hr
E103: Buses | F103: =IF($I$22="Rural",'2050ER'!AD$4,'2050ER'!AF$4) -> 7231.691803 | G103: =IF($I$22="Rural",'2050ER'!AD$5,'2050ER'!AF$5) -> 9.169169337 | H103: =IF($I$22="Rural",'2050ER'!AD$7,'2050ER'!AF$7) -> 8.237600923 | I103: =IF($I$22="Rural",'2050ER'!AD$6,'2050ER'!AF$6) -> 0.1484002802 | J103: =IF($I$22="Rural",'2050ER'!AD$8,'2050ER'!AF$8) -> 0.6852093125 | K103: g/veh/hr
C105: ="ANALYSIS YEAR EMISSION FACTORS ("&I21&")" -> ANALYSIS YEAR EMISSION FACTORS (2024)
C106: Description | F106: Pollutant | K106: Units
C107: Time Periods | D107: Operating Mode | E107: Vehicle Type | F107: CO2 | G107: PM-Related NOX | H107: NOX | I107: PM2.5 | J107: VOC
C108: Morning Peak | D108: Running | E108: Light Duty Vehicles | F108: =F90-$I$52*(F90-F99) -> 323.1069976 | G108: =G90-$I$52*(G90-G99) -> 0.1646241577 | H108: =H90-$I$52*(H90-H99) -> 0.1605358721 | I108: =I90-$I$52*(I90-I99) -> 0.004426516224 | J108: =J90-$I$52*(J90-J99) -> 0.09357267503 | K108: g/veh/mile
C109: Evening Peak | D109: Running | E109: Light Duty Vehicles | F109: =F91-$I$52*(F91-F100) -> 323.1069976 | G109: 0.1646241577 | H109: 0.1605358721 | I109: 0.004426516224 | J109: 0.09357267503 | K109: g/veh/mile
C110: All | D110: Idling | E110: Light Duty Vehicles | F110: 3182.798566 | G110: 0.6761886391 | H110: 1.56654735 | I110: 0.0450479351 | J110: 0.6986733236 | K110: g/veh/hr
E111: All Trucks | F111: 7532.175486 | G111: 25.36400372 | H111: 22.6896972 | I111: 1.1931799 | J111: 3.821530451
E112: Buses | F112: 7618.870045 | G112: 34.57486276 | H112: 30.99707519 | I112: 1.223005228 | J112: 4.774885428
C114: RESULTS
C115: Delay/VMT Impact
C116: Description | J116: Value | K116: Units
C117: Reduction in Annual Transit Vehicle Hours of Delay | J117: =I83+J83 -> 140.6120761 | K117: hours
C118: Reduction in Annual Light Duty Vehicle Hours of Delay | J118: =I81+J81 -> 3073.293501 | K118: hours
C119: Reduction in Annual All Truck Vehicle Hours of Delay | J119: =I82+J82 -> 411.8834618 | K119: hours
C120: Reduction in Annual Vehicle Hours of Delay | J120: =J117+J118+J119 -> 3625.789038 | K120: hours
C121: Reduction in Annual veh miles of Traveled | J121: =I84+J84 -> 3749.655363 | K121: veh miles
C123: TOTAL EMISSION REDUCTION
C124: Description | F124: Pollutant | K124: Units
F125: GHG(CO2) | G125: PM-Related NOX | H125: NOX | I125: PM2.5 | J125: VOC
C126: Total Annual Reductions | F126: =( (F110*$J118+F111*$J119+F112*$J117)+$I$84*F108+$J$84*F109 )/1000 -> 15166.89768 | G126: =( (G110*$J118+G111*$J119+G112*$J117)+$I$84*G108+$J$84*G109 )/1000 -> 18.0040669 | H126: =( (H110*$J118+H111*$J119+H112*$J117)+$I$84*H108+$J$84*H109 )/1000 -> 19.12048811 | I126: =( (I110*$J118+I111*$J119+I112*$J117)+$I$84*I108+$J$84*I109 )/1000 -> 0.8184638086 | J126: =( (J110*$J118+J111*$J119+J112*$J117)+$I$84*J108+$J$84*J109 )/1000 -> 4.743525212 | K126: kg/year
F127: =CONVERT( (F110*$J118+F111*$J119+F112*$J117)+$I$84*F108+$J$84*F109, "g","ton") -> 16.71864287 | G127: =CONVERT( (G110*$J118+G111*$J119+G112*$J117)+$I$84*G108+$J$84*G109, "g","ton") -> 0.01984608658 | H127: =CONVERT( (H110*$J118+H111*$J119+H112*$J117)+$I$84*H108+$J$84*H109, "g","ton") -> 0.02107673031 | I127: =CONVERT( (I110*$J118+I111*$J119+I112*$J117)+$I$84*I108+$J$84*I109, "g","ton") -> 0.0009022019138 | J127: =CONVERT( (J110*$J118+J111*$J119+J112*$J117)+$I$84*J108+$J$84*J109, "g","ton") -> 0.005228841494 | K127: short tons/year
C128: Total Daily Reductions | F128: =F126/$J$48 -> 60.66759072 | G128: 0.07201626758 | H128: 0.07648195243 | I128: 0.003273855234 | J128: 0.01897410085 | K128: kg/day
F129: 0.06687457146 | G129: 7.938434633e-05 | H129: 8.430692125e-05 | I129: 3.608807655e-06 | J129: 2.091536598e-05 | K129: short tons/day

Sheet 4.1 Managed Lane
E3: 4.1 - Managed Lanes
C6: PROJECT INFORMATION
C7: Project Title | F7: Managed Lane Project on XXX street
C8: Project ID | F8: XXX-XXX-XXXX
C9: Project Location | F9: Atlanta
C10: Project Year | F10: 2011
C11: Project Cost | F11: 2500
C12: Metropolitan Area | F12: Atlanta
C13: County (optional) | F13: Fulton County
C14: Project Description: | F14: This project is XXXXXXXXXXX.
C19: INPUTS
C20: Scenario | D20: Category | E20: Data Type | I20: Morning Peak | J20: Evening Peak | K20: Units
C21: General | E21: Scenario Year | I21: 2024 | K21: -
E22: Area Type | I22: Suburban | K22: -
E23: Corridor Length | I23: 12.3 | K23: miles
E24: Facility Type | I24: Interstate / Freeway Free-flow | K24: -
C25: Existing Condition | D25: General Purpose Lanes | E25: Number of General Purpose Lanes (One Direction will have proposed HOV Lane) | I25: 5 | J25: 5 | K25: -
E26: Hourly Lane Volume on General Purpose Lanes | I26: 800 | J26: 2000 | K26: veh/hr/lane
E27: Truck Percentage | I27: 4.5 | J27: 4.5 | K27: percent
E28: Bus Percentage | I28: 0.5 | J28: 0.5 | K28: percent
D29: HOV Lanes | E29: Number of HOV Lanes (One Direction will have proposed HOV Lane) | I29: 0 | J29: 0 | K29: -
E30: Hourly Lane Volume on HOV Lanes | I30: 0 | J30: 0 | K30: veh/hr/lane
E31: Truck Percentage | I31: 0 | J31: 0 | K31: percent
E32: Bus Percentage | I32: 0.5 | J32: 0.5 | K32: percent
C33: Proposed Condition | D33: HOV Lanes | E33: New HOV Lane Facility Type | I33: HOV Buffer Separated | K33: -
E34: Proposed Additional Number of HOV Lanes (One Direction) | I34: 1 | J34: 1 | K34: -
C36: CONSTANTS
C37: Data Type | J37: Value | K37: Units
C38: Alpha Values | J38: ='Parameters&Source'!B65 -> 0.83 | K38: -
C39: Beta Values | J39: ='Parameters&Source'!B66 -> 5.5 | K39: -
C40: General Purpose Lane Capacity | J40: =(INDEX(Capacity,MATCH(I24,INDEX(Capacity,,1),0),MATCH(I22,INDEX(Capacity,1,),0))) -> 1800 | K40: veh/hr/lane
C41: HOV Lane Capacity | J41: =IF(AND(I34=0,J34=0), 0, INDEX(Capacity,MATCH($I$33,INDEX(Capacity,,1),0),MATCH($I$22,INDEX(Capacity,1,),0))) -> 1600 | K41: veh/hr/lane
C42: Free Flow Speed on General Purpose Lane | J42: =INDEX(Speed,MATCH($I$24,INDEX(Speed,,1),0),MATCH($I$22,INDEX(Speed,1,),0)) -> 61 | K42: -
C43: Free Flow Speed on HOV Lane | J43: =INDEX(Speed,MATCH($I$33,INDEX(Speed,,1),0),MATCH($I$22,INDEX(Speed,1,),0)) -> 61 | K43: -
C44: Hours in Morning Peak Period | J44: =ps_hrsAmPeak -> 3 | K44: -
C45: Hours in Evening Peak Period | J45: =ps_hrsPmPeak -> 3 | K45: -
C46: HOV Lane v/c Ratio associated with Minumum Operating Speed | J46: ='Parameters&Source'!B67 -> 0.9 | K46: -
C47: General Purpose Lane v/c Ratio assocaited with Vehicles Jumping to HOV Lane | J47: ='Parameters&Source'!B68 -> 0.93 | K47: -
C48: Latent Demand Factor (Percentage of General Purpose Volume Reduction Compared to Additional Managed Lane Capacity | J48: ='Parameters&Source'!B69 -> 92 | K48: percent
C49: Number of Weekdays per Year | J49: ='Parameters&Source'!B10 -> 250 | K49: days
C51: INTERMEDIATE RESULTS
C52: Scenario | D52: Range | E52: Data Type | I52: Morning Peak | J52: Evening Peak | K52: Units
C53: General | E53: Emission Rates Interpolation Factor | I53: =(I21-'Parameters&Source'!B6)/('Parameters&Source'!B7-'Parameters&Source'!B6) -> 0.1333333333 | K53: -
C54: Existing Condition | D54: General Purpose Lane | E54: Hourly Lane Volume | I54: =I26 -> 800 | J54: =J26 -> 2000 | K54: veh/hr/lane
E55: v/c ratio | I55: =I54/$J$40 -> 0.4444444444 | J55: =J54/$J$40 -> 1.111111111 | K55: -
E56: Free Flow Travel Time | I56: =I23/J42*60 -> 12.09836066 | K56: minutes
E57: Congested Travel Time | I57: =$I56*(1+$J38*(I55)^$J39) -> 12.21445225 | J57: =$I56*(1+$J38*(J55)^$J39) -> 30.02384162 | K57: min/veh
E58: Congested Speed | I58: =$I23/(I57/60) -> 60.42022884 | J58: =$I23/(J57/60) -> 24.58046539 | K58: mph
D59: HOV Lane | E59: Hourly Lane Volume | I59: =IF(I29>0,I30,) -> 0 | J59: =IF(J29>0,J30,) -> 0 | K59: veh/hr/lane
E60: v/c ratio | I60: =I59/$J41 -> 0 | J60: =J59/$J41 -> 0 | K60: -
E61: Free Flow Travel Time | I61: =I23/J43*60 -> 12.09836066 | K61: minutes
E62: Congested Travel Time | I62: =$I61*(1+$J38*(I60)^$J39) -> 12.09836066 | J62: =$I61*(1+$J38*(J60)^$J39) -> 12.09836066 | K62: min/veh
E63: Congested Speed | I63: =$I23/(I62/60) -> 61 | J63: =$I23/(J62/60) -> 61 | K63: mph
C64: Proposed Condition | D64: General Purpose Lane | E64: General Purpose Lane Demand Shift to HOV Lane due to Oversaturation | I64: =IF((I26*I25-$J40*I25*$J46)>0,(I26*I25-$J40*I25*$J46),0) -> 0 | J64: =IF((J26*J25-$J40*J25*$J46)>0,(J26*J25-$J40*J25*$J46),0) -> 1900 | K64: veh/hr/lane
E65: Volume Reduction | I65: =I70*I34*J48/100 -> 0 | J65: =J70*J34*J48/100 -> 1368.96 | K65: -
E66: Hourly Lane Volume | I66: =(I26*I25-I65)/I25 -> 800 | J66: =(J26*J25-J65)/J25 -> 1726.208 | K66: veh/hr/lane
E67: v/c ratio | I67: =I66/$J$40 -> 0.4444444444 | J67: =J66/$J$40 -> 0.9590044444 | K67: -
E68: Congested Travel Time | I68: =$I56*(1+$J38*(I67)^$J39) -> 12.21445225 | J68: =$I56*(1+$J38*(J67)^$J39) -> 20.07496459 | K68: min/veh
E69: Congested Speed | I69: =$I23/(I68/60) -> 60.42022884 | J69: =$I23/(J68/60) -> 36.76220681 | K69: mph
D70: HOV Lane | E70: Additional HOV Lane Volume | I70: =IF(I34=0, 0, MIN($J41*$J47,I64+I30/I34)) -> 0 | J70: =IF(J34=0, 0, MIN($J41*$J47,J64+J30/J34)) -> 1488 | K70: veh/hr/lane
E71: Hourly Lane Volume | I71: =(I70+I30*I29)/(I29+I34) -> 0 | J71: =(J70+J30*J29)/(J29+J34) -> 1488 | K71: veh/hr/lane
E72: v/c ratio | I72: =I71/$J$41 -> 0 | J72: =J71/$J$41 -> 0.93 | K72: -
E73: Congested Travel Time | I73: =$I61*(1+$J38*(I72)^$J39) -> 12.09836066 | J73: =$I61*(1+$J38*(J72)^$J39) -> 18.83527206 | K73: min/veh
E74: Congested Speed | I74: =$I23/(I73/60) -> 61 | J74: =$I23/(J73/60) -> 39.18180728 | K74: mph
C76: ACTIVITY OUTPUTS
C77: Scenario | D77: Data Type | I77: Morning Peak | J77: Evening Peak | K77: Units
C78: Existing Condition | D78: Total Annual VMT on General Purpose Lane - Total | I78: =I54*$I23*I25*$J44*$J49 -> 36900000 | J78: =J54*$I23*J25*$J44*$J49 -> 92250000 | K78: veh miles
D79: Total Annual VMT on General Purpose Lane - Light Duty Vehicles | I79: =I78-I80-I81 -> 35055000 | J79: =J78-J80-J81 -> 87637500
D80: Total Annual VMT on General Purpose Lane - Trucks | I80: =I78*I27/100 -> 1660500 | J80: =J78*J27/100 -> 4151250
D81: Total Annual VMT on General Purpose Lane - Buses | I81: =I78*I28/100 -> 184500 | J81: =J78*J28/100 -> 461250
D82: Total Annual VMT on HOV Lane - Total | I82: =I59*I29*$I23*$J44*$J49 -> 0 | J82: =J59*J29*$I23*$J44*$J49 -> 0
D83: Total Annual VMT on HOV Lane - Light Duty Vehicles | I83: =I82-I84-I85 -> 0 | J83: =J82-J84-J85 -> 0
D84: Total Annual VMT on HOV Lane - Trucks | I84: =I82*I31/100 -> 0 | J84: =J82*J31/100 -> 0
D85: Total Annual VMT on HOV Lane - Buses | I85: =I82*I32/100 -> 0 | J85: =J82*J32/100 -> 0
C86: Proposed Condtion | D86: Total Annual VMT on General Purpose Lane - Total | I86: =I66*I25*$I23*$J44*$J49 -> 36900000 | J86: =J66*J25*$I23*$J44*$J49 -> 79621344 | K86: veh miles
D87: Total Annual VMT on General Purpose Lane - Light Duty Vehicles | I87: =I86-I88-I89 -> 35055000 | J87: =J86-J88-J89 -> 75640276.8
D88: Total Annual VMT on General Purpose Lane - Trucks | I88: =I86*I27/100 -> 1660500 | J88: =J86*J27/100 -> 3582960.48
D89: Total Annual VMT on General Purpose Lane - Buses | I89: =I86*I28/100 -> 184500 | J89: =J86*J28/100 -> 398106.72
D90: Total Annual VMT on HOV Lane - Total | I90: =I71*(I29+I34)*$I23*$J44*$J49 -> 0 | J90: =J71*(J29+J34)*$I23*$J44*$J49 -> 13726800
D91: Total Annual VMT on HOV Lane - Light Duty Vehicles | I91: =I90-I92-I93 -> 0 | J91: =J90-J92-J93 -> 13658166
D92: Total Annual VMT on HOV Lane - Trucks | I92: =I90*I31/100 -> 0 | J92: =J90*J31/100 -> 0
D93: Total Annual VMT on HOV Lane - Buses | I93: =I90*I32/100 -> 0 | J93: =J90*J32/100 -> 68634
C96: ="EMISSION FACTORS ("&'Parameters&Source'!B6&")" -> EMISSION FACTORS (2020)
C97: Description | F97: Pollutant | K97: Units
C98: Time Periods | D98: Operating Mode | E98: Vehicle Type | F98: CO2 | G98: PM-Related NOX | H98: NOX | I98: PM2.5 | J98: VOC
C99: Morning Peak | D99: Existing - General Purpose Lane | E99: Light Duty Vehicles | F99: =IF($I$22="Rural",LOOKUP(ROUNDDOWN($I$58/5,0)*5,'2020ER'!$D$4:$D$19,'2020ER'!$E$4:$E$19)+(($I$58-ROUNDDOWN($I$58/5,0)*5)/5)*(LOOKUP(ROUNDUP($I$58/5,0)*5,'2020ER'!$D$4:$D$19,'2020ER'!$E$4:$E$19)-LOOKUP(ROUNDDOWN($I$58/5,0)*5,'2020ER'!$D$4:$D$19,'2020ER'!$E$4:$E$19)),LOOKUP(ROUNDDOWN($I$58/5,0)*5,'2020ER'!$D$4:$D$19,'2020ER'!$G$4:$G$19)+(($I$58-ROUNDDOWN($I$58/5,0)*5)/5)*(LOOKUP(ROUNDUP($I$58/5,0)*5,'2020ER'!$D$4:$D$19,'2020ER'!$G$4:$G$19)-LOOKUP(ROUNDDOWN($I$58/5,0)*5,'2020ER'!$D$4:$D$19,'2020ER'!$G$4:$G$19))) -> 329.0859298 | G99: =IF($I$22="Rural",LOOKUP(ROUNDDOWN($I$58/5,0)*5,'2020ER'!$D$20:$D$35,'2020ER'!$E$20:$E$35)+(($I$58-ROUNDDOWN($I$58/5,0)*5)/5)*(LOOKUP(ROUNDUP($I$58/5,0)*5,'2020ER'!$D$20:$D$35,'2020ER'!$E$20:$E$35)-LOOKUP(ROUNDDOWN($I$58/5,0)*5,'2020ER'!$D$20:$D$35,'2020ER'!$E$20:$E$35)),LOOKUP(ROUNDDOWN($I$58/5,0)*5,'2020ER'!$D$20:$D$35,'2020ER'!$G$20:$G$35)+(($I$58-ROUNDDOWN($I$58/5,0)*5)/5)*(LOOKUP(ROUNDUP($I$58/5,0)*5,'2020ER'!$D$20:$D$35,'2020ER'!$G$20:$G$35)-LOOKUP(ROUNDDOWN($I$58/5,0)*5,'2020ER'!$D$20:$D$35,'2020ER'!$G$20:$G$35))) -> 0.2334977612 | H99: =IF($I$22="Rural",LOOKUP(ROUNDDOWN($I$58/5,0)*5,'2020ER'!$D$52:$D$67,'2020ER'!$E$52:$E$67)+(($I$58-ROUNDDOWN($I$58/5,0)*5)/5)*(LOOKUP(ROUNDUP($I$58/5,0)*5,'2020ER'!$D$52:$D$67,'2020ER'!$E$52:$E$67)-LOOKUP(ROUNDDOWN($I$58/5,0)*5,'2020ER'!$D$52:$D$67,'2020ER'!$E$52:$E$67)),LOOKUP(ROUNDDOWN($I$58/5,0)*5,'2020ER'!$D$52:$D$67,'2020ER'!$G$52:$G$67)+(($I$58-ROUNDDOWN($I$58/5,0)*5)/5)*(LOOKUP(ROUNDUP($I$58/5,0)*5,'2020ER'!$D$52:$D$67,'2020ER'!$G$52:$G$67)-LOOKUP(ROUNDDOWN($I$58/5,0)*5,'2020ER'!$D$52:$D$67,'2020ER'!$G$52:$G$67))) -> 0.2237753533 | I99: =IF($I$22="Rural",LOOKUP(ROUNDDOWN($I$58/5,0)*5,'2020ER'!$D$36:$D$51,'2020ER'!$E$36:$E$51)+(($I$58-ROUNDDOWN($I$58/5,0)*5)/5)*(LOOKUP(ROUNDUP($I$58/5,0)*5,'2020ER'!$D$36:$D$51,'2020ER'!$E$36:$E$51)-LOOKUP(ROUNDDOWN($I$58/5,0)*5,'2020ER'!$D$36:$D$51,'2020ER'!$E$36:$E$51)),LOOKUP(ROUNDDOWN($I$58/5,0)*5,'2020ER'!$D$36:$D$51,'2020ER'!$G$36:$G$51)+(($I$58-ROUNDDOWN($I$58/5,0)*5)/5)*(LOOKUP(ROUNDUP($I$58/5,0)*5,'2020ER'!$D$36:$D$51,'2020ER'!$G$36:$G$51)-LOOKUP(ROUNDDOWN($I$58/5,0)*5,'2020ER'!$D$36:$D$51,'2020ER'!$G$36:$G$51))) -> 0.009109463053 | J99: =IF($I$22="Rural",LOOKUP(ROUNDDOWN($I$58/5,0)*5,'2020ER'!$D$4:$D$19,'2020ER'!$E$4:$E$19)+(($I$58-ROUNDDOWN($I$58/5,0)*5)/5)*(LOOKUP(ROUNDUP($I$58/5,0)*5,'2020ER'!$D$4:$D$19,'2020ER'!$E$4:$E$19)-LOOKUP(ROUNDDOWN($I$58/5,0)*5,'2020ER'!$D$4:$D$19,'2020ER'!$E$4:$E$19)),LOOKUP(ROUNDDOWN($I$58/5,0)*5,'2020ER'!$D$4:$D$19,'2020ER'!$G$68:$G$83)+(($I$58-ROUNDDOWN($I$58/5,0)*5)/5)*(LOOKUP(ROUNDUP($I$58/5,0)*5,'2020ER'!$D$4:$D$19,'2020ER'!$G$68:$G$83)-LOOKUP(ROUNDDOWN($I$58/5,0)*5,'2020ER'!$D$4:$D$19,'2020ER'!$G$68:$G$83))) -> 0.08933573807 | K99: g/veh/mile
E100: All Trucks | F100: =IF($I$22="Rural",LOOKUP(ROUNDDOWN($I$58/5,0)*5,'2020ER'!$D$4:$D$19,'2020ER'!$O$4:$O$19)+(($I$58-ROUNDDOWN($I$58/5,0)*5)/5)*(LOOKUP(ROUNDUP($I$58/5,0)*5,'2020ER'!$D$4:$D$19,'2020ER'!$O$4:$O$19)-LOOKUP(ROUNDDOWN($I$58/5,0)*5,'2020ER'!$D$4:$D$19,'2020ER'!$O$4:$O$19)),LOOKUP(ROUNDDOWN($I$58/5,0)*5,'2020ER'!$D$4:$D$19,'2020ER'!$Q$4:$Q$19)+(($I$58-ROUNDDOWN($I$58/5,0)*5)/5)*(LOOKUP(ROUNDUP($I$58/5,0)*5,'2020ER'!$D$4:$D$19,'2020ER'!$Q$4:$Q$19)-LOOKUP(ROUNDDOWN($I$58/5,0)*5,'2020ER'!$D$4:$D$19,'2020ER'!$Q$4:$Q$19))) -> 1314.393595 | G100: =IF($I$22="Rural",LOOKUP(ROUNDDOWN($I$58/5,0)*5,'2020ER'!$D$20:$D$35,'2020ER'!$O$20:$O$35)+(($I$58-ROUNDDOWN($I$58/5,0)*5)/5)*(LOOKUP(ROUNDUP($I$58/5,0)*5,'2020ER'!$D$20:$D$35,'2020ER'!$O$20:$O$35)-LOOKUP(ROUNDDOWN($I$58/5,0)*5,'2020ER'!$D$20:$D$35,'2020ER'!$O$20:$O$35)),LOOKUP(ROUNDDOWN($I$58/5,0)*5,'2020ER'!$D$20:$D$35,'2020ER'!$Q$20:$Q$35)+(($I$58-ROUNDDOWN($I$58/5,0)*5)/5)*(LOOKUP(ROUNDUP($I$58/5,0)*5,'2020ER'!$D$20:$D$35,'2020ER'!$Q$20:$Q$35)-LOOKUP(ROUNDDOWN($I$58/5,0)*5,'2020ER'!$D$20:$D$35,'2020ER'!$Q$20:$Q$35))) -> 2.115985608 | H100: =IF($I$22="Rural",LOOKUP(ROUNDDOWN($I$58/5,0)*5,'2020ER'!$D$52:$D$67,'2020ER'!$O$52:$O$67)+(($I$58-ROUNDDOWN($I$58/5,0)*5)/5)*(LOOKUP(ROUNDUP($I$58/5,0)*5,'2020ER'!$D$52:$D$67,'2020ER'!$O$52:$O$67)-LOOKUP(ROUNDDOWN($I$58/5,0)*5,'2020ER'!$D$52:$D$67,'2020ER'!$O$52:$O$67)),LOOKUP(ROUNDDOWN($I$58/5,0)*5,'2020ER'!$D$52:$D$67,'2020ER'!$Q$52:$Q$67)+(($I$58-ROUNDDOWN($I$58/5,0)*5)/5)*(LOOKUP(ROUNDUP($I$58/5,0)*5,'2020ER'!$D$52:$D$67,'2020ER'!$Q$52:$Q$67)-LOOKUP(ROUNDDOWN($I$58/5,0)*5,'2020ER'!$D$52:$D$67,'2020ER'!$Q$52:$Q$67))) -> 1.884099797 | I100: =IF($I$22="Rural",LOOKUP(ROUNDDOWN($I$58/5,0)*5,'2020ER'!$D$36:$D$51,'2020ER'!$O$36:$O$51)+(($I$58-ROUNDDOWN($I$58/5,0)*5)/5)*(LOOKUP(ROUNDUP($I$58/5,0)*5,'2020ER'!$D$36:$D$51,'2020ER'!$O$36:$O$51)-LOOKUP(ROUNDDOWN($I$58/5,0)*5,'2020ER'!$D$36:$D$51,'2020ER'!$O$36:$O$51)),LOOKUP(ROUNDDOWN($I$58/5,0)*5,'2020ER'!$D$36:$D$51,'2020ER'!$Q$36:$Q$51)+(($I$58-ROUNDDOWN($I$58/5,0)*5)/5)*(LOOKUP(ROUNDUP($I$58/5,0)*5,'2020ER'!$D$36:$D$51,'2020ER'!$Q$36:$Q$51)-LOOKUP(ROUNDDOWN($I$58/5,0)*5,'2020ER'!$D$36:$D$51,'2020ER'!$Q$36:$Q$51))) -> 0.07297426665 | J100: =IF($I$22="Rural",LOOKUP(ROUNDDOWN($I$58/5,0)*5,'2020ER'!$D$4:$D$19,'2020ER'!$O$4:$O$19)+(($I$58-ROUNDDOWN($I$58/5,0)*5)/5)*(LOOKUP(ROUNDUP($I$58/5,0)*5,'2020ER'!$D$4:$D$19,'2020ER'!$O$4:$O$19)-LOOKUP(ROUNDDOWN($I$58/5,0)*5,'2020ER'!$D$4:$D$19,'2020ER'!$O$4:$O$19)),LOOKUP(ROUNDDOWN($I$58/5,0)*5,'2020ER'!$D$4:$D$19,'2020ER'!$Q$68:$Q$83)+(($I$58-ROUNDDOWN($I$58/5,0)*5)/5)*(LOOKUP(ROUNDUP($I$58/5,0)*5,'2020ER'!$D$4:$D$19,'2020ER'!$Q$68:$Q$83)-LOOKUP(ROUNDDOWN($I$58/5,0)*5,'2020ER'!$D$4:$D$19,'2020ER'!$Q$68:$Q$83))) -> 0.1936167849
E101: Buses | F101: =IF($I$22="Rural",LOOKUP(ROUNDDOWN($I$58/5,0)*5,'2020ER'!$D$4:$D$19,'2020ER'!$J$4:$J$19)+(($I$58-ROUNDDOWN($I$58/5,0)*5)/5)*(LOOKUP(ROUNDUP($I$58/5,0)*5,'2020ER'!$D$4:$D$19,'2020ER'!$J$4:$J$19)-LOOKUP(ROUNDDOWN($I$58/5,0)*5,'2020ER'!$D$4:$D$19,'2020ER'!$J$4:$J$19)),LOOKUP(ROUNDDOWN($I$58/5,0)*5,'2020ER'!$D$4:$D$19,'2020ER'!$L$4:$L$19)+(($I$58-ROUNDDOWN($I$58/5,0)*5)/5)*(LOOKUP(ROUNDUP($I$58/5,0)*5,'2020ER'!$D$4:$D$19,'2020ER'!$L$4:$L$19)-LOOKUP(ROUNDDOWN($I$58/5,0)*5,'2020ER'!$D$4:$D$19,'2020ER'!$L$4:$L$19))) -> 1276.672603 | G101: =IF($I$22="Rural",LOOKUP(ROUNDDOWN($I$58/5,0)*5,'2020ER'!$D$20:$D$35,'2020ER'!$J$20:$J$35)+(($I$58-ROUNDDOWN($I$58/5,0)*5)/5)*(LOOKUP(ROUNDUP($I$58/5,0)*5,'2020ER'!$D$20:$D$35,'2020ER'!$J$20:$J$35)-LOOKUP(ROUNDDOWN($I$58/5,0)*5,'2020ER'!$D$20:$D$35,'2020ER'!$J$20:$J$35)),LOOKUP(ROUNDDOWN($I$58/5,0)*5,'2020ER'!$D$20:$D$35,'2020ER'!$L$20:$L$35)+(($I$58-ROUNDDOWN($I$58/5,0)*5)/5)*(LOOKUP(ROUNDUP($I$58/5,0)*5,'2020ER'!$D$20:$D$35,'2020ER'!$L$20:$L$35)-LOOKUP(ROUNDDOWN($I$58/5,0)*5,'2020ER'!$D$20:$D$35,'2020ER'!$L$20:$L$35))) -> 4.072326674 | H101: =IF($I$22="Rural",LOOKUP(ROUNDDOWN($I$58/5,0)*5,'2020ER'!$D$52:$D$67,'2020ER'!$J$52:$J$67)+(($I$58-ROUNDDOWN($I$58/5,0)*5)/5)*(LOOKUP(ROUNDUP($I$58/5,0)*5,'2020ER'!$D$52:$D$67,'2020ER'!$J$52:$J$67)-LOOKUP(ROUNDDOWN($I$58/5,0)*5,'2020ER'!$D$52:$D$67,'2020ER'!$J$52:$J$67)),LOOKUP(ROUNDDOWN($I$58/5,0)*5,'2020ER'!$D$52:$D$67,'2020ER'!$L$52:$L$67)+(($I$58-ROUNDDOWN($I$58/5,0)*5)/5)*(LOOKUP(ROUNDUP($I$58/5,0)*5,'2020ER'!$D$52:$D$67,'2020ER'!$L$52:$L$67)-LOOKUP(ROUNDDOWN($I$58/5,0)*5,'2020ER'!$D$52:$D$67,'2020ER'!$L$52:$L$67))) -> 3.649506693 | I101: =IF($I$22="Rural",LOOKUP(ROUNDDOWN($I$58/5,0)*5,'2020ER'!$D$36:$D$51,'2020ER'!$J$36:$J$51)+(($I$58-ROUNDDOWN($I$58/5,0)*5)/5)*(LOOKUP(ROUNDUP($I$58/5,0)*5,'2020ER'!$D$36:$D$51,'2020ER'!$J$36:$J$51)-LOOKUP(ROUNDDOWN($I$58/5,0)*5,'2020ER'!$D$36:$D$51,'2020ER'!$J$36:$J$51)),LOOKUP(ROUNDDOWN($I$58/5,0)*5,'2020ER'!$D$36:$D$51,'2020ER'!$L$36:$L$51)+(($I$58-ROUNDDOWN($I$58/5,0)*5)/5)*(LOOKUP(ROUNDUP($I$58/5,0)*5,'2020ER'!$D$36:$D$51,'2020ER'!$L$36:$L$51)-LOOKUP(ROUNDDOWN($I$58/5,0)*5,'2020ER'!$D$36:$D$51,'2020ER'!$L$36:$L$51))) -> 0.134918827 | J101: =IF($I$22="Rural",LOOKUP(ROUNDDOWN($I$58/5,0)*5,'2020ER'!$D$4:$D$19,'2020ER'!$J$4:$J$19)+(($I$58-ROUNDDOWN($I$58/5,0)*5)/5)*(LOOKUP(ROUNDUP($I$58/5,0)*5,'2020ER'!$D$4:$D$19,'2020ER'!$J$4:$J$19)-LOOKUP(ROUNDDOWN($I$58/5,0)*5,'2020ER'!$D$4:$D$19,'2020ER'!$J$4:$J$19)),LOOKUP(ROUNDDOWN($I$58/5,0)*5,'2020ER'!$D$4:$D$19,'2020ER'!$L$68:$L$83)+(($I$58-ROUNDDOWN($I$58/5,0)*5)/5)*(LOOKUP(ROUNDUP($I$58/5,0)*5,'2020ER'!$D$4:$D$19,'2020ER'!$L$68:$L$83)-LOOKUP(ROUNDDOWN($I$58/5,0)*5,'2020ER'!$D$4:$D$19,'2020ER'!$L$68:$L$83))) -> 0.3071648648
D102: Existing - HOV Lane | E102: Light Duty Vehicles | F102: =IF($I$22="Rural",LOOKUP(ROUNDDOWN($I$63/5,0)*5,'2020ER'!$D$4:$D$19,'2020ER'!$E$4:$E$19)+(($I$63-ROUNDDOWN($I$63/5,0)*5)/5)*(LOOKUP(ROUNDUP($I$63/5,0)*5,'2020ER'!$D$4:$D$19,'2020ER'!$E$4:$E$19)-LOOKUP(ROUNDDOWN($I$63/5,0)*5,'2020ER'!$D$4:$D$19,'2020ER'!$E$4:$E$19)),LOOKUP(ROUNDDOWN($I$63/5,0)*5,'2020ER'!$D$4:$D$19,'2020ER'!$G$4:$G$19)+(($I$63-ROUNDDOWN($I$63/5,0)*5)/5)*(LOOKUP(ROUNDUP($I$63/5,0)*5,'2020ER'!$D$4:$D$19,'2020ER'!$G$4:$G$19)-LOOKUP(ROUNDDOWN($I$63/5,0)*5,'2020ER'!$D$4:$D$19,'2020ER'!$G$4:$G$19))) -> 329.388362 | G102: =IF($I$22="Rural",LOOKUP(ROUNDDOWN($I$63/5,0)*5,'2020ER'!$D$20:$D$35,'2020ER'!$E$20:$E$35)+(($I$63-ROUNDDOWN($I$63/5,0)*5)/5)*(LOOKUP(ROUNDUP($I$63/5,0)*5,'2020ER'!$D$20:$D$35,'2020ER'!$E$20:$E$35)-LOOKUP(ROUNDDOWN($I$63/5,0)*5,'2020ER'!$D$20:$D$35,'2020ER'!$E$20:$E$35)),LOOKUP(ROUNDDOWN($I$63/5,0)*5,'2020ER'!$D$20:$D$35,'2020ER'!$G$20:$G$35)+(($I$63-ROUNDDOWN($I$63/5,0)*5)/5)*(LOOKUP(ROUNDUP($I$63/5,0)*5,'2020ER'!$D$20:$D$35,'2020ER'!$G$20:$G$35)-LOOKUP(ROUNDDOWN($I$63/5,0)*5,'2020ER'!$D$20:$D$35,'2020ER'!$G$20:$G$35))) -> 0.2345353343 | H102: =IF($I$22="Rural",LOOKUP(ROUNDDOWN($I$63/5,0)*5,'2020ER'!$D$52:$D$67,'2020ER'!$E$52:$E$67)+(($I$63-ROUNDDOWN($I$63/5,0)*5)/5)*(LOOKUP(ROUNDUP($I$63/5,0)*5,'2020ER'!$D$52:$D$67,'2020ER'!$E$52:$E$67)-LOOKUP(ROUNDDOWN($I$63/5,0)*5,'2020ER'!$D$52:$D$67,'2020ER'!$E$52:$E$67)),LOOKUP(ROUNDDOWN($I$63/5,0)*5,'2020ER'!$D$52:$D$67,'2020ER'!$G$52:$G$67)+(($I$63-ROUNDDOWN($I$63/5,0)*5)/5)*(LOOKUP(ROUNDUP($I$63/5,0)*5,'2020ER'!$D$52:$D$67,'2020ER'!$G$52:$G$67)-LOOKUP(ROUNDDOWN($I$63/5,0)*5,'2020ER'!$D$52:$D$67,'2020ER'!$G$52:$G$67))) -> 0.224776627 | I102: =IF($I$22="Rural",LOOKUP(ROUNDDOWN($I$63/5,0)*5,'2020ER'!$D$36:$D$51,'2020ER'!$E$36:$E$51)+(($I$63-ROUNDDOWN($I$63/5,0)*5)/5)*(LOOKUP(ROUNDUP($I$63/5,0)*5,'2020ER'!$D$36:$D$51,'2020ER'!$E$36:$E$51)-LOOKUP(ROUNDDOWN($I$63/5,0)*5,'2020ER'!$D$36:$D$51,'2020ER'!$E$36:$E$51)),LOOKUP(ROUNDDOWN($I$63/5,0)*5,'2020ER'!$D$36:$D$51,'2020ER'!$G$36:$G$51)+(($I$63-ROUNDDOWN($I$63/5,0)*5)/5)*(LOOKUP(ROUNDUP($I$63/5,0)*5,'2020ER'!$D$36:$D$51,'2020ER'!$G$36:$G$51)-LOOKUP(ROUNDDOWN($I$63/5,0)*5,'2020ER'!$D$36:$D$51,'2020ER'!$G$36:$G$51))) -> 0.009049063207 | J102: =IF($I$22="Rural",LOOKUP(ROUNDDOWN($I$63/5,0)*5,'2020ER'!$D$4:$D$19,'2020ER'!$E$4:$E$19)+(($I$63-ROUNDDOWN($I$63/5,0)*5)/5)*(LOOKUP(ROUNDUP($I$63/5,0)*5,'2020ER'!$D$4:$D$19,'2020ER'!$E$4:$E$19)-LOOKUP(ROUNDDOWN($I$63/5,0)*5,'2020ER'!$D$4:$D$19,'2020ER'!$E$4:$E$19)),LOOKUP(ROUNDDOWN($I$63/5,0)*5,'2020ER'!$D$4:$D$19,'2020ER'!$G$68:$G$83)+(($I$63-ROUNDDOWN($I$63/5,0)*5)/5)*(LOOKUP(ROUNDUP($I$63/5,0)*5,'2020ER'!$D$4:$D$19,'2020ER'!$G$68:$G$83)-LOOKUP(ROUNDDOWN($I$63/5,0)*5,'2020ER'!$D$4:$D$19,'2020ER'!$G$68:$G$83))) -> 0.08925153732
E103: All Trucks | F103: =IF($I$22="Rural",LOOKUP(ROUNDDOWN($I$63/5,0)*5,'2020ER'!$D$4:$D$19,'2020ER'!$O$4:$O$19)+(($I$63-ROUNDDOWN($I$63/5,0)*5)/5)*(LOOKUP(ROUNDUP($I$63/5,0)*5,'2020ER'!$D$4:$D$19,'2020ER'!$O$4:$O$19)-LOOKUP(ROUNDDOWN($I$63/5,0)*5,'2020ER'!$D$4:$D$19,'2020ER'!$O$4:$O$19)),LOOKUP(ROUNDDOWN($I$63/5,0)*5,'2020ER'!$D$4:$D$19,'2020ER'!$Q$4:$Q$19)+(($I$63-ROUNDDOWN($I$63/5,0)*5)/5)*(LOOKUP(ROUNDUP($I$63/5,0)*5,'2020ER'!$D$4:$D$19,'2020ER'!$Q$4:$Q$19)-LOOKUP(ROUNDDOWN($I$63/5,0)*5,'2020ER'!$D$4:$D$19,'2020ER'!$Q$4:$Q$19))) -> 1319.824195 | G103: =IF($I$22="Rural",LOOKUP(ROUNDDOWN($I$63/5,0)*5,'2020ER'!$D$20:$D$35,'2020ER'!$O$20:$O$35)+(($I$63-ROUNDDOWN($I$63/5,0)*5)/5)*(LOOKUP(ROUNDUP($I$63/5,0)*5,'2020ER'!$D$20:$D$35,'2020ER'!$O$20:$O$35)-LOOKUP(ROUNDDOWN($I$63/5,0)*5,'2020ER'!$D$20:$D$35,'2020ER'!$O$20:$O$35)),LOOKUP(ROUNDDOWN($I$63/5,0)*5,'2020ER'!$D$20:$D$35,'2020ER'!$Q$20:$Q$35)+(($I$63-ROUNDDOWN($I$63/5,0)*5)/5)*(LOOKUP(ROUNDUP($I$63/5,0)*5,'2020ER'!$D$20:$D$35,'2020ER'!$Q$20:$Q$35)-LOOKUP(ROUNDDOWN($I$63/5,0)*5,'2020ER'!$D$20:$D$35,'2020ER'!$Q$20:$Q$35))) -> 2.122883099 | H103: =IF($I$22="Rural",LOOKUP(ROUNDDOWN($I$63/5,0)*5,'2020ER'!$D$52:$D$67,'2020ER'!$O$52:$O$67)+(($I$63-ROUNDDOWN($I$63/5,0)*5)/5)*(LOOKUP(ROUNDUP($I$63/5,0)*5,'2020ER'!$D$52:$D$67,'2020ER'!$O$52:$O$67)-LOOKUP(ROUNDDOWN($I$63/5,0)*5,'2020ER'!$D$52:$D$67,'2020ER'!$O$52:$O$67)),LOOKUP(ROUNDDOWN($I$63/5,0)*5,'2020ER'!$D$52:$D$67,'2020ER'!$Q$52:$Q$67)+(($I$63-ROUNDDOWN($I$63/5,0)*5)/5)*(LOOKUP(ROUNDUP($I$63/5,0)*5,'2020ER'!$D$52:$D$67,'2020ER'!$Q$52:$Q$67)-LOOKUP(ROUNDDOWN($I$63/5,0)*5,'2020ER'!$D$52:$D$67,'2020ER'!$Q$52:$Q$67))) -> 1.890274776 | I103: =IF($I$22="Rural",LOOKUP(ROUNDDOWN($I$63/5,0)*5,'2020ER'!$D$36:$D$51,'2020ER'!$O$36:$O$51)+(($I$63-ROUNDDOWN($I$63/5,0)*5)/5)*(LOOKUP(ROUNDUP($I$63/5,0)*5,'2020ER'!$D$36:$D$51,'2020ER'!$O$36:$O$51)-LOOKUP(ROUNDDOWN($I$63/5,0)*5,'2020ER'!$D$36:$D$51,'2020ER'!$O$36:$O$51)),LOOKUP(ROUNDDOWN($I$63/5,0)*5,'2020ER'!$D$36:$D$51,'2020ER'!$Q$36:$Q$51)+(($I$63-ROUNDDOWN($I$63/5,0)*5)/5)*(LOOKUP(ROUNDUP($I$63/5,0)*5,'2020ER'!$D$36:$D$51,'2020ER'!$Q$36:$Q$51)-LOOKUP(ROUNDDOWN($I$63/5,0)*5,'2020ER'!$D$36:$D$51,'2020ER'!$Q$36:$Q$51))) -> 0.07279950847 | J103: =IF($I$22="Rural",LOOKUP(ROUNDDOWN($I$63/5,0)*5,'2020ER'!$D$4:$D$19,'2020ER'!$O$4:$O$19)+(($I$63-ROUNDDOWN($I$63/5,0)*5)/5)*(LOOKUP(ROUNDUP($I$63/5,0)*5,'2020ER'!$D$4:$D$19,'2020ER'!$O$4:$O$19)-LOOKUP(ROUNDDOWN($I$63/5,0)*5,'2020ER'!$D$4:$D$19,'2020ER'!$O$4:$O$19)),LOOKUP(ROUNDDOWN($I$63/5,0)*5,'2020ER'!$D$4:$D$19,'2020ER'!$Q$68:$Q$83)+(($I$63-ROUNDDOWN($I$63/5,0)*5)/5)*(LOOKUP(ROUNDUP($I$63/5,0)*5,'2020ER'!$D$4:$D$19,'2020ER'!$Q$68:$Q$83)-LOOKUP(ROUNDDOWN($I$63/5,0)*5,'2020ER'!$D$4:$D$19,'2020ER'!$Q$68:$Q$83))) -> 0.1927361607
E104: Buses | F104: =IF($I$22="Rural",LOOKUP(ROUNDDOWN($I$63/5,0)*5,'2020ER'!$D$4:$D$19,'2020ER'!$J$4:$J$19)+(($I$63-ROUNDDOWN($I$63/5,0)*5)/5)*(LOOKUP(ROUNDUP($I$63/5,0)*5,'2020ER'!$D$4:$D$19,'2020ER'!$J$4:$J$19)-LOOKUP(ROUNDDOWN($I$63/5,0)*5,'2020ER'!$D$4:$D$19,'2020ER'!$J$4:$J$19)),LOOKUP(ROUNDDOWN($I$63/5,0)*5,'2020ER'!$D$4:$D$19,'2020ER'!$L$4:$L$19)+(($I$63-ROUNDDOWN($I$63/5,0)*5)/5)*(LOOKUP(ROUNDUP($I$63/5,0)*5,'2020ER'!$D$4:$D$19,'2020ER'!$L$4:$L$19)-LOOKUP(ROUNDDOWN($I$63/5,0)*5,'2020ER'!$D$4:$D$19,'2020ER'!$L$4:$L$19))) -> 1285.08716 | G104: =IF($I$22="Rural",LOOKUP(ROUNDDOWN($I$63/5,0)*5,'2020ER'!$D$20:$D$35,'2020ER'!$J$20:$J$35)+(($I$63-ROUNDDOWN($I$63/5,0)*5)/5)*(LOOKUP(ROUNDUP($I$63/5,0)*5,'2020ER'!$D$20:$D$35,'2020ER'!$J$20:$J$35)-LOOKUP(ROUNDDOWN($I$63/5,0)*5,'2020ER'!$D$20:$D$35,'2020ER'!$J$20:$J$35)),LOOKUP(ROUNDDOWN($I$63/5,0)*5,'2020ER'!$D$20:$D$35,'2020ER'!$L$20:$L$35)+(($I$63-ROUNDDOWN($I$63/5,0)*5)/5)*(LOOKUP(ROUNDUP($I$63/5,0)*5,'2020ER'!$D$20:$D$35,'2020ER'!$L$20:$L$35)-LOOKUP(ROUNDDOWN($I$63/5,0)*5,'2020ER'!$D$20:$D$35,'2020ER'!$L$20:$L$35))) -> 4.098733484 | H104: =IF($I$22="Rural",LOOKUP(ROUNDDOWN($I$63/5,0)*5,'2020ER'!$D$52:$D$67,'2020ER'!$J$52:$J$67)+(($I$63-ROUNDDOWN($I$63/5,0)*5)/5)*(LOOKUP(ROUNDUP($I$63/5,0)*5,'2020ER'!$D$52:$D$67,'2020ER'!$J$52:$J$67)-LOOKUP(ROUNDDOWN($I$63/5,0)*5,'2020ER'!$D$52:$D$67,'2020ER'!$J$52:$J$67)),LOOKUP(ROUNDDOWN($I$63/5,0)*5,'2020ER'!$D$52:$D$67,'2020ER'!$L$52:$L$67)+(($I$63-ROUNDDOWN($I$63/5,0)*5)/5)*(LOOKUP(ROUNDUP($I$63/5,0)*5,'2020ER'!$D$52:$D$67,'2020ER'!$L$52:$L$67)-LOOKUP(ROUNDDOWN($I$63/5,0)*5,'2020ER'!$D$52:$D$67,'2020ER'!$L$52:$L$67))) -> 3.673092407 | I104: =IF($I$22="Rural",LOOKUP(ROUNDDOWN($I$63/5,0)*5,'2020ER'!$D$36:$D$51,'2020ER'!$J$36:$J$51)+(($I$63-ROUNDDOWN($I$63/5,0)*5)/5)*(LOOKUP(ROUNDUP($I$63/5,0)*5,'2020ER'!$D$36:$D$51,'2020ER'!$J$36:$J$51)-LOOKUP(ROUNDDOWN($I$63/5,0)*5,'2020ER'!$D$36:$D$51,'2020ER'!$J$36:$J$51)),LOOKUP(ROUNDDOWN($I$63/5,0)*5,'2020ER'!$D$36:$D$51,'2020ER'!$L$36:$L$51)+(($I$63-ROUNDDOWN($I$63/5,0)*5)/5)*(LOOKUP(ROUNDUP($I$63/5,0)*5,'2020ER'!$D$36:$D$51,'2020ER'!$L$36:$L$51)-LOOKUP(ROUNDDOWN($I$63/5,0)*5,'2020ER'!$D$36:$D$51,'2020ER'!$L$36:$L$51))) -> 0.1345008183 | J104: =IF($I$22="Rural",LOOKUP(ROUNDDOWN($I$63/5,0)*5,'2020ER'!$D$4:$D$19,'2020ER'!$J$4:$J$19)+(($I$63-ROUNDDOWN($I$63/5,0)*5)/5)*(LOOKUP(ROUNDUP($I$63/5,0)*5,'2020ER'!$D$4:$D$19,'2020ER'!$J$4:$J$19)-LOOKUP(ROUNDDOWN($I$63/5,0)*5,'2020ER'!$D$4:$D$19,'2020ER'!$J$4:$J$19)),LOOKUP(ROUNDDOWN($I$63/5,0)*5,'2020ER'!$D$4:$D$19,'2020ER'!$L$68:$L$83)+(($I$63-ROUNDDOWN($I$63/5,0)*5)/5)*(LOOKUP(ROUNDUP($I$63/5,0)*5,'2020ER'!$D$4:$D$19,'2020ER'!$L$68:$L$83)-LOOKUP(ROUNDDOWN($I$63/5,0)*5,'2020ER'!$D$4:$D$19,'2020ER'!$L$68:$L$83))) -> 0.3054758577
D105: Proposed - General Purpose Lane | E105: Light Duty Vehicles | F105: =IF($I$22="Rural",LOOKUP(ROUNDDOWN($I$69/5,0)*5,'2020ER'!$D$4:$D$19,'2020ER'!$E$4:$E$19)+(($I$69-ROUNDDOWN($I$69/5,0)*5)/5)*(LOOKUP(ROUNDUP($I$69/5,0)*5,'2020ER'!$D$4:$D$19,'2020ER'!$E$4:$E$19)-LOOKUP(ROUNDDOWN($I$69/5,0)*5,'2020ER'!$D$4:$D$19,'2020ER'!$E$4:$E$19)),LOOKUP(ROUNDDOWN($I$69/5,0)*5,'2020ER'!$D$4:$D$19,'2020ER'!$G$4:$G$19)+(($I$69-ROUNDDOWN($I$69/5,0)*5)/5)*(LOOKUP(ROUNDUP($I$69/5,0)*5,'2020ER'!$D$4:$D$19,'2020ER'!$G$4:$G$19)-LOOKUP(ROUNDDOWN($I$69/5,0)*5,'2020ER'!$D$4:$D$19,'2020ER'!$G$4:$G$19))) -> 329.0859298 | G105: =IF($I$22="Rural",LOOKUP(ROUNDDOWN($I$69/5,0)*5,'2020ER'!$D$20:$D$35,'2020ER'!$E$20:$E$35)+(($I$69-ROUNDDOWN($I$69/5,0)*5)/5)*(LOOKUP(ROUNDUP($I$69/5,0)*5,'2020ER'!$D$20:$D$35,'2020ER'!$E$20:$E$35)-LOOKUP(ROUNDDOWN($I$69/5,0)*5,'2020ER'!$D$20:$D$35,'2020ER'!$E$20:$E$35)),LOOKUP(ROUNDDOWN($I$69/5,0)*5,'2020ER'!$D$20:$D$35,'2020ER'!$G$20:$G$35)+(($I$69-ROUNDDOWN($I$69/5,0)*5)/5)*(LOOKUP(ROUNDUP($I$69/5,0)*5,'2020ER'!$D$20:$D$35,'2020ER'!$G$20:$G$35)-LOOKUP(ROUNDDOWN($I$69/5,0)*5,'2020ER'!$D$20:$D$35,'2020ER'!$G$20:$G$35))) -> 0.2334977612 | H105: =IF($I$22="Rural",LOOKUP(ROUNDDOWN($I$69/5,0)*5,'2020ER'!$D$52:$D$67,'2020ER'!$E$52:$E$67)+(($I$69-ROUNDDOWN($I$69/5,0)*5)/5)*(LOOKUP(ROUNDUP($I$69/5,0)*5,'2020ER'!$D$52:$D$67,'2020ER'!$E$52:$E$67)-LOOKUP(ROUNDDOWN($I$69/5,0)*5,'2020ER'!$D$52:$D$67,'2020ER'!$E$52:$E$67)),LOOKUP(ROUNDDOWN($I$69/5,0)*5,'2020ER'!$D$52:$D$67,'2020ER'!$G$52:$G$67)+(($I$69-ROUNDDOWN($I$69/5,0)*5)/5)*(LOOKUP(ROUNDUP($I$69/5,0)*5,'2020ER'!$D$52:$D$67,'2020ER'!$G$52:$G$67)-LOOKUP(ROUNDDOWN($I$69/5,0)*5,'2020ER'!$D$52:$D$67,'2020ER'!$G$52:$G$67))) -> 0.2237753533 | I105: =IF($I$22="Rural",LOOKUP(ROUNDDOWN($I$69/5,0)*5,'2020ER'!$D$36:$D$51,'2020ER'!$E$36:$E$51)+(($I$69-ROUNDDOWN($I$69/5,0)*5)/5)*(LOOKUP(ROUNDUP($I$69/5,0)*5,'2020ER'!$D$36:$D$51,'2020ER'!$E$36:$E$51)-LOOKUP(ROUNDDOWN($I$69/5,0)*5,'2020ER'!$D$36:$D$51,'2020ER'!$E$36:$E$51)),LOOKUP(ROUNDDOWN($I$69/5,0)*5,'2020ER'!$D$36:$D$51,'2020ER'!$G$36:$G$51)+(($I$69-ROUNDDOWN($I$69/5,0)*5)/5)*(LOOKUP(ROUNDUP($I$69/5,0)*5,'2020ER'!$D$36:$D$51,'2020ER'!$G$36:$G$51)-LOOKUP(ROUNDDOWN($I$69/5,0)*5,'2020ER'!$D$36:$D$51,'2020ER'!$G$36:$G$51))) -> 0.009109463053 | J105: =IF($I$22="Rural",LOOKUP(ROUNDDOWN($I$69/5,0)*5,'2020ER'!$D$4:$D$19,'2020ER'!$E$4:$E$19)+(($I$69-ROUNDDOWN($I$69/5,0)*5)/5)*(LOOKUP(ROUNDUP($I$69/5,0)*5,'2020ER'!$D$4:$D$19,'2020ER'!$E$4:$E$19)-LOOKUP(ROUNDDOWN($I$69/5,0)*5,'2020ER'!$D$4:$D$19,'2020ER'!$E$4:$E$19)),LOOKUP(ROUNDDOWN($I$69/5,0)*5,'2020ER'!$D$4:$D$19,'2020ER'!$G$68:$G$83)+(($I$69-ROUNDDOWN($I$69/5,0)*5)/5)*(LOOKUP(ROUNDUP($I$69/5,0)*5,'2020ER'!$D$4:$D$19,'2020ER'!$G$68:$G$83)-LOOKUP(ROUNDDOWN($I$69/5,0)*5,'2020ER'!$D$4:$D$19,'2020ER'!$G$68:$G$83))) -> 0.08933573807
E106: All Trucks | F106: =IF($I$22="Rural",LOOKUP(ROUNDDOWN($I$69/5,0)*5,'2020ER'!$D$4:$D$19,'2020ER'!$O$4:$O$19)+(($I$69-ROUNDDOWN($I$69/5,0)*5)/5)*(LOOKUP(ROUNDUP($I$69/5,0)*5,'2020ER'!$D$4:$D$19,'2020ER'!$O$4:$O$19)-LOOKUP(ROUNDDOWN($I$69/5,0)*5,'2020ER'!$D$4:$D$19,'2020ER'!$O$4:$O$19)),LOOKUP(ROUNDDOWN($I$69/5,0)*5,'2020ER'!$D$4:$D$19,'2020ER'!$Q$4:$Q$19)+(($I$69-ROUNDDOWN($I$69/5,0)*5)/5)*(LOOKUP(ROUNDUP($I$69/5,0)*5,'2020ER'!$D$4:$D$19,'2020ER'!$Q$4:$Q$19)-LOOKUP(ROUNDDOWN($I$69/5,0)*5,'2020ER'!$D$4:$D$19,'2020ER'!$Q$4:$Q$19))) -> 1314.393595 | G106: =IF($I$22="Rural",LOOKUP(ROUNDDOWN($I$69/5,0)*5,'2020ER'!$D$20:$D$35,'2020ER'!$O$20:$O$35)+(($I$69-ROUNDDOWN($I$69/5,0)*5)/5)*(LOOKUP(ROUNDUP($I$69/5,0)*5,'2020ER'!$D$20:$D$35,'2020ER'!$O$20:$O$35)-LOOKUP(ROUNDDOWN($I$69/5,0)*5,'2020ER'!$D$20:$D$35,'2020ER'!$O$20:$O$35)),LOOKUP(ROUNDDOWN($I$69/5,0)*5,'2020ER'!$D$20:$D$35,'2020ER'!$Q$20:$Q$35)+(($I$69-ROUNDDOWN($I$69/5,0)*5)/5)*(LOOKUP(ROUNDUP($I$69/5,0)*5,'2020ER'!$D$20:$D$35,'2020ER'!$Q$20:$Q$35)-LOOKUP(ROUNDDOWN($I$69/5,0)*5,'2020ER'!$D$20:$D$35,'2020ER'!$Q$20:$Q$35))) -> 2.115985608 | H106: =IF($I$22="Rural",LOOKUP(ROUNDDOWN($I$69/5,0)*5,'2020ER'!$D$52:$D$67,'2020ER'!$O$52:$O$67)+(($I$69-ROUNDDOWN($I$69/5,0)*5)/5)*(LOOKUP(ROUNDUP($I$69/5,0)*5,'2020ER'!$D$52:$D$67,'2020ER'!$O$52:$O$67)-LOOKUP(ROUNDDOWN($I$69/5,0)*5,'2020ER'!$D$52:$D$67,'2020ER'!$O$52:$O$67)),LOOKUP(ROUNDDOWN($I$69/5,0)*5,'2020ER'!$D$52:$D$67,'2020ER'!$Q$52:$Q$67)+(($I$69-ROUNDDOWN($I$69/5,0)*5)/5)*(LOOKUP(ROUNDUP($I$69/5,0)*5,'2020ER'!$D$52:$D$67,'2020ER'!$Q$52:$Q$67)-LOOKUP(ROUNDDOWN($I$69/5,0)*5,'2020ER'!$D$52:$D$67,'2020ER'!$Q$52:$Q$67))) -> 1.884099797 | I106: =IF($I$22="Rural",LOOKUP(ROUNDDOWN($I$69/5,0)*5,'2020ER'!$D$36:$D$51,'2020ER'!$O$36:$O$51)+(($I$69-ROUNDDOWN($I$69/5,0)*5)/5)*(LOOKUP(ROUNDUP($I$69/5,0)*5,'2020ER'!$D$36:$D$51,'2020ER'!$O$36:$O$51)-LOOKUP(ROUNDDOWN($I$69/5,0)*5,'2020ER'!$D$36:$D$51,'2020ER'!$O$36:$O$51)),LOOKUP(ROUNDDOWN($I$69/5,0)*5,'2020ER'!$D$36:$D$51,'2020ER'!$Q$36:$Q$51)+(($I$69-ROUNDDOWN($I$69/5,0)*5)/5)*(LOOKUP(ROUNDUP($I$69/5,0)*5,'2020ER'!$D$36:$D$51,'2020ER'!$Q$36:$Q$51)-LOOKUP(ROUNDDOWN($I$69/5,0)*5,'2020ER'!$D$36:$D$51,'2020ER'!$Q$36:$Q$51))) -> 0.07297426665 | J106: =IF($I$22="Rural",LOOKUP(ROUNDDOWN($I$69/5,0)*5,'2020ER'!$D$4:$D$19,'2020ER'!$O$4:$O$19)+(($I$69-ROUNDDOWN($I$69/5,0)*5)/5)*(LOOKUP(ROUNDUP($I$69/5,0)*5,'2020ER'!$D$4:$D$19,'2020ER'!$O$4:$O$19)-LOOKUP(ROUNDDOWN($I$69/5,0)*5,'2020ER'!$D$4:$D$19,'2020ER'!$O$4:$O$19)),LOOKUP(ROUNDDOWN($I$69/5,0)*5,'2020ER'!$D$4:$D$19,'2020ER'!$Q$68:$Q$83)+(($I$69-ROUNDDOWN($I$69/5,0)*5)/5)*(LOOKUP(ROUNDUP($I$69/5,0)*5,'2020ER'!$D$4:$D$19,'2020ER'!$Q$68:$Q$83)-LOOKUP(ROUNDDOWN($I$69/5,0)*5,'2020ER'!$D$4:$D$19,'2020ER'!$Q$68:$Q$83))) -> 0.1936167849
E107: Buses | F107: =IF($I$22="Rural",LOOKUP(ROUNDDOWN($I$69/5,0)*5,'2020ER'!$D$4:$D$19,'2020ER'!$J$4:$J$19)+(($I$69-ROUNDDOWN($I$69/5,0)*5)/5)*(LOOKUP(ROUNDUP($I$69/5,0)*5,'2020ER'!$D$4:$D$19,'2020ER'!$J$4:$J$19)-LOOKUP(ROUNDDOWN($I$69/5,0)*5,'2020ER'!$D$4:$D$19,'2020ER'!$J$4:$J$19)),LOOKUP(ROUNDDOWN($I$69/5,0)*5,'2020ER'!$D$4:$D$19,'2020ER'!$L$4:$L$19)+(($I$69-ROUNDDOWN($I$69/5,0)*5)/5)*(LOOKUP(ROUNDUP($I$69/5,0)*5,'2020ER'!$D$4:$D$19,'2020ER'!$L$4:$L$19)-LOOKUP(ROUNDDOWN($I$69/5,0)*5,'2020ER'!$D$4:$D$19,'2020ER'!$L$4:$L$19))) -> 1276.672603 | G107: =IF($I$22="Rural",LOOKUP(ROUNDDOWN($I$69/5,0)*5,'2020ER'!$D$20:$D$35,'2020ER'!$J$20:$J$35)+(($I$69-ROUNDDOWN($I$69/5,0)*5)/5)*(LOOKUP(ROUNDUP($I$69/5,0)*5,'2020ER'!$D$20:$D$35,'2020ER'!$J$20:$J$35)-LOOKUP(ROUNDDOWN($I$69/5,0)*5,'2020ER'!$D$20:$D$35,'2020ER'!$J$20:$J$35)),LOOKUP(ROUNDDOWN($I$69/5,0)*5,'2020ER'!$D$20:$D$35,'2020ER'!$L$20:$L$35)+(($I$69-ROUNDDOWN($I$69/5,0)*5)/5)*(LOOKUP(ROUNDUP($I$69/5,0)*5,'2020ER'!$D$20:$D$35,'2020ER'!$L$20:$L$35)-LOOKUP(ROUNDDOWN($I$69/5,0)*5,'2020ER'!$D$20:$D$35,'2020ER'!$L$20:$L$35))) -> 4.072326674 | H107: =IF($I$22="Rural",LOOKUP(ROUNDDOWN($I$69/5,0)*5,'2020ER'!$D$52:$D$67,'2020ER'!$J$52:$J$67)+(($I$69-ROUNDDOWN($I$69/5,0)*5)/5)*(LOOKUP(ROUNDUP($I$69/5,0)*5,'2020ER'!$D$52:$D$67,'2020ER'!$J$52:$J$67)-LOOKUP(ROUNDDOWN($I$69/5,0)*5,'2020ER'!$D$52:$D$67,'2020ER'!$J$52:$J$67)),LOOKUP(ROUNDDOWN($I$69/5,0)*5,'2020ER'!$D$52:$D$67,'2020ER'!$L$52:$L$67)+(($I$69-ROUNDDOWN($I$69/5,0)*5)/5)*(LOOKUP(ROUNDUP($I$69/5,0)*5,'2020ER'!$D$52:$D$67,'2020ER'!$L$52:$L$67)-LOOKUP(ROUNDDOWN($I$69/5,0)*5,'2020ER'!$D$52:$D$67,'2020ER'!$L$52:$L$67))) -> 3.649506693 | I107: =IF($I$22="Rural",LOOKUP(ROUNDDOWN($I$69/5,0)*5,'2020ER'!$D$36:$D$51,'2020ER'!$J$36:$J$51)+(($I$69-ROUNDDOWN($I$69/5,0)*5)/5)*(LOOKUP(ROUNDUP($I$69/5,0)*5,'2020ER'!$D$36:$D$51,'2020ER'!$J$36:$J$51)-LOOKUP(ROUNDDOWN($I$69/5,0)*5,'2020ER'!$D$36:$D$51,'2020ER'!$J$36:$J$51)),LOOKUP(ROUNDDOWN($I$69/5,0)*5,'2020ER'!$D$36:$D$51,'2020ER'!$L$36:$L$51)+(($I$69-ROUNDDOWN($I$69/5,0)*5)/5)*(LOOKUP(ROUNDUP($I$69/5,0)*5,'2020ER'!$D$36:$D$51,'2020ER'!$L$36:$L$51)-LOOKUP(ROUNDDOWN($I$69/5,0)*5,'2020ER'!$D$36:$D$51,'2020ER'!$L$36:$L$51))) -> 0.134918827 | J107: =IF($I$22="Rural",LOOKUP(ROUNDDOWN($I$69/5,0)*5,'2020ER'!$D$4:$D$19,'2020ER'!$J$4:$J$19)+(($I$69-ROUNDDOWN($I$69/5,0)*5)/5)*(LOOKUP(ROUNDUP($I$69/5,0)*5,'2020ER'!$D$4:$D$19,'2020ER'!$J$4:$J$19)-LOOKUP(ROUNDDOWN($I$69/5,0)*5,'2020ER'!$D$4:$D$19,'2020ER'!$J$4:$J$19)),LOOKUP(ROUNDDOWN($I$69/5,0)*5,'2020ER'!$D$4:$D$19,'2020ER'!$L$68:$L$83)+(($I$69-ROUNDDOWN($I$69/5,0)*5)/5)*(LOOKUP(ROUNDUP($I$69/5,0)*5,'2020ER'!$D$4:$D$19,'2020ER'!$L$68:$L$83)-LOOKUP(ROUNDDOWN($I$69/5,0)*5,'2020ER'!$D$4:$D$19,'2020ER'!$L$68:$L$83))) -> 0.3071648648
D108: Proposed - HOV Lane | E108: Light Duty Vehicles | F108: =IF($I$22="Rural",LOOKUP(ROUNDDOWN($I$74/5,0)*5,'2020ER'!$D$4:$D$19,'2020ER'!$E$4:$E$19)+(($I$74-ROUNDDOWN($I$74/5,0)*5)/5)*(LOOKUP(ROUNDUP($I$74/5,0)*5,'2020ER'!$D$4:$D$19,'2020ER'!$E$4:$E$19)-LOOKUP(ROUNDDOWN($I$74/5,0)*5,'2020ER'!$D$4:$D$19,'2020ER'!$E$4:$E$19)),LOOKUP(ROUNDDOWN($I$74/5,0)*5,'2020ER'!$D$4:$D$19,'2020ER'!$G$4:$G$19)+(($I$74-ROUNDDOWN($I$74/5,0)*5)/5)*(LOOKUP(ROUNDUP($I$74/5,0)*5,'2020ER'!$D$4:$D$19,'2020ER'!$G$4:$G$19)-LOOKUP(ROUNDDOWN($I$74/5,0)*5,'2020ER'!$D$4:$D$19,'2020ER'!$G$4:$G$19))) -> 329.388362 | G108: =IF($I$22="Rural",LOOKUP(ROUNDDOWN($I$74/5,0)*5,'2020ER'!$D$20:$D$35,'2020ER'!$E$20:$E$35)+(($I$74-ROUNDDOWN($I$74/5,0)*5)/5)*(LOOKUP(ROUNDUP($I$74/5,0)*5,'2020ER'!$D$20:$D$35,'2020ER'!$E$20:$E$35)-LOOKUP(ROUNDDOWN($I$74/5,0)*5,'2020ER'!$D$20:$D$35,'2020ER'!$E$20:$E$35)),LOOKUP(ROUNDDOWN($I$74/5,0)*5,'2020ER'!$D$20:$D$35,'2020ER'!$G$20:$G$35)+(($I$74-ROUNDDOWN($I$74/5,0)*5)/5)*(LOOKUP(ROUNDUP($I$74/5,0)*5,'2020ER'!$D$20:$D$35,'2020ER'!$G$20:$G$35)-LOOKUP(ROUNDDOWN($I$74/5,0)*5,'2020ER'!$D$20:$D$35,'2020ER'!$G$20:$G$35))) -> 0.2345353343 | H108: =IF($I$22="Rural",LOOKUP(ROUNDDOWN($I$74/5,0)*5,'2020ER'!$D$52:$D$67,'2020ER'!$E$52:$E$67)+(($I$74-ROUNDDOWN($I$74/5,0)*5)/5)*(LOOKUP(ROUNDUP($I$74/5,0)*5,'2020ER'!$D$52:$D$67,'2020ER'!$E$52:$E$67)-LOOKUP(ROUNDDOWN($I$74/5,0)*5,'2020ER'!$D$52:$D$67,'2020ER'!$E$52:$E$67)),LOOKUP(ROUNDDOWN($I$74/5,0)*5,'2020ER'!$D$52:$D$67,'2020ER'!$G$52:$G$67)+(($I$74-ROUNDDOWN($I$74/5,0)*5)/5)*(LOOKUP(ROUNDUP($I$74/5,0)*5,'2020ER'!$D$52:$D$67,'2020ER'!$G$52:$G$67)-LOOKUP(ROUNDDOWN($I$74/5,0)*5,'2020ER'!$D$52:$D$67,'2020ER'!$G$52:$G$67))) -> 0.224776627 | I108: =IF($I$22="Rural",LOOKUP(ROUNDDOWN($I$74/5,0)*5,'2020ER'!$D$36:$D$51,'2020ER'!$E$36:$E$51)+(($I$74-ROUNDDOWN($I$74/5,0)*5)/5)*(LOOKUP(ROUNDUP($I$74/5,0)*5,'2020ER'!$D$36:$D$51,'2020ER'!$E$36:$E$51)-LOOKUP(ROUNDDOWN($I$74/5,0)*5,'2020ER'!$D$36:$D$51,'2020ER'!$E$36:$E$51)),LOOKUP(ROUNDDOWN($I$74/5,0)*5,'2020ER'!$D$36:$D$51,'2020ER'!$G$36:$G$51)+(($I$74-ROUNDDOWN($I$74/5,0)*5)/5)*(LOOKUP(ROUNDUP($I$74/5,0)*5,'2020ER'!$D$36:$D$51,'2020ER'!$G$36:$G$51)-LOOKUP(ROUNDDOWN($I$74/5,0)*5,'2020ER'!$D$36:$D$51,'2020ER'!$G$36:$G$51))) -> 0.009049063207 | J108: =IF($I$22="Rural",LOOKUP(ROUNDDOWN($I$74/5,0)*5,'2020ER'!$D$4:$D$19,'2020ER'!$E$4:$E$19)+(($I$74-ROUNDDOWN($I$74/5,0)*5)/5)*(LOOKUP(ROUNDUP($I$74/5,0)*5,'2020ER'!$D$4:$D$19,'2020ER'!$E$4:$E$19)-LOOKUP(ROUNDDOWN($I$74/5,0)*5,'2020ER'!$D$4:$D$19,'2020ER'!$E$4:$E$19)),LOOKUP(ROUNDDOWN($I$74/5,0)*5,'2020ER'!$D$4:$D$19,'2020ER'!$G$68:$G$83)+(($I$74-ROUNDDOWN($I$74/5,0)*5)/5)*(LOOKUP(ROUNDUP($I$74/5,0)*5,'2020ER'!$D$4:$D$19,'2020ER'!$G$68:$G$83)-LOOKUP(ROUNDDOWN($I$74/5,0)*5,'2020ER'!$D$4:$D$19,'2020ER'!$G$68:$G$83))) -> 0.08925153732
E109: All Trucks | F109: =IF($I$22="Rural",LOOKUP(ROUNDDOWN($I$74/5,0)*5,'2020ER'!$D$4:$D$19,'2020ER'!$O$4:$O$19)+(($I$74-ROUNDDOWN($I$74/5,0)*5)/5)*(LOOKUP(ROUNDUP($I$74/5,0)*5,'2020ER'!$D$4:$D$19,'2020ER'!$O$4:$O$19)-LOOKUP(ROUNDDOWN($I$74/5,0)*5,'2020ER'!$D$4:$D$19,'2020ER'!$O$4:$O$19)),LOOKUP(ROUNDDOWN($I$74/5,0)*5,'2020ER'!$D$4:$D$19,'2020ER'!$Q$4:$Q$19)+(($I$74-ROUNDDOWN($I$74/5,0)*5)/5)*(LOOKUP(ROUNDUP($I$74/5,0)*5,'2020ER'!$D$4:$D$19,'2020ER'!$Q$4:$Q$19)-LOOKUP(ROUNDDOWN($I$74/5,0)*5,'2020ER'!$D$4:$D$19,'2020ER'!$Q$4:$Q$19))) -> 1319.824195 | G109: =IF($I$22="Rural",LOOKUP(ROUNDDOWN($I$74/5,0)*5,'2020ER'!$D$20:$D$35,'2020ER'!$O$20:$O$35)+(($I$74-ROUNDDOWN($I$74/5,0)*5)/5)*(LOOKUP(ROUNDUP($I$74/5,0)*5,'2020ER'!$D$20:$D$35,'2020ER'!$O$20:$O$35)-LOOKUP(ROUNDDOWN($I$74/5,0)*5,'2020ER'!$D$20:$D$35,'2020ER'!$O$20:$O$35)),LOOKUP(ROUNDDOWN($I$74/5,0)*5,'2020ER'!$D$20:$D$35,'2020ER'!$Q$20:$Q$35)+(($I$74-ROUNDDOWN($I$74/5,0)*5)/5)*(LOOKUP(ROUNDUP($I$74/5,0)*5,'2020ER'!$D$20:$D$35,'2020ER'!$Q$20:$Q$35)-LOOKUP(ROUNDDOWN($I$74/5,0)*5,'2020ER'!$D$20:$D$35,'2020ER'!$Q$20:$Q$35))) -> 2.122883099 | H109: =IF($I$22="Rural",LOOKUP(ROUNDDOWN($I$74/5,0)*5,'2020ER'!$D$52:$D$67,'2020ER'!$O$52:$O$67)+(($I$74-ROUNDDOWN($I$74/5,0)*5)/5)*(LOOKUP(ROUNDUP($I$74/5,0)*5,'2020ER'!$D$52:$D$67,'2020ER'!$O$52:$O$67)-LOOKUP(ROUNDDOWN($I$74/5,0)*5,'2020ER'!$D$52:$D$67,'2020ER'!$O$52:$O$67)),LOOKUP(ROUNDDOWN($I$74/5,0)*5,'2020ER'!$D$52:$D$67,'2020ER'!$Q$52:$Q$67)+(($I$74-ROUNDDOWN($I$74/5,0)*5)/5)*(LOOKUP(ROUNDUP($I$74/5,0)*5,'2020ER'!$D$52:$D$67,'2020ER'!$Q$52:$Q$67)-LOOKUP(ROUNDDOWN($I$74/5,0)*5,'2020ER'!$D$52:$D$67,'2020ER'!$Q$52:$Q$67))) -> 1.890274776 | I109: =IF($I$22="Rural",LOOKUP(ROUNDDOWN($I$74/5,0)*5,'2020ER'!$D$36:$D$51,'2020ER'!$O$36:$O$51)+(($I$74-ROUNDDOWN($I$74/5,0)*5)/5)*(LOOKUP(ROUNDUP($I$74/5,0)*5,'2020ER'!$D$36:$D$51,'2020ER'!$O$36:$O$51)-LOOKUP(ROUNDDOWN($I$74/5,0)*5,'2020ER'!$D$36:$D$51,'2020ER'!$O$36:$O$51)),LOOKUP(ROUNDDOWN($I$74/5,0)*5,'2020ER'!$D$36:$D$51,'2020ER'!$Q$36:$Q$51)+(($I$74-ROUNDDOWN($I$74/5,0)*5)/5)*(LOOKUP(ROUNDUP($I$74/5,0)*5,'2020ER'!$D$36:$D$51,'2020ER'!$Q$36:$Q$51)-LOOKUP(ROUNDDOWN($I$74/5,0)*5,'2020ER'!$D$36:$D$51,'2020ER'!$Q$36:$Q$51))) -> 0.07279950847 | J109: =IF($I$22="Rural",LOOKUP(ROUNDDOWN($I$74/5,0)*5,'2020ER'!$D$4:$D$19,'2020ER'!$O$4:$O$19)+(($I$74-ROUNDDOWN($I$74/5,0)*5)/5)*(LOOKUP(ROUNDUP($I$74/5,0)*5,'2020ER'!$D$4:$D$19,'2020ER'!$O$4:$O$19)-LOOKUP(ROUNDDOWN($I$74/5,0)*5,'2020ER'!$D$4:$D$19,'2020ER'!$O$4:$O$19)),LOOKUP(ROUNDDOWN($I$74/5,0)*5,'2020ER'!$D$4:$D$19,'2020ER'!$Q$68:$Q$83)+(($I$74-ROUNDDOWN($I$74/5,0)*5)/5)*(LOOKUP(ROUNDUP($I$74/5,0)*5,'2020ER'!$D$4:$D$19,'2020ER'!$Q$68:$Q$83)-LOOKUP(ROUNDDOWN($I$74/5,0)*5,'2020ER'!$D$4:$D$19,'2020ER'!$Q$68:$Q$83))) -> 0.1927361607
E110: Buses | F110: =IF($I$22="Rural",LOOKUP(ROUNDDOWN($I$74/5,0)*5,'2020ER'!$D$4:$D$19,'2020ER'!$J$4:$J$19)+(($I$74-ROUNDDOWN($I$74/5,0)*5)/5)*(LOOKUP(ROUNDUP($I$74/5,0)*5,'2020ER'!$D$4:$D$19,'2020ER'!$J$4:$J$19)-LOOKUP(ROUNDDOWN($I$74/5,0)*5,'2020ER'!$D$4:$D$19,'2020ER'!$J$4:$J$19)),LOOKUP(ROUNDDOWN($I$74/5,0)*5,'2020ER'!$D$4:$D$19,'2020ER'!$L$4:$L$19)+(($I$74-ROUNDDOWN($I$74/5,0)*5)/5)*(LOOKUP(ROUNDUP($I$74/5,0)*5,'2020ER'!$D$4:$D$19,'2020ER'!$L$4:$L$19)-LOOKUP(ROUNDDOWN($I$74/5,0)*5,'2020ER'!$D$4:$D$19,'2020ER'!$L$4:$L$19))) -> 1285.08716 | G110: =IF($I$22="Rural",LOOKUP(ROUNDDOWN($I$74/5,0)*5,'2020ER'!$D$20:$D$35,'2020ER'!$J$20:$J$35)+(($I$74-ROUNDDOWN($I$74/5,0)*5)/5)*(LOOKUP(ROUNDUP($I$74/5,0)*5,'2020ER'!$D$20:$D$35,'2020ER'!$J$20:$J$35)-LOOKUP(ROUNDDOWN($I$74/5,0)*5,'2020ER'!$D$20:$D$35,'2020ER'!$J$20:$J$35)),LOOKUP(ROUNDDOWN($I$74/5,0)*5,'2020ER'!$D$20:$D$35,'2020ER'!$L$20:$L$35)+(($I$74-ROUNDDOWN($I$74/5,0)*5)/5)*(LOOKUP(ROUNDUP($I$74/5,0)*5,'2020ER'!$D$20:$D$35,'2020ER'!$L$20:$L$35)-LOOKUP(ROUNDDOWN($I$74/5,0)*5,'2020ER'!$D$20:$D$35,'2020ER'!$L$20:$L$35))) -> 4.098733484 | H110: =IF($I$22="Rural",LOOKUP(ROUNDDOWN($I$74/5,0)*5,'2020ER'!$D$52:$D$67,'2020ER'!$J$52:$J$67)+(($I$74-ROUNDDOWN($I$74/5,0)*5)/5)*(LOOKUP(ROUNDUP($I$74/5,0)*5,'2020ER'!$D$52:$D$67,'2020ER'!$J$52:$J$67)-LOOKUP(ROUNDDOWN($I$74/5,0)*5,'2020ER'!$D$52:$D$67,'2020ER'!$J$52:$J$67)),LOOKUP(ROUNDDOWN($I$74/5,0)*5,'2020ER'!$D$52:$D$67,'2020ER'!$L$52:$L$67)+(($I$74-ROUNDDOWN($I$74/5,0)*5)/5)*(LOOKUP(ROUNDUP($I$74/5,0)*5,'2020ER'!$D$52:$D$67,'2020ER'!$L$52:$L$67)-LOOKUP(ROUNDDOWN($I$74/5,0)*5,'2020ER'!$D$52:$D$67,'2020ER'!$L$52:$L$67))) -> 3.673092407 | I110: =IF($I$22="Rural",LOOKUP(ROUNDDOWN($I$74/5,0)*5,'2020ER'!$D$36:$D$51,'2020ER'!$J$36:$J$51)+(($I$74-ROUNDDOWN($I$74/5,0)*5)/5)*(LOOKUP(ROUNDUP($I$74/5,0)*5,'2020ER'!$D$36:$D$51,'2020ER'!$J$36:$J$51)-LOOKUP(ROUNDDOWN($I$74/5,0)*5,'2020ER'!$D$36:$D$51,'2020ER'!$J$36:$J$51)),LOOKUP(ROUNDDOWN($I$74/5,0)*5,'2020ER'!$D$36:$D$51,'2020ER'!$L$36:$L$51)+(($I$74-ROUNDDOWN($I$74/5,0)*5)/5)*(LOOKUP(ROUNDUP($I$74/5,0)*5,'2020ER'!$D$36:$D$51,'2020ER'!$L$36:$L$51)-LOOKUP(ROUNDDOWN($I$74/5,0)*5,'2020ER'!$D$36:$D$51,'2020ER'!$L$36:$L$51))) -> 0.1345008183 | J110: =IF($I$22="Rural",LOOKUP(ROUNDDOWN($I$74/5,0)*5,'2020ER'!$D$4:$D$19,'2020ER'!$J$4:$J$19)+(($I$74-ROUNDDOWN($I$74/5,0)*5)/5)*(LOOKUP(ROUNDUP($I$74/5,0)*5,'2020ER'!$D$4:$D$19,'2020ER'!$J$4:$J$19)-LOOKUP(ROUNDDOWN($I$74/5,0)*5,'2020ER'!$D$4:$D$19,'2020ER'!$J$4:$J$19)),LOOKUP(ROUNDDOWN($I$74/5,0)*5,'2020ER'!$D$4:$D$19,'2020ER'!$L$68:$L$83)+(($I$74-ROUNDDOWN($I$74/5,0)*5)/5)*(LOOKUP(ROUNDUP($I$74/5,0)*5,'2020ER'!$D$4:$D$19,'2020ER'!$L$68:$L$83)-LOOKUP(ROUNDDOWN($I$74/5,0)*5,'2020ER'!$D$4:$D$19,'2020ER'!$L$68:$L$83))) -> 0.3054758577
C111: Evening Peak | D111: Existing - General Purpose Lane | E111: Light Duty Vehicles | F111: =IF($I$22="Rural",LOOKUP(ROUNDDOWN($J$58/5,0)*5,'2020ER'!$D$4:$D$19,'2020ER'!$E$4:$E$19)+(($J$58-ROUNDDOWN($J$58/5,0)*5)/5)*(LOOKUP(ROUNDUP($J$58/5,0)*5,'2020ER'!$D$4:$D$19,'2020ER'!$E$4:$E$19)-LOOKUP(ROUNDDOWN($J$58/5,0)*5,'2020ER'!$D$4:$D$19,'2020ER'!$E$4:$E$19)),LOOKUP(ROUNDDOWN($J$58/5,0)*5,'2020ER'!$D$4:$D$19,'2020ER'!$G$4:$G$19)+(($J$58-ROUNDDOWN($J$58/5,0)*5)/5)*(LOOKUP(ROUNDUP($J$58/5,0)*5,'2020ER'!$D$4:$D$19,'2020ER'!$G$4:$G$19)-LOOKUP(ROUNDDOWN($J$58/5,0)*5,'2020ER'!$D$4:$D$19,'2020ER'!$G$4:$G$19))) -> 385.3073885 | G111: =IF($I$22="Rural",LOOKUP(ROUNDDOWN($J$58/5,0)*5,'2020ER'!$D$20:$D$35,'2020ER'!$E$20:$E$35)+(($J$58-ROUNDDOWN($J$58/5,0)*5)/5)*(LOOKUP(ROUNDUP($J$58/5,0)*5,'2020ER'!$D$20:$D$35,'2020ER'!$E$20:$E$35)-LOOKUP(ROUNDDOWN($J$58/5,0)*5,'2020ER'!$D$20:$D$35,'2020ER'!$E$20:$E$35)),LOOKUP(ROUNDDOWN($J$58/5,0)*5,'2020ER'!$D$20:$D$35,'2020ER'!$G$20:$G$35)+(($J$58-ROUNDDOWN($J$58/5,0)*5)/5)*(LOOKUP(ROUNDUP($J$58/5,0)*5,'2020ER'!$D$20:$D$35,'2020ER'!$G$20:$G$35)-LOOKUP(ROUNDDOWN($J$58/5,0)*5,'2020ER'!$D$20:$D$35,'2020ER'!$G$20:$G$35))) -> 0.1720372195 | H111: =IF($I$22="Rural",LOOKUP(ROUNDDOWN($J$58/5,0)*5,'2020ER'!$D$52:$D$67,'2020ER'!$E$52:$E$67)+(($J$58-ROUNDDOWN($J$58/5,0)*5)/5)*(LOOKUP(ROUNDUP($J$58/5,0)*5,'2020ER'!$D$52:$D$67,'2020ER'!$E$52:$E$67)-LOOKUP(ROUNDDOWN($J$58/5,0)*5,'2020ER'!$D$52:$D$67,'2020ER'!$E$52:$E$67)),LOOKUP(ROUNDDOWN($J$58/5,0)*5,'2020ER'!$D$52:$D$67,'2020ER'!$G$52:$G$67)+(($J$58-ROUNDDOWN($J$58/5,0)*5)/5)*(LOOKUP(ROUNDUP($J$58/5,0)*5,'2020ER'!$D$52:$D$67,'2020ER'!$G$52:$G$67)-LOOKUP(ROUNDDOWN($J$58/5,0)*5,'2020ER'!$D$52:$D$67,'2020ER'!$G$52:$G$67))) -> 0.1654971732 | I111: =IF($I$22="Rural",LOOKUP(ROUNDDOWN($J$58/5,0)*5,'2020ER'!$D$36:$D$51,'2020ER'!$E$36:$E$51)+(($J$58-ROUNDDOWN($J$58/5,0)*5)/5)*(LOOKUP(ROUNDUP($J$58/5,0)*5,'2020ER'!$D$36:$D$51,'2020ER'!$E$36:$E$51)-LOOKUP(ROUNDDOWN($J$58/5,0)*5,'2020ER'!$D$36:$D$51,'2020ER'!$E$36:$E$51)),LOOKUP(ROUNDDOWN($J$58/5,0)*5,'2020ER'!$D$36:$D$51,'2020ER'!$G$36:$G$51)+(($J$58-ROUNDDOWN($J$58/5,0)*5)/5)*(LOOKUP(ROUNDUP($J$58/5,0)*5,'2020ER'!$D$36:$D$51,'2020ER'!$G$36:$G$51)-LOOKUP(ROUNDDOWN($J$58/5,0)*5,'2020ER'!$D$36:$D$51,'2020ER'!$G$36:$G$51))) -> 0.004267319234 | J111: =IF($I$22="Rural",LOOKUP(ROUNDDOWN($J$58/5,0)*5,'2020ER'!$D$4:$D$19,'2020ER'!$E$4:$E$19)+(($J$58-ROUNDDOWN($J$58/5,0)*5)/5)*(LOOKUP(ROUNDUP($J$58/5,0)*5,'2020ER'!$D$4:$D$19,'2020ER'!$E$4:$E$19)-LOOKUP(ROUNDDOWN($J$58/5,0)*5,'2020ER'!$D$4:$D$19,'2020ER'!$E$4:$E$19)),LOOKUP(ROUNDDOWN($J$58/5,0)*5,'2020ER'!$D$4:$D$19,'2020ER'!$G$68:$G$83)+(($J$58-ROUNDDOWN($J$58/5,0)*5)/5)*(LOOKUP(ROUNDUP($J$58/5,0)*5,'2020ER'!$D$4:$D$19,'2020ER'!$G$68:$G$83)-LOOKUP(ROUNDDOWN($J$58/5,0)*5,'2020ER'!$D$4:$D$19,'2020ER'!$G$68:$G$83))) -> 0.1195086712 | K111: g/veh/mile
E112: All Trucks | F112: =IF($I$22="Rural",LOOKUP(ROUNDDOWN($J$58/5,0)*5,'2020ER'!$D$4:$D$19,'2020ER'!$O$4:$O$19)+(($J$58-ROUNDDOWN($J$58/5,0)*5)/5)*(LOOKUP(ROUNDUP($J$58/5,0)*5,'2020ER'!$D$4:$D$19,'2020ER'!$O$4:$O$19)-LOOKUP(ROUNDDOWN($J$58/5,0)*5,'2020ER'!$D$4:$D$19,'2020ER'!$O$4:$O$19)),LOOKUP(ROUNDDOWN($J$58/5,0)*5,'2020ER'!$D$4:$D$19,'2020ER'!$Q$4:$Q$19)+(($J$58-ROUNDDOWN($J$58/5,0)*5)/5)*(LOOKUP(ROUNDUP($J$58/5,0)*5,'2020ER'!$D$4:$D$19,'2020ER'!$Q$4:$Q$19)-LOOKUP(ROUNDDOWN($J$58/5,0)*5,'2020ER'!$D$4:$D$19,'2020ER'!$Q$4:$Q$19))) -> 1700.936608 | G112: =IF($I$22="Rural",LOOKUP(ROUNDDOWN($J$58/5,0)*5,'2020ER'!$D$20:$D$35,'2020ER'!$O$20:$O$35)+(($J$58-ROUNDDOWN($J$58/5,0)*5)/5)*(LOOKUP(ROUNDUP($J$58/5,0)*5,'2020ER'!$D$20:$D$35,'2020ER'!$O$20:$O$35)-LOOKUP(ROUNDDOWN($J$58/5,0)*5,'2020ER'!$D$20:$D$35,'2020ER'!$O$20:$O$35)),LOOKUP(ROUNDDOWN($J$58/5,0)*5,'2020ER'!$D$20:$D$35,'2020ER'!$Q$20:$Q$35)+(($J$58-ROUNDDOWN($J$58/5,0)*5)/5)*(LOOKUP(ROUNDUP($J$58/5,0)*5,'2020ER'!$D$20:$D$35,'2020ER'!$Q$20:$Q$35)-LOOKUP(ROUNDDOWN($J$58/5,0)*5,'2020ER'!$D$20:$D$35,'2020ER'!$Q$20:$Q$35))) -> 2.913169265 | H112: =IF($I$22="Rural",LOOKUP(ROUNDDOWN($J$58/5,0)*5,'2020ER'!$D$52:$D$67,'2020ER'!$O$52:$O$67)+(($J$58-ROUNDDOWN($J$58/5,0)*5)/5)*(LOOKUP(ROUNDUP($J$58/5,0)*5,'2020ER'!$D$52:$D$67,'2020ER'!$O$52:$O$67)-LOOKUP(ROUNDDOWN($J$58/5,0)*5,'2020ER'!$D$52:$D$67,'2020ER'!$O$52:$O$67)),LOOKUP(ROUNDDOWN($J$58/5,0)*5,'2020ER'!$D$52:$D$67,'2020ER'!$Q$52:$Q$67)+(($J$58-ROUNDDOWN($J$58/5,0)*5)/5)*(LOOKUP(ROUNDUP($J$58/5,0)*5,'2020ER'!$D$52:$D$67,'2020ER'!$Q$52:$Q$67)-LOOKUP(ROUNDDOWN($J$58/5,0)*5,'2020ER'!$D$52:$D$67,'2020ER'!$Q$52:$Q$67))) -> 2.595816297 | I112: =IF($I$22="Rural",LOOKUP(ROUNDDOWN($J$58/5,0)*5,'2020ER'!$D$36:$D$51,'2020ER'!$O$36:$O$51)+(($J$58-ROUNDDOWN($J$58/5,0)*5)/5)*(LOOKUP(ROUNDUP($J$58/5,0)*5,'2020ER'!$D$36:$D$51,'2020ER'!$O$36:$O$51)-LOOKUP(ROUNDDOWN($J$58/5,0)*5,'2020ER'!$D$36:$D$51,'2020ER'!$O$36:$O$51)),LOOKUP(ROUNDDOWN($J$58/5,0)*5,'2020ER'!$D$36:$D$51,'2020ER'!$Q$36:$Q$51)+(($J$58-ROUNDDOWN($J$58/5,0)*5)/5)*(LOOKUP(ROUNDUP($J$58/5,0)*5,'2020ER'!$D$36:$D$51,'2020ER'!$Q$36:$Q$51)-LOOKUP(ROUNDDOWN($J$58/5,0)*5,'2020ER'!$D$36:$D$51,'2020ER'!$Q$36:$Q$51))) -> 0.12351222 | J112: =IF($I$22="Rural",LOOKUP(ROUNDDOWN($J$58/5,0)*5,'2020ER'!$D$4:$D$19,'2020ER'!$O$4:$O$19)+(($J$58-ROUNDDOWN($J$58/5,0)*5)/5)*(LOOKUP(ROUNDUP($J$58/5,0)*5,'2020ER'!$D$4:$D$19,'2020ER'!$O$4:$O$19)-LOOKUP(ROUNDDOWN($J$58/5,0)*5,'2020ER'!$D$4:$D$19,'2020ER'!$O$4:$O$19)),LOOKUP(ROUNDDOWN($J$58/5,0)*5,'2020ER'!$D$4:$D$19,'2020ER'!$Q$68:$Q$83)+(($J$58-ROUNDDOWN($J$58/5,0)*5)/5)*(LOOKUP(ROUNDUP($J$58/5,0)*5,'2020ER'!$D$4:$D$19,'2020ER'!$Q$68:$Q$83)-LOOKUP(ROUNDDOWN($J$58/5,0)*5,'2020ER'!$D$4:$D$19,'2020ER'!$Q$68:$Q$83))) -> 0.3481446394
E113: Buses | F113: =IF($I$22="Rural",LOOKUP(ROUNDDOWN($J$58/5,0)*5,'2020ER'!$D$4:$D$19,'2020ER'!$J$4:$J$19)+(($J$58-ROUNDDOWN($J$58/5,0)*5)/5)*(LOOKUP(ROUNDUP($J$58/5,0)*5,'2020ER'!$D$4:$D$19,'2020ER'!$J$4:$J$19)-LOOKUP(ROUNDDOWN($J$58/5,0)*5,'2020ER'!$D$4:$D$19,'2020ER'!$J$4:$J$19)),LOOKUP(ROUNDDOWN($J$58/5,0)*5,'2020ER'!$D$4:$D$19,'2020ER'!$L$4:$L$19)+(($J$58-ROUNDDOWN($J$58/5,0)*5)/5)*(LOOKUP(ROUNDUP($J$58/5,0)*5,'2020ER'!$D$4:$D$19,'2020ER'!$L$4:$L$19)-LOOKUP(ROUNDDOWN($J$58/5,0)*5,'2020ER'!$D$4:$D$19,'2020ER'!$L$4:$L$19))) -> 1658.366966 | G113: =IF($I$22="Rural",LOOKUP(ROUNDDOWN($J$58/5,0)*5,'2020ER'!$D$20:$D$35,'2020ER'!$J$20:$J$35)+(($J$58-ROUNDDOWN($J$58/5,0)*5)/5)*(LOOKUP(ROUNDUP($J$58/5,0)*5,'2020ER'!$D$20:$D$35,'2020ER'!$J$20:$J$35)-LOOKUP(ROUNDDOWN($J$58/5,0)*5,'2020ER'!$D$20:$D$35,'2020ER'!$J$20:$J$35)),LOOKUP(ROUNDDOWN($J$58/5,0)*5,'2020ER'!$D$20:$D$35,'2020ER'!$L$20:$L$35)+(($J$58-ROUNDDOWN($J$58/5,0)*5)/5)*(LOOKUP(ROUNDUP($J$58/5,0)*5,'2020ER'!$D$20:$D$35,'2020ER'!$L$20:$L$35)-LOOKUP(ROUNDDOWN($J$58/5,0)*5,'2020ER'!$D$20:$D$35,'2020ER'!$L$20:$L$35))) -> 5.338188729 | H113: =IF($I$22="Rural",LOOKUP(ROUNDDOWN($J$58/5,0)*5,'2020ER'!$D$52:$D$67,'2020ER'!$J$52:$J$67)+(($J$58-ROUNDDOWN($J$58/5,0)*5)/5)*(LOOKUP(ROUNDUP($J$58/5,0)*5,'2020ER'!$D$52:$D$67,'2020ER'!$J$52:$J$67)-LOOKUP(ROUNDDOWN($J$58/5,0)*5,'2020ER'!$D$52:$D$67,'2020ER'!$J$52:$J$67)),LOOKUP(ROUNDDOWN($J$58/5,0)*5,'2020ER'!$D$52:$D$67,'2020ER'!$L$52:$L$67)+(($J$58-ROUNDDOWN($J$58/5,0)*5)/5)*(LOOKUP(ROUNDUP($J$58/5,0)*5,'2020ER'!$D$52:$D$67,'2020ER'!$L$52:$L$67)-LOOKUP(ROUNDDOWN($J$58/5,0)*5,'2020ER'!$D$52:$D$67,'2020ER'!$L$52:$L$67))) -> 4.781376819 | I113: =IF($I$22="Rural",LOOKUP(ROUNDDOWN($J$58/5,0)*5,'2020ER'!$D$36:$D$51,'2020ER'!$J$36:$J$51)+(($J$58-ROUNDDOWN($J$58/5,0)*5)/5)*(LOOKUP(ROUNDUP($J$58/5,0)*5,'2020ER'!$D$36:$D$51,'2020ER'!$J$36:$J$51)-LOOKUP(ROUNDDOWN($J$58/5,0)*5,'2020ER'!$D$36:$D$51,'2020ER'!$J$36:$J$51)),LOOKUP(ROUNDDOWN($J$58/5,0)*5,'2020ER'!$D$36:$D$51,'2020ER'!$L$36:$L$51)+(($J$58-ROUNDDOWN($J$58/5,0)*5)/5)*(LOOKUP(ROUNDUP($J$58/5,0)*5,'2020ER'!$D$36:$D$51,'2020ER'!$L$36:$L$51)-LOOKUP(ROUNDDOWN($J$58/5,0)*5,'2020ER'!$D$36:$D$51,'2020ER'!$L$36:$L$51))) -> 0.2415877439 | J113: =IF($I$22="Rural",LOOKUP(ROUNDDOWN($J$58/5,0)*5,'2020ER'!$D$4:$D$19,'2020ER'!$J$4:$J$19)+(($J$58-ROUNDDOWN($J$58/5,0)*5)/5)*(LOOKUP(ROUNDUP($J$58/5,0)*5,'2020ER'!$D$4:$D$19,'2020ER'!$J$4:$J$19)-LOOKUP(ROUNDDOWN($J$58/5,0)*5,'2020ER'!$D$4:$D$19,'2020ER'!$J$4:$J$19)),LOOKUP(ROUNDDOWN($J$58/5,0)*5,'2020ER'!$D$4:$D$19,'2020ER'!$L$68:$L$83)+(($J$58-ROUNDDOWN($J$58/5,0)*5)/5)*(LOOKUP(ROUNDUP($J$58/5,0)*5,'2020ER'!$D$4:$D$19,'2020ER'!$L$68:$L$83)-LOOKUP(ROUNDDOWN($J$58/5,0)*5,'2020ER'!$D$4:$D$19,'2020ER'!$L$68:$L$83))) -> 0.5832945043
D114: Existing - HOV Lane | E114: Light Duty Vehicles | F114: =IF($I$22="Rural",LOOKUP(ROUNDDOWN($J$63/5,0)*5,'2020ER'!$D$4:$D$19,'2020ER'!$E$4:$E$19)+(($J$63-ROUNDDOWN($J$63/5,0)*5)/5)*(LOOKUP(ROUNDUP($J$63/5,0)*5,'2020ER'!$D$4:$D$19,'2020ER'!$E$4:$E$19)-LOOKUP(ROUNDDOWN($J$63/5,0)*5,'2020ER'!$D$4:$D$19,'2020ER'!$E$4:$E$19)),LOOKUP(ROUNDDOWN($J$63/5,0)*5,'2020ER'!$D$4:$D$19,'2020ER'!$G$4:$G$19)+(($J$63-ROUNDDOWN($J$63/5,0)*5)/5)*(LOOKUP(ROUNDUP($J$63/5,0)*5,'2020ER'!$D$4:$D$19,'2020ER'!$G$4:$G$19)-LOOKUP(ROUNDDOWN($J$63/5,0)*5,'2020ER'!$D$4:$D$19,'2020ER'!$G$4:$G$19))) -> 329.388362 | G114: =IF($I$22="Rural",LOOKUP(ROUNDDOWN($J$63/5,0)*5,'2020ER'!$D$20:$D$35,'2020ER'!$E$20:$E$35)+(($J$63-ROUNDDOWN($J$63/5,0)*5)/5)*(LOOKUP(ROUNDUP($J$63/5,0)*5,'2020ER'!$D$20:$D$35,'2020ER'!$E$20:$E$35)-LOOKUP(ROUNDDOWN($J$63/5,0)*5,'2020ER'!$D$20:$D$35,'2020ER'!$E$20:$E$35)),LOOKUP(ROUNDDOWN($J$63/5,0)*5,'2020ER'!$D$20:$D$35,'2020ER'!$G$20:$G$35)+(($J$63-ROUNDDOWN($J$63/5,0)*5)/5)*(LOOKUP(ROUNDUP($J$63/5,0)*5,'2020ER'!$D$20:$D$35,'2020ER'!$G$20:$G$35)-LOOKUP(ROUNDDOWN($J$63/5,0)*5,'2020ER'!$D$20:$D$35,'2020ER'!$G$20:$G$35))) -> 0.2345353343 | H114: =IF($I$22="Rural",LOOKUP(ROUNDDOWN($J$63/5,0)*5,'2020ER'!$D$52:$D$67,'2020ER'!$E$52:$E$67)+(($J$63-ROUNDDOWN($J$63/5,0)*5)/5)*(LOOKUP(ROUNDUP($J$63/5,0)*5,'2020ER'!$D$52:$D$67,'2020ER'!$E$52:$E$67)-LOOKUP(ROUNDDOWN($J$63/5,0)*5,'2020ER'!$D$52:$D$67,'2020ER'!$E$52:$E$67)),LOOKUP(ROUNDDOWN($J$63/5,0)*5,'2020ER'!$D$52:$D$67,'2020ER'!$G$52:$G$67)+(($J$63-ROUNDDOWN($J$63/5,0)*5)/5)*(LOOKUP(ROUNDUP($J$63/5,0)*5,'2020ER'!$D$52:$D$67,'2020ER'!$G$52:$G$67)-LOOKUP(ROUNDDOWN($J$63/5,0)*5,'2020ER'!$D$52:$D$67,'2020ER'!$G$52:$G$67))) -> 0.224776627 | I114: =IF($I$22="Rural",LOOKUP(ROUNDDOWN($J$63/5,0)*5,'2020ER'!$D$36:$D$51,'2020ER'!$E$36:$E$51)+(($J$63-ROUNDDOWN($J$63/5,0)*5)/5)*(LOOKUP(ROUNDUP($J$63/5,0)*5,'2020ER'!$D$36:$D$51,'2020ER'!$E$36:$E$51)-LOOKUP(ROUNDDOWN($J$63/5,0)*5,'2020ER'!$D$36:$D$51,'2020ER'!$E$36:$E$51)),LOOKUP(ROUNDDOWN($J$63/5,0)*5,'2020ER'!$D$36:$D$51,'2020ER'!$G$36:$G$51)+(($J$63-ROUNDDOWN($J$63/5,0)*5)/5)*(LOOKUP(ROUNDUP($J$63/5,0)*5,'2020ER'!$D$36:$D$51,'2020ER'!$G$36:$G$51)-LOOKUP(ROUNDDOWN($J$63/5,0)*5,'2020ER'!$D$36:$D$51,'2020ER'!$G$36:$G$51))) -> 0.009049063207 | J114: =IF($I$22="Rural",LOOKUP(ROUNDDOWN($J$63/5,0)*5,'2020ER'!$D$4:$D$19,'2020ER'!$E$4:$E$19)+(($J$63-ROUNDDOWN($J$63/5,0)*5)/5)*(LOOKUP(ROUNDUP($J$63/5,0)*5,'2020ER'!$D$4:$D$19,'2020ER'!$E$4:$E$19)-LOOKUP(ROUNDDOWN($J$63/5,0)*5,'2020ER'!$D$4:$D$19,'2020ER'!$E$4:$E$19)),LOOKUP(ROUNDDOWN($J$63/5,0)*5,'2020ER'!$D$4:$D$19,'2020ER'!$G$68:$G$83)+(($J$63-ROUNDDOWN($J$63/5,0)*5)/5)*(LOOKUP(ROUNDUP($J$63/5,0)*5,'2020ER'!$D$4:$D$19,'2020ER'!$G$68:$G$83)-LOOKUP(ROUNDDOWN($J$63/5,0)*5,'2020ER'!$D$4:$D$19,'2020ER'!$G$68:$G$83))) -> 0.08925153732
E115: All Trucks | F115: =IF($I$22="Rural",LOOKUP(ROUNDDOWN($J$63/5,0)*5,'2020ER'!$D$4:$D$19,'2020ER'!$O$4:$O$19)+(($J$63-ROUNDDOWN($J$63/5,0)*5)/5)*(LOOKUP(ROUNDUP($J$63/5,0)*5,'2020ER'!$D$4:$D$19,'2020ER'!$O$4:$O$19)-LOOKUP(ROUNDDOWN($J$63/5,0)*5,'2020ER'!$D$4:$D$19,'2020ER'!$O$4:$O$19)),LOOKUP(ROUNDDOWN($J$63/5,0)*5,'2020ER'!$D$4:$D$19,'2020ER'!$Q$4:$Q$19)+(($J$63-ROUNDDOWN($J$63/5,0)*5)/5)*(LOOKUP(ROUNDUP($J$63/5,0)*5,'2020ER'!$D$4:$D$19,'2020ER'!$Q$4:$Q$19)-LOOKUP(ROUNDDOWN($J$63/5,0)*5,'2020ER'!$D$4:$D$19,'2020ER'!$Q$4:$Q$19))) -> 1319.824195 | G115: =IF($I$22="Rural",LOOKUP(ROUNDDOWN($J$63/5,0)*5,'2020ER'!$D$20:$D$35,'2020ER'!$O$20:$O$35)+(($J$63-ROUNDDOWN($J$63/5,0)*5)/5)*(LOOKUP(ROUNDUP($J$63/5,0)*5,'2020ER'!$D$20:$D$35,'2020ER'!$O$20:$O$35)-LOOKUP(ROUNDDOWN($J$63/5,0)*5,'2020ER'!$D$20:$D$35,'2020ER'!$O$20:$O$35)),LOOKUP(ROUNDDOWN($J$63/5,0)*5,'2020ER'!$D$20:$D$35,'2020ER'!$Q$20:$Q$35)+(($J$63-ROUNDDOWN($J$63/5,0)*5)/5)*(LOOKUP(ROUNDUP($J$63/5,0)*5,'2020ER'!$D$20:$D$35,'2020ER'!$Q$20:$Q$35)-LOOKUP(ROUNDDOWN($J$63/5,0)*5,'2020ER'!$D$20:$D$35,'2020ER'!$Q$20:$Q$35))) -> 2.122883099 | H115: =IF($I$22="Rural",LOOKUP(ROUNDDOWN($J$63/5,0)*5,'2020ER'!$D$52:$D$67,'2020ER'!$O$52:$O$67)+(($J$63-ROUNDDOWN($J$63/5,0)*5)/5)*(LOOKUP(ROUNDUP($J$63/5,0)*5,'2020ER'!$D$52:$D$67,'2020ER'!$O$52:$O$67)-LOOKUP(ROUNDDOWN($J$63/5,0)*5,'2020ER'!$D$52:$D$67,'2020ER'!$O$52:$O$67)),LOOKUP(ROUNDDOWN($J$63/5,0)*5,'2020ER'!$D$52:$D$67,'2020ER'!$Q$52:$Q$67)+(($J$63-ROUNDDOWN($J$63/5,0)*5)/5)*(LOOKUP(ROUNDUP($J$63/5,0)*5,'2020ER'!$D$52:$D$67,'2020ER'!$Q$52:$Q$67)-LOOKUP(ROUNDDOWN($J$63/5,0)*5,'2020ER'!$D$52:$D$67,'2020ER'!$Q$52:$Q$67))) -> 1.890274776 | I115: =IF($I$22="Rural",LOOKUP(ROUNDDOWN($J$63/5,0)*5,'2020ER'!$D$36:$D$51,'2020ER'!$O$36:$O$51)+(($J$63-ROUNDDOWN($J$63/5,0)*5)/5)*(LOOKUP(ROUNDUP($J$63/5,0)*5,'2020ER'!$D$36:$D$51,'2020ER'!$O$36:$O$51)-LOOKUP(ROUNDDOWN($J$63/5,0)*5,'2020ER'!$D$36:$D$51,'2020ER'!$O$36:$O$51)),LOOKUP(ROUNDDOWN($J$63/5,0)*5,'2020ER'!$D$36:$D$51,'2020ER'!$Q$36:$Q$51)+(($J$63-ROUNDDOWN($J$63/5,0)*5)/5)*(LOOKUP(ROUNDUP($J$63/5,0)*5,'2020ER'!$D$36:$D$51,'2020ER'!$Q$36:$Q$51)-LOOKUP(ROUNDDOWN($J$63/5,0)*5,'2020ER'!$D$36:$D$51,'2020ER'!$Q$36:$Q$51))) -> 0.07279950847 | J115: =IF($I$22="Rural",LOOKUP(ROUNDDOWN($J$63/5,0)*5,'2020ER'!$D$4:$D$19,'2020ER'!$O$4:$O$19)+(($J$63-ROUNDDOWN($J$63/5,0)*5)/5)*(LOOKUP(ROUNDUP($J$63/5,0)*5,'2020ER'!$D$4:$D$19,'2020ER'!$O$4:$O$19)-LOOKUP(ROUNDDOWN($J$63/5,0)*5,'2020ER'!$D$4:$D$19,'2020ER'!$O$4:$O$19)),LOOKUP(ROUNDDOWN($J$63/5,0)*5,'2020ER'!$D$4:$D$19,'2020ER'!$Q$68:$Q$83)+(($J$63-ROUNDDOWN($J$63/5,0)*5)/5)*(LOOKUP(ROUNDUP($J$63/5,0)*5,'2020ER'!$D$4:$D$19,'2020ER'!$Q$68:$Q$83)-LOOKUP(ROUNDDOWN($J$63/5,0)*5,'2020ER'!$D$4:$D$19,'2020ER'!$Q$68:$Q$83))) -> 0.1927361607
E116: Buses | F116: =IF($I$22="Rural",LOOKUP(ROUNDDOWN($J$63/5,0)*5,'2020ER'!$D$4:$D$19,'2020ER'!$J$4:$J$19)+(($J$63-ROUNDDOWN($J$63/5,0)*5)/5)*(LOOKUP(ROUNDUP($J$63/5,0)*5,'2020ER'!$D$4:$D$19,'2020ER'!$J$4:$J$19)-LOOKUP(ROUNDDOWN($J$63/5,0)*5,'2020ER'!$D$4:$D$19,'2020ER'!$J$4:$J$19)),LOOKUP(ROUNDDOWN($J$63/5,0)*5,'2020ER'!$D$4:$D$19,'2020ER'!$L$4:$L$19)+(($J$63-ROUNDDOWN($J$63/5,0)*5)/5)*(LOOKUP(ROUNDUP($J$63/5,0)*5,'2020ER'!$D$4:$D$19,'2020ER'!$L$4:$L$19)-LOOKUP(ROUNDDOWN($J$63/5,0)*5,'2020ER'!$D$4:$D$19,'2020ER'!$L$4:$L$19))) -> 1285.08716 | G116: =IF($I$22="Rural",LOOKUP(ROUNDDOWN($J$63/5,0)*5,'2020ER'!$D$20:$D$35,'2020ER'!$J$20:$J$35)+(($J$63-ROUNDDOWN($J$63/5,0)*5)/5)*(LOOKUP(ROUNDUP($J$63/5,0)*5,'2020ER'!$D$20:$D$35,'2020ER'!$J$20:$J$35)-LOOKUP(ROUNDDOWN($J$63/5,0)*5,'2020ER'!$D$20:$D$35,'2020ER'!$J$20:$J$35)),LOOKUP(ROUNDDOWN($J$63/5,0)*5,'2020ER'!$D$20:$D$35,'2020ER'!$L$20:$L$35)+(($J$63-ROUNDDOWN($J$63/5,0)*5)/5)*(LOOKUP(ROUNDUP($J$63/5,0)*5,'2020ER'!$D$20:$D$35,'2020ER'!$L$20:$L$35)-LOOKUP(ROUNDDOWN($J$63/5,0)*5,'2020ER'!$D$20:$D$35,'2020ER'!$L$20:$L$35))) -> 4.098733484 | H116: =IF($I$22="Rural",LOOKUP(ROUNDDOWN($J$63/5,0)*5,'2020ER'!$D$52:$D$67,'2020ER'!$J$52:$J$67)+(($J$63-ROUNDDOWN($J$63/5,0)*5)/5)*(LOOKUP(ROUNDUP($J$63/5,0)*5,'2020ER'!$D$52:$D$67,'2020ER'!$J$52:$J$67)-LOOKUP(ROUNDDOWN($J$63/5,0)*5,'2020ER'!$D$52:$D$67,'2020ER'!$J$52:$J$67)),LOOKUP(ROUNDDOWN($J$63/5,0)*5,'2020ER'!$D$52:$D$67,'2020ER'!$L$52:$L$67)+(($J$63-ROUNDDOWN($J$63/5,0)*5)/5)*(LOOKUP(ROUNDUP($J$63/5,0)*5,'2020ER'!$D$52:$D$67,'2020ER'!$L$52:$L$67)-LOOKUP(ROUNDDOWN($J$63/5,0)*5,'2020ER'!$D$52:$D$67,'2020ER'!$L$52:$L$67))) -> 3.673092407 | I116: =IF($I$22="Rural",LOOKUP(ROUNDDOWN($J$63/5,0)*5,'2020ER'!$D$36:$D$51,'2020ER'!$J$36:$J$51)+(($J$63-ROUNDDOWN($J$63/5,0)*5)/5)*(LOOKUP(ROUNDUP($J$63/5,0)*5,'2020ER'!$D$36:$D$51,'2020ER'!$J$36:$J$51)-LOOKUP(ROUNDDOWN($J$63/5,0)*5,'2020ER'!$D$36:$D$51,'2020ER'!$J$36:$J$51)),LOOKUP(ROUNDDOWN($J$63/5,0)*5,'2020ER'!$D$36:$D$51,'2020ER'!$L$36:$L$51)+(($J$63-ROUNDDOWN($J$63/5,0)*5)/5)*(LOOKUP(ROUNDUP($J$63/5,0)*5,'2020ER'!$D$36:$D$51,'2020ER'!$L$36:$L$51)-LOOKUP(ROUNDDOWN($J$63/5,0)*5,'2020ER'!$D$36:$D$51,'2020ER'!$L$36:$L$51))) -> 0.1345008183 | J116: =IF($I$22="Rural",LOOKUP(ROUNDDOWN($J$63/5,0)*5,'2020ER'!$D$4:$D$19,'2020ER'!$J$4:$J$19)+(($J$63-ROUNDDOWN($J$63/5,0)*5)/5)*(LOOKUP(ROUNDUP($J$63/5,0)*5,'2020ER'!$D$4:$D$19,'2020ER'!$J$4:$J$19)-LOOKUP(ROUNDDOWN($J$63/5,0)*5,'2020ER'!$D$4:$D$19,'2020ER'!$J$4:$J$19)),LOOKUP(ROUNDDOWN($J$63/5,0)*5,'2020ER'!$D$4:$D$19,'2020ER'!$L$68:$L$83)+(($J$63-ROUNDDOWN($J$63/5,0)*5)/5)*(LOOKUP(ROUNDUP($J$63/5,0)*5,'2020ER'!$D$4:$D$19,'2020ER'!$L$68:$L$83)-LOOKUP(ROUNDDOWN($J$63/5,0)*5,'2020ER'!$D$4:$D$19,'2020ER'!$L$68:$L$83))) -> 0.3054758577
D117: Proposed - General Purpose Lane | E117: Light Duty Vehicles | F117: =IF($I$22="Rural",LOOKUP(ROUNDDOWN($J$69/5,0)*5,'2020ER'!$D$4:$D$19,'2020ER'!$E$4:$E$19)+(($J$69-ROUNDDOWN($J$69/5,0)*5)/5)*(LOOKUP(ROUNDUP($J$69/5,0)*5,'2020ER'!$D$4:$D$19,'2020ER'!$E$4:$E$19)-LOOKUP(ROUNDDOWN($J$69/5,0)*5,'2020ER'!$D$4:$D$19,'2020ER'!$E$4:$E$19)),LOOKUP(ROUNDDOWN($J$69/5,0)*5,'2020ER'!$D$4:$D$19,'2020ER'!$G$4:$G$19)+(($J$69-ROUNDDOWN($J$69/5,0)*5)/5)*(LOOKUP(ROUNDUP($J$69/5,0)*5,'2020ER'!$D$4:$D$19,'2020ER'!$G$4:$G$19)-LOOKUP(ROUNDDOWN($J$69/5,0)*5,'2020ER'!$D$4:$D$19,'2020ER'!$G$4:$G$19))) -> 356.8546511 | G117: =IF($I$22="Rural",LOOKUP(ROUNDDOWN($J$69/5,0)*5,'2020ER'!$D$20:$D$35,'2020ER'!$E$20:$E$35)+(($J$69-ROUNDDOWN($J$69/5,0)*5)/5)*(LOOKUP(ROUNDUP($J$69/5,0)*5,'2020ER'!$D$20:$D$35,'2020ER'!$E$20:$E$35)-LOOKUP(ROUNDDOWN($J$69/5,0)*5,'2020ER'!$D$20:$D$35,'2020ER'!$E$20:$E$35)),LOOKUP(ROUNDDOWN($J$69/5,0)*5,'2020ER'!$D$20:$D$35,'2020ER'!$G$20:$G$35)+(($J$69-ROUNDDOWN($J$69/5,0)*5)/5)*(LOOKUP(ROUNDUP($J$69/5,0)*5,'2020ER'!$D$20:$D$35,'2020ER'!$G$20:$G$35)-LOOKUP(ROUNDDOWN($J$69/5,0)*5,'2020ER'!$D$20:$D$35,'2020ER'!$G$20:$G$35))) -> 0.2117656145 | H117: =IF($I$22="Rural",LOOKUP(ROUNDDOWN($J$69/5,0)*5,'2020ER'!$D$52:$D$67,'2020ER'!$E$52:$E$67)+(($J$69-ROUNDDOWN($J$69/5,0)*5)/5)*(LOOKUP(ROUNDUP($J$69/5,0)*5,'2020ER'!$D$52:$D$67,'2020ER'!$E$52:$E$67)-LOOKUP(ROUNDDOWN($J$69/5,0)*5,'2020ER'!$D$52:$D$67,'2020ER'!$E$52:$E$67)),LOOKUP(ROUNDDOWN($J$69/5,0)*5,'2020ER'!$D$52:$D$67,'2020ER'!$G$52:$G$67)+(($J$69-ROUNDDOWN($J$69/5,0)*5)/5)*(LOOKUP(ROUNDUP($J$69/5,0)*5,'2020ER'!$D$52:$D$67,'2020ER'!$G$52:$G$67)-LOOKUP(ROUNDDOWN($J$69/5,0)*5,'2020ER'!$D$52:$D$67,'2020ER'!$G$52:$G$67))) -> 0.2029891412 | I117: =IF($I$22="Rural",LOOKUP(ROUNDDOWN($J$69/5,0)*5,'2020ER'!$D$36:$D$51,'2020ER'!$E$36:$E$51)+(($J$69-ROUNDDOWN($J$69/5,0)*5)/5)*(LOOKUP(ROUNDUP($J$69/5,0)*5,'2020ER'!$D$36:$D$51,'2020ER'!$E$36:$E$51)-LOOKUP(ROUNDDOWN($J$69/5,0)*5,'2020ER'!$D$36:$D$51,'2020ER'!$E$36:$E$51)),LOOKUP(ROUNDDOWN($J$69/5,0)*5,'2020ER'!$D$36:$D$51,'2020ER'!$G$36:$G$51)+(($J$69-ROUNDDOWN($J$69/5,0)*5)/5)*(LOOKUP(ROUNDUP($J$69/5,0)*5,'2020ER'!$D$36:$D$51,'2020ER'!$G$36:$G$51)-LOOKUP(ROUNDDOWN($J$69/5,0)*5,'2020ER'!$D$36:$D$51,'2020ER'!$G$36:$G$51))) -> 0.008428710554 | J117: =IF($I$22="Rural",LOOKUP(ROUNDDOWN($J$69/5,0)*5,'2020ER'!$D$4:$D$19,'2020ER'!$E$4:$E$19)+(($J$69-ROUNDDOWN($J$69/5,0)*5)/5)*(LOOKUP(ROUNDUP($J$69/5,0)*5,'2020ER'!$D$4:$D$19,'2020ER'!$E$4:$E$19)-LOOKUP(ROUNDDOWN($J$69/5,0)*5,'2020ER'!$D$4:$D$19,'2020ER'!$E$4:$E$19)),LOOKUP(ROUNDDOWN($J$69/5,0)*5,'2020ER'!$D$4:$D$19,'2020ER'!$G$68:$G$83)+(($J$69-ROUNDDOWN($J$69/5,0)*5)/5)*(LOOKUP(ROUNDUP($J$69/5,0)*5,'2020ER'!$D$4:$D$19,'2020ER'!$G$68:$G$83)-LOOKUP(ROUNDDOWN($J$69/5,0)*5,'2020ER'!$D$4:$D$19,'2020ER'!$G$68:$G$83))) -> 0.1050409189
E118: All Trucks | F118: =IF($I$22="Rural",LOOKUP(ROUNDDOWN($J$69/5,0)*5,'2020ER'!$D$4:$D$19,'2020ER'!$O$4:$O$19)+(($J$69-ROUNDDOWN($J$69/5,0)*5)/5)*(LOOKUP(ROUNDUP($J$69/5,0)*5,'2020ER'!$D$4:$D$19,'2020ER'!$O$4:$O$19)-LOOKUP(ROUNDDOWN($J$69/5,0)*5,'2020ER'!$D$4:$D$19,'2020ER'!$O$4:$O$19)),LOOKUP(ROUNDDOWN($J$69/5,0)*5,'2020ER'!$D$4:$D$19,'2020ER'!$Q$4:$Q$19)+(($J$69-ROUNDDOWN($J$69/5,0)*5)/5)*(LOOKUP(ROUNDUP($J$69/5,0)*5,'2020ER'!$D$4:$D$19,'2020ER'!$Q$4:$Q$19)-LOOKUP(ROUNDDOWN($J$69/5,0)*5,'2020ER'!$D$4:$D$19,'2020ER'!$Q$4:$Q$19))) -> 1467.223109 | G118: =IF($I$22="Rural",LOOKUP(ROUNDDOWN($J$69/5,0)*5,'2020ER'!$D$20:$D$35,'2020ER'!$O$20:$O$35)+(($J$69-ROUNDDOWN($J$69/5,0)*5)/5)*(LOOKUP(ROUNDUP($J$69/5,0)*5,'2020ER'!$D$20:$D$35,'2020ER'!$O$20:$O$35)-LOOKUP(ROUNDDOWN($J$69/5,0)*5,'2020ER'!$D$20:$D$35,'2020ER'!$O$20:$O$35)),LOOKUP(ROUNDDOWN($J$69/5,0)*5,'2020ER'!$D$20:$D$35,'2020ER'!$Q$20:$Q$35)+(($J$69-ROUNDDOWN($J$69/5,0)*5)/5)*(LOOKUP(ROUNDUP($J$69/5,0)*5,'2020ER'!$D$20:$D$35,'2020ER'!$Q$20:$Q$35)-LOOKUP(ROUNDDOWN($J$69/5,0)*5,'2020ER'!$D$20:$D$35,'2020ER'!$Q$20:$Q$35))) -> 2.442222092 | H118: =IF($I$22="Rural",LOOKUP(ROUNDDOWN($J$69/5,0)*5,'2020ER'!$D$52:$D$67,'2020ER'!$O$52:$O$67)+(($J$69-ROUNDDOWN($J$69/5,0)*5)/5)*(LOOKUP(ROUNDUP($J$69/5,0)*5,'2020ER'!$D$52:$D$67,'2020ER'!$O$52:$O$67)-LOOKUP(ROUNDDOWN($J$69/5,0)*5,'2020ER'!$D$52:$D$67,'2020ER'!$O$52:$O$67)),LOOKUP(ROUNDDOWN($J$69/5,0)*5,'2020ER'!$D$52:$D$67,'2020ER'!$Q$52:$Q$67)+(($J$69-ROUNDDOWN($J$69/5,0)*5)/5)*(LOOKUP(ROUNDUP($J$69/5,0)*5,'2020ER'!$D$52:$D$67,'2020ER'!$Q$52:$Q$67)-LOOKUP(ROUNDDOWN($J$69/5,0)*5,'2020ER'!$D$52:$D$67,'2020ER'!$Q$52:$Q$67))) -> 2.17534955 | I118: =IF($I$22="Rural",LOOKUP(ROUNDDOWN($J$69/5,0)*5,'2020ER'!$D$36:$D$51,'2020ER'!$O$36:$O$51)+(($J$69-ROUNDDOWN($J$69/5,0)*5)/5)*(LOOKUP(ROUNDUP($J$69/5,0)*5,'2020ER'!$D$36:$D$51,'2020ER'!$O$36:$O$51)-LOOKUP(ROUNDDOWN($J$69/5,0)*5,'2020ER'!$D$36:$D$51,'2020ER'!$O$36:$O$51)),LOOKUP(ROUNDDOWN($J$69/5,0)*5,'2020ER'!$D$36:$D$51,'2020ER'!$Q$36:$Q$51)+(($J$69-ROUNDDOWN($J$69/5,0)*5)/5)*(LOOKUP(ROUNDUP($J$69/5,0)*5,'2020ER'!$D$36:$D$51,'2020ER'!$Q$36:$Q$51)-LOOKUP(ROUNDDOWN($J$69/5,0)*5,'2020ER'!$D$36:$D$51,'2020ER'!$Q$36:$Q$51))) -> 0.09727622426 | J118: =IF($I$22="Rural",LOOKUP(ROUNDDOWN($J$69/5,0)*5,'2020ER'!$D$4:$D$19,'2020ER'!$O$4:$O$19)+(($J$69-ROUNDDOWN($J$69/5,0)*5)/5)*(LOOKUP(ROUNDUP($J$69/5,0)*5,'2020ER'!$D$4:$D$19,'2020ER'!$O$4:$O$19)-LOOKUP(ROUNDDOWN($J$69/5,0)*5,'2020ER'!$D$4:$D$19,'2020ER'!$O$4:$O$19)),LOOKUP(ROUNDDOWN($J$69/5,0)*5,'2020ER'!$D$4:$D$19,'2020ER'!$Q$68:$Q$83)+(($J$69-ROUNDDOWN($J$69/5,0)*5)/5)*(LOOKUP(ROUNDUP($J$69/5,0)*5,'2020ER'!$D$4:$D$19,'2020ER'!$Q$68:$Q$83)-LOOKUP(ROUNDDOWN($J$69/5,0)*5,'2020ER'!$D$4:$D$19,'2020ER'!$Q$68:$Q$83))) -> 0.2685228686
E119: Buses | F119: =IF($I$22="Rural",LOOKUP(ROUNDDOWN($J$69/5,0)*5,'2020ER'!$D$4:$D$19,'2020ER'!$J$4:$J$19)+(($J$69-ROUNDDOWN($J$69/5,0)*5)/5)*(LOOKUP(ROUNDUP($J$69/5,0)*5,'2020ER'!$D$4:$D$19,'2020ER'!$J$4:$J$19)-LOOKUP(ROUNDDOWN($J$69/5,0)*5,'2020ER'!$D$4:$D$19,'2020ER'!$J$4:$J$19)),LOOKUP(ROUNDDOWN($J$69/5,0)*5,'2020ER'!$D$4:$D$19,'2020ER'!$L$4:$L$19)+(($J$69-ROUNDDOWN($J$69/5,0)*5)/5)*(LOOKUP(ROUNDUP($J$69/5,0)*5,'2020ER'!$D$4:$D$19,'2020ER'!$L$4:$L$19)-LOOKUP(ROUNDDOWN($J$69/5,0)*5,'2020ER'!$D$4:$D$19,'2020ER'!$L$4:$L$19))) -> 1404.596026 | G119: =IF($I$22="Rural",LOOKUP(ROUNDDOWN($J$69/5,0)*5,'2020ER'!$D$20:$D$35,'2020ER'!$J$20:$J$35)+(($J$69-ROUNDDOWN($J$69/5,0)*5)/5)*(LOOKUP(ROUNDUP($J$69/5,0)*5,'2020ER'!$D$20:$D$35,'2020ER'!$J$20:$J$35)-LOOKUP(ROUNDDOWN($J$69/5,0)*5,'2020ER'!$D$20:$D$35,'2020ER'!$J$20:$J$35)),LOOKUP(ROUNDDOWN($J$69/5,0)*5,'2020ER'!$D$20:$D$35,'2020ER'!$L$20:$L$35)+(($J$69-ROUNDDOWN($J$69/5,0)*5)/5)*(LOOKUP(ROUNDUP($J$69/5,0)*5,'2020ER'!$D$20:$D$35,'2020ER'!$L$20:$L$35)-LOOKUP(ROUNDDOWN($J$69/5,0)*5,'2020ER'!$D$20:$D$35,'2020ER'!$L$20:$L$35))) -> 4.471988042 | H119: =IF($I$22="Rural",LOOKUP(ROUNDDOWN($J$69/5,0)*5,'2020ER'!$D$52:$D$67,'2020ER'!$J$52:$J$67)+(($J$69-ROUNDDOWN($J$69/5,0)*5)/5)*(LOOKUP(ROUNDUP($J$69/5,0)*5,'2020ER'!$D$52:$D$67,'2020ER'!$J$52:$J$67)-LOOKUP(ROUNDDOWN($J$69/5,0)*5,'2020ER'!$D$52:$D$67,'2020ER'!$J$52:$J$67)),LOOKUP(ROUNDDOWN($J$69/5,0)*5,'2020ER'!$D$52:$D$67,'2020ER'!$L$52:$L$67)+(($J$69-ROUNDDOWN($J$69/5,0)*5)/5)*(LOOKUP(ROUNDUP($J$69/5,0)*5,'2020ER'!$D$52:$D$67,'2020ER'!$L$52:$L$67)-LOOKUP(ROUNDDOWN($J$69/5,0)*5,'2020ER'!$D$52:$D$67,'2020ER'!$L$52:$L$67))) -> 4.006617255 | I119: =IF($I$22="Rural",LOOKUP(ROUNDDOWN($J$69/5,0)*5,'2020ER'!$D$36:$D$51,'2020ER'!$J$36:$J$51)+(($J$69-ROUNDDOWN($J$69/5,0)*5)/5)*(LOOKUP(ROUNDUP($J$69/5,0)*5,'2020ER'!$D$36:$D$51,'2020ER'!$J$36:$J$51)-LOOKUP(ROUNDDOWN($J$69/5,0)*5,'2020ER'!$D$36:$D$51,'2020ER'!$J$36:$J$51)),LOOKUP(ROUNDDOWN($J$69/5,0)*5,'2020ER'!$D$36:$D$51,'2020ER'!$L$36:$L$51)+(($J$69-ROUNDDOWN($J$69/5,0)*5)/5)*(LOOKUP(ROUNDUP($J$69/5,0)*5,'2020ER'!$D$36:$D$51,'2020ER'!$L$36:$L$51)-LOOKUP(ROUNDDOWN($J$69/5,0)*5,'2020ER'!$D$36:$D$51,'2020ER'!$L$36:$L$51))) -> 0.1854074596 | J119: =IF($I$22="Rural",LOOKUP(ROUNDDOWN($J$69/5,0)*5,'2020ER'!$D$4:$D$19,'2020ER'!$J$4:$J$19)+(($J$69-ROUNDDOWN($J$69/5,0)*5)/5)*(LOOKUP(ROUNDUP($J$69/5,0)*5,'2020ER'!$D$4:$D$19,'2020ER'!$J$4:$J$19)-LOOKUP(ROUNDDOWN($J$69/5,0)*5,'2020ER'!$D$4:$D$19,'2020ER'!$J$4:$J$19)),LOOKUP(ROUNDDOWN($J$69/5,0)*5,'2020ER'!$D$4:$D$19,'2020ER'!$L$68:$L$83)+(($J$69-ROUNDDOWN($J$69/5,0)*5)/5)*(LOOKUP(ROUNDUP($J$69/5,0)*5,'2020ER'!$D$4:$D$19,'2020ER'!$L$68:$L$83)-LOOKUP(ROUNDDOWN($J$69/5,0)*5,'2020ER'!$D$4:$D$19,'2020ER'!$L$68:$L$83))) -> 0.4360963033
D120: Proposed - HOV Lane | E120: Light Duty Vehicles | F120: =IF($I$22="Rural",LOOKUP(ROUNDDOWN($J$74/5,0)*5,'2020ER'!$D$4:$D$19,'2020ER'!$E$4:$E$19)+(($J$74-ROUNDDOWN($J$74/5,0)*5)/5)*(LOOKUP(ROUNDUP($J$74/5,0)*5,'2020ER'!$D$4:$D$19,'2020ER'!$E$4:$E$19)-LOOKUP(ROUNDDOWN($J$74/5,0)*5,'2020ER'!$D$4:$D$19,'2020ER'!$E$4:$E$19)),LOOKUP(ROUNDDOWN($J$74/5,0)*5,'2020ER'!$D$4:$D$19,'2020ER'!$G$4:$G$19)+(($J$74-ROUNDDOWN($J$74/5,0)*5)/5)*(LOOKUP(ROUNDUP($J$74/5,0)*5,'2020ER'!$D$4:$D$19,'2020ER'!$G$4:$G$19)-LOOKUP(ROUNDDOWN($J$74/5,0)*5,'2020ER'!$D$4:$D$19,'2020ER'!$G$4:$G$19))) -> 355.6563525 | G120: =IF($I$22="Rural",LOOKUP(ROUNDDOWN($J$74/5,0)*5,'2020ER'!$D$20:$D$35,'2020ER'!$E$20:$E$35)+(($J$74-ROUNDDOWN($J$74/5,0)*5)/5)*(LOOKUP(ROUNDUP($J$74/5,0)*5,'2020ER'!$D$20:$D$35,'2020ER'!$E$20:$E$35)-LOOKUP(ROUNDDOWN($J$74/5,0)*5,'2020ER'!$D$20:$D$35,'2020ER'!$E$20:$E$35)),LOOKUP(ROUNDDOWN($J$74/5,0)*5,'2020ER'!$D$20:$D$35,'2020ER'!$G$20:$G$35)+(($J$74-ROUNDDOWN($J$74/5,0)*5)/5)*(LOOKUP(ROUNDUP($J$74/5,0)*5,'2020ER'!$D$20:$D$35,'2020ER'!$G$20:$G$35)-LOOKUP(ROUNDDOWN($J$74/5,0)*5,'2020ER'!$D$20:$D$35,'2020ER'!$G$20:$G$35))) -> 0.2195330923 | H120: =IF($I$22="Rural",LOOKUP(ROUNDDOWN($J$74/5,0)*5,'2020ER'!$D$52:$D$67,'2020ER'!$E$52:$E$67)+(($J$74-ROUNDDOWN($J$74/5,0)*5)/5)*(LOOKUP(ROUNDUP($J$74/5,0)*5,'2020ER'!$D$52:$D$67,'2020ER'!$E$52:$E$67)-LOOKUP(ROUNDDOWN($J$74/5,0)*5,'2020ER'!$D$52:$D$67,'2020ER'!$E$52:$E$67)),LOOKUP(ROUNDDOWN($J$74/5,0)*5,'2020ER'!$D$52:$D$67,'2020ER'!$G$52:$G$67)+(($J$74-ROUNDDOWN($J$74/5,0)*5)/5)*(LOOKUP(ROUNDUP($J$74/5,0)*5,'2020ER'!$D$52:$D$67,'2020ER'!$G$52:$G$67)-LOOKUP(ROUNDDOWN($J$74/5,0)*5,'2020ER'!$D$52:$D$67,'2020ER'!$G$52:$G$67))) -> 0.2104182389 | I120: =IF($I$22="Rural",LOOKUP(ROUNDDOWN($J$74/5,0)*5,'2020ER'!$D$36:$D$51,'2020ER'!$E$36:$E$51)+(($J$74-ROUNDDOWN($J$74/5,0)*5)/5)*(LOOKUP(ROUNDUP($J$74/5,0)*5,'2020ER'!$D$36:$D$51,'2020ER'!$E$36:$E$51)-LOOKUP(ROUNDDOWN($J$74/5,0)*5,'2020ER'!$D$36:$D$51,'2020ER'!$E$36:$E$51)),LOOKUP(ROUNDDOWN($J$74/5,0)*5,'2020ER'!$D$36:$D$51,'2020ER'!$G$36:$G$51)+(($J$74-ROUNDDOWN($J$74/5,0)*5)/5)*(LOOKUP(ROUNDUP($J$74/5,0)*5,'2020ER'!$D$36:$D$51,'2020ER'!$G$36:$G$51)-LOOKUP(ROUNDDOWN($J$74/5,0)*5,'2020ER'!$D$36:$D$51,'2020ER'!$G$36:$G$51))) -> 0.00932719658 | J120: =IF($I$22="Rural",LOOKUP(ROUNDDOWN($J$74/5,0)*5,'2020ER'!$D$4:$D$19,'2020ER'!$E$4:$E$19)+(($J$74-ROUNDDOWN($J$74/5,0)*5)/5)*(LOOKUP(ROUNDUP($J$74/5,0)*5,'2020ER'!$D$4:$D$19,'2020ER'!$E$4:$E$19)-LOOKUP(ROUNDDOWN($J$74/5,0)*5,'2020ER'!$D$4:$D$19,'2020ER'!$E$4:$E$19)),LOOKUP(ROUNDDOWN($J$74/5,0)*5,'2020ER'!$D$4:$D$19,'2020ER'!$G$68:$G$83)+(($J$74-ROUNDDOWN($J$74/5,0)*5)/5)*(LOOKUP(ROUNDUP($J$74/5,0)*5,'2020ER'!$D$4:$D$19,'2020ER'!$G$68:$G$83)-LOOKUP(ROUNDDOWN($J$74/5,0)*5,'2020ER'!$D$4:$D$19,'2020ER'!$G$68:$G$83))) -> 0.1040452523
E121: All Trucks | F121: =IF($I$22="Rural",LOOKUP(ROUNDDOWN($J$74/5,0)*5,'2020ER'!$D$4:$D$19,'2020ER'!$O$4:$O$19)+(($J$74-ROUNDDOWN($J$74/5,0)*5)/5)*(LOOKUP(ROUNDUP($J$74/5,0)*5,'2020ER'!$D$4:$D$19,'2020ER'!$O$4:$O$19)-LOOKUP(ROUNDDOWN($J$74/5,0)*5,'2020ER'!$D$4:$D$19,'2020ER'!$O$4:$O$19)),LOOKUP(ROUNDDOWN($J$74/5,0)*5,'2020ER'!$D$4:$D$19,'2020ER'!$Q$4:$Q$19)+(($J$74-ROUNDDOWN($J$74/5,0)*5)/5)*(LOOKUP(ROUNDUP($J$74/5,0)*5,'2020ER'!$D$4:$D$19,'2020ER'!$Q$4:$Q$19)-LOOKUP(ROUNDDOWN($J$74/5,0)*5,'2020ER'!$D$4:$D$19,'2020ER'!$Q$4:$Q$19))) -> 1456.123942 | G121: =IF($I$22="Rural",LOOKUP(ROUNDDOWN($J$74/5,0)*5,'2020ER'!$D$20:$D$35,'2020ER'!$O$20:$O$35)+(($J$74-ROUNDDOWN($J$74/5,0)*5)/5)*(LOOKUP(ROUNDUP($J$74/5,0)*5,'2020ER'!$D$20:$D$35,'2020ER'!$O$20:$O$35)-LOOKUP(ROUNDDOWN($J$74/5,0)*5,'2020ER'!$D$20:$D$35,'2020ER'!$O$20:$O$35)),LOOKUP(ROUNDDOWN($J$74/5,0)*5,'2020ER'!$D$20:$D$35,'2020ER'!$Q$20:$Q$35)+(($J$74-ROUNDDOWN($J$74/5,0)*5)/5)*(LOOKUP(ROUNDUP($J$74/5,0)*5,'2020ER'!$D$20:$D$35,'2020ER'!$Q$20:$Q$35)-LOOKUP(ROUNDDOWN($J$74/5,0)*5,'2020ER'!$D$20:$D$35,'2020ER'!$Q$20:$Q$35))) -> 2.400936459 | H121: =IF($I$22="Rural",LOOKUP(ROUNDDOWN($J$74/5,0)*5,'2020ER'!$D$52:$D$67,'2020ER'!$O$52:$O$67)+(($J$74-ROUNDDOWN($J$74/5,0)*5)/5)*(LOOKUP(ROUNDUP($J$74/5,0)*5,'2020ER'!$D$52:$D$67,'2020ER'!$O$52:$O$67)-LOOKUP(ROUNDDOWN($J$74/5,0)*5,'2020ER'!$D$52:$D$67,'2020ER'!$O$52:$O$67)),LOOKUP(ROUNDDOWN($J$74/5,0)*5,'2020ER'!$D$52:$D$67,'2020ER'!$Q$52:$Q$67)+(($J$74-ROUNDDOWN($J$74/5,0)*5)/5)*(LOOKUP(ROUNDUP($J$74/5,0)*5,'2020ER'!$D$52:$D$67,'2020ER'!$Q$52:$Q$67)-LOOKUP(ROUNDDOWN($J$74/5,0)*5,'2020ER'!$D$52:$D$67,'2020ER'!$Q$52:$Q$67))) -> 2.138435381 | I121: =IF($I$22="Rural",LOOKUP(ROUNDDOWN($J$74/5,0)*5,'2020ER'!$D$36:$D$51,'2020ER'!$O$36:$O$51)+(($J$74-ROUNDDOWN($J$74/5,0)*5)/5)*(LOOKUP(ROUNDUP($J$74/5,0)*5,'2020ER'!$D$36:$D$51,'2020ER'!$O$36:$O$51)-LOOKUP(ROUNDDOWN($J$74/5,0)*5,'2020ER'!$D$36:$D$51,'2020ER'!$O$36:$O$51)),LOOKUP(ROUNDDOWN($J$74/5,0)*5,'2020ER'!$D$36:$D$51,'2020ER'!$Q$36:$Q$51)+(($J$74-ROUNDDOWN($J$74/5,0)*5)/5)*(LOOKUP(ROUNDUP($J$74/5,0)*5,'2020ER'!$D$36:$D$51,'2020ER'!$Q$36:$Q$51)-LOOKUP(ROUNDDOWN($J$74/5,0)*5,'2020ER'!$D$36:$D$51,'2020ER'!$Q$36:$Q$51))) -> 0.09584052616 | J121: =IF($I$22="Rural",LOOKUP(ROUNDDOWN($J$74/5,0)*5,'2020ER'!$D$4:$D$19,'2020ER'!$O$4:$O$19)+(($J$74-ROUNDDOWN($J$74/5,0)*5)/5)*(LOOKUP(ROUNDUP($J$74/5,0)*5,'2020ER'!$D$4:$D$19,'2020ER'!$O$4:$O$19)-LOOKUP(ROUNDDOWN($J$74/5,0)*5,'2020ER'!$D$4:$D$19,'2020ER'!$O$4:$O$19)),LOOKUP(ROUNDDOWN($J$74/5,0)*5,'2020ER'!$D$4:$D$19,'2020ER'!$Q$68:$Q$83)+(($J$74-ROUNDDOWN($J$74/5,0)*5)/5)*(LOOKUP(ROUNDUP($J$74/5,0)*5,'2020ER'!$D$4:$D$19,'2020ER'!$Q$68:$Q$83)-LOOKUP(ROUNDDOWN($J$74/5,0)*5,'2020ER'!$D$4:$D$19,'2020ER'!$Q$68:$Q$83))) -> 0.258130802
E122: Buses | F122: =IF($I$22="Rural",LOOKUP(ROUNDDOWN($J$74/5,0)*5,'2020ER'!$D$4:$D$19,'2020ER'!$J$4:$J$19)+(($J$74-ROUNDDOWN($J$74/5,0)*5)/5)*(LOOKUP(ROUNDUP($J$74/5,0)*5,'2020ER'!$D$4:$D$19,'2020ER'!$J$4:$J$19)-LOOKUP(ROUNDDOWN($J$74/5,0)*5,'2020ER'!$D$4:$D$19,'2020ER'!$J$4:$J$19)),LOOKUP(ROUNDDOWN($J$74/5,0)*5,'2020ER'!$D$4:$D$19,'2020ER'!$L$4:$L$19)+(($J$74-ROUNDDOWN($J$74/5,0)*5)/5)*(LOOKUP(ROUNDUP($J$74/5,0)*5,'2020ER'!$D$4:$D$19,'2020ER'!$L$4:$L$19)-LOOKUP(ROUNDDOWN($J$74/5,0)*5,'2020ER'!$D$4:$D$19,'2020ER'!$L$4:$L$19))) -> 1390.205798 | G122: =IF($I$22="Rural",LOOKUP(ROUNDDOWN($J$74/5,0)*5,'2020ER'!$D$20:$D$35,'2020ER'!$J$20:$J$35)+(($J$74-ROUNDDOWN($J$74/5,0)*5)/5)*(LOOKUP(ROUNDUP($J$74/5,0)*5,'2020ER'!$D$20:$D$35,'2020ER'!$J$20:$J$35)-LOOKUP(ROUNDDOWN($J$74/5,0)*5,'2020ER'!$D$20:$D$35,'2020ER'!$J$20:$J$35)),LOOKUP(ROUNDDOWN($J$74/5,0)*5,'2020ER'!$D$20:$D$35,'2020ER'!$L$20:$L$35)+(($J$74-ROUNDDOWN($J$74/5,0)*5)/5)*(LOOKUP(ROUNDUP($J$74/5,0)*5,'2020ER'!$D$20:$D$35,'2020ER'!$L$20:$L$35)-LOOKUP(ROUNDDOWN($J$74/5,0)*5,'2020ER'!$D$20:$D$35,'2020ER'!$L$20:$L$35))) -> 4.416889023 | H122: =IF($I$22="Rural",LOOKUP(ROUNDDOWN($J$74/5,0)*5,'2020ER'!$D$52:$D$67,'2020ER'!$J$52:$J$67)+(($J$74-ROUNDDOWN($J$74/5,0)*5)/5)*(LOOKUP(ROUNDUP($J$74/5,0)*5,'2020ER'!$D$52:$D$67,'2020ER'!$J$52:$J$67)-LOOKUP(ROUNDDOWN($J$74/5,0)*5,'2020ER'!$D$52:$D$67,'2020ER'!$J$52:$J$67)),LOOKUP(ROUNDDOWN($J$74/5,0)*5,'2020ER'!$D$52:$D$67,'2020ER'!$L$52:$L$67)+(($J$74-ROUNDDOWN($J$74/5,0)*5)/5)*(LOOKUP(ROUNDUP($J$74/5,0)*5,'2020ER'!$D$52:$D$67,'2020ER'!$L$52:$L$67)-LOOKUP(ROUNDDOWN($J$74/5,0)*5,'2020ER'!$D$52:$D$67,'2020ER'!$L$52:$L$67))) -> 3.957450871 | I122: =IF($I$22="Rural",LOOKUP(ROUNDDOWN($J$74/5,0)*5,'2020ER'!$D$36:$D$51,'2020ER'!$J$36:$J$51)+(($J$74-ROUNDDOWN($J$74/5,0)*5)/5)*(LOOKUP(ROUNDUP($J$74/5,0)*5,'2020ER'!$D$36:$D$51,'2020ER'!$J$36:$J$51)-LOOKUP(ROUNDDOWN($J$74/5,0)*5,'2020ER'!$D$36:$D$51,'2020ER'!$J$36:$J$51)),LOOKUP(ROUNDDOWN($J$74/5,0)*5,'2020ER'!$D$36:$D$51,'2020ER'!$L$36:$L$51)+(($J$74-ROUNDDOWN($J$74/5,0)*5)/5)*(LOOKUP(ROUNDUP($J$74/5,0)*5,'2020ER'!$D$36:$D$51,'2020ER'!$L$36:$L$51)-LOOKUP(ROUNDDOWN($J$74/5,0)*5,'2020ER'!$D$36:$D$51,'2020ER'!$L$36:$L$51))) -> 0.1793229136 | J122: =IF($I$22="Rural",LOOKUP(ROUNDDOWN($J$74/5,0)*5,'2020ER'!$D$4:$D$19,'2020ER'!$J$4:$J$19)+(($J$74-ROUNDDOWN($J$74/5,0)*5)/5)*(LOOKUP(ROUNDUP($J$74/5,0)*5,'2020ER'!$D$4:$D$19,'2020ER'!$J$4:$J$19)-LOOKUP(ROUNDDOWN($J$74/5,0)*5,'2020ER'!$D$4:$D$19,'2020ER'!$J$4:$J$19)),LOOKUP(ROUNDDOWN($J$74/5,0)*5,'2020ER'!$D$4:$D$19,'2020ER'!$L$68:$L$83)+(($J$74-ROUNDDOWN($J$74/5,0)*5)/5)*(LOOKUP(ROUNDUP($J$74/5,0)*5,'2020ER'!$D$4:$D$19,'2020ER'!$L$68:$L$83)-LOOKUP(ROUNDDOWN($J$74/5,0)*5,'2020ER'!$D$4:$D$19,'2020ER'!$L$68:$L$83))) -> 0.4170737112
C124: ="EMISSION FACTORS ("&'Parameters&Source'!B7&")" -> EMISSION FACTORS (2050)
C125: Description | F125: Pollutant | K125: Units
C126: Time Periods | D126: Operating Mode | E126: Vehicle Type | F126: CO2 | G126: PM-Related NOX | H126: NOX | I126: PM2.5 | J126: VOC
C127: Morning Peak | D127: Existing - General Purpose Lane | E127: Light Duty Vehicles | F127: =IF($I$22="Rural",LOOKUP(ROUNDDOWN($I$58/5,0)*5,'2050ER'!$D$4:$D$19,'2050ER'!$E$4:$E$19)+(($I$58-ROUNDDOWN($I$58/5,0)*5)/5)*(LOOKUP(ROUNDUP($I$58/5,0)*5,'2050ER'!$D$4:$D$19,'2050ER'!$E$4:$E$19)-LOOKUP(ROUNDDOWN($I$58/5,0)*5,'2050ER'!$D$4:$D$19,'2050ER'!$E$4:$E$19)),LOOKUP(ROUNDDOWN($I$58/5,0)*5,'2050ER'!$D$4:$D$19,'2050ER'!$G$4:$G$19)+(($I$58-ROUNDDOWN($I$58/5,0)*5)/5)*(LOOKUP(ROUNDUP($I$58/5,0)*5,'2050ER'!$D$4:$D$19,'2050ER'!$G$4:$G$19)-LOOKUP(ROUNDDOWN($I$58/5,0)*5,'2050ER'!$D$4:$D$19,'2050ER'!$G$4:$G$19))) -> 204.588643 | G127: =IF($I$22="Rural",LOOKUP(ROUNDDOWN($I$58/5,0)*5,'2050ER'!$D$20:$D$35,'2050ER'!$E$20:$E$35)+(($I$58-ROUNDDOWN($I$58/5,0)*5)/5)*(LOOKUP(ROUNDUP($I$58/5,0)*5,'2050ER'!$D$20:$D$35,'2050ER'!$E$20:$E$35)-LOOKUP(ROUNDDOWN($I$58/5,0)*5,'2050ER'!$D$20:$D$35,'2050ER'!$E$20:$E$35)),LOOKUP(ROUNDDOWN($I$58/5,0)*5,'2050ER'!$D$20:$D$35,'2050ER'!$G$20:$G$35)+(($I$58-ROUNDDOWN($I$58/5,0)*5)/5)*(LOOKUP(ROUNDUP($I$58/5,0)*5,'2050ER'!$D$20:$D$35,'2050ER'!$G$20:$G$35)-LOOKUP(ROUNDDOWN($I$58/5,0)*5,'2050ER'!$D$20:$D$35,'2050ER'!$G$20:$G$35))) -> 0.03664815621 | H127: =IF($I$22="Rural",LOOKUP(ROUNDDOWN($I$58/5,0)*5,'2050ER'!$D$52:$D$67,'2050ER'!$E$52:$E$67)+(($I$58-ROUNDDOWN($I$58/5,0)*5)/5)*(LOOKUP(ROUNDUP($I$58/5,0)*5,'2050ER'!$D$52:$D$67,'2050ER'!$E$52:$E$67)-LOOKUP(ROUNDDOWN($I$58/5,0)*5,'2050ER'!$D$52:$D$67,'2050ER'!$E$52:$E$67)),LOOKUP(ROUNDDOWN($I$58/5,0)*5,'2050ER'!$D$52:$D$67,'2050ER'!$G$52:$G$67)+(($I$58-ROUNDDOWN($I$58/5,0)*5)/5)*(LOOKUP(ROUNDUP($I$58/5,0)*5,'2050ER'!$D$52:$D$67,'2050ER'!$G$52:$G$67)-LOOKUP(ROUNDDOWN($I$58/5,0)*5,'2050ER'!$D$52:$D$67,'2050ER'!$G$52:$G$67))) -> 0.0714640274 | I127: =IF($I$22="Rural",LOOKUP(ROUNDDOWN($I$58/5,0)*5,'2050ER'!$D$36:$D$51,'2050ER'!$E$36:$E$51)+(($I$58-ROUNDDOWN($I$58/5,0)*5)/5)*(LOOKUP(ROUNDUP($I$58/5,0)*5,'2050ER'!$D$36:$D$51,'2050ER'!$E$36:$E$51)-LOOKUP(ROUNDDOWN($I$58/5,0)*5,'2050ER'!$D$36:$D$51,'2050ER'!$E$36:$E$51)),LOOKUP(ROUNDDOWN($I$58/5,0)*5,'2050ER'!$D$36:$D$51,'2050ER'!$G$36:$G$51)+(($I$58-ROUNDDOWN($I$58/5,0)*5)/5)*(LOOKUP(ROUNDUP($I$58/5,0)*5,'2050ER'!$D$36:$D$51,'2050ER'!$G$36:$G$51)-LOOKUP(ROUNDDOWN($I$58/5,0)*5,'2050ER'!$D$36:$D$51,'2050ER'!$G$36:$G$51))) -> 0.00380598504 | J127: =IF($I$22="Rural",LOOKUP(ROUNDDOWN($I$58/5,0)*5,'2050ER'!$D$4:$D$19,'2050ER'!$E$4:$E$19)+(($I$58-ROUNDDOWN($I$58/5,0)*5)/5)*(LOOKUP(ROUNDUP($I$58/5,0)*5,'2050ER'!$D$4:$D$19,'2050ER'!$E$4:$E$19)-LOOKUP(ROUNDDOWN($I$58/5,0)*5,'2050ER'!$D$4:$D$19,'2050ER'!$E$4:$E$19)),LOOKUP(ROUNDDOWN($I$58/5,0)*5,'2050ER'!$D$4:$D$19,'2050ER'!$G$68:$G$83)+(($I$58-ROUNDDOWN($I$58/5,0)*5)/5)*(LOOKUP(ROUNDUP($I$58/5,0)*5,'2050ER'!$D$4:$D$19,'2050ER'!$G$68:$G$83)-LOOKUP(ROUNDDOWN($I$58/5,0)*5,'2050ER'!$D$4:$D$19,'2050ER'!$G$68:$G$83))) -> 0.04966773735 | K127: g/veh/mile
E128: All Trucks | F128: =IF($I$22="Rural",LOOKUP(ROUNDDOWN($I$58/5,0)*5,'2050ER'!$D$4:$D$19,'2050ER'!$O$4:$O$19)+(($I$58-ROUNDDOWN($I$58/5,0)*5)/5)*(LOOKUP(ROUNDUP($I$58/5,0)*5,'2050ER'!$D$4:$D$19,'2050ER'!$O$4:$O$19)-LOOKUP(ROUNDDOWN($I$58/5,0)*5,'2050ER'!$D$4:$D$19,'2050ER'!$O$4:$O$19)),LOOKUP(ROUNDDOWN($I$58/5,0)*5,'2050ER'!$D$4:$D$19,'2050ER'!$Q$4:$Q$19)+(($I$58-ROUNDDOWN($I$58/5,0)*5)/5)*(LOOKUP(ROUNDUP($I$58/5,0)*5,'2050ER'!$D$4:$D$19,'2050ER'!$Q$4:$Q$19)-LOOKUP(ROUNDDOWN($I$58/5,0)*5,'2050ER'!$D$4:$D$19,'2050ER'!$Q$4:$Q$19))) -> 1263.190581 | G128: =IF($I$22="Rural",LOOKUP(ROUNDDOWN($I$58/5,0)*5,'2050ER'!$D$20:$D$35,'2050ER'!$O$20:$O$35)+(($I$58-ROUNDDOWN($I$58/5,0)*5)/5)*(LOOKUP(ROUNDUP($I$58/5,0)*5,'2050ER'!$D$20:$D$35,'2050ER'!$O$20:$O$35)-LOOKUP(ROUNDDOWN($I$58/5,0)*5,'2050ER'!$D$20:$D$35,'2050ER'!$O$20:$O$35)),LOOKUP(ROUNDDOWN($I$58/5,0)*5,'2050ER'!$D$20:$D$35,'2050ER'!$Q$20:$Q$35)+(($I$58-ROUNDDOWN($I$58/5,0)*5)/5)*(LOOKUP(ROUNDUP($I$58/5,0)*5,'2050ER'!$D$20:$D$35,'2050ER'!$Q$20:$Q$35)-LOOKUP(ROUNDDOWN($I$58/5,0)*5,'2050ER'!$D$20:$D$35,'2050ER'!$Q$20:$Q$35))) -> 0.8706926392 | H128: =IF($I$22="Rural",LOOKUP(ROUNDDOWN($I$58/5,0)*5,'2050ER'!$D$52:$D$67,'2050ER'!$O$52:$O$67)+(($I$58-ROUNDDOWN($I$58/5,0)*5)/5)*(LOOKUP(ROUNDUP($I$58/5,0)*5,'2050ER'!$D$52:$D$67,'2050ER'!$O$52:$O$67)-LOOKUP(ROUNDDOWN($I$58/5,0)*5,'2050ER'!$D$52:$D$67,'2050ER'!$O$52:$O$67)),LOOKUP(ROUNDDOWN($I$58/5,0)*5,'2050ER'!$D$52:$D$67,'2050ER'!$Q$52:$Q$67)+(($I$58-ROUNDDOWN($I$58/5,0)*5)/5)*(LOOKUP(ROUNDUP($I$58/5,0)*5,'2050ER'!$D$52:$D$67,'2050ER'!$Q$52:$Q$67)-LOOKUP(ROUNDDOWN($I$58/5,0)*5,'2050ER'!$D$52:$D$67,'2050ER'!$Q$52:$Q$67))) -> 1.551020852 | I128: =IF($I$22="Rural",LOOKUP(ROUNDDOWN($I$58/5,0)*5,'2050ER'!$D$36:$D$51,'2050ER'!$O$36:$O$51)+(($I$58-ROUNDDOWN($I$58/5,0)*5)/5)*(LOOKUP(ROUNDUP($I$58/5,0)*5,'2050ER'!$D$36:$D$51,'2050ER'!$O$36:$O$51)-LOOKUP(ROUNDDOWN($I$58/5,0)*5,'2050ER'!$D$36:$D$51,'2050ER'!$O$36:$O$51)),LOOKUP(ROUNDDOWN($I$58/5,0)*5,'2050ER'!$D$36:$D$51,'2050ER'!$Q$36:$Q$51)+(($I$58-ROUNDDOWN($I$58/5,0)*5)/5)*(LOOKUP(ROUNDUP($I$58/5,0)*5,'2050ER'!$D$36:$D$51,'2050ER'!$Q$36:$Q$51)-LOOKUP(ROUNDDOWN($I$58/5,0)*5,'2050ER'!$D$36:$D$51,'2050ER'!$Q$36:$Q$51))) -> 0.02275963248 | J128: =IF($I$22="Rural",LOOKUP(ROUNDDOWN($I$58/5,0)*5,'2050ER'!$D$4:$D$19,'2050ER'!$O$4:$O$19)+(($I$58-ROUNDDOWN($I$58/5,0)*5)/5)*(LOOKUP(ROUNDUP($I$58/5,0)*5,'2050ER'!$D$4:$D$19,'2050ER'!$O$4:$O$19)-LOOKUP(ROUNDDOWN($I$58/5,0)*5,'2050ER'!$D$4:$D$19,'2050ER'!$O$4:$O$19)),LOOKUP(ROUNDDOWN($I$58/5,0)*5,'2050ER'!$D$4:$D$19,'2050ER'!$Q$68:$Q$83)+(($I$58-ROUNDDOWN($I$58/5,0)*5)/5)*(LOOKUP(ROUNDUP($I$58/5,0)*5,'2050ER'!$D$4:$D$19,'2050ER'!$Q$68:$Q$83)-LOOKUP(ROUNDDOWN($I$58/5,0)*5,'2050ER'!$D$4:$D$19,'2050ER'!$Q$68:$Q$83))) -> 0.224077818 | K128: g/veh/mile
E129: Buses | F129: =IF($I$22="Rural",LOOKUP(ROUNDDOWN($I$58/5,0)*5,'2050ER'!$D$4:$D$19,'2050ER'!$J$4:$J$19)+(($I$58-ROUNDDOWN($I$58/5,0)*5)/5)*(LOOKUP(ROUNDUP($I$58/5,0)*5,'2050ER'!$D$4:$D$19,'2050ER'!$J$4:$J$19)-LOOKUP(ROUNDDOWN($I$58/5,0)*5,'2050ER'!$D$4:$D$19,'2050ER'!$J$4:$J$19)),LOOKUP(ROUNDDOWN($I$58/5,0)*5,'2050ER'!$D$4:$D$19,'2050ER'!$L$4:$L$19)+(($I$58-ROUNDDOWN($I$58/5,0)*5)/5)*(LOOKUP(ROUNDUP($I$58/5,0)*5,'2050ER'!$D$4:$D$19,'2050ER'!$L$4:$L$19)-LOOKUP(ROUNDDOWN($I$58/5,0)*5,'2050ER'!$D$4:$D$19,'2050ER'!$L$4:$L$19))) -> 1227.044981 | G129: =IF($I$22="Rural",LOOKUP(ROUNDDOWN($I$58/5,0)*5,'2050ER'!$D$20:$D$35,'2050ER'!$J$20:$J$35)+(($I$58-ROUNDDOWN($I$58/5,0)*5)/5)*(LOOKUP(ROUNDUP($I$58/5,0)*5,'2050ER'!$D$20:$D$35,'2050ER'!$J$20:$J$35)-LOOKUP(ROUNDDOWN($I$58/5,0)*5,'2050ER'!$D$20:$D$35,'2050ER'!$J$20:$J$35)),LOOKUP(ROUNDDOWN($I$58/5,0)*5,'2050ER'!$D$20:$D$35,'2050ER'!$L$20:$L$35)+(($I$58-ROUNDDOWN($I$58/5,0)*5)/5)*(LOOKUP(ROUNDUP($I$58/5,0)*5,'2050ER'!$D$20:$D$35,'2050ER'!$L$20:$L$35)-LOOKUP(ROUNDDOWN($I$58/5,0)*5,'2050ER'!$D$20:$D$35,'2050ER'!$L$20:$L$35))) -> 1.042670865 | H129: =IF($I$22="Rural",LOOKUP(ROUNDDOWN($I$58/5,0)*5,'2050ER'!$D$52:$D$67,'2050ER'!$J$52:$J$67)+(($I$58-ROUNDDOWN($I$58/5,0)*5)/5)*(LOOKUP(ROUNDUP($I$58/5,0)*5,'2050ER'!$D$52:$D$67,'2050ER'!$J$52:$J$67)-LOOKUP(ROUNDDOWN($I$58/5,0)*5,'2050ER'!$D$52:$D$67,'2050ER'!$J$52:$J$67)),LOOKUP(ROUNDDOWN($I$58/5,0)*5,'2050ER'!$D$52:$D$67,'2050ER'!$L$52:$L$67)+(($I$58-ROUNDDOWN($I$58/5,0)*5)/5)*(LOOKUP(ROUNDUP($I$58/5,0)*5,'2050ER'!$D$52:$D$67,'2050ER'!$L$52:$L$67)-LOOKUP(ROUNDDOWN($I$58/5,0)*5,'2050ER'!$D$52:$D$67,'2050ER'!$L$52:$L$67))) -> 1.882891099 | I129: =IF($I$22="Rural",LOOKUP(ROUNDDOWN($I$58/5,0)*5,'2050ER'!$D$36:$D$51,'2050ER'!$J$36:$J$51)+(($I$58-ROUNDDOWN($I$58/5,0)*5)/5)*(LOOKUP(ROUNDUP($I$58/5,0)*5,'2050ER'!$D$36:$D$51,'2050ER'!$J$36:$J$51)-LOOKUP(ROUNDDOWN($I$58/5,0)*5,'2050ER'!$D$36:$D$51,'2050ER'!$J$36:$J$51)),LOOKUP(ROUNDDOWN($I$58/5,0)*5,'2050ER'!$D$36:$D$51,'2050ER'!$L$36:$L$51)+(($I$58-ROUNDDOWN($I$58/5,0)*5)/5)*(LOOKUP(ROUNDUP($I$58/5,0)*5,'2050ER'!$D$36:$D$51,'2050ER'!$L$36:$L$51)-LOOKUP(ROUNDDOWN($I$58/5,0)*5,'2050ER'!$D$36:$D$51,'2050ER'!$L$36:$L$51))) -> 0.01706821324 | J129: =IF($I$22="Rural",LOOKUP(ROUNDDOWN($I$58/5,0)*5,'2050ER'!$D$4:$D$19,'2050ER'!$J$4:$J$19)+(($I$58-ROUNDDOWN($I$58/5,0)*5)/5)*(LOOKUP(ROUNDUP($I$58/5,0)*5,'2050ER'!$D$4:$D$19,'2050ER'!$J$4:$J$19)-LOOKUP(ROUNDDOWN($I$58/5,0)*5,'2050ER'!$D$4:$D$19,'2050ER'!$J$4:$J$19)),LOOKUP(ROUNDDOWN($I$58/5,0)*5,'2050ER'!$D$4:$D$19,'2050ER'!$L$68:$L$83)+(($I$58-ROUNDDOWN($I$58/5,0)*5)/5)*(LOOKUP(ROUNDUP($I$58/5,0)*5,'2050ER'!$D$4:$D$19,'2050ER'!$L$68:$L$83)-LOOKUP(ROUNDDOWN($I$58/5,0)*5,'2050ER'!$D$4:$D$19,'2050ER'!$L$68:$L$83))) -> 0.1716233248 | K129: g/veh/mile
D130: Existing - HOV Lane | E130: Light Duty Vehicles | F130: =IF($I$22="Rural",LOOKUP(ROUNDDOWN($I$63/5,0)*5,'2050ER'!$D$4:$D$19,'2050ER'!$E$4:$E$19)+(($I$63-ROUNDDOWN($I$63/5,0)*5)/5)*(LOOKUP(ROUNDUP($I$63/5,0)*5,'2050ER'!$D$4:$D$19,'2050ER'!$E$4:$E$19)-LOOKUP(ROUNDDOWN($I$63/5,0)*5,'2050ER'!$D$4:$D$19,'2050ER'!$E$4:$E$19)),LOOKUP(ROUNDDOWN($I$63/5,0)*5,'2050ER'!$D$4:$D$19,'2050ER'!$G$4:$G$19)+(($I$63-ROUNDDOWN($I$63/5,0)*5)/5)*(LOOKUP(ROUNDUP($I$63/5,0)*5,'2050ER'!$D$4:$D$19,'2050ER'!$G$4:$G$19)-LOOKUP(ROUNDDOWN($I$63/5,0)*5,'2050ER'!$D$4:$D$19,'2050ER'!$G$4:$G$19))) -> 204.7413142 | G130: =IF($I$22="Rural",LOOKUP(ROUNDDOWN($I$63/5,0)*5,'2050ER'!$D$20:$D$35,'2050ER'!$E$20:$E$35)+(($I$63-ROUNDDOWN($I$63/5,0)*5)/5)*(LOOKUP(ROUNDUP($I$63/5,0)*5,'2050ER'!$D$20:$D$35,'2050ER'!$E$20:$E$35)-LOOKUP(ROUNDDOWN($I$63/5,0)*5,'2050ER'!$D$20:$D$35,'2050ER'!$E$20:$E$35)),LOOKUP(ROUNDDOWN($I$63/5,0)*5,'2050ER'!$D$20:$D$35,'2050ER'!$G$20:$G$35)+(($I$63-ROUNDDOWN($I$63/5,0)*5)/5)*(LOOKUP(ROUNDUP($I$63/5,0)*5,'2050ER'!$D$20:$D$35,'2050ER'!$G$20:$G$35)-LOOKUP(ROUNDDOWN($I$63/5,0)*5,'2050ER'!$D$20:$D$35,'2050ER'!$G$20:$G$35))) -> 0.0370441951 | H130: =IF($I$22="Rural",LOOKUP(ROUNDDOWN($I$63/5,0)*5,'2050ER'!$D$52:$D$67,'2050ER'!$E$52:$E$67)+(($I$63-ROUNDDOWN($I$63/5,0)*5)/5)*(LOOKUP(ROUNDUP($I$63/5,0)*5,'2050ER'!$D$52:$D$67,'2050ER'!$E$52:$E$67)-LOOKUP(ROUNDDOWN($I$63/5,0)*5,'2050ER'!$D$52:$D$67,'2050ER'!$E$52:$E$67)),LOOKUP(ROUNDDOWN($I$63/5,0)*5,'2050ER'!$D$52:$D$67,'2050ER'!$G$52:$G$67)+(($I$63-ROUNDDOWN($I$63/5,0)*5)/5)*(LOOKUP(ROUNDUP($I$63/5,0)*5,'2050ER'!$D$52:$D$67,'2050ER'!$G$52:$G$67)-LOOKUP(ROUNDDOWN($I$63/5,0)*5,'2050ER'!$D$52:$D$67,'2050ER'!$G$52:$G$67))) -> 0.07223912944 | I130: =IF($I$22="Rural",LOOKUP(ROUNDDOWN($I$63/5,0)*5,'2050ER'!$D$36:$D$51,'2050ER'!$E$36:$E$51)+(($I$63-ROUNDDOWN($I$63/5,0)*5)/5)*(LOOKUP(ROUNDUP($I$63/5,0)*5,'2050ER'!$D$36:$D$51,'2050ER'!$E$36:$E$51)-LOOKUP(ROUNDDOWN($I$63/5,0)*5,'2050ER'!$D$36:$D$51,'2050ER'!$E$36:$E$51)),LOOKUP(ROUNDDOWN($I$63/5,0)*5,'2050ER'!$D$36:$D$51,'2050ER'!$G$36:$G$51)+(($I$63-ROUNDDOWN($I$63/5,0)*5)/5)*(LOOKUP(ROUNDUP($I$63/5,0)*5,'2050ER'!$D$36:$D$51,'2050ER'!$G$36:$G$51)-LOOKUP(ROUNDDOWN($I$63/5,0)*5,'2050ER'!$D$36:$D$51,'2050ER'!$G$36:$G$51))) -> 0.003782271774 | J130: =IF($I$22="Rural",LOOKUP(ROUNDDOWN($I$63/5,0)*5,'2050ER'!$D$4:$D$19,'2050ER'!$E$4:$E$19)+(($I$63-ROUNDDOWN($I$63/5,0)*5)/5)*(LOOKUP(ROUNDUP($I$63/5,0)*5,'2050ER'!$D$4:$D$19,'2050ER'!$E$4:$E$19)-LOOKUP(ROUNDDOWN($I$63/5,0)*5,'2050ER'!$D$4:$D$19,'2050ER'!$E$4:$E$19)),LOOKUP(ROUNDDOWN($I$63/5,0)*5,'2050ER'!$D$4:$D$19,'2050ER'!$G$68:$G$83)+(($I$63-ROUNDDOWN($I$63/5,0)*5)/5)*(LOOKUP(ROUNDUP($I$63/5,0)*5,'2050ER'!$D$4:$D$19,'2050ER'!$G$68:$G$83)-LOOKUP(ROUNDDOWN($I$63/5,0)*5,'2050ER'!$D$4:$D$19,'2050ER'!$G$68:$G$83))) -> 0.04954441282 | K130: g/veh/mile
E131: All Trucks | F131: =IF($I$22="Rural",LOOKUP(ROUNDDOWN($I$63/5,0)*5,'2050ER'!$D$4:$D$19,'2050ER'!$O$4:$O$19)+(($I$63-ROUNDDOWN($I$63/5,0)*5)/5)*(LOOKUP(ROUNDUP($I$63/5,0)*5,'2050ER'!$D$4:$D$19,'2050ER'!$O$4:$O$19)-LOOKUP(ROUNDDOWN($I$63/5,0)*5,'2050ER'!$D$4:$D$19,'2050ER'!$O$4:$O$19)),LOOKUP(ROUNDDOWN($I$63/5,0)*5,'2050ER'!$D$4:$D$19,'2050ER'!$Q$4:$Q$19)+(($I$63-ROUNDDOWN($I$63/5,0)*5)/5)*(LOOKUP(ROUNDUP($I$63/5,0)*5,'2050ER'!$D$4:$D$19,'2050ER'!$Q$4:$Q$19)-LOOKUP(ROUNDDOWN($I$63/5,0)*5,'2050ER'!$D$4:$D$19,'2050ER'!$Q$4:$Q$19))) -> 1267.257554 | G131: =IF($I$22="Rural",LOOKUP(ROUNDDOWN($I$63/5,0)*5,'2050ER'!$D$20:$D$35,'2050ER'!$O$20:$O$35)+(($I$63-ROUNDDOWN($I$63/5,0)*5)/5)*(LOOKUP(ROUNDUP($I$63/5,0)*5,'2050ER'!$D$20:$D$35,'2050ER'!$O$20:$O$35)-LOOKUP(ROUNDDOWN($I$63/5,0)*5,'2050ER'!$D$20:$D$35,'2050ER'!$O$20:$O$35)),LOOKUP(ROUNDDOWN($I$63/5,0)*5,'2050ER'!$D$20:$D$35,'2050ER'!$Q$20:$Q$35)+(($I$63-ROUNDDOWN($I$63/5,0)*5)/5)*(LOOKUP(ROUNDUP($I$63/5,0)*5,'2050ER'!$D$20:$D$35,'2050ER'!$Q$20:$Q$35)-LOOKUP(ROUNDDOWN($I$63/5,0)*5,'2050ER'!$D$20:$D$35,'2050ER'!$Q$20:$Q$35))) -> 0.8725106246 | H131: =IF($I$22="Rural",LOOKUP(ROUNDDOWN($I$63/5,0)*5,'2050ER'!$D$52:$D$67,'2050ER'!$O$52:$O$67)+(($I$63-ROUNDDOWN($I$63/5,0)*5)/5)*(LOOKUP(ROUNDUP($I$63/5,0)*5,'2050ER'!$D$52:$D$67,'2050ER'!$O$52:$O$67)-LOOKUP(ROUNDDOWN($I$63/5,0)*5,'2050ER'!$D$52:$D$67,'2050ER'!$O$52:$O$67)),LOOKUP(ROUNDDOWN($I$63/5,0)*5,'2050ER'!$D$52:$D$67,'2050ER'!$Q$52:$Q$67)+(($I$63-ROUNDDOWN($I$63/5,0)*5)/5)*(LOOKUP(ROUNDUP($I$63/5,0)*5,'2050ER'!$D$52:$D$67,'2050ER'!$Q$52:$Q$67)-LOOKUP(ROUNDDOWN($I$63/5,0)*5,'2050ER'!$D$52:$D$67,'2050ER'!$Q$52:$Q$67))) -> 1.554281494 | I131: =IF($I$22="Rural",LOOKUP(ROUNDDOWN($I$63/5,0)*5,'2050ER'!$D$36:$D$51,'2050ER'!$O$36:$O$51)+(($I$63-ROUNDDOWN($I$63/5,0)*5)/5)*(LOOKUP(ROUNDUP($I$63/5,0)*5,'2050ER'!$D$36:$D$51,'2050ER'!$O$36:$O$51)-LOOKUP(ROUNDDOWN($I$63/5,0)*5,'2050ER'!$D$36:$D$51,'2050ER'!$O$36:$O$51)),LOOKUP(ROUNDDOWN($I$63/5,0)*5,'2050ER'!$D$36:$D$51,'2050ER'!$Q$36:$Q$51)+(($I$63-ROUNDDOWN($I$63/5,0)*5)/5)*(LOOKUP(ROUNDUP($I$63/5,0)*5,'2050ER'!$D$36:$D$51,'2050ER'!$Q$36:$Q$51)-LOOKUP(ROUNDDOWN($I$63/5,0)*5,'2050ER'!$D$36:$D$51,'2050ER'!$Q$36:$Q$51))) -> 0.02267733687 | J131: =IF($I$22="Rural",LOOKUP(ROUNDDOWN($I$63/5,0)*5,'2050ER'!$D$4:$D$19,'2050ER'!$O$4:$O$19)+(($I$63-ROUNDDOWN($I$63/5,0)*5)/5)*(LOOKUP(ROUNDUP($I$63/5,0)*5,'2050ER'!$D$4:$D$19,'2050ER'!$O$4:$O$19)-LOOKUP(ROUNDDOWN($I$63/5,0)*5,'2050ER'!$D$4:$D$19,'2050ER'!$O$4:$O$19)),LOOKUP(ROUNDDOWN($I$63/5,0)*5,'2050ER'!$D$4:$D$19,'2050ER'!$Q$68:$Q$83)+(($I$63-ROUNDDOWN($I$63/5,0)*5)/5)*(LOOKUP(ROUNDUP($I$63/5,0)*5,'2050ER'!$D$4:$D$19,'2050ER'!$Q$68:$Q$83)-LOOKUP(ROUNDDOWN($I$63/5,0)*5,'2050ER'!$D$4:$D$19,'2050ER'!$Q$68:$Q$83))) -> 0.2234348975 | K131: g/veh/mile
E132: Buses | F132: =IF($I$22="Rural",LOOKUP(ROUNDDOWN($I$63/5,0)*5,'2050ER'!$D$4:$D$19,'2050ER'!$J$4:$J$19)+(($I$63-ROUNDDOWN($I$63/5,0)*5)/5)*(LOOKUP(ROUNDUP($I$63/5,0)*5,'2050ER'!$D$4:$D$19,'2050ER'!$J$4:$J$19)-LOOKUP(ROUNDDOWN($I$63/5,0)*5,'2050ER'!$D$4:$D$19,'2050ER'!$J$4:$J$19)),LOOKUP(ROUNDDOWN($I$63/5,0)*5,'2050ER'!$D$4:$D$19,'2050ER'!$L$4:$L$19)+(($I$63-ROUNDDOWN($I$63/5,0)*5)/5)*(LOOKUP(ROUNDUP($I$63/5,0)*5,'2050ER'!$D$4:$D$19,'2050ER'!$L$4:$L$19)-LOOKUP(ROUNDDOWN($I$63/5,0)*5,'2050ER'!$D$4:$D$19,'2050ER'!$L$4:$L$19))) -> 1234.519525 | G132: =IF($I$22="Rural",LOOKUP(ROUNDDOWN($I$63/5,0)*5,'2050ER'!$D$20:$D$35,'2050ER'!$J$20:$J$35)+(($I$63-ROUNDDOWN($I$63/5,0)*5)/5)*(LOOKUP(ROUNDUP($I$63/5,0)*5,'2050ER'!$D$20:$D$35,'2050ER'!$J$20:$J$35)-LOOKUP(ROUNDDOWN($I$63/5,0)*5,'2050ER'!$D$20:$D$35,'2050ER'!$J$20:$J$35)),LOOKUP(ROUNDDOWN($I$63/5,0)*5,'2050ER'!$D$20:$D$35,'2050ER'!$L$20:$L$35)+(($I$63-ROUNDDOWN($I$63/5,0)*5)/5)*(LOOKUP(ROUNDUP($I$63/5,0)*5,'2050ER'!$D$20:$D$35,'2050ER'!$L$20:$L$35)-LOOKUP(ROUNDDOWN($I$63/5,0)*5,'2050ER'!$D$20:$D$35,'2050ER'!$L$20:$L$35))) -> 1.046566272 | H132: =IF($I$22="Rural",LOOKUP(ROUNDDOWN($I$63/5,0)*5,'2050ER'!$D$52:$D$67,'2050ER'!$J$52:$J$67)+(($I$63-ROUNDDOWN($I$63/5,0)*5)/5)*(LOOKUP(ROUNDUP($I$63/5,0)*5,'2050ER'!$D$52:$D$67,'2050ER'!$J$52:$J$67)-LOOKUP(ROUNDDOWN($I$63/5,0)*5,'2050ER'!$D$52:$D$67,'2050ER'!$J$52:$J$67)),LOOKUP(ROUNDDOWN($I$63/5,0)*5,'2050ER'!$D$52:$D$67,'2050ER'!$L$52:$L$67)+(($I$63-ROUNDDOWN($I$63/5,0)*5)/5)*(LOOKUP(ROUNDUP($I$63/5,0)*5,'2050ER'!$D$52:$D$67,'2050ER'!$L$52:$L$67)-LOOKUP(ROUNDDOWN($I$63/5,0)*5,'2050ER'!$D$52:$D$67,'2050ER'!$L$52:$L$67))) -> 1.889860975 | I132: =IF($I$22="Rural",LOOKUP(ROUNDDOWN($I$63/5,0)*5,'2050ER'!$D$36:$D$51,'2050ER'!$J$36:$J$51)+(($I$63-ROUNDDOWN($I$63/5,0)*5)/5)*(LOOKUP(ROUNDUP($I$63/5,0)*5,'2050ER'!$D$36:$D$51,'2050ER'!$J$36:$J$51)-LOOKUP(ROUNDDOWN($I$63/5,0)*5,'2050ER'!$D$36:$D$51,'2050ER'!$J$36:$J$51)),LOOKUP(ROUNDDOWN($I$63/5,0)*5,'2050ER'!$D$36:$D$51,'2050ER'!$L$36:$L$51)+(($I$63-ROUNDDOWN($I$63/5,0)*5)/5)*(LOOKUP(ROUNDUP($I$63/5,0)*5,'2050ER'!$D$36:$D$51,'2050ER'!$L$36:$L$51)-LOOKUP(ROUNDDOWN($I$63/5,0)*5,'2050ER'!$D$36:$D$51,'2050ER'!$L$36:$L$51))) -> 0.01704472673 | J132: =IF($I$22="Rural",LOOKUP(ROUNDDOWN($I$63/5,0)*5,'2050ER'!$D$4:$D$19,'2050ER'!$J$4:$J$19)+(($I$63-ROUNDDOWN($I$63/5,0)*5)/5)*(LOOKUP(ROUNDUP($I$63/5,0)*5,'2050ER'!$D$4:$D$19,'2050ER'!$J$4:$J$19)-LOOKUP(ROUNDDOWN($I$63/5,0)*5,'2050ER'!$D$4:$D$19,'2050ER'!$J$4:$J$19)),LOOKUP(ROUNDDOWN($I$63/5,0)*5,'2050ER'!$D$4:$D$19,'2050ER'!$L$68:$L$83)+(($I$63-ROUNDDOWN($I$63/5,0)*5)/5)*(LOOKUP(ROUNDUP($I$63/5,0)*5,'2050ER'!$D$4:$D$19,'2050ER'!$L$68:$L$83)-LOOKUP(ROUNDDOWN($I$63/5,0)*5,'2050ER'!$D$4:$D$19,'2050ER'!$L$68:$L$83))) -> 0.1714897938 | K132: g/veh/mile
D133: Proposed - General Purpose Lane | E133: Light Duty Vehicles | F133: =IF($I$22="Rural",LOOKUP(ROUNDDOWN($I$69/5,0)*5,'2050ER'!$D$4:$D$19,'2050ER'!$E$4:$E$19)+(($I$69-ROUNDDOWN($I$69/5,0)*5)/5)*(LOOKUP(ROUNDUP($I$69/5,0)*5,'2050ER'!$D$4:$D$19,'2050ER'!$E$4:$E$19)-LOOKUP(ROUNDDOWN($I$69/5,0)*5,'2050ER'!$D$4:$D$19,'2050ER'!$E$4:$E$19)),LOOKUP(ROUNDDOWN($I$69/5,0)*5,'2050ER'!$D$4:$D$19,'2050ER'!$G$4:$G$19)+(($I$69-ROUNDDOWN($I$69/5,0)*5)/5)*(LOOKUP(ROUNDUP($I$69/5,0)*5,'2050ER'!$D$4:$D$19,'2050ER'!$G$4:$G$19)-LOOKUP(ROUNDDOWN($I$69/5,0)*5,'2050ER'!$D$4:$D$19,'2050ER'!$G$4:$G$19))) -> 204.588643 | G133: =IF($I$22="Rural",LOOKUP(ROUNDDOWN($I$69/5,0)*5,'2050ER'!$D$20:$D$35,'2050ER'!$E$20:$E$35)+(($I$69-ROUNDDOWN($I$69/5,0)*5)/5)*(LOOKUP(ROUNDUP($I$69/5,0)*5,'2050ER'!$D$20:$D$35,'2050ER'!$E$20:$E$35)-LOOKUP(ROUNDDOWN($I$69/5,0)*5,'2050ER'!$D$20:$D$35,'2050ER'!$E$20:$E$35)),LOOKUP(ROUNDDOWN($I$69/5,0)*5,'2050ER'!$D$20:$D$35,'2050ER'!$G$20:$G$35)+(($I$69-ROUNDDOWN($I$69/5,0)*5)/5)*(LOOKUP(ROUNDUP($I$69/5,0)*5,'2050ER'!$D$20:$D$35,'2050ER'!$G$20:$G$35)-LOOKUP(ROUNDDOWN($I$69/5,0)*5,'2050ER'!$D$20:$D$35,'2050ER'!$G$20:$G$35))) -> 0.03664815621 | H133: =IF($I$22="Rural",LOOKUP(ROUNDDOWN($I$69/5,0)*5,'2050ER'!$D$52:$D$67,'2050ER'!$E$52:$E$67)+(($I$69-ROUNDDOWN($I$69/5,0)*5)/5)*(LOOKUP(ROUNDUP($I$69/5,0)*5,'2050ER'!$D$52:$D$67,'2050ER'!$E$52:$E$67)-LOOKUP(ROUNDDOWN($I$69/5,0)*5,'2050ER'!$D$52:$D$67,'2050ER'!$E$52:$E$67)),LOOKUP(ROUNDDOWN($I$69/5,0)*5,'2050ER'!$D$52:$D$67,'2050ER'!$G$52:$G$67)+(($I$69-ROUNDDOWN($I$69/5,0)*5)/5)*(LOOKUP(ROUNDUP($I$69/5,0)*5,'2050ER'!$D$52:$D$67,'2050ER'!$G$52:$G$67)-LOOKUP(ROUNDDOWN($I$69/5,0)*5,'2050ER'!$D$52:$D$67,'2050ER'!$G$52:$G$67))) -> 0.0714640274 | I133: =IF($I$22="Rural",LOOKUP(ROUNDDOWN($I$69/5,0)*5,'2050ER'!$D$36:$D$51,'2050ER'!$E$36:$E$51)+(($I$69-ROUNDDOWN($I$69/5,0)*5)/5)*(LOOKUP(ROUNDUP($I$69/5,0)*5,'2050ER'!$D$36:$D$51,'2050ER'!$E$36:$E$51)-LOOKUP(ROUNDDOWN($I$69/5,0)*5,'2050ER'!$D$36:$D$51,'2050ER'!$E$36:$E$51)),LOOKUP(ROUNDDOWN($I$69/5,0)*5,'2050ER'!$D$36:$D$51,'2050ER'!$G$36:$G$51)+(($I$69-ROUNDDOWN($I$69/5,0)*5)/5)*(LOOKUP(ROUNDUP($I$69/5,0)*5,'2050ER'!$D$36:$D$51,'2050ER'!$G$36:$G$51)-LOOKUP(ROUNDDOWN($I$69/5,0)*5,'2050ER'!$D$36:$D$51,'2050ER'!$G$36:$G$51))) -> 0.00380598504 | J133: =IF($I$22="Rural",LOOKUP(ROUNDDOWN($I$69/5,0)*5,'2050ER'!$D$4:$D$19,'2050ER'!$E$4:$E$19)+(($I$69-ROUNDDOWN($I$69/5,0)*5)/5)*(LOOKUP(ROUNDUP($I$69/5,0)*5,'2050ER'!$D$4:$D$19,'2050ER'!$E$4:$E$19)-LOOKUP(ROUNDDOWN($I$69/5,0)*5,'2050ER'!$D$4:$D$19,'2050ER'!$E$4:$E$19)),LOOKUP(ROUNDDOWN($I$69/5,0)*5,'2050ER'!$D$4:$D$19,'2050ER'!$G$68:$G$83)+(($I$69-ROUNDDOWN($I$69/5,0)*5)/5)*(LOOKUP(ROUNDUP($I$69/5,0)*5,'2050ER'!$D$4:$D$19,'2050ER'!$G$68:$G$83)-LOOKUP(ROUNDDOWN($I$69/5,0)*5,'2050ER'!$D$4:$D$19,'2050ER'!$G$68:$G$83))) -> 0.04966773735 | K133: g/veh/mile
E134: All Trucks | F134: =IF($I$22="Rural",LOOKUP(ROUNDDOWN($I$69/5,0)*5,'2050ER'!$D$4:$D$19,'2050ER'!$O$4:$O$19)+(($I$69-ROUNDDOWN($I$69/5,0)*5)/5)*(LOOKUP(ROUNDUP($I$69/5,0)*5,'2050ER'!$D$4:$D$19,'2050ER'!$O$4:$O$19)-LOOKUP(ROUNDDOWN($I$69/5,0)*5,'2050ER'!$D$4:$D$19,'2050ER'!$O$4:$O$19)),LOOKUP(ROUNDDOWN($I$69/5,0)*5,'2050ER'!$D$4:$D$19,'2050ER'!$Q$4:$Q$19)+(($I$69-ROUNDDOWN($I$69/5,0)*5)/5)*(LOOKUP(ROUNDUP($I$69/5,0)*5,'2050ER'!$D$4:$D$19,'2050ER'!$Q$4:$Q$19)-LOOKUP(ROUNDDOWN($I$69/5,0)*5,'2050ER'!$D$4:$D$19,'2050ER'!$Q$4:$Q$19))) -> 1263.190581 | G134: =IF($I$22="Rural",LOOKUP(ROUNDDOWN($I$69/5,0)*5,'2050ER'!$D$20:$D$35,'2050ER'!$O$20:$O$35)+(($I$69-ROUNDDOWN($I$69/5,0)*5)/5)*(LOOKUP(ROUNDUP($I$69/5,0)*5,'2050ER'!$D$20:$D$35,'2050ER'!$O$20:$O$35)-LOOKUP(ROUNDDOWN($I$69/5,0)*5,'2050ER'!$D$20:$D$35,'2050ER'!$O$20:$O$35)),LOOKUP(ROUNDDOWN($I$69/5,0)*5,'2050ER'!$D$20:$D$35,'2050ER'!$Q$20:$Q$35)+(($I$69-ROUNDDOWN($I$69/5,0)*5)/5)*(LOOKUP(ROUNDUP($I$69/5,0)*5,'2050ER'!$D$20:$D$35,'2050ER'!$Q$20:$Q$35)-LOOKUP(ROUNDDOWN($I$69/5,0)*5,'2050ER'!$D$20:$D$35,'2050ER'!$Q$20:$Q$35))) -> 0.8706926392 | H134: =IF($I$22="Rural",LOOKUP(ROUNDDOWN($I$69/5,0)*5,'2050ER'!$D$52:$D$67,'2050ER'!$O$52:$O$67)+(($I$69-ROUNDDOWN($I$69/5,0)*5)/5)*(LOOKUP(ROUNDUP($I$69/5,0)*5,'2050ER'!$D$52:$D$67,'2050ER'!$O$52:$O$67)-LOOKUP(ROUNDDOWN($I$69/5,0)*5,'2050ER'!$D$52:$D$67,'2050ER'!$O$52:$O$67)),LOOKUP(ROUNDDOWN($I$69/5,0)*5,'2050ER'!$D$52:$D$67,'2050ER'!$Q$52:$Q$67)+(($I$69-ROUNDDOWN($I$69/5,0)*5)/5)*(LOOKUP(ROUNDUP($I$69/5,0)*5,'2050ER'!$D$52:$D$67,'2050ER'!$Q$52:$Q$67)-LOOKUP(ROUNDDOWN($I$69/5,0)*5,'2050ER'!$D$52:$D$67,'2050ER'!$Q$52:$Q$67))) -> 1.551020852 | I134: =IF($I$22="Rural",LOOKUP(ROUNDDOWN($I$69/5,0)*5,'2050ER'!$D$36:$D$51,'2050ER'!$O$36:$O$51)+(($I$69-ROUNDDOWN($I$69/5,0)*5)/5)*(LOOKUP(ROUNDUP($I$69/5,0)*5,'2050ER'!$D$36:$D$51,'2050ER'!$O$36:$O$51)-LOOKUP(ROUNDDOWN($I$69/5,0)*5,'2050ER'!$D$36:$D$51,'2050ER'!$O$36:$O$51)),LOOKUP(ROUNDDOWN($I$69/5,0)*5,'2050ER'!$D$36:$D$51,'2050ER'!$Q$36:$Q$51)+(($I$69-ROUNDDOWN($I$69/5,0)*5)/5)*(LOOKUP(ROUNDUP($I$69/5,0)*5,'2050ER'!$D$36:$D$51,'2050ER'!$Q$36:$Q$51)-LOOKUP(ROUNDDOWN($I$69/5,0)*5,'2050ER'!$D$36:$D$51,'2050ER'!$Q$36:$Q$51))) -> 0.02275963248 | J134: =IF($I$22="Rural",LOOKUP(ROUNDDOWN($I$69/5,0)*5,'2050ER'!$D$4:$D$19,'2050ER'!$O$4:$O$19)+(($I$69-ROUNDDOWN($I$69/5,0)*5)/5)*(LOOKUP(ROUNDUP($I$69/5,0)*5,'2050ER'!$D$4:$D$19,'2050ER'!$O$4:$O$19)-LOOKUP(ROUNDDOWN($I$69/5,0)*5,'2050ER'!$D$4:$D$19,'2050ER'!$O$4:$O$19)),LOOKUP(ROUNDDOWN($I$69/5,0)*5,'2050ER'!$D$4:$D$19,'2050ER'!$Q$68:$Q$83)+(($I$69-ROUNDDOWN($I$69/5,0)*5)/5)*(LOOKUP(ROUNDUP($I$69/5,0)*5,'2050ER'!$D$4:$D$19,'2050ER'!$Q$68:$Q$83)-LOOKUP(ROUNDDOWN($I$69/5,0)*5,'2050ER'!$D$4:$D$19,'2050ER'!$Q$68:$Q$83))) -> 0.224077818 | K134: g/veh/mile
E135: Buses | F135: =IF($I$22="Rural",LOOKUP(ROUNDDOWN($I$69/5,0)*5,'2050ER'!$D$4:$D$19,'2050ER'!$J$4:$J$19)+(($I$69-ROUNDDOWN($I$69/5,0)*5)/5)*(LOOKUP(ROUNDUP($I$69/5,0)*5,'2050ER'!$D$4:$D$19,'2050ER'!$J$4:$J$19)-LOOKUP(ROUNDDOWN($I$69/5,0)*5,'2050ER'!$D$4:$D$19,'2050ER'!$J$4:$J$19)),LOOKUP(ROUNDDOWN($I$69/5,0)*5,'2050ER'!$D$4:$D$19,'2050ER'!$L$4:$L$19)+(($I$69-ROUNDDOWN($I$69/5,0)*5)/5)*(LOOKUP(ROUNDUP($I$69/5,0)*5,'2050ER'!$D$4:$D$19,'2050ER'!$L$4:$L$19)-LOOKUP(ROUNDDOWN($I$69/5,0)*5,'2050ER'!$D$4:$D$19,'2050ER'!$L$4:$L$19))) -> 1227.044981 | G135: =IF($I$22="Rural",LOOKUP(ROUNDDOWN($I$69/5,0)*5,'2050ER'!$D$20:$D$35,'2050ER'!$J$20:$J$35)+(($I$69-ROUNDDOWN($I$69/5,0)*5)/5)*(LOOKUP(ROUNDUP($I$69/5,0)*5,'2050ER'!$D$20:$D$35,'2050ER'!$J$20:$J$35)-LOOKUP(ROUNDDOWN($I$69/5,0)*5,'2050ER'!$D$20:$D$35,'2050ER'!$J$20:$J$35)),LOOKUP(ROUNDDOWN($I$69/5,0)*5,'2050ER'!$D$20:$D$35,'2050ER'!$L$20:$L$35)+(($I$69-ROUNDDOWN($I$69/5,0)*5)/5)*(LOOKUP(ROUNDUP($I$69/5,0)*5,'2050ER'!$D$20:$D$35,'2050ER'!$L$20:$L$35)-LOOKUP(ROUNDDOWN($I$69/5,0)*5,'2050ER'!$D$20:$D$35,'2050ER'!$L$20:$L$35))) -> 1.042670865 | H135: =IF($I$22="Rural",LOOKUP(ROUNDDOWN($I$69/5,0)*5,'2050ER'!$D$52:$D$67,'2050ER'!$J$52:$J$67)+(($I$69-ROUNDDOWN($I$69/5,0)*5)/5)*(LOOKUP(ROUNDUP($I$69/5,0)*5,'2050ER'!$D$52:$D$67,'2050ER'!$J$52:$J$67)-LOOKUP(ROUNDDOWN($I$69/5,0)*5,'2050ER'!$D$52:$D$67,'2050ER'!$J$52:$J$67)),LOOKUP(ROUNDDOWN($I$69/5,0)*5,'2050ER'!$D$52:$D$67,'2050ER'!$L$52:$L$67)+(($I$69-ROUNDDOWN($I$69/5,0)*5)/5)*(LOOKUP(ROUNDUP($I$69/5,0)*5,'2050ER'!$D$52:$D$67,'2050ER'!$L$52:$L$67)-LOOKUP(ROUNDDOWN($I$69/5,0)*5,'2050ER'!$D$52:$D$67,'2050ER'!$L$52:$L$67))) -> 1.882891099 | I135: =IF($I$22="Rural",LOOKUP(ROUNDDOWN($I$69/5,0)*5,'2050ER'!$D$36:$D$51,'2050ER'!$J$36:$J$51)+(($I$69-ROUNDDOWN($I$69/5,0)*5)/5)*(LOOKUP(ROUNDUP($I$69/5,0)*5,'2050ER'!$D$36:$D$51,'2050ER'!$J$36:$J$51)-LOOKUP(ROUNDDOWN($I$69/5,0)*5,'2050ER'!$D$36:$D$51,'2050ER'!$J$36:$J$51)),LOOKUP(ROUNDDOWN($I$69/5,0)*5,'2050ER'!$D$36:$D$51,'2050ER'!$L$36:$L$51)+(($I$69-ROUNDDOWN($I$69/5,0)*5)/5)*(LOOKUP(ROUNDUP($I$69/5,0)*5,'2050ER'!$D$36:$D$51,'2050ER'!$L$36:$L$51)-LOOKUP(ROUNDDOWN($I$69/5,0)*5,'2050ER'!$D$36:$D$51,'2050ER'!$L$36:$L$51))) -> 0.01706821324 | J135: =IF($I$22="Rural",LOOKUP(ROUNDDOWN($I$69/5,0)*5,'2050ER'!$D$4:$D$19,'2050ER'!$J$4:$J$19)+(($I$69-ROUNDDOWN($I$69/5,0)*5)/5)*(LOOKUP(ROUNDUP($I$69/5,0)*5,'2050ER'!$D$4:$D$19,'2050ER'!$J$4:$J$19)-LOOKUP(ROUNDDOWN($I$69/5,0)*5,'2050ER'!$D$4:$D$19,'2050ER'!$J$4:$J$19)),LOOKUP(ROUNDDOWN($I$69/5,0)*5,'2050ER'!$D$4:$D$19,'2050ER'!$L$68:$L$83)+(($I$69-ROUNDDOWN($I$69/5,0)*5)/5)*(LOOKUP(ROUNDUP($I$69/5,0)*5,'2050ER'!$D$4:$D$19,'2050ER'!$L$68:$L$83)-LOOKUP(ROUNDDOWN($I$69/5,0)*5,'2050ER'!$D$4:$D$19,'2050ER'!$L$68:$L$83))) -> 0.1716233248 | K135: g/veh/mile
D136: Proposed - HOV Lane | E136: Light Duty Vehicles | F136: =IF($I$22="Rural",LOOKUP(ROUNDDOWN($I$74/5,0)*5,'2050ER'!$D$4:$D$19,'2050ER'!$E$4:$E$19)+(($I$74-ROUNDDOWN($I$74/5,0)*5)/5)*(LOOKUP(ROUNDUP($I$74/5,0)*5,'2050ER'!$D$4:$D$19,'2050ER'!$E$4:$E$19)-LOOKUP(ROUNDDOWN($I$74/5,0)*5,'2050ER'!$D$4:$D$19,'2050ER'!$E$4:$E$19)),LOOKUP(ROUNDDOWN($I$74/5,0)*5,'2050ER'!$D$4:$D$19,'2050ER'!$G$4:$G$19)+(($I$74-ROUNDDOWN($I$74/5,0)*5)/5)*(LOOKUP(ROUNDUP($I$74/5,0)*5,'2050ER'!$D$4:$D$19,'2050ER'!$G$4:$G$19)-LOOKUP(ROUNDDOWN($I$74/5,0)*5,'2050ER'!$D$4:$D$19,'2050ER'!$G$4:$G$19))) -> 204.7413142 | G136: =IF($I$22="Rural",LOOKUP(ROUNDDOWN($I$74/5,0)*5,'2050ER'!$D$20:$D$35,'2050ER'!$E$20:$E$35)+(($I$74-ROUNDDOWN($I$74/5,0)*5)/5)*(LOOKUP(ROUNDUP($I$74/5,0)*5,'2050ER'!$D$20:$D$35,'2050ER'!$E$20:$E$35)-LOOKUP(ROUNDDOWN($I$74/5,0)*5,'2050ER'!$D$20:$D$35,'2050ER'!$E$20:$E$35)),LOOKUP(ROUNDDOWN($I$74/5,0)*5,'2050ER'!$D$20:$D$35,'2050ER'!$G$20:$G$35)+(($I$74-ROUNDDOWN($I$74/5,0)*5)/5)*(LOOKUP(ROUNDUP($I$74/5,0)*5,'2050ER'!$D$20:$D$35,'2050ER'!$G$20:$G$35)-LOOKUP(ROUNDDOWN($I$74/5,0)*5,'2050ER'!$D$20:$D$35,'2050ER'!$G$20:$G$35))) -> 0.0370441951 | H136: =IF($I$22="Rural",LOOKUP(ROUNDDOWN($I$74/5,0)*5,'2050ER'!$D$52:$D$67,'2050ER'!$E$52:$E$67)+(($I$74-ROUNDDOWN($I$74/5,0)*5)/5)*(LOOKUP(ROUNDUP($I$74/5,0)*5,'2050ER'!$D$52:$D$67,'2050ER'!$E$52:$E$67)-LOOKUP(ROUNDDOWN($I$74/5,0)*5,'2050ER'!$D$52:$D$67,'2050ER'!$E$52:$E$67)),LOOKUP(ROUNDDOWN($I$74/5,0)*5,'2050ER'!$D$52:$D$67,'2050ER'!$G$52:$G$67)+(($I$74-ROUNDDOWN($I$74/5,0)*5)/5)*(LOOKUP(ROUNDUP($I$74/5,0)*5,'2050ER'!$D$52:$D$67,'2050ER'!$G$52:$G$67)-LOOKUP(ROUNDDOWN($I$74/5,0)*5,'2050ER'!$D$52:$D$67,'2050ER'!$G$52:$G$67))) -> 0.07223912944 | I136: =IF($I$22="Rural",LOOKUP(ROUNDDOWN($I$74/5,0)*5,'2050ER'!$D$36:$D$51,'2050ER'!$E$36:$E$51)+(($I$74-ROUNDDOWN($I$74/5,0)*5)/5)*(LOOKUP(ROUNDUP($I$74/5,0)*5,'2050ER'!$D$36:$D$51,'2050ER'!$E$36:$E$51)-LOOKUP(ROUNDDOWN($I$74/5,0)*5,'2050ER'!$D$36:$D$51,'2050ER'!$E$36:$E$51)),LOOKUP(ROUNDDOWN($I$74/5,0)*5,'2050ER'!$D$36:$D$51,'2050ER'!$G$36:$G$51)+(($I$74-ROUNDDOWN($I$74/5,0)*5)/5)*(LOOKUP(ROUNDUP($I$74/5,0)*5,'2050ER'!$D$36:$D$51,'2050ER'!$G$36:$G$51)-LOOKUP(ROUNDDOWN($I$74/5,0)*5,'2050ER'!$D$36:$D$51,'2050ER'!$G$36:$G$51))) -> 0.003782271774 | J136: =IF($I$22="Rural",LOOKUP(ROUNDDOWN($I$74/5,0)*5,'2050ER'!$D$4:$D$19,'2050ER'!$E$4:$E$19)+(($I$74-ROUNDDOWN($I$74/5,0)*5)/5)*(LOOKUP(ROUNDUP($I$74/5,0)*5,'2050ER'!$D$4:$D$19,'2050ER'!$E$4:$E$19)-LOOKUP(ROUNDDOWN($I$74/5,0)*5,'2050ER'!$D$4:$D$19,'2050ER'!$E$4:$E$19)),LOOKUP(ROUNDDOWN($I$74/5,0)*5,'2050ER'!$D$4:$D$19,'2050ER'!$G$68:$G$83)+(($I$74-ROUNDDOWN($I$74/5,0)*5)/5)*(LOOKUP(ROUNDUP($I$74/5,0)*5,'2050ER'!$D$4:$D$19,'2050ER'!$G$68:$G$83)-LOOKUP(ROUNDDOWN($I$74/5,0)*5,'2050ER'!$D$4:$D$19,'2050ER'!$G$68:$G$83))) -> 0.04954441282 | K136: g/veh/mile
E137: All Trucks | F137: =IF($I$22="Rural",LOOKUP(ROUNDDOWN($I$74/5,0)*5,'2050ER'!$D$4:$D$19,'2050ER'!$O$4:$O$19)+(($I$74-ROUNDDOWN($I$74/5,0)*5)/5)*(LOOKUP(ROUNDUP($I$74/5,0)*5,'2050ER'!$D$4:$D$19,'2050ER'!$O$4:$O$19)-LOOKUP(ROUNDDOWN($I$74/5,0)*5,'2050ER'!$D$4:$D$19,'2050ER'!$O$4:$O$19)),LOOKUP(ROUNDDOWN($I$74/5,0)*5,'2050ER'!$D$4:$D$19,'2050ER'!$Q$4:$Q$19)+(($I$74-ROUNDDOWN($I$74/5,0)*5)/5)*(LOOKUP(ROUNDUP($I$74/5,0)*5,'2050ER'!$D$4:$D$19,'2050ER'!$Q$4:$Q$19)-LOOKUP(ROUNDDOWN($I$74/5,0)*5,'2050ER'!$D$4:$D$19,'2050ER'!$Q$4:$Q$19))) -> 1267.257554 | G137: =IF($I$22="Rural",LOOKUP(ROUNDDOWN($I$74/5,0)*5,'2050ER'!$D$20:$D$35,'2050ER'!$O$20:$O$35)+(($I$74-ROUNDDOWN($I$74/5,0)*5)/5)*(LOOKUP(ROUNDUP($I$74/5,0)*5,'2050ER'!$D$20:$D$35,'2050ER'!$O$20:$O$35)-LOOKUP(ROUNDDOWN($I$74/5,0)*5,'2050ER'!$D$20:$D$35,'2050ER'!$O$20:$O$35)),LOOKUP(ROUNDDOWN($I$74/5,0)*5,'2050ER'!$D$20:$D$35,'2050ER'!$Q$20:$Q$35)+(($I$74-ROUNDDOWN($I$74/5,0)*5)/5)*(LOOKUP(ROUNDUP($I$74/5,0)*5,'2050ER'!$D$20:$D$35,'2050ER'!$Q$20:$Q$35)-LOOKUP(ROUNDDOWN($I$74/5,0)*5,'2050ER'!$D$20:$D$35,'2050ER'!$Q$20:$Q$35))) -> 0.8725106246 | H137: =IF($I$22="Rural",LOOKUP(ROUNDDOWN($I$74/5,0)*5,'2050ER'!$D$52:$D$67,'2050ER'!$O$52:$O$67)+(($I$74-ROUNDDOWN($I$74/5,0)*5)/5)*(LOOKUP(ROUNDUP($I$74/5,0)*5,'2050ER'!$D$52:$D$67,'2050ER'!$O$52:$O$67)-LOOKUP(ROUNDDOWN($I$74/5,0)*5,'2050ER'!$D$52:$D$67,'2050ER'!$O$52:$O$67)),LOOKUP(ROUNDDOWN($I$74/5,0)*5,'2050ER'!$D$52:$D$67,'2050ER'!$Q$52:$Q$67)+(($I$74-ROUNDDOWN($I$74/5,0)*5)/5)*(LOOKUP(ROUNDUP($I$74/5,0)*5,'2050ER'!$D$52:$D$67,'2050ER'!$Q$52:$Q$67)-LOOKUP(ROUNDDOWN($I$74/5,0)*5,'2050ER'!$D$52:$D$67,'2050ER'!$Q$52:$Q$67))) -> 1.554281494 | I137: =IF($I$22="Rural",LOOKUP(ROUNDDOWN($I$74/5,0)*5,'2050ER'!$D$36:$D$51,'2050ER'!$O$36:$O$51)+(($I$74-ROUNDDOWN($I$74/5,0)*5)/5)*(LOOKUP(ROUNDUP($I$74/5,0)*5,'2050ER'!$D$36:$D$51,'2050ER'!$O$36:$O$51)-LOOKUP(ROUNDDOWN($I$74/5,0)*5,'2050ER'!$D$36:$D$51,'2050ER'!$O$36:$O$51)),LOOKUP(ROUNDDOWN($I$74/5,0)*5,'2050ER'!$D$36:$D$51,'2050ER'!$Q$36:$Q$51)+(($I$74-ROUNDDOWN($I$74/5,0)*5)/5)*(LOOKUP(ROUNDUP($I$74/5,0)*5,'2050ER'!$D$36:$D$51,'2050ER'!$Q$36:$Q$51)-LOOKUP(ROUNDDOWN($I$74/5,0)*5,'2050ER'!$D$36:$D$51,'2050ER'!$Q$36:$Q$51))) -> 0.02267733687 | J137: =IF($I$22="Rural",LOOKUP(ROUNDDOWN($I$74/5,0)*5,'2050ER'!$D$4:$D$19,'2050ER'!$O$4:$O$19)+(($I$74-ROUNDDOWN($I$74/5,0)*5)/5)*(LOOKUP(ROUNDUP($I$74/5,0)*5,'2050ER'!$D$4:$D$19,'2050ER'!$O$4:$O$19)-LOOKUP(ROUNDDOWN($I$74/5,0)*5,'2050ER'!$D$4:$D$19,'2050ER'!$O$4:$O$19)),LOOKUP(ROUNDDOWN($I$74/5,0)*5,'2050ER'!$D$4:$D$19,'2050ER'!$Q$68:$Q$83)+(($I$74-ROUNDDOWN($I$74/5,0)*5)/5)*(LOOKUP(ROUNDUP($I$74/5,0)*5,'2050ER'!$D$4:$D$19,'2050ER'!$Q$68:$Q$83)-LOOKUP(ROUNDDOWN($I$74/5,0)*5,'2050ER'!$D$4:$D$19,'2050ER'!$Q$68:$Q$83))) -> 0.2234348975 | K137: g/veh/mile
E138: Buses | F138: =IF($I$22="Rural",LOOKUP(ROUNDDOWN($I$74/5,0)*5,'2050ER'!$D$4:$D$19,'2050ER'!$J$4:$J$19)+(($I$74-ROUNDDOWN($I$74/5,0)*5)/5)*(LOOKUP(ROUNDUP($I$74/5,0)*5,'2050ER'!$D$4:$D$19,'2050ER'!$J$4:$J$19)-LOOKUP(ROUNDDOWN($I$74/5,0)*5,'2050ER'!$D$4:$D$19,'2050ER'!$J$4:$J$19)),LOOKUP(ROUNDDOWN($I$74/5,0)*5,'2050ER'!$D$4:$D$19,'2050ER'!$L$4:$L$19)+(($I$74-ROUNDDOWN($I$74/5,0)*5)/5)*(LOOKUP(ROUNDUP($I$74/5,0)*5,'2050ER'!$D$4:$D$19,'2050ER'!$L$4:$L$19)-LOOKUP(ROUNDDOWN($I$74/5,0)*5,'2050ER'!$D$4:$D$19,'2050ER'!$L$4:$L$19))) -> 1234.519525 | G138: =IF($I$22="Rural",LOOKUP(ROUNDDOWN($I$74/5,0)*5,'2050ER'!$D$20:$D$35,'2050ER'!$J$20:$J$35)+(($I$74-ROUNDDOWN($I$74/5,0)*5)/5)*(LOOKUP(ROUNDUP($I$74/5,0)*5,'2050ER'!$D$20:$D$35,'2050ER'!$J$20:$J$35)-LOOKUP(ROUNDDOWN($I$74/5,0)*5,'2050ER'!$D$20:$D$35,'2050ER'!$J$20:$J$35)),LOOKUP(ROUNDDOWN($I$74/5,0)*5,'2050ER'!$D$20:$D$35,'2050ER'!$L$20:$L$35)+(($I$74-ROUNDDOWN($I$74/5,0)*5)/5)*(LOOKUP(ROUNDUP($I$74/5,0)*5,'2050ER'!$D$20:$D$35,'2050ER'!$L$20:$L$35)-LOOKUP(ROUNDDOWN($I$74/5,0)*5,'2050ER'!$D$20:$D$35,'2050ER'!$L$20:$L$35))) -> 1.046566272 | H138: =IF($I$22="Rural",LOOKUP(ROUNDDOWN($I$74/5,0)*5,'2050ER'!$D$52:$D$67,'2050ER'!$J$52:$J$67)+(($I$74-ROUNDDOWN($I$74/5,0)*5)/5)*(LOOKUP(ROUNDUP($I$74/5,0)*5,'2050ER'!$D$52:$D$67,'2050ER'!$J$52:$J$67)-LOOKUP(ROUNDDOWN($I$74/5,0)*5,'2050ER'!$D$52:$D$67,'2050ER'!$J$52:$J$67)),LOOKUP(ROUNDDOWN($I$74/5,0)*5,'2050ER'!$D$52:$D$67,'2050ER'!$L$52:$L$67)+(($I$74-ROUNDDOWN($I$74/5,0)*5)/5)*(LOOKUP(ROUNDUP($I$74/5,0)*5,'2050ER'!$D$52:$D$67,'2050ER'!$L$52:$L$67)-LOOKUP(ROUNDDOWN($I$74/5,0)*5,'2050ER'!$D$52:$D$67,'2050ER'!$L$52:$L$67))) -> 1.889860975 | I138: =IF($I$22="Rural",LOOKUP(ROUNDDOWN($I$74/5,0)*5,'2050ER'!$D$36:$D$51,'2050ER'!$J$36:$J$51)+(($I$74-ROUNDDOWN($I$74/5,0)*5)/5)*(LOOKUP(ROUNDUP($I$74/5,0)*5,'2050ER'!$D$36:$D$51,'2050ER'!$J$36:$J$51)-LOOKUP(ROUNDDOWN($I$74/5,0)*5,'2050ER'!$D$36:$D$51,'2050ER'!$J$36:$J$51)),LOOKUP(ROUNDDOWN($I$74/5,0)*5,'2050ER'!$D$36:$D$51,'2050ER'!$L$36:$L$51)+(($I$74-ROUNDDOWN($I$74/5,0)*5)/5)*(LOOKUP(ROUNDUP($I$74/5,0)*5,'2050ER'!$D$36:$D$51,'2050ER'!$L$36:$L$51)-LOOKUP(ROUNDDOWN($I$74/5,0)*5,'2050ER'!$D$36:$D$51,'2050ER'!$L$36:$L$51))) -> 0.01704472673 | J138: =IF($I$22="Rural",LOOKUP(ROUNDDOWN($I$74/5,0)*5,'2050ER'!$D$4:$D$19,'2050ER'!$J$4:$J$19)+(($I$74-ROUNDDOWN($I$74/5,0)*5)/5)*(LOOKUP(ROUNDUP($I$74/5,0)*5,'2050ER'!$D$4:$D$19,'2050ER'!$J$4:$J$19)-LOOKUP(ROUNDDOWN($I$74/5,0)*5,'2050ER'!$D$4:$D$19,'2050ER'!$J$4:$J$19)),LOOKUP(ROUNDDOWN($I$74/5,0)*5,'2050ER'!$D$4:$D$19,'2050ER'!$L$68:$L$83)+(($I$74-ROUNDDOWN($I$74/5,0)*5)/5)*(LOOKUP(ROUNDUP($I$74/5,0)*5,'2050ER'!$D$4:$D$19,'2050ER'!$L$68:$L$83)-LOOKUP(ROUNDDOWN($I$74/5,0)*5,'2050ER'!$D$4:$D$19,'2050ER'!$L$68:$L$83))) -> 0.1714897938 | K138: g/veh/mile
C139: Evening Peak | D139: Existing - General Purpose Lane | E139: Light Duty Vehicles | F139: =IF($I$22="Rural",LOOKUP(ROUNDDOWN($J$58/5,0)*5,'2050ER'!$D$4:$D$19,'2050ER'!$E$4:$E$19)+(($J$58-ROUNDDOWN($J$58/5,0)*5)/5)*(LOOKUP(ROUNDUP($J$58/5,0)*5,'2050ER'!$D$4:$D$19,'2050ER'!$E$4:$E$19)-LOOKUP(ROUNDDOWN($J$58/5,0)*5,'2050ER'!$D$4:$D$19,'2050ER'!$E$4:$E$19)),LOOKUP(ROUNDDOWN($J$58/5,0)*5,'2050ER'!$D$4:$D$19,'2050ER'!$G$4:$G$19)+(($J$58-ROUNDDOWN($J$58/5,0)*5)/5)*(LOOKUP(ROUNDUP($J$58/5,0)*5,'2050ER'!$D$4:$D$19,'2050ER'!$G$4:$G$19)-LOOKUP(ROUNDDOWN($J$58/5,0)*5,'2050ER'!$D$4:$D$19,'2050ER'!$G$4:$G$19))) -> 237.3483972 | G139: =IF($I$22="Rural",LOOKUP(ROUNDDOWN($J$58/5,0)*5,'2050ER'!$D$20:$D$35,'2050ER'!$E$20:$E$35)+(($J$58-ROUNDDOWN($J$58/5,0)*5)/5)*(LOOKUP(ROUNDUP($J$58/5,0)*5,'2050ER'!$D$20:$D$35,'2050ER'!$E$20:$E$35)-LOOKUP(ROUNDDOWN($J$58/5,0)*5,'2050ER'!$D$20:$D$35,'2050ER'!$E$20:$E$35)),LOOKUP(ROUNDDOWN($J$58/5,0)*5,'2050ER'!$D$20:$D$35,'2050ER'!$G$20:$G$35)+(($J$58-ROUNDDOWN($J$58/5,0)*5)/5)*(LOOKUP(ROUNDUP($J$58/5,0)*5,'2050ER'!$D$20:$D$35,'2050ER'!$G$20:$G$35)-LOOKUP(ROUNDDOWN($J$58/5,0)*5,'2050ER'!$D$20:$D$35,'2050ER'!$G$20:$G$35))) -> 0.01107202203 | H139: =IF($I$22="Rural",LOOKUP(ROUNDDOWN($J$58/5,0)*5,'2050ER'!$D$52:$D$67,'2050ER'!$E$52:$E$67)+(($J$58-ROUNDDOWN($J$58/5,0)*5)/5)*(LOOKUP(ROUNDUP($J$58/5,0)*5,'2050ER'!$D$52:$D$67,'2050ER'!$E$52:$E$67)-LOOKUP(ROUNDDOWN($J$58/5,0)*5,'2050ER'!$D$52:$D$67,'2050ER'!$E$52:$E$67)),LOOKUP(ROUNDDOWN($J$58/5,0)*5,'2050ER'!$D$52:$D$67,'2050ER'!$G$52:$G$67)+(($J$58-ROUNDDOWN($J$58/5,0)*5)/5)*(LOOKUP(ROUNDUP($J$58/5,0)*5,'2050ER'!$D$52:$D$67,'2050ER'!$G$52:$G$67)-LOOKUP(ROUNDDOWN($J$58/5,0)*5,'2050ER'!$D$52:$D$67,'2050ER'!$G$52:$G$67))) -> 0.02161105493 | I139: =IF($I$22="Rural",LOOKUP(ROUNDDOWN($J$58/5,0)*5,'2050ER'!$D$36:$D$51,'2050ER'!$E$36:$E$51)+(($J$58-ROUNDDOWN($J$58/5,0)*5)/5)*(LOOKUP(ROUNDUP($J$58/5,0)*5,'2050ER'!$D$36:$D$51,'2050ER'!$E$36:$E$51)-LOOKUP(ROUNDDOWN($J$58/5,0)*5,'2050ER'!$D$36:$D$51,'2050ER'!$E$36:$E$51)),LOOKUP(ROUNDDOWN($J$58/5,0)*5,'2050ER'!$D$36:$D$51,'2050ER'!$G$36:$G$51)+(($J$58-ROUNDDOWN($J$58/5,0)*5)/5)*(LOOKUP(ROUNDUP($J$58/5,0)*5,'2050ER'!$D$36:$D$51,'2050ER'!$G$36:$G$51)-LOOKUP(ROUNDDOWN($J$58/5,0)*5,'2050ER'!$D$36:$D$51,'2050ER'!$G$36:$G$51))) -> 0.001959376069 | J139: =IF($I$22="Rural",LOOKUP(ROUNDDOWN($J$58/5,0)*5,'2050ER'!$D$4:$D$19,'2050ER'!$E$4:$E$19)+(($J$58-ROUNDDOWN($J$58/5,0)*5)/5)*(LOOKUP(ROUNDUP($J$58/5,0)*5,'2050ER'!$D$4:$D$19,'2050ER'!$E$4:$E$19)-LOOKUP(ROUNDDOWN($J$58/5,0)*5,'2050ER'!$D$4:$D$19,'2050ER'!$E$4:$E$19)),LOOKUP(ROUNDDOWN($J$58/5,0)*5,'2050ER'!$D$4:$D$19,'2050ER'!$G$68:$G$83)+(($J$58-ROUNDDOWN($J$58/5,0)*5)/5)*(LOOKUP(ROUNDUP($J$58/5,0)*5,'2050ER'!$D$4:$D$19,'2050ER'!$G$68:$G$83)-LOOKUP(ROUNDDOWN($J$58/5,0)*5,'2050ER'!$D$4:$D$19,'2050ER'!$G$68:$G$83))) -> 0.07329509978 | K139: g/veh/mile
E140: All Trucks | F140: =IF($I$22="Rural",LOOKUP(ROUNDDOWN($J$58/5,0)*5,'2050ER'!$D$4:$D$19,'2050ER'!$O$4:$O$19)+(($J$58-ROUNDDOWN($J$58/5,0)*5)/5)*(LOOKUP(ROUNDUP($J$58/5,0)*5,'2050ER'!$D$4:$D$19,'2050ER'!$O$4:$O$19)-LOOKUP(ROUNDDOWN($J$58/5,0)*5,'2050ER'!$D$4:$D$19,'2050ER'!$O$4:$O$19)),LOOKUP(ROUNDDOWN($J$58/5,0)*5,'2050ER'!$D$4:$D$19,'2050ER'!$Q$4:$Q$19)+(($J$58-ROUNDDOWN($J$58/5,0)*5)/5)*(LOOKUP(ROUNDUP($J$58/5,0)*5,'2050ER'!$D$4:$D$19,'2050ER'!$Q$4:$Q$19)-LOOKUP(ROUNDDOWN($J$58/5,0)*5,'2050ER'!$D$4:$D$19,'2050ER'!$Q$4:$Q$19))) -> 1617.482821 | G140: =IF($I$22="Rural",LOOKUP(ROUNDDOWN($J$58/5,0)*5,'2050ER'!$D$20:$D$35,'2050ER'!$O$20:$O$35)+(($J$58-ROUNDDOWN($J$58/5,0)*5)/5)*(LOOKUP(ROUNDUP($J$58/5,0)*5,'2050ER'!$D$20:$D$35,'2050ER'!$O$20:$O$35)-LOOKUP(ROUNDDOWN($J$58/5,0)*5,'2050ER'!$D$20:$D$35,'2050ER'!$O$20:$O$35)),LOOKUP(ROUNDDOWN($J$58/5,0)*5,'2050ER'!$D$20:$D$35,'2050ER'!$Q$20:$Q$35)+(($J$58-ROUNDDOWN($J$58/5,0)*5)/5)*(LOOKUP(ROUNDUP($J$58/5,0)*5,'2050ER'!$D$20:$D$35,'2050ER'!$Q$20:$Q$35)-LOOKUP(ROUNDDOWN($J$58/5,0)*5,'2050ER'!$D$20:$D$35,'2050ER'!$Q$20:$Q$35))) -> 1.214978246 | H140: =IF($I$22="Rural",LOOKUP(ROUNDDOWN($J$58/5,0)*5,'2050ER'!$D$52:$D$67,'2050ER'!$O$52:$O$67)+(($J$58-ROUNDDOWN($J$58/5,0)*5)/5)*(LOOKUP(ROUNDUP($J$58/5,0)*5,'2050ER'!$D$52:$D$67,'2050ER'!$O$52:$O$67)-LOOKUP(ROUNDDOWN($J$58/5,0)*5,'2050ER'!$D$52:$D$67,'2050ER'!$O$52:$O$67)),LOOKUP(ROUNDDOWN($J$58/5,0)*5,'2050ER'!$D$52:$D$67,'2050ER'!$Q$52:$Q$67)+(($J$58-ROUNDDOWN($J$58/5,0)*5)/5)*(LOOKUP(ROUNDUP($J$58/5,0)*5,'2050ER'!$D$52:$D$67,'2050ER'!$Q$52:$Q$67)-LOOKUP(ROUNDDOWN($J$58/5,0)*5,'2050ER'!$D$52:$D$67,'2050ER'!$Q$52:$Q$67))) -> 2.165988564 | I140: =IF($I$22="Rural",LOOKUP(ROUNDDOWN($J$58/5,0)*5,'2050ER'!$D$36:$D$51,'2050ER'!$O$36:$O$51)+(($J$58-ROUNDDOWN($J$58/5,0)*5)/5)*(LOOKUP(ROUNDUP($J$58/5,0)*5,'2050ER'!$D$36:$D$51,'2050ER'!$O$36:$O$51)-LOOKUP(ROUNDDOWN($J$58/5,0)*5,'2050ER'!$D$36:$D$51,'2050ER'!$O$36:$O$51)),LOOKUP(ROUNDDOWN($J$58/5,0)*5,'2050ER'!$D$36:$D$51,'2050ER'!$Q$36:$Q$51)+(($J$58-ROUNDDOWN($J$58/5,0)*5)/5)*(LOOKUP(ROUNDUP($J$58/5,0)*5,'2050ER'!$D$36:$D$51,'2050ER'!$Q$36:$Q$51)-LOOKUP(ROUNDDOWN($J$58/5,0)*5,'2050ER'!$D$36:$D$51,'2050ER'!$Q$36:$Q$51))) -> 0.02921350296 | J140: =IF($I$22="Rural",LOOKUP(ROUNDDOWN($J$58/5,0)*5,'2050ER'!$D$4:$D$19,'2050ER'!$O$4:$O$19)+(($J$58-ROUNDDOWN($J$58/5,0)*5)/5)*(LOOKUP(ROUNDUP($J$58/5,0)*5,'2050ER'!$D$4:$D$19,'2050ER'!$O$4:$O$19)-LOOKUP(ROUNDDOWN($J$58/5,0)*5,'2050ER'!$D$4:$D$19,'2050ER'!$O$4:$O$19)),LOOKUP(ROUNDDOWN($J$58/5,0)*5,'2050ER'!$D$4:$D$19,'2050ER'!$Q$68:$Q$83)+(($J$58-ROUNDDOWN($J$58/5,0)*5)/5)*(LOOKUP(ROUNDUP($J$58/5,0)*5,'2050ER'!$D$4:$D$19,'2050ER'!$Q$68:$Q$83)-LOOKUP(ROUNDDOWN($J$58/5,0)*5,'2050ER'!$D$4:$D$19,'2050ER'!$Q$68:$Q$83))) -> 0.3609336481 | K140: g/veh/mile
E141: Buses | F141: =IF($I$22="Rural",LOOKUP(ROUNDDOWN($J$58/5,0)*5,'2050ER'!$D$4:$D$19,'2050ER'!$J$4:$J$19)+(($J$58-ROUNDDOWN($J$58/5,0)*5)/5)*(LOOKUP(ROUNDUP($J$58/5,0)*5,'2050ER'!$D$4:$D$19,'2050ER'!$J$4:$J$19)-LOOKUP(ROUNDDOWN($J$58/5,0)*5,'2050ER'!$D$4:$D$19,'2050ER'!$J$4:$J$19)),LOOKUP(ROUNDDOWN($J$58/5,0)*5,'2050ER'!$D$4:$D$19,'2050ER'!$L$4:$L$19)+(($J$58-ROUNDDOWN($J$58/5,0)*5)/5)*(LOOKUP(ROUNDUP($J$58/5,0)*5,'2050ER'!$D$4:$D$19,'2050ER'!$L$4:$L$19)-LOOKUP(ROUNDDOWN($J$58/5,0)*5,'2050ER'!$D$4:$D$19,'2050ER'!$L$4:$L$19))) -> 1565.106991 | G141: =IF($I$22="Rural",LOOKUP(ROUNDDOWN($J$58/5,0)*5,'2050ER'!$D$20:$D$35,'2050ER'!$J$20:$J$35)+(($J$58-ROUNDDOWN($J$58/5,0)*5)/5)*(LOOKUP(ROUNDUP($J$58/5,0)*5,'2050ER'!$D$20:$D$35,'2050ER'!$J$20:$J$35)-LOOKUP(ROUNDDOWN($J$58/5,0)*5,'2050ER'!$D$20:$D$35,'2050ER'!$J$20:$J$35)),LOOKUP(ROUNDDOWN($J$58/5,0)*5,'2050ER'!$D$20:$D$35,'2050ER'!$L$20:$L$35)+(($J$58-ROUNDDOWN($J$58/5,0)*5)/5)*(LOOKUP(ROUNDUP($J$58/5,0)*5,'2050ER'!$D$20:$D$35,'2050ER'!$L$20:$L$35)-LOOKUP(ROUNDDOWN($J$58/5,0)*5,'2050ER'!$D$20:$D$35,'2050ER'!$L$20:$L$35))) -> 1.411311815 | H141: =IF($I$22="Rural",LOOKUP(ROUNDDOWN($J$58/5,0)*5,'2050ER'!$D$52:$D$67,'2050ER'!$J$52:$J$67)+(($J$58-ROUNDDOWN($J$58/5,0)*5)/5)*(LOOKUP(ROUNDUP($J$58/5,0)*5,'2050ER'!$D$52:$D$67,'2050ER'!$J$52:$J$67)-LOOKUP(ROUNDDOWN($J$58/5,0)*5,'2050ER'!$D$52:$D$67,'2050ER'!$J$52:$J$67)),LOOKUP(ROUNDDOWN($J$58/5,0)*5,'2050ER'!$D$52:$D$67,'2050ER'!$L$52:$L$67)+(($J$58-ROUNDDOWN($J$58/5,0)*5)/5)*(LOOKUP(ROUNDUP($J$58/5,0)*5,'2050ER'!$D$52:$D$67,'2050ER'!$L$52:$L$67)-LOOKUP(ROUNDDOWN($J$58/5,0)*5,'2050ER'!$D$52:$D$67,'2050ER'!$L$52:$L$67))) -> 2.543636113 | I141: =IF($I$22="Rural",LOOKUP(ROUNDDOWN($J$58/5,0)*5,'2050ER'!$D$36:$D$51,'2050ER'!$J$36:$J$51)+(($J$58-ROUNDDOWN($J$58/5,0)*5)/5)*(LOOKUP(ROUNDUP($J$58/5,0)*5,'2050ER'!$D$36:$D$51,'2050ER'!$J$36:$J$51)-LOOKUP(ROUNDDOWN($J$58/5,0)*5,'2050ER'!$D$36:$D$51,'2050ER'!$J$36:$J$51)),LOOKUP(ROUNDDOWN($J$58/5,0)*5,'2050ER'!$D$36:$D$51,'2050ER'!$L$36:$L$51)+(($J$58-ROUNDDOWN($J$58/5,0)*5)/5)*(LOOKUP(ROUNDUP($J$58/5,0)*5,'2050ER'!$D$36:$D$51,'2050ER'!$L$36:$L$51)-LOOKUP(ROUNDDOWN($J$58/5,0)*5,'2050ER'!$D$36:$D$51,'2050ER'!$L$36:$L$51))) -> 0.02570121357 | J141: =IF($I$22="Rural",LOOKUP(ROUNDDOWN($J$58/5,0)*5,'2050ER'!$D$4:$D$19,'2050ER'!$J$4:$J$19)+(($J$58-ROUNDDOWN($J$58/5,0)*5)/5)*(LOOKUP(ROUNDUP($J$58/5,0)*5,'2050ER'!$D$4:$D$19,'2050ER'!$J$4:$J$19)-LOOKUP(ROUNDDOWN($J$58/5,0)*5,'2050ER'!$D$4:$D$19,'2050ER'!$J$4:$J$19)),LOOKUP(ROUNDDOWN($J$58/5,0)*5,'2050ER'!$D$4:$D$19,'2050ER'!$L$68:$L$83)+(($J$58-ROUNDDOWN($J$58/5,0)*5)/5)*(LOOKUP(ROUNDUP($J$58/5,0)*5,'2050ER'!$D$4:$D$19,'2050ER'!$L$68:$L$83)-LOOKUP(ROUNDDOWN($J$58/5,0)*5,'2050ER'!$D$4:$D$19,'2050ER'!$L$68:$L$83))) -> 0.2960354546 | K141: g/veh/mile
D142: Existing - HOV Lane | E142: Light Duty Vehicles | F142: =IF($I$22="Rural",LOOKUP(ROUNDDOWN($J$63/5,0)*5,'2050ER'!$D$4:$D$19,'2050ER'!$E$4:$E$19)+(($J$63-ROUNDDOWN($J$63/5,0)*5)/5)*(LOOKUP(ROUNDUP($J$63/5,0)*5,'2050ER'!$D$4:$D$19,'2050ER'!$E$4:$E$19)-LOOKUP(ROUNDDOWN($J$63/5,0)*5,'2050ER'!$D$4:$D$19,'2050ER'!$E$4:$E$19)),LOOKUP(ROUNDDOWN($J$63/5,0)*5,'2050ER'!$D$4:$D$19,'2050ER'!$G$4:$G$19)+(($J$63-ROUNDDOWN($J$63/5,0)*5)/5)*(LOOKUP(ROUNDUP($J$63/5,0)*5,'2050ER'!$D$4:$D$19,'2050ER'!$G$4:$G$19)-LOOKUP(ROUNDDOWN($J$63/5,0)*5,'2050ER'!$D$4:$D$19,'2050ER'!$G$4:$G$19))) -> 204.7413142 | G142: =IF($I$22="Rural",LOOKUP(ROUNDDOWN($J$63/5,0)*5,'2050ER'!$D$20:$D$35,'2050ER'!$E$20:$E$35)+(($J$63-ROUNDDOWN($J$63/5,0)*5)/5)*(LOOKUP(ROUNDUP($J$63/5,0)*5,'2050ER'!$D$20:$D$35,'2050ER'!$E$20:$E$35)-LOOKUP(ROUNDDOWN($J$63/5,0)*5,'2050ER'!$D$20:$D$35,'2050ER'!$E$20:$E$35)),LOOKUP(ROUNDDOWN($J$63/5,0)*5,'2050ER'!$D$20:$D$35,'2050ER'!$G$20:$G$35)+(($J$63-ROUNDDOWN($J$63/5,0)*5)/5)*(LOOKUP(ROUNDUP($J$63/5,0)*5,'2050ER'!$D$20:$D$35,'2050ER'!$G$20:$G$35)-LOOKUP(ROUNDDOWN($J$63/5,0)*5,'2050ER'!$D$20:$D$35,'2050ER'!$G$20:$G$35))) -> 0.0370441951 | H142: =IF($I$22="Rural",LOOKUP(ROUNDDOWN($J$63/5,0)*5,'2050ER'!$D$52:$D$67,'2050ER'!$E$52:$E$67)+(($J$63-ROUNDDOWN($J$63/5,0)*5)/5)*(LOOKUP(ROUNDUP($J$63/5,0)*5,'2050ER'!$D$52:$D$67,'2050ER'!$E$52:$E$67)-LOOKUP(ROUNDDOWN($J$63/5,0)*5,'2050ER'!$D$52:$D$67,'2050ER'!$E$52:$E$67)),LOOKUP(ROUNDDOWN($J$63/5,0)*5,'2050ER'!$D$52:$D$67,'2050ER'!$G$52:$G$67)+(($J$63-ROUNDDOWN($J$63/5,0)*5)/5)*(LOOKUP(ROUNDUP($J$63/5,0)*5,'2050ER'!$D$52:$D$67,'2050ER'!$G$52:$G$67)-LOOKUP(ROUNDDOWN($J$63/5,0)*5,'2050ER'!$D$52:$D$67,'2050ER'!$G$52:$G$67))) -> 0.07223912944 | I142: =IF($I$22="Rural",LOOKUP(ROUNDDOWN($J$63/5,0)*5,'2050ER'!$D$36:$D$51,'2050ER'!$E$36:$E$51)+(($J$63-ROUNDDOWN($J$63/5,0)*5)/5)*(LOOKUP(ROUNDUP($J$63/5,0)*5,'2050ER'!$D$36:$D$51,'2050ER'!$E$36:$E$51)-LOOKUP(ROUNDDOWN($J$63/5,0)*5,'2050ER'!$D$36:$D$51,'2050ER'!$E$36:$E$51)),LOOKUP(ROUNDDOWN($J$63/5,0)*5,'2050ER'!$D$36:$D$51,'2050ER'!$G$36:$G$51)+(($J$63-ROUNDDOWN($J$63/5,0)*5)/5)*(LOOKUP(ROUNDUP($J$63/5,0)*5,'2050ER'!$D$36:$D$51,'2050ER'!$G$36:$G$51)-LOOKUP(ROUNDDOWN($J$63/5,0)*5,'2050ER'!$D$36:$D$51,'2050ER'!$G$36:$G$51))) -> 0.003782271774 | J142: =IF($I$22="Rural",LOOKUP(ROUNDDOWN($J$63/5,0)*5,'2050ER'!$D$4:$D$19,'2050ER'!$E$4:$E$19)+(($J$63-ROUNDDOWN($J$63/5,0)*5)/5)*(LOOKUP(ROUNDUP($J$63/5,0)*5,'2050ER'!$D$4:$D$19,'2050ER'!$E$4:$E$19)-LOOKUP(ROUNDDOWN($J$63/5,0)*5,'2050ER'!$D$4:$D$19,'2050ER'!$E$4:$E$19)),LOOKUP(ROUNDDOWN($J$63/5,0)*5,'2050ER'!$D$4:$D$19,'2050ER'!$G$68:$G$83)+(($J$63-ROUNDDOWN($J$63/5,0)*5)/5)*(LOOKUP(ROUNDUP($J$63/5,0)*5,'2050ER'!$D$4:$D$19,'2050ER'!$G$68:$G$83)-LOOKUP(ROUNDDOWN($J$63/5,0)*5,'2050ER'!$D$4:$D$19,'2050ER'!$G$68:$G$83))) -> 0.04954441282 | K142: g/veh/mile
E143: All Trucks | F143: =IF($I$22="Rural",LOOKUP(ROUNDDOWN($J$63/5,0)*5,'2050ER'!$D$4:$D$19,'2050ER'!$O$4:$O$19)+(($J$63-ROUNDDOWN($J$63/5,0)*5)/5)*(LOOKUP(ROUNDUP($J$63/5,0)*5,'2050ER'!$D$4:$D$19,'2050ER'!$O$4:$O$19)-LOOKUP(ROUNDDOWN($J$63/5,0)*5,'2050ER'!$D$4:$D$19,'2050ER'!$O$4:$O$19)),LOOKUP(ROUNDDOWN($J$63/5,0)*5,'2050ER'!$D$4:$D$19,'2050ER'!$Q$4:$Q$19)+(($J$63-ROUNDDOWN($J$63/5,0)*5)/5)*(LOOKUP(ROUNDUP($J$63/5,0)*5,'2050ER'!$D$4:$D$19,'2050ER'!$Q$4:$Q$19)-LOOKUP(ROUNDDOWN($J$63/5,0)*5,'2050ER'!$D$4:$D$19,'2050ER'!$Q$4:$Q$19))) -> 1267.257554 | G143: =IF($I$22="Rural",LOOKUP(ROUNDDOWN($J$63/5,0)*5,'2050ER'!$D$20:$D$35,'2050ER'!$O$20:$O$35)+(($J$63-ROUNDDOWN($J$63/5,0)*5)/5)*(LOOKUP(ROUNDUP($J$63/5,0)*5,'2050ER'!$D$20:$D$35,'2050ER'!$O$20:$O$35)-LOOKUP(ROUNDDOWN($J$63/5,0)*5,'2050ER'!$D$20:$D$35,'2050ER'!$O$20:$O$35)),LOOKUP(ROUNDDOWN($J$63/5,0)*5,'2050ER'!$D$20:$D$35,'2050ER'!$Q$20:$Q$35)+(($J$63-ROUNDDOWN($J$63/5,0)*5)/5)*(LOOKUP(ROUNDUP($J$63/5,0)*5,'2050ER'!$D$20:$D$35,'2050ER'!$Q$20:$Q$35)-LOOKUP(ROUNDDOWN($J$63/5,0)*5,'2050ER'!$D$20:$D$35,'2050ER'!$Q$20:$Q$35))) -> 0.8725106246 | H143: =IF($I$22="Rural",LOOKUP(ROUNDDOWN($J$63/5,0)*5,'2050ER'!$D$52:$D$67,'2050ER'!$O$52:$O$67)+(($J$63-ROUNDDOWN($J$63/5,0)*5)/5)*(LOOKUP(ROUNDUP($J$63/5,0)*5,'2050ER'!$D$52:$D$67,'2050ER'!$O$52:$O$67)-LOOKUP(ROUNDDOWN($J$63/5,0)*5,'2050ER'!$D$52:$D$67,'2050ER'!$O$52:$O$67)),LOOKUP(ROUNDDOWN($J$63/5,0)*5,'2050ER'!$D$52:$D$67,'2050ER'!$Q$52:$Q$67)+(($J$63-ROUNDDOWN($J$63/5,0)*5)/5)*(LOOKUP(ROUNDUP($J$63/5,0)*5,'2050ER'!$D$52:$D$67,'2050ER'!$Q$52:$Q$67)-LOOKUP(ROUNDDOWN($J$63/5,0)*5,'2050ER'!$D$52:$D$67,'2050ER'!$Q$52:$Q$67))) -> 1.554281494 | I143: =IF($I$22="Rural",LOOKUP(ROUNDDOWN($J$63/5,0)*5,'2050ER'!$D$36:$D$51,'2050ER'!$O$36:$O$51)+(($J$63-ROUNDDOWN($J$63/5,0)*5)/5)*(LOOKUP(ROUNDUP($J$63/5,0)*5,'2050ER'!$D$36:$D$51,'2050ER'!$O$36:$O$51)-LOOKUP(ROUNDDOWN($J$63/5,0)*5,'2050ER'!$D$36:$D$51,'2050ER'!$O$36:$O$51)),LOOKUP(ROUNDDOWN($J$63/5,0)*5,'2050ER'!$D$36:$D$51,'2050ER'!$Q$36:$Q$51)+(($J$63-ROUNDDOWN($J$63/5,0)*5)/5)*(LOOKUP(ROUNDUP($J$63/5,0)*5,'2050ER'!$D$36:$D$51,'2050ER'!$Q$36:$Q$51)-LOOKUP(ROUNDDOWN($J$63/5,0)*5,'2050ER'!$D$36:$D$51,'2050ER'!$Q$36:$Q$51))) -> 0.02267733687 | J143: =IF($I$22="Rural",LOOKUP(ROUNDDOWN($J$63/5,0)*5,'2050ER'!$D$4:$D$19,'2050ER'!$O$4:$O$19)+(($J$63-ROUNDDOWN($J$63/5,0)*5)/5)*(LOOKUP(ROUNDUP($J$63/5,0)*5,'2050ER'!$D$4:$D$19,'2050ER'!$O$4:$O$19)-LOOKUP(ROUNDDOWN($J$63/5,0)*5,'2050ER'!$D$4:$D$19,'2050ER'!$O$4:$O$19)),LOOKUP(ROUNDDOWN($J$63/5,0)*5,'2050ER'!$D$4:$D$19,'2050ER'!$Q$68:$Q$83)+(($J$63-ROUNDDOWN($J$63/5,0)*5)/5)*(LOOKUP(ROUNDUP($J$63/5,0)*5,'2050ER'!$D$4:$D$19,'2050ER'!$Q$68:$Q$83)-LOOKUP(ROUNDDOWN($J$63/5,0)*5,'2050ER'!$D$4:$D$19,'2050ER'!$Q$68:$Q$83))) -> 0.2234348975 | K143: g/veh/mile
E144: Buses | F144: =IF($I$22="Rural",LOOKUP(ROUNDDOWN($J$63/5,0)*5,'2050ER'!$D$4:$D$19,'2050ER'!$J$4:$J$19)+(($J$63-ROUNDDOWN($J$63/5,0)*5)/5)*(LOOKUP(ROUNDUP($J$63/5,0)*5,'2050ER'!$D$4:$D$19,'2050ER'!$J$4:$J$19)-LOOKUP(ROUNDDOWN($J$63/5,0)*5,'2050ER'!$D$4:$D$19,'2050ER'!$J$4:$J$19)),LOOKUP(ROUNDDOWN($J$63/5,0)*5,'2050ER'!$D$4:$D$19,'2050ER'!$L$4:$L$19)+(($J$63-ROUNDDOWN($J$63/5,0)*5)/5)*(LOOKUP(ROUNDUP($J$63/5,0)*5,'2050ER'!$D$4:$D$19,'2050ER'!$L$4:$L$19)-LOOKUP(ROUNDDOWN($J$63/5,0)*5,'2050ER'!$D$4:$D$19,'2050ER'!$L$4:$L$19))) -> 1234.519525 | G144: =IF($I$22="Rural",LOOKUP(ROUNDDOWN($J$63/5,0)*5,'2050ER'!$D$20:$D$35,'2050ER'!$J$20:$J$35)+(($J$63-ROUNDDOWN($J$63/5,0)*5)/5)*(LOOKUP(ROUNDUP($J$63/5,0)*5,'2050ER'!$D$20:$D$35,'2050ER'!$J$20:$J$35)-LOOKUP(ROUNDDOWN($J$63/5,0)*5,'2050ER'!$D$20:$D$35,'2050ER'!$J$20:$J$35)),LOOKUP(ROUNDDOWN($J$63/5,0)*5,'2050ER'!$D$20:$D$35,'2050ER'!$L$20:$L$35)+(($J$63-ROUNDDOWN($J$63/5,0)*5)/5)*(LOOKUP(ROUNDUP($J$63/5,0)*5,'2050ER'!$D$20:$D$35,'2050ER'!$L$20:$L$35)-LOOKUP(ROUNDDOWN($J$63/5,0)*5,'2050ER'!$D$20:$D$35,'2050ER'!$L$20:$L$35))) -> 1.046566272 | H144: =IF($I$22="Rural",LOOKUP(ROUNDDOWN($J$63/5,0)*5,'2050ER'!$D$52:$D$67,'2050ER'!$J$52:$J$67)+(($J$63-ROUNDDOWN($J$63/5,0)*5)/5)*(LOOKUP(ROUNDUP($J$63/5,0)*5,'2050ER'!$D$52:$D$67,'2050ER'!$J$52:$J$67)-LOOKUP(ROUNDDOWN($J$63/5,0)*5,'2050ER'!$D$52:$D$67,'2050ER'!$J$52:$J$67)),LOOKUP(ROUNDDOWN($J$63/5,0)*5,'2050ER'!$D$52:$D$67,'2050ER'!$L$52:$L$67)+(($J$63-ROUNDDOWN($J$63/5,0)*5)/5)*(LOOKUP(ROUNDUP($J$63/5,0)*5,'2050ER'!$D$52:$D$67,'2050ER'!$L$52:$L$67)-LOOKUP(ROUNDDOWN($J$63/5,0)*5,'2050ER'!$D$52:$D$67,'2050ER'!$L$52:$L$67))) -> 1.889860975 | I144: =IF($I$22="Rural",LOOKUP(ROUNDDOWN($J$63/5,0)*5,'2050ER'!$D$36:$D$51,'2050ER'!$J$36:$J$51)+(($J$63-ROUNDDOWN($J$63/5,0)*5)/5)*(LOOKUP(ROUNDUP($J$63/5,0)*5,'2050ER'!$D$36:$D$51,'2050ER'!$J$36:$J$51)-LOOKUP(ROUNDDOWN($J$63/5,0)*5,'2050ER'!$D$36:$D$51,'2050ER'!$J$36:$J$51)),LOOKUP(ROUNDDOWN($J$63/5,0)*5,'2050ER'!$D$36:$D$51,'2050ER'!$L$36:$L$51)+(($J$63-ROUNDDOWN($J$63/5,0)*5)/5)*(LOOKUP(ROUNDUP($J$63/5,0)*5,'2050ER'!$D$36:$D$51,'2050ER'!$L$36:$L$51)-LOOKUP(ROUNDDOWN($J$63/5,0)*5,'2050ER'!$D$36:$D$51,'2050ER'!$L$36:$L$51))) -> 0.01704472673 | J144: =IF($I$22="Rural",LOOKUP(ROUNDDOWN($J$63/5,0)*5,'2050ER'!$D$4:$D$19,'2050ER'!$J$4:$J$19)+(($J$63-ROUNDDOWN($J$63/5,0)*5)/5)*(LOOKUP(ROUNDUP($J$63/5,0)*5,'2050ER'!$D$4:$D$19,'2050ER'!$J$4:$J$19)-LOOKUP(ROUNDDOWN($J$63/5,0)*5,'2050ER'!$D$4:$D$19,'2050ER'!$J$4:$J$19)),LOOKUP(ROUNDDOWN($J$63/5,0)*5,'2050ER'!$D$4:$D$19,'2050ER'!$L$68:$L$83)+(($J$63-ROUNDDOWN($J$63/5,0)*5)/5)*(LOOKUP(ROUNDUP($J$63/5,0)*5,'2050ER'!$D$4:$D$19,'2050ER'!$L$68:$L$83)-LOOKUP(ROUNDDOWN($J$63/5,0)*5,'2050ER'!$D$4:$D$19,'2050ER'!$L$68:$L$83))) -> 0.1714897938 | K144: g/veh/mile
D145: Proposed - General Purpose Lane | E145: Light Duty Vehicles | F145: =IF($I$22="Rural",LOOKUP(ROUNDDOWN($J$69/5,0)*5,'2050ER'!$D$4:$D$19,'2050ER'!$E$4:$E$19)+(($J$69-ROUNDDOWN($J$69/5,0)*5)/5)*(LOOKUP(ROUNDUP($J$69/5,0)*5,'2050ER'!$D$4:$D$19,'2050ER'!$E$4:$E$19)-LOOKUP(ROUNDDOWN($J$69/5,0)*5,'2050ER'!$D$4:$D$19,'2050ER'!$E$4:$E$19)),LOOKUP(ROUNDDOWN($J$69/5,0)*5,'2050ER'!$D$4:$D$19,'2050ER'!$G$4:$G$19)+(($J$69-ROUNDDOWN($J$69/5,0)*5)/5)*(LOOKUP(ROUNDUP($J$69/5,0)*5,'2050ER'!$D$4:$D$19,'2050ER'!$G$4:$G$19)-LOOKUP(ROUNDDOWN($J$69/5,0)*5,'2050ER'!$D$4:$D$19,'2050ER'!$G$4:$G$19))) -> 221.44015 | G145: =IF($I$22="Rural",LOOKUP(ROUNDDOWN($J$69/5,0)*5,'2050ER'!$D$20:$D$35,'2050ER'!$E$20:$E$35)+(($J$69-ROUNDDOWN($J$69/5,0)*5)/5)*(LOOKUP(ROUNDUP($J$69/5,0)*5,'2050ER'!$D$20:$D$35,'2050ER'!$E$20:$E$35)-LOOKUP(ROUNDDOWN($J$69/5,0)*5,'2050ER'!$D$20:$D$35,'2050ER'!$E$20:$E$35)),LOOKUP(ROUNDDOWN($J$69/5,0)*5,'2050ER'!$D$20:$D$35,'2050ER'!$G$20:$G$35)+(($J$69-ROUNDDOWN($J$69/5,0)*5)/5)*(LOOKUP(ROUNDUP($J$69/5,0)*5,'2050ER'!$D$20:$D$35,'2050ER'!$G$20:$G$35)-LOOKUP(ROUNDDOWN($J$69/5,0)*5,'2050ER'!$D$20:$D$35,'2050ER'!$G$20:$G$35))) -> 0.02590100908 | H145: =IF($I$22="Rural",LOOKUP(ROUNDDOWN($J$69/5,0)*5,'2050ER'!$D$52:$D$67,'2050ER'!$E$52:$E$67)+(($J$69-ROUNDDOWN($J$69/5,0)*5)/5)*(LOOKUP(ROUNDUP($J$69/5,0)*5,'2050ER'!$D$52:$D$67,'2050ER'!$E$52:$E$67)-LOOKUP(ROUNDDOWN($J$69/5,0)*5,'2050ER'!$D$52:$D$67,'2050ER'!$E$52:$E$67)),LOOKUP(ROUNDDOWN($J$69/5,0)*5,'2050ER'!$D$52:$D$67,'2050ER'!$G$52:$G$67)+(($J$69-ROUNDDOWN($J$69/5,0)*5)/5)*(LOOKUP(ROUNDUP($J$69/5,0)*5,'2050ER'!$D$52:$D$67,'2050ER'!$G$52:$G$67)-LOOKUP(ROUNDDOWN($J$69/5,0)*5,'2050ER'!$D$52:$D$67,'2050ER'!$G$52:$G$67))) -> 0.05048671871 | I145: =IF($I$22="Rural",LOOKUP(ROUNDDOWN($J$69/5,0)*5,'2050ER'!$D$36:$D$51,'2050ER'!$E$36:$E$51)+(($J$69-ROUNDDOWN($J$69/5,0)*5)/5)*(LOOKUP(ROUNDUP($J$69/5,0)*5,'2050ER'!$D$36:$D$51,'2050ER'!$E$36:$E$51)-LOOKUP(ROUNDDOWN($J$69/5,0)*5,'2050ER'!$D$36:$D$51,'2050ER'!$E$36:$E$51)),LOOKUP(ROUNDDOWN($J$69/5,0)*5,'2050ER'!$D$36:$D$51,'2050ER'!$G$36:$G$51)+(($J$69-ROUNDDOWN($J$69/5,0)*5)/5)*(LOOKUP(ROUNDUP($J$69/5,0)*5,'2050ER'!$D$36:$D$51,'2050ER'!$G$36:$G$51)-LOOKUP(ROUNDDOWN($J$69/5,0)*5,'2050ER'!$D$36:$D$51,'2050ER'!$G$36:$G$51))) -> 0.003619103217 | J145: =IF($I$22="Rural",LOOKUP(ROUNDDOWN($J$69/5,0)*5,'2050ER'!$D$4:$D$19,'2050ER'!$E$4:$E$19)+(($J$69-ROUNDDOWN($J$69/5,0)*5)/5)*(LOOKUP(ROUNDUP($J$69/5,0)*5,'2050ER'!$D$4:$D$19,'2050ER'!$E$4:$E$19)-LOOKUP(ROUNDDOWN($J$69/5,0)*5,'2050ER'!$D$4:$D$19,'2050ER'!$E$4:$E$19)),LOOKUP(ROUNDDOWN($J$69/5,0)*5,'2050ER'!$D$4:$D$19,'2050ER'!$G$68:$G$83)+(($J$69-ROUNDDOWN($J$69/5,0)*5)/5)*(LOOKUP(ROUNDUP($J$69/5,0)*5,'2050ER'!$D$4:$D$19,'2050ER'!$G$68:$G$83)-LOOKUP(ROUNDDOWN($J$69/5,0)*5,'2050ER'!$D$4:$D$19,'2050ER'!$G$68:$G$83))) -> 0.06132673554 | K145: g/veh/mile
E146: All Trucks | F146: =IF($I$22="Rural",LOOKUP(ROUNDDOWN($J$69/5,0)*5,'2050ER'!$D$4:$D$19,'2050ER'!$O$4:$O$19)+(($J$69-ROUNDDOWN($J$69/5,0)*5)/5)*(LOOKUP(ROUNDUP($J$69/5,0)*5,'2050ER'!$D$4:$D$19,'2050ER'!$O$4:$O$19)-LOOKUP(ROUNDDOWN($J$69/5,0)*5,'2050ER'!$D$4:$D$19,'2050ER'!$O$4:$O$19)),LOOKUP(ROUNDDOWN($J$69/5,0)*5,'2050ER'!$D$4:$D$19,'2050ER'!$Q$4:$Q$19)+(($J$69-ROUNDDOWN($J$69/5,0)*5)/5)*(LOOKUP(ROUNDUP($J$69/5,0)*5,'2050ER'!$D$4:$D$19,'2050ER'!$Q$4:$Q$19)-LOOKUP(ROUNDDOWN($J$69/5,0)*5,'2050ER'!$D$4:$D$19,'2050ER'!$Q$4:$Q$19))) -> 1401.227913 | G146: =IF($I$22="Rural",LOOKUP(ROUNDDOWN($J$69/5,0)*5,'2050ER'!$D$20:$D$35,'2050ER'!$O$20:$O$35)+(($J$69-ROUNDDOWN($J$69/5,0)*5)/5)*(LOOKUP(ROUNDUP($J$69/5,0)*5,'2050ER'!$D$20:$D$35,'2050ER'!$O$20:$O$35)-LOOKUP(ROUNDDOWN($J$69/5,0)*5,'2050ER'!$D$20:$D$35,'2050ER'!$O$20:$O$35)),LOOKUP(ROUNDDOWN($J$69/5,0)*5,'2050ER'!$D$20:$D$35,'2050ER'!$Q$20:$Q$35)+(($J$69-ROUNDDOWN($J$69/5,0)*5)/5)*(LOOKUP(ROUNDUP($J$69/5,0)*5,'2050ER'!$D$20:$D$35,'2050ER'!$Q$20:$Q$35)-LOOKUP(ROUNDDOWN($J$69/5,0)*5,'2050ER'!$D$20:$D$35,'2050ER'!$Q$20:$Q$35))) -> 1.007387885 | H146: =IF($I$22="Rural",LOOKUP(ROUNDDOWN($J$69/5,0)*5,'2050ER'!$D$52:$D$67,'2050ER'!$O$52:$O$67)+(($J$69-ROUNDDOWN($J$69/5,0)*5)/5)*(LOOKUP(ROUNDUP($J$69/5,0)*5,'2050ER'!$D$52:$D$67,'2050ER'!$O$52:$O$67)-LOOKUP(ROUNDDOWN($J$69/5,0)*5,'2050ER'!$D$52:$D$67,'2050ER'!$O$52:$O$67)),LOOKUP(ROUNDDOWN($J$69/5,0)*5,'2050ER'!$D$52:$D$67,'2050ER'!$Q$52:$Q$67)+(($J$69-ROUNDDOWN($J$69/5,0)*5)/5)*(LOOKUP(ROUNDUP($J$69/5,0)*5,'2050ER'!$D$52:$D$67,'2050ER'!$Q$52:$Q$67)-LOOKUP(ROUNDDOWN($J$69/5,0)*5,'2050ER'!$D$52:$D$67,'2050ER'!$Q$52:$Q$67))) -> 1.795182961 | I146: =IF($I$22="Rural",LOOKUP(ROUNDDOWN($J$69/5,0)*5,'2050ER'!$D$36:$D$51,'2050ER'!$O$36:$O$51)+(($J$69-ROUNDDOWN($J$69/5,0)*5)/5)*(LOOKUP(ROUNDUP($J$69/5,0)*5,'2050ER'!$D$36:$D$51,'2050ER'!$O$36:$O$51)-LOOKUP(ROUNDDOWN($J$69/5,0)*5,'2050ER'!$D$36:$D$51,'2050ER'!$O$36:$O$51)),LOOKUP(ROUNDDOWN($J$69/5,0)*5,'2050ER'!$D$36:$D$51,'2050ER'!$Q$36:$Q$51)+(($J$69-ROUNDDOWN($J$69/5,0)*5)/5)*(LOOKUP(ROUNDUP($J$69/5,0)*5,'2050ER'!$D$36:$D$51,'2050ER'!$Q$36:$Q$51)-LOOKUP(ROUNDDOWN($J$69/5,0)*5,'2050ER'!$D$36:$D$51,'2050ER'!$Q$36:$Q$51))) -> 0.02571353673 | J146: =IF($I$22="Rural",LOOKUP(ROUNDDOWN($J$69/5,0)*5,'2050ER'!$D$4:$D$19,'2050ER'!$O$4:$O$19)+(($J$69-ROUNDDOWN($J$69/5,0)*5)/5)*(LOOKUP(ROUNDUP($J$69/5,0)*5,'2050ER'!$D$4:$D$19,'2050ER'!$O$4:$O$19)-LOOKUP(ROUNDDOWN($J$69/5,0)*5,'2050ER'!$D$4:$D$19,'2050ER'!$O$4:$O$19)),LOOKUP(ROUNDDOWN($J$69/5,0)*5,'2050ER'!$D$4:$D$19,'2050ER'!$Q$68:$Q$83)+(($J$69-ROUNDDOWN($J$69/5,0)*5)/5)*(LOOKUP(ROUNDUP($J$69/5,0)*5,'2050ER'!$D$4:$D$19,'2050ER'!$Q$68:$Q$83)-LOOKUP(ROUNDDOWN($J$69/5,0)*5,'2050ER'!$D$4:$D$19,'2050ER'!$Q$68:$Q$83))) -> 0.2914006252 | K146: g/veh/mile
E147: Buses | F147: =IF($I$22="Rural",LOOKUP(ROUNDDOWN($J$69/5,0)*5,'2050ER'!$D$4:$D$19,'2050ER'!$J$4:$J$19)+(($J$69-ROUNDDOWN($J$69/5,0)*5)/5)*(LOOKUP(ROUNDUP($J$69/5,0)*5,'2050ER'!$D$4:$D$19,'2050ER'!$J$4:$J$19)-LOOKUP(ROUNDDOWN($J$69/5,0)*5,'2050ER'!$D$4:$D$19,'2050ER'!$J$4:$J$19)),LOOKUP(ROUNDDOWN($J$69/5,0)*5,'2050ER'!$D$4:$D$19,'2050ER'!$L$4:$L$19)+(($J$69-ROUNDDOWN($J$69/5,0)*5)/5)*(LOOKUP(ROUNDUP($J$69/5,0)*5,'2050ER'!$D$4:$D$19,'2050ER'!$L$4:$L$19)-LOOKUP(ROUNDDOWN($J$69/5,0)*5,'2050ER'!$D$4:$D$19,'2050ER'!$L$4:$L$19))) -> 1338.170801 | G147: =IF($I$22="Rural",LOOKUP(ROUNDDOWN($J$69/5,0)*5,'2050ER'!$D$20:$D$35,'2050ER'!$J$20:$J$35)+(($J$69-ROUNDDOWN($J$69/5,0)*5)/5)*(LOOKUP(ROUNDUP($J$69/5,0)*5,'2050ER'!$D$20:$D$35,'2050ER'!$J$20:$J$35)-LOOKUP(ROUNDDOWN($J$69/5,0)*5,'2050ER'!$D$20:$D$35,'2050ER'!$J$20:$J$35)),LOOKUP(ROUNDDOWN($J$69/5,0)*5,'2050ER'!$D$20:$D$35,'2050ER'!$L$20:$L$35)+(($J$69-ROUNDDOWN($J$69/5,0)*5)/5)*(LOOKUP(ROUNDUP($J$69/5,0)*5,'2050ER'!$D$20:$D$35,'2050ER'!$L$20:$L$35)-LOOKUP(ROUNDDOWN($J$69/5,0)*5,'2050ER'!$D$20:$D$35,'2050ER'!$L$20:$L$35))) -> 1.180276674 | H147: =IF($I$22="Rural",LOOKUP(ROUNDDOWN($J$69/5,0)*5,'2050ER'!$D$52:$D$67,'2050ER'!$J$52:$J$67)+(($J$69-ROUNDDOWN($J$69/5,0)*5)/5)*(LOOKUP(ROUNDUP($J$69/5,0)*5,'2050ER'!$D$52:$D$67,'2050ER'!$J$52:$J$67)-LOOKUP(ROUNDDOWN($J$69/5,0)*5,'2050ER'!$D$52:$D$67,'2050ER'!$J$52:$J$67)),LOOKUP(ROUNDDOWN($J$69/5,0)*5,'2050ER'!$D$52:$D$67,'2050ER'!$L$52:$L$67)+(($J$69-ROUNDDOWN($J$69/5,0)*5)/5)*(LOOKUP(ROUNDUP($J$69/5,0)*5,'2050ER'!$D$52:$D$67,'2050ER'!$L$52:$L$67)-LOOKUP(ROUNDDOWN($J$69/5,0)*5,'2050ER'!$D$52:$D$67,'2050ER'!$L$52:$L$67))) -> 2.129117187 | I147: =IF($I$22="Rural",LOOKUP(ROUNDDOWN($J$69/5,0)*5,'2050ER'!$D$36:$D$51,'2050ER'!$J$36:$J$51)+(($J$69-ROUNDDOWN($J$69/5,0)*5)/5)*(LOOKUP(ROUNDUP($J$69/5,0)*5,'2050ER'!$D$36:$D$51,'2050ER'!$J$36:$J$51)-LOOKUP(ROUNDDOWN($J$69/5,0)*5,'2050ER'!$D$36:$D$51,'2050ER'!$J$36:$J$51)),LOOKUP(ROUNDDOWN($J$69/5,0)*5,'2050ER'!$D$36:$D$51,'2050ER'!$L$36:$L$51)+(($J$69-ROUNDDOWN($J$69/5,0)*5)/5)*(LOOKUP(ROUNDUP($J$69/5,0)*5,'2050ER'!$D$36:$D$51,'2050ER'!$L$36:$L$51)-LOOKUP(ROUNDDOWN($J$69/5,0)*5,'2050ER'!$D$36:$D$51,'2050ER'!$L$36:$L$51))) -> 0.02080168802 | J147: =IF($I$22="Rural",LOOKUP(ROUNDDOWN($J$69/5,0)*5,'2050ER'!$D$4:$D$19,'2050ER'!$J$4:$J$19)+(($J$69-ROUNDDOWN($J$69/5,0)*5)/5)*(LOOKUP(ROUNDUP($J$69/5,0)*5,'2050ER'!$D$4:$D$19,'2050ER'!$J$4:$J$19)-LOOKUP(ROUNDDOWN($J$69/5,0)*5,'2050ER'!$D$4:$D$19,'2050ER'!$J$4:$J$19)),LOOKUP(ROUNDDOWN($J$69/5,0)*5,'2050ER'!$D$4:$D$19,'2050ER'!$L$68:$L$83)+(($J$69-ROUNDDOWN($J$69/5,0)*5)/5)*(LOOKUP(ROUNDUP($J$69/5,0)*5,'2050ER'!$D$4:$D$19,'2050ER'!$L$68:$L$83)-LOOKUP(ROUNDDOWN($J$69/5,0)*5,'2050ER'!$D$4:$D$19,'2050ER'!$L$68:$L$83))) -> 0.2288937121 | K147: g/veh/mile
